Workbook

Sheet Slagtesvin (hidden)
A1: Slagtesvin (7200) | Y1: Ident | Z1: =Choices!$A$1*10+Choices!$D$1 -> 43 | AA1: =Choices!$A$1*100+Choices!$D$1*10+Choices!$G$1 -> 434 | AB1: 2 | AC1: 3 | AD1: 4 | AE1: 5 | AF1: 6 | AG1: 7 | AJ1: Til adresseformel
D2: Landsplan | F2: ="Kreds "&Kredsudvælgelse!$A$2&"" -> Kreds | L2: Betingelser | AA2: 322 | AB2: Mindre end 2000 producerede slagtesvin | AJ2: =ISTEXT(N4) -> TRUE | AK2: TRUE | AL2: TRUE | AM2: TRUE | AN2: TRUE | AO2: TRUE
A3: Tegn (fra højre der skal væk så navnet passer med navnet i forespørgslen) | B3: Divisor, til snit | C3: =IF(Choices!$A$1=3,IF(Choices!$D$1=1,"",IF(Choices!$D$1=2,IF(Choices!$G$1=2,"Under 2.000 producerede slagtesvin",IF(Choices!$G$1=3,"2.000 til 7.000 producerede slagtesvin",IF(Choices!$G$1=4,"7.000 til 10.000 producerede slagtesvin",IF(Choices!$G$1=5,"Over 10.000 producerede slagtesvin",""))))))) -> FALSE | D3: =IF($Z$1=32,IF(Choices!$G$1=2,Landsgennemsnit!O3,IF(Choices!$G$1=3,Landsgennemsnit!Q3,IF(Choices!$G$1=4,Landsgennemsnit!S3,IF(Choices!$G$1=5,Landsgennemsnit!U3,"")))),"") ->  | E3: Top 5 | F3: Gennemsnit | G3: Top 5 | I3: Divisor 1 | J3: Divisor 2 | L3: =IF(L4="","",IF(ISERROR(HLOOKUP(L4,#REF!,1,FALSE))=TRUE,"Ikke fundet i forespørgslen","")) -> Ikke fundet i forespørgslen | M3: =IF(M4="","",IF(ISERROR(HLOOKUP(M4,#REF!,1,FALSE))=TRUE,"Ikke fundet i forespørgslen","")) -> Ikke fundet i forespørgslen | N3: =IF(N4="","",IF(ISERROR(HLOOKUP(N4,#REF!,1,FALSE))=TRUE,"Ikke fundet i forespørgslen","")) ->  | O3: =IF(O4="","",IF(ISERROR(HLOOKUP(O4,#REF!,1,FALSE))=TRUE,"Ikke fundet i forespørgslen","")) ->  | P3: =IF(P4="","",IF(ISERROR(HLOOKUP(P4,#REF!,1,FALSE))=TRUE,"Ikke fundet i forespørgslen","")) ->  | Q3: =IF(Q4="","",IF(ISERROR(HLOOKUP(Q4,#REF!,1,FALSE))=TRUE,"Ikke fundet i forespørgslen","")) ->  | R3: =IF(R4="","",IF(ISERROR(HLOOKUP(R4,#REF!,1,FALSE))=TRUE,"Ikke fundet i forespørgslen","")) ->  | S3: =IF(S4="","",IF(ISERROR(HLOOKUP(S4,#REF!,1,FALSE))=TRUE,"Ikke fundet i forespørgslen","")) ->  | Z3: 1 | AA3: =$AA$2*10+Z3 -> 3221 | AB3: Antal producerede slagtesvin | AC3: Godkendt | AD3: Økologisk_konventionel | AJ3: Række | AK3: 7
A4: 0 | B4: 0 | C4: Antal producerede slagtesvin | D4: =IF($Z$1=32,IF(Choices!$G$1=2,Landsgennemsnit!O4,IF(Choices!$G$1=3,Landsgennemsnit!Q4,IF(Choices!$G$1=4,Landsgennemsnit!S4,IF(Choices!$G$1=5,Landsgennemsnit!U4,"")))),"") ->  | E4: =IF($Z$1=32,IF(Choices!$G$1=2,Landsgennemsnit!P4,IF(Choices!$G$1=3,Landsgennemsnit!R4,IF(Choices!$G$1=4,Landsgennemsnit!T4,IF(Choices!$G$1=5,Landsgennemsnit!V4,"")))),"") ->  | F4: =IF($Z$1=32,IFERROR(IF(ISTEXT($B4)=TRUE,DSUM(#REF!,""&LEFT($C4,LEN($C4)-$A4)&"",$M$4:INDIRECT(ADDRESS($AK$3,$AK$4)))/DSUM(#REF!,""&$B4&"",$M$4:INDIRECT(ADDRESS($AK$3,$AK$4))),IF($B4=0,DAVERAGE(#REF!,""&LEFT($C4,LEN($C4)-$A4)&"",$M$4:INDIRECT(ADDRESS($AK$3,$AK$4))),IF($B4=1,DSUM(#REF!,""&LEFT($C4,LEN($C4)-$A4)&"",$M$4:INDIRECT(ADDRESS($AK$3,$AK$4)))/DSUM(#REF!,""&$I$4&"",$M$4:INDIRECT(ADDRESS($AK$3,$AK$4))),DSUM(#REF!,""&LEFT($C4,LEN($C4)-$A4)&"",$M$4:INDIRECT(ADDRESS($AK$3,$AK$4)))/DSUM(#REF!,""&$J$4&"",$M$4:INDIRECT(ADDRESS($AK$3,$AK$4)))))),""),"") ->  | G4: =IF($Z$1=32,IFERROR(IF(ISTEXT($B4)=TRUE,DSUM(#REF!,""&LEFT($C4,LEN($C4)-$A4)&"",$L$4:INDIRECT(ADDRESS($AK$3,$AK$4)))/DSUM(#REF!,""&$B4&"",$L$4:INDIRECT(ADDRESS($AK$3,$AK$4))),IF($B4=0,DAVERAGE(#REF!,""&LEFT($C4,LEN($C4)-$A4)&"",$L$4:INDIRECT(ADDRESS($AK$3,$AK$4))),IF($B4=1,DSUM(#REF!,""&LEFT($C4,LEN($C4)-$A4)&"",$L$4:INDIRECT(ADDRESS($AK$3,$AK$4)))/DSUM(#REF!,""&$I$4&"",$L$4:INDIRECT(ADDRESS($AK$3,$AK$4))),IF($B4=2,DSUM(#REF!,""&LEFT($C4,LEN($C4)-$A4)&"",$L$4:INDIRECT(ADDRESS($AK$3,$AK$4)))/DSUM(#REF!,""&$J$4&"",$L$4:INDIRECT(ADDRESS($AK$3,$AK$4))))))),""),"") ->  | I4: Slagtevægt, kg. | J4: Antal producerede slagtesvin | L4: årets resultat pr. slagtesvin | M4: Prodgren | N4: =IF($Z$1=32,IFERROR(VLOOKUP($AA$1*10+$Z3,$AA$3:$AG$36,AB$1,FALSE),""),"") ->  | Z4: 2 | AA4: =$AA$2*10+Z4 -> 3222 | AB4: <2000 | AC4: TRUE | AD4: <2 | AJ4: Kolonne | AK4: =13+COUNTIF(AJ2:AO2,"SAND") -> 19
A5: 0 | B5: 0 | C5: Slagtevægt, kg. | D5: =IF($Z$1=32,IF(Choices!$G$1=2,Landsgennemsnit!O5,IF(Choices!$G$1=3,Landsgennemsnit!Q5,IF(Choices!$G$1=4,Landsgennemsnit!S5,IF(Choices!$G$1=5,Landsgennemsnit!U5,"")))),"") ->  | E5: =IF($Z$1=32,IF(Choices!$G$1=2,Landsgennemsnit!P5,IF(Choices!$G$1=3,Landsgennemsnit!R5,IF(Choices!$G$1=4,Landsgennemsnit!T5,IF(Choices!$G$1=5,Landsgennemsnit!V5,"")))),"") ->  | F5: =IF($Z$1=32,IFERROR(IF(ISTEXT($B5)=TRUE,DSUM(#REF!,""&LEFT($C5,LEN($C5)-$A5)&"",$M$4:INDIRECT(ADDRESS($AK$3,$AK$4)))/DSUM(#REF!,""&$B5&"",$M$4:INDIRECT(ADDRESS($AK$3,$AK$4))),IF($B5=0,DAVERAGE(#REF!,""&LEFT($C5,LEN($C5)-$A5)&"",$M$4:INDIRECT(ADDRESS($AK$3,$AK$4))),IF($B5=1,DSUM(#REF!,""&LEFT($C5,LEN($C5)-$A5)&"",$M$4:INDIRECT(ADDRESS($AK$3,$AK$4)))/DSUM(#REF!,""&$I$4&"",$M$4:INDIRECT(ADDRESS($AK$3,$AK$4))),DSUM(#REF!,""&LEFT($C5,LEN($C5)-$A5)&"",$M$4:INDIRECT(ADDRESS($AK$3,$AK$4)))/DSUM(#REF!,""&$J$4&"",$M$4:INDIRECT(ADDRESS($AK$3,$AK$4)))))),""),"") ->  | G5: =IF($Z$1=32,IFERROR(IF(ISTEXT($B5)=TRUE,DSUM(#REF!,""&LEFT($C5,LEN($C5)-$A5)&"",$L$4:INDIRECT(ADDRESS($AK$3,$AK$4)))/DSUM(#REF!,""&$B5&"",$L$4:INDIRECT(ADDRESS($AK$3,$AK$4))),IF($B5=0,DAVERAGE(#REF!,""&LEFT($C5,LEN($C5)-$A5)&"",$L$4:INDIRECT(ADDRESS($AK$3,$AK$4))),IF($B5=1,DSUM(#REF!,""&LEFT($C5,LEN($C5)-$A5)&"",$L$4:INDIRECT(ADDRESS($AK$3,$AK$4)))/DSUM(#REF!,""&$I$4&"",$L$4:INDIRECT(ADDRESS($AK$3,$AK$4))),IF($B5=2,DSUM(#REF!,""&LEFT($C5,LEN($C5)-$A5)&"",$L$4:INDIRECT(ADDRESS($AK$3,$AK$4)))/DSUM(#REF!,""&$J$4&"",$L$4:INDIRECT(ADDRESS($AK$3,$AK$4))))))),""),"") ->  | L5: =IF($Z$1=32,">"&IF(I8<=5,"For få relevante observationer",DMAX(#REF!,""&$K$14&"",$L$30:INDIRECT(ADDRESS($AK$35,$AK$4))))&"","") ->  | M5: ="=7200" -> =7200 | Z5: 3 | AA5: =$AA$2*10+Z5 -> 3223 | AB5: <2000 | AC5: TRUE | AD5: <2
A6: 0 | B6: 0 | C6: Vægt indsatte smågrise, kg. | D6: =IF($Z$1=32,IF(Choices!$G$1=2,Landsgennemsnit!O6,IF(Choices!$G$1=3,Landsgennemsnit!Q6,IF(Choices!$G$1=4,Landsgennemsnit!S6,IF(Choices!$G$1=5,Landsgennemsnit!U6,"")))),"") ->  | E6: =IF($Z$1=32,IF(Choices!$G$1=2,Landsgennemsnit!P6,IF(Choices!$G$1=3,Landsgennemsnit!R6,IF(Choices!$G$1=4,Landsgennemsnit!T6,IF(Choices!$G$1=5,Landsgennemsnit!V6,"")))),"") ->  | F6: =IF($Z$1=32,IFERROR(IF(ISTEXT($B6)=TRUE,DSUM(#REF!,""&LEFT($C6,LEN($C6)-$A6)&"",$M$4:INDIRECT(ADDRESS($AK$3,$AK$4)))/DSUM(#REF!,""&$B6&"",$M$4:INDIRECT(ADDRESS($AK$3,$AK$4))),IF($B6=0,DAVERAGE(#REF!,""&LEFT($C6,LEN($C6)-$A6)&"",$M$4:INDIRECT(ADDRESS($AK$3,$AK$4))),IF($B6=1,DSUM(#REF!,""&LEFT($C6,LEN($C6)-$A6)&"",$M$4:INDIRECT(ADDRESS($AK$3,$AK$4)))/DSUM(#REF!,""&$I$4&"",$M$4:INDIRECT(ADDRESS($AK$3,$AK$4))),DSUM(#REF!,""&LEFT($C6,LEN($C6)-$A6)&"",$M$4:INDIRECT(ADDRESS($AK$3,$AK$4)))/DSUM(#REF!,""&$J$4&"",$M$4:INDIRECT(ADDRESS($AK$3,$AK$4)))))),""),"") ->  | G6: =IF($Z$1=32,IFERROR(IF(ISTEXT($B6)=TRUE,DSUM(#REF!,""&LEFT($C6,LEN($C6)-$A6)&"",$L$4:INDIRECT(ADDRESS($AK$3,$AK$4)))/DSUM(#REF!,""&$B6&"",$L$4:INDIRECT(ADDRESS($AK$3,$AK$4))),IF($B6=0,DAVERAGE(#REF!,""&LEFT($C6,LEN($C6)-$A6)&"",$L$4:INDIRECT(ADDRESS($AK$3,$AK$4))),IF($B6=1,DSUM(#REF!,""&LEFT($C6,LEN($C6)-$A6)&"",$L$4:INDIRECT(ADDRESS($AK$3,$AK$4)))/DSUM(#REF!,""&$I$4&"",$L$4:INDIRECT(ADDRESS($AK$3,$AK$4))),IF($B6=2,DSUM(#REF!,""&LEFT($C6,LEN($C6)-$A6)&"",$L$4:INDIRECT(ADDRESS($AK$3,$AK$4)))/DSUM(#REF!,""&$J$4&"",$L$4:INDIRECT(ADDRESS($AK$3,$AK$4))))))),""),"") ->  | L6: =$L$5 ->  | M6: =$M$5 -> =7200 | Z6: 4 | AA6: =$AA$2*10+Z6 -> 3224 | AB6: <2000 | AC6: TRUE | AD6: <2
D7: =IF($Z$1=32,IF(Choices!$G$1=2,Landsgennemsnit!O7,IF(Choices!$G$1=3,Landsgennemsnit!Q7,IF(Choices!$G$1=4,Landsgennemsnit!S7,IF(Choices!$G$1=5,Landsgennemsnit!U7,"")))),"") ->  | E7: =IF($Z$1=32,IF(Choices!$G$1=2,Landsgennemsnit!P7,IF(Choices!$G$1=3,Landsgennemsnit!R7,IF(Choices!$G$1=4,Landsgennemsnit!T7,IF(Choices!$G$1=5,Landsgennemsnit!V7,"")))),"") ->  | F7: =IF($Z$1=32,IFERROR(IF(ISTEXT($B7)=TRUE,DSUM(#REF!,""&LEFT($C7,LEN($C7)-$A7)&"",$M$4:INDIRECT(ADDRESS($AK$3,$AK$4)))/DSUM(#REF!,""&$B7&"",$M$4:INDIRECT(ADDRESS($AK$3,$AK$4))),IF($B7=0,DAVERAGE(#REF!,""&LEFT($C7,LEN($C7)-$A7)&"",$M$4:INDIRECT(ADDRESS($AK$3,$AK$4))),IF($B7=1,DSUM(#REF!,""&LEFT($C7,LEN($C7)-$A7)&"",$M$4:INDIRECT(ADDRESS($AK$3,$AK$4)))/DSUM(#REF!,""&$I$4&"",$M$4:INDIRECT(ADDRESS($AK$3,$AK$4))),DSUM(#REF!,""&LEFT($C7,LEN($C7)-$A7)&"",$M$4:INDIRECT(ADDRESS($AK$3,$AK$4)))/DSUM(#REF!,""&$J$4&"",$M$4:INDIRECT(ADDRESS($AK$3,$AK$4)))))),""),"") ->  | G7: =IF($Z$1=32,IFERROR(IF(ISTEXT($B7)=TRUE,DSUM(#REF!,""&LEFT($C7,LEN($C7)-$A7)&"",$L$4:INDIRECT(ADDRESS($AK$3,$AK$4)))/DSUM(#REF!,""&$B7&"",$L$4:INDIRECT(ADDRESS($AK$3,$AK$4))),IF($B7=0,DAVERAGE(#REF!,""&LEFT($C7,LEN($C7)-$A7)&"",$L$4:INDIRECT(ADDRESS($AK$3,$AK$4))),IF($B7=1,DSUM(#REF!,""&LEFT($C7,LEN($C7)-$A7)&"",$L$4:INDIRECT(ADDRESS($AK$3,$AK$4)))/DSUM(#REF!,""&$I$4&"",$L$4:INDIRECT(ADDRESS($AK$3,$AK$4))),IF($B7=2,DSUM(#REF!,""&LEFT($C7,LEN($C7)-$A7)&"",$L$4:INDIRECT(ADDRESS($AK$3,$AK$4)))/DSUM(#REF!,""&$J$4&"",$L$4:INDIRECT(ADDRESS($AK$3,$AK$4))))))),""),"") ->  | I7: Samlet antal inkluderet under betingelserne | L7: =$L$5 ->  | M7: =$M$5 -> =7200
C8: Nøgletal | D8: =IF($Z$1=32,IF(Choices!$G$1=2,Landsgennemsnit!O8,IF(Choices!$G$1=3,Landsgennemsnit!Q8,IF(Choices!$G$1=4,Landsgennemsnit!S8,IF(Choices!$G$1=5,Landsgennemsnit!U8,"")))),"") ->  | E8: =IF($Z$1=32,IF(Choices!$G$1=2,Landsgennemsnit!P8,IF(Choices!$G$1=3,Landsgennemsnit!R8,IF(Choices!$G$1=4,Landsgennemsnit!T8,IF(Choices!$G$1=5,Landsgennemsnit!V8,"")))),"") ->  | F8: =IF($Z$1=32,IFERROR(IF(ISTEXT($B8)=TRUE,DSUM(#REF!,""&LEFT($C8,LEN($C8)-$A8)&"",$M$4:INDIRECT(ADDRESS($AK$3,$AK$4)))/DSUM(#REF!,""&$B8&"",$M$4:INDIRECT(ADDRESS($AK$3,$AK$4))),IF($B8=0,DAVERAGE(#REF!,""&LEFT($C8,LEN($C8)-$A8)&"",$M$4:INDIRECT(ADDRESS($AK$3,$AK$4))),IF($B8=1,DSUM(#REF!,""&LEFT($C8,LEN($C8)-$A8)&"",$M$4:INDIRECT(ADDRESS($AK$3,$AK$4)))/DSUM(#REF!,""&$I$4&"",$M$4:INDIRECT(ADDRESS($AK$3,$AK$4))),DSUM(#REF!,""&LEFT($C8,LEN($C8)-$A8)&"",$M$4:INDIRECT(ADDRESS($AK$3,$AK$4)))/DSUM(#REF!,""&$J$4&"",$M$4:INDIRECT(ADDRESS($AK$3,$AK$4)))))),""),"") ->  | G8: =IF($Z$1=32,IFERROR(IF(ISTEXT($B8)=TRUE,DSUM(#REF!,""&LEFT($C8,LEN($C8)-$A8)&"",$L$4:INDIRECT(ADDRESS($AK$3,$AK$4)))/DSUM(#REF!,""&$B8&"",$L$4:INDIRECT(ADDRESS($AK$3,$AK$4))),IF($B8=0,DAVERAGE(#REF!,""&LEFT($C8,LEN($C8)-$A8)&"",$L$4:INDIRECT(ADDRESS($AK$3,$AK$4))),IF($B8=1,DSUM(#REF!,""&LEFT($C8,LEN($C8)-$A8)&"",$L$4:INDIRECT(ADDRESS($AK$3,$AK$4)))/DSUM(#REF!,""&$I$4&"",$L$4:INDIRECT(ADDRESS($AK$3,$AK$4))),IF($B8=2,DSUM(#REF!,""&LEFT($C8,LEN($C8)-$A8)&"",$L$4:INDIRECT(ADDRESS($AK$3,$AK$4)))/DSUM(#REF!,""&$J$4&"",$L$4:INDIRECT(ADDRESS($AK$3,$AK$4))))))),""),"") ->  | I8: =IF($Z$1=32,DCOUNT(#REF!,""&L4&"",IF(N4=0,M4:M7,IF(O4=0,M4:N7,IF(P4=0,M4:O7,IF(Q4=0,M4:P7,IF(R4=0,M4:Q7,IF(S4=0,M4:R7,""))))))),"") ->  | N8: Intervaller: 2000(,(2000,7000),(7000,10000),)10000 | AA8: 323 | AB8: 2000-7000 producerede slagtesvin
A9: 10 | B9: Antal producerede slagtesvin | C9: Foderomkostninger pr. enhed | D9: =IF($Z$1=32,IF(Choices!$G$1=2,Landsgennemsnit!O9,IF(Choices!$G$1=3,Landsgennemsnit!Q9,IF(Choices!$G$1=4,Landsgennemsnit!S9,IF(Choices!$G$1=5,Landsgennemsnit!U9,"")))),"") ->  | E9: =IF($Z$1=32,IF(Choices!$G$1=2,Landsgennemsnit!P9,IF(Choices!$G$1=3,Landsgennemsnit!R9,IF(Choices!$G$1=4,Landsgennemsnit!T9,IF(Choices!$G$1=5,Landsgennemsnit!V9,"")))),"") ->  | F9: =IF($Z$1=32,IFERROR(IF(ISTEXT($B9)=TRUE,DSUM(#REF!,""&LEFT($C9,LEN($C9)-$A9)&"",$M$4:INDIRECT(ADDRESS($AK$3,$AK$4)))/DSUM(#REF!,""&$B9&"",$M$4:INDIRECT(ADDRESS($AK$3,$AK$4))),IF($B9=0,DAVERAGE(#REF!,""&LEFT($C9,LEN($C9)-$A9)&"",$M$4:INDIRECT(ADDRESS($AK$3,$AK$4))),IF($B9=1,DSUM(#REF!,""&LEFT($C9,LEN($C9)-$A9)&"",$M$4:INDIRECT(ADDRESS($AK$3,$AK$4)))/DSUM(#REF!,""&$I$4&"",$M$4:INDIRECT(ADDRESS($AK$3,$AK$4))),DSUM(#REF!,""&LEFT($C9,LEN($C9)-$A9)&"",$M$4:INDIRECT(ADDRESS($AK$3,$AK$4)))/DSUM(#REF!,""&$J$4&"",$M$4:INDIRECT(ADDRESS($AK$3,$AK$4)))))),""),"") ->  | G9: =IF($Z$1=32,IFERROR(IF(ISTEXT($B9)=TRUE,DSUM(#REF!,""&LEFT($C9,LEN($C9)-$A9)&"",$L$4:INDIRECT(ADDRESS($AK$3,$AK$4)))/DSUM(#REF!,""&$B9&"",$L$4:INDIRECT(ADDRESS($AK$3,$AK$4))),IF($B9=0,DAVERAGE(#REF!,""&LEFT($C9,LEN($C9)-$A9)&"",$L$4:INDIRECT(ADDRESS($AK$3,$AK$4))),IF($B9=1,DSUM(#REF!,""&LEFT($C9,LEN($C9)-$A9)&"",$L$4:INDIRECT(ADDRESS($AK$3,$AK$4)))/DSUM(#REF!,""&$I$4&"",$L$4:INDIRECT(ADDRESS($AK$3,$AK$4))),IF($B9=2,DSUM(#REF!,""&LEFT($C9,LEN($C9)-$A9)&"",$L$4:INDIRECT(ADDRESS($AK$3,$AK$4)))/DSUM(#REF!,""&$J$4&"",$L$4:INDIRECT(ADDRESS($AK$3,$AK$4))))))),""),"") ->  | Z9: 1 | AA9: =$AA$8*10+Z9 -> 3231 | AB9: Antal producerede slagtesvin | AC9: Antal producerede slagtesvin | AD9: Godkendt | AE9: Økologisk_konventionel
A10: 0 | B10: Antal producerede slagtesvin | C10: Værdiændring besætning | D10: =IF($Z$1=32,IF(Choices!$G$1=2,Landsgennemsnit!O10,IF(Choices!$G$1=3,Landsgennemsnit!Q10,IF(Choices!$G$1=4,Landsgennemsnit!S10,IF(Choices!$G$1=5,Landsgennemsnit!U10,"")))),"") ->  | E10: =IF($Z$1=32,IF(Choices!$G$1=2,Landsgennemsnit!P10,IF(Choices!$G$1=3,Landsgennemsnit!R10,IF(Choices!$G$1=4,Landsgennemsnit!T10,IF(Choices!$G$1=5,Landsgennemsnit!V10,"")))),"") ->  | F10: =IF($Z$1=32,IFERROR(IF(ISTEXT($B10)=TRUE,DSUM(#REF!,""&LEFT($C10,LEN($C10)-$A10)&"",$M$4:INDIRECT(ADDRESS($AK$3,$AK$4)))/DSUM(#REF!,""&$B10&"",$M$4:INDIRECT(ADDRESS($AK$3,$AK$4))),IF($B10=0,DAVERAGE(#REF!,""&LEFT($C10,LEN($C10)-$A10)&"",$M$4:INDIRECT(ADDRESS($AK$3,$AK$4))),IF($B10=1,DSUM(#REF!,""&LEFT($C10,LEN($C10)-$A10)&"",$M$4:INDIRECT(ADDRESS($AK$3,$AK$4)))/DSUM(#REF!,""&$I$4&"",$M$4:INDIRECT(ADDRESS($AK$3,$AK$4))),DSUM(#REF!,""&LEFT($C10,LEN($C10)-$A10)&"",$M$4:INDIRECT(ADDRESS($AK$3,$AK$4)))/DSUM(#REF!,""&$J$4&"",$M$4:INDIRECT(ADDRESS($AK$3,$AK$4)))))),""),"") ->  | G10: =IF($Z$1=32,IFERROR(IF(ISTEXT($B10)=TRUE,DSUM(#REF!,""&LEFT($C10,LEN($C10)-$A10)&"",$L$4:INDIRECT(ADDRESS($AK$3,$AK$4)))/DSUM(#REF!,""&$B10&"",$L$4:INDIRECT(ADDRESS($AK$3,$AK$4))),IF($B10=0,DAVERAGE(#REF!,""&LEFT($C10,LEN($C10)-$A10)&"",$L$4:INDIRECT(ADDRESS($AK$3,$AK$4))),IF($B10=1,DSUM(#REF!,""&LEFT($C10,LEN($C10)-$A10)&"",$L$4:INDIRECT(ADDRESS($AK$3,$AK$4)))/DSUM(#REF!,""&$I$4&"",$L$4:INDIRECT(ADDRESS($AK$3,$AK$4))),IF($B10=2,DSUM(#REF!,""&LEFT($C10,LEN($C10)-$A10)&"",$L$4:INDIRECT(ADDRESS($AK$3,$AK$4)))/DSUM(#REF!,""&$J$4&"",$L$4:INDIRECT(ADDRESS($AK$3,$AK$4))))))),""),"") ->  | Z10: 2 | AA10: =$AA$8*10+Z10 -> 3232 | AB10: >2000 | AC10: <7000 | AD10: TRUE | AE10: <2
A11: 10 | B11: Antal producerede slagtesvin | C11: Arbejdsomkostninger pr. enhed | D11: =IF($Z$1=32,IF(Choices!$G$1=2,Landsgennemsnit!O11,IF(Choices!$G$1=3,Landsgennemsnit!Q11,IF(Choices!$G$1=4,Landsgennemsnit!S11,IF(Choices!$G$1=5,Landsgennemsnit!U11,"")))),"") ->  | E11: =IF($Z$1=32,IF(Choices!$G$1=2,Landsgennemsnit!P11,IF(Choices!$G$1=3,Landsgennemsnit!R11,IF(Choices!$G$1=4,Landsgennemsnit!T11,IF(Choices!$G$1=5,Landsgennemsnit!V11,"")))),"") ->  | F11: =IF($Z$1=32,IFERROR(IF(ISTEXT($B11)=TRUE,DSUM(#REF!,""&LEFT($C11,LEN($C11)-$A11)&"",$M$4:INDIRECT(ADDRESS($AK$3,$AK$4)))/DSUM(#REF!,""&$B11&"",$M$4:INDIRECT(ADDRESS($AK$3,$AK$4))),IF($B11=0,DAVERAGE(#REF!,""&LEFT($C11,LEN($C11)-$A11)&"",$M$4:INDIRECT(ADDRESS($AK$3,$AK$4))),IF($B11=1,DSUM(#REF!,""&LEFT($C11,LEN($C11)-$A11)&"",$M$4:INDIRECT(ADDRESS($AK$3,$AK$4)))/DSUM(#REF!,""&$I$4&"",$M$4:INDIRECT(ADDRESS($AK$3,$AK$4))),DSUM(#REF!,""&LEFT($C11,LEN($C11)-$A11)&"",$M$4:INDIRECT(ADDRESS($AK$3,$AK$4)))/DSUM(#REF!,""&$J$4&"",$M$4:INDIRECT(ADDRESS($AK$3,$AK$4)))))),""),"") ->  | G11: =IF($Z$1=32,IFERROR(IF(ISTEXT($B11)=TRUE,DSUM(#REF!,""&LEFT($C11,LEN($C11)-$A11)&"",$L$4:INDIRECT(ADDRESS($AK$3,$AK$4)))/DSUM(#REF!,""&$B11&"",$L$4:INDIRECT(ADDRESS($AK$3,$AK$4))),IF($B11=0,DAVERAGE(#REF!,""&LEFT($C11,LEN($C11)-$A11)&"",$L$4:INDIRECT(ADDRESS($AK$3,$AK$4))),IF($B11=1,DSUM(#REF!,""&LEFT($C11,LEN($C11)-$A11)&"",$L$4:INDIRECT(ADDRESS($AK$3,$AK$4)))/DSUM(#REF!,""&$I$4&"",$L$4:INDIRECT(ADDRESS($AK$3,$AK$4))),IF($B11=2,DSUM(#REF!,""&LEFT($C11,LEN($C11)-$A11)&"",$L$4:INDIRECT(ADDRESS($AK$3,$AK$4)))/DSUM(#REF!,""&$J$4&"",$L$4:INDIRECT(ADDRESS($AK$3,$AK$4))))))),""),"") ->  | Z11: 3 | AA11: =$AA$8*10+Z11 -> 3233 | AB11: >2000 | AC11: <7000 | AD11: TRUE | AE11: <2
A12: 10 | B12: Antal producerede slagtesvin | C12: Bygningsomk. pr. enhed | D12: =IF($Z$1=32,IF(Choices!$G$1=2,Landsgennemsnit!O12,IF(Choices!$G$1=3,Landsgennemsnit!Q12,IF(Choices!$G$1=4,Landsgennemsnit!S12,IF(Choices!$G$1=5,Landsgennemsnit!U12,"")))),"") ->  | E12: =IF($Z$1=32,IF(Choices!$G$1=2,Landsgennemsnit!P12,IF(Choices!$G$1=3,Landsgennemsnit!R12,IF(Choices!$G$1=4,Landsgennemsnit!T12,IF(Choices!$G$1=5,Landsgennemsnit!V12,"")))),"") ->  | F12: =IF($Z$1=32,IFERROR(IF(ISTEXT($B12)=TRUE,DSUM(#REF!,""&LEFT($C12,LEN($C12)-$A12)&"",$M$4:INDIRECT(ADDRESS($AK$3,$AK$4)))/DSUM(#REF!,""&$B12&"",$M$4:INDIRECT(ADDRESS($AK$3,$AK$4))),IF($B12=0,DAVERAGE(#REF!,""&LEFT($C12,LEN($C12)-$A12)&"",$M$4:INDIRECT(ADDRESS($AK$3,$AK$4))),IF($B12=1,DSUM(#REF!,""&LEFT($C12,LEN($C12)-$A12)&"",$M$4:INDIRECT(ADDRESS($AK$3,$AK$4)))/DSUM(#REF!,""&$I$4&"",$M$4:INDIRECT(ADDRESS($AK$3,$AK$4))),DSUM(#REF!,""&LEFT($C12,LEN($C12)-$A12)&"",$M$4:INDIRECT(ADDRESS($AK$3,$AK$4)))/DSUM(#REF!,""&$J$4&"",$M$4:INDIRECT(ADDRESS($AK$3,$AK$4)))))),""),"") ->  | G12: =IF($Z$1=32,IFERROR(IF(ISTEXT($B12)=TRUE,DSUM(#REF!,""&LEFT($C12,LEN($C12)-$A12)&"",$L$4:INDIRECT(ADDRESS($AK$3,$AK$4)))/DSUM(#REF!,""&$B12&"",$L$4:INDIRECT(ADDRESS($AK$3,$AK$4))),IF($B12=0,DAVERAGE(#REF!,""&LEFT($C12,LEN($C12)-$A12)&"",$L$4:INDIRECT(ADDRESS($AK$3,$AK$4))),IF($B12=1,DSUM(#REF!,""&LEFT($C12,LEN($C12)-$A12)&"",$L$4:INDIRECT(ADDRESS($AK$3,$AK$4)))/DSUM(#REF!,""&$I$4&"",$L$4:INDIRECT(ADDRESS($AK$3,$AK$4))),IF($B12=2,DSUM(#REF!,""&LEFT($C12,LEN($C12)-$A12)&"",$L$4:INDIRECT(ADDRESS($AK$3,$AK$4)))/DSUM(#REF!,""&$J$4&"",$L$4:INDIRECT(ADDRESS($AK$3,$AK$4))))))),""),"") ->  | L12: De største værdier | Z12: 4 | AA12: =$AA$8*10+Z12 -> 3234 | AB12: >2000 | AC12: <7000 | AD12: TRUE | AE12: <2
A13: 10 | B13: Antal producerede slagtesvin | C13: Inventar inkl. energi pr. enhed | D13: =IF($Z$1=32,IF(Choices!$G$1=2,Landsgennemsnit!O13,IF(Choices!$G$1=3,Landsgennemsnit!Q13,IF(Choices!$G$1=4,Landsgennemsnit!S13,IF(Choices!$G$1=5,Landsgennemsnit!U13,"")))),"") ->  | E13: =IF($Z$1=32,IF(Choices!$G$1=2,Landsgennemsnit!P13,IF(Choices!$G$1=3,Landsgennemsnit!R13,IF(Choices!$G$1=4,Landsgennemsnit!T13,IF(Choices!$G$1=5,Landsgennemsnit!V13,"")))),"") ->  | F13: =IF($Z$1=32,IFERROR(IF(ISTEXT($B13)=TRUE,DSUM(#REF!,""&LEFT($C13,LEN($C13)-$A13)&"",$M$4:INDIRECT(ADDRESS($AK$3,$AK$4)))/DSUM(#REF!,""&$B13&"",$M$4:INDIRECT(ADDRESS($AK$3,$AK$4))),IF($B13=0,DAVERAGE(#REF!,""&LEFT($C13,LEN($C13)-$A13)&"",$M$4:INDIRECT(ADDRESS($AK$3,$AK$4))),IF($B13=1,DSUM(#REF!,""&LEFT($C13,LEN($C13)-$A13)&"",$M$4:INDIRECT(ADDRESS($AK$3,$AK$4)))/DSUM(#REF!,""&$I$4&"",$M$4:INDIRECT(ADDRESS($AK$3,$AK$4))),DSUM(#REF!,""&LEFT($C13,LEN($C13)-$A13)&"",$M$4:INDIRECT(ADDRESS($AK$3,$AK$4)))/DSUM(#REF!,""&$J$4&"",$M$4:INDIRECT(ADDRESS($AK$3,$AK$4)))))),""),"") ->  | G13: =IF($Z$1=32,IFERROR(IF(ISTEXT($B13)=TRUE,DSUM(#REF!,""&LEFT($C13,LEN($C13)-$A13)&"",$L$4:INDIRECT(ADDRESS($AK$3,$AK$4)))/DSUM(#REF!,""&$B13&"",$L$4:INDIRECT(ADDRESS($AK$3,$AK$4))),IF($B13=0,DAVERAGE(#REF!,""&LEFT($C13,LEN($C13)-$A13)&"",$L$4:INDIRECT(ADDRESS($AK$3,$AK$4))),IF($B13=1,DSUM(#REF!,""&LEFT($C13,LEN($C13)-$A13)&"",$L$4:INDIRECT(ADDRESS($AK$3,$AK$4)))/DSUM(#REF!,""&$I$4&"",$L$4:INDIRECT(ADDRESS($AK$3,$AK$4))),IF($B13=2,DSUM(#REF!,""&LEFT($C13,LEN($C13)-$A13)&"",$L$4:INDIRECT(ADDRESS($AK$3,$AK$4)))/DSUM(#REF!,""&$J$4&"",$L$4:INDIRECT(ADDRESS($AK$3,$AK$4))))))),""),"") ->  | K13: De 5 største værdier:
A14: 10 | B14: Antal producerede slagtesvin | C14: Forrentning driftskapital pr. enhed | D14: =IF($Z$1=32,IF(Choices!$G$1=2,Landsgennemsnit!O14,IF(Choices!$G$1=3,Landsgennemsnit!Q14,IF(Choices!$G$1=4,Landsgennemsnit!S14,IF(Choices!$G$1=5,Landsgennemsnit!U14,"")))),"") ->  | E14: =IF($Z$1=32,IF(Choices!$G$1=2,Landsgennemsnit!P14,IF(Choices!$G$1=3,Landsgennemsnit!R14,IF(Choices!$G$1=4,Landsgennemsnit!T14,IF(Choices!$G$1=5,Landsgennemsnit!V14,"")))),"") ->  | F14: =IF($Z$1=32,IFERROR(IF(ISTEXT($B14)=TRUE,DSUM(#REF!,""&LEFT($C14,LEN($C14)-$A14)&"",$M$4:INDIRECT(ADDRESS($AK$3,$AK$4)))/DSUM(#REF!,""&$B14&"",$M$4:INDIRECT(ADDRESS($AK$3,$AK$4))),IF($B14=0,DAVERAGE(#REF!,""&LEFT($C14,LEN($C14)-$A14)&"",$M$4:INDIRECT(ADDRESS($AK$3,$AK$4))),IF($B14=1,DSUM(#REF!,""&LEFT($C14,LEN($C14)-$A14)&"",$M$4:INDIRECT(ADDRESS($AK$3,$AK$4)))/DSUM(#REF!,""&$I$4&"",$M$4:INDIRECT(ADDRESS($AK$3,$AK$4))),DSUM(#REF!,""&LEFT($C14,LEN($C14)-$A14)&"",$M$4:INDIRECT(ADDRESS($AK$3,$AK$4)))/DSUM(#REF!,""&$J$4&"",$M$4:INDIRECT(ADDRESS($AK$3,$AK$4)))))),""),"") ->  | G14: =IF($Z$1=32,IFERROR(IF(ISTEXT($B14)=TRUE,DSUM(#REF!,""&LEFT($C14,LEN($C14)-$A14)&"",$L$4:INDIRECT(ADDRESS($AK$3,$AK$4)))/DSUM(#REF!,""&$B14&"",$L$4:INDIRECT(ADDRESS($AK$3,$AK$4))),IF($B14=0,DAVERAGE(#REF!,""&LEFT($C14,LEN($C14)-$A14)&"",$L$4:INDIRECT(ADDRESS($AK$3,$AK$4))),IF($B14=1,DSUM(#REF!,""&LEFT($C14,LEN($C14)-$A14)&"",$L$4:INDIRECT(ADDRESS($AK$3,$AK$4)))/DSUM(#REF!,""&$I$4&"",$L$4:INDIRECT(ADDRESS($AK$3,$AK$4))),IF($B14=2,DSUM(#REF!,""&LEFT($C14,LEN($C14)-$A14)&"",$L$4:INDIRECT(ADDRESS($AK$3,$AK$4)))/DSUM(#REF!,""&$J$4&"",$L$4:INDIRECT(ADDRESS($AK$3,$AK$4))))))),""),"") ->  | J14: Ejd i top 5 | K14: =M14 -> årets resultat pr. slagtesvin | L14: Prodgren | M14: =$L$4 -> årets resultat pr. slagtesvin | N14: =IF(N$4="","",N$4) ->  | AA14: 324 | AB14: 7000-10000 producerede slagtesvin
A15: 10 | B15: Antal producerede slagtesvin | C15: Øvrige omkostninger pr. enhed | D15: =IF($Z$1=32,IF(Choices!$G$1=2,Landsgennemsnit!O15,IF(Choices!$G$1=3,Landsgennemsnit!Q15,IF(Choices!$G$1=4,Landsgennemsnit!S15,IF(Choices!$G$1=5,Landsgennemsnit!U15,"")))),"") ->  | E15: =IF($Z$1=32,IF(Choices!$G$1=2,Landsgennemsnit!P15,IF(Choices!$G$1=3,Landsgennemsnit!R15,IF(Choices!$G$1=4,Landsgennemsnit!T15,IF(Choices!$G$1=5,Landsgennemsnit!V15,"")))),"") ->  | F15: =IF($Z$1=32,IFERROR(IF(ISTEXT($B15)=TRUE,DSUM(#REF!,""&LEFT($C15,LEN($C15)-$A15)&"",$M$4:INDIRECT(ADDRESS($AK$3,$AK$4)))/DSUM(#REF!,""&$B15&"",$M$4:INDIRECT(ADDRESS($AK$3,$AK$4))),IF($B15=0,DAVERAGE(#REF!,""&LEFT($C15,LEN($C15)-$A15)&"",$M$4:INDIRECT(ADDRESS($AK$3,$AK$4))),IF($B15=1,DSUM(#REF!,""&LEFT($C15,LEN($C15)-$A15)&"",$M$4:INDIRECT(ADDRESS($AK$3,$AK$4)))/DSUM(#REF!,""&$I$4&"",$M$4:INDIRECT(ADDRESS($AK$3,$AK$4))),DSUM(#REF!,""&LEFT($C15,LEN($C15)-$A15)&"",$M$4:INDIRECT(ADDRESS($AK$3,$AK$4)))/DSUM(#REF!,""&$J$4&"",$M$4:INDIRECT(ADDRESS($AK$3,$AK$4)))))),""),"") ->  | G15: =IF($Z$1=32,IFERROR(IF(ISTEXT($B15)=TRUE,DSUM(#REF!,""&LEFT($C15,LEN($C15)-$A15)&"",$L$4:INDIRECT(ADDRESS($AK$3,$AK$4)))/DSUM(#REF!,""&$B15&"",$L$4:INDIRECT(ADDRESS($AK$3,$AK$4))),IF($B15=0,DAVERAGE(#REF!,""&LEFT($C15,LEN($C15)-$A15)&"",$L$4:INDIRECT(ADDRESS($AK$3,$AK$4))),IF($B15=1,DSUM(#REF!,""&LEFT($C15,LEN($C15)-$A15)&"",$L$4:INDIRECT(ADDRESS($AK$3,$AK$4)))/DSUM(#REF!,""&$I$4&"",$L$4:INDIRECT(ADDRESS($AK$3,$AK$4))),IF($B15=2,DSUM(#REF!,""&LEFT($C15,LEN($C15)-$A15)&"",$L$4:INDIRECT(ADDRESS($AK$3,$AK$4)))/DSUM(#REF!,""&$J$4&"",$L$4:INDIRECT(ADDRESS($AK$3,$AK$4))))))),""),"") ->  | J15: =IF($Z$1=32,SUMIFS(#REF!,#REF!,K15),"") ->  | K15: =IF($Z$1=32,DMAX(#REF!,""&$K$14&"",$M$4:INDIRECT(ADDRESS($AK$3,$AK$4))),"") ->  | L15: =$M$5 -> =7200 | M15: ="<"&K15&"" -> < | N15: =IF(N$4>0,N5,"") ->  | Z15: 1 | AA15: =$AA$14*10+Z15 -> 3241 | AB15: Antal producerede slagtesvin | AC15: Antal producerede slagtesvin | AD15: Godkendt | AE15: Økologisk_konventionel
A16: 10 | B16: Antal producerede slagtesvin | C16: Krav til dækningsbidrag pr. enhed | D16: =IF($Z$1=32,IF(Choices!$G$1=2,Landsgennemsnit!O16,IF(Choices!$G$1=3,Landsgennemsnit!Q16,IF(Choices!$G$1=4,Landsgennemsnit!S16,IF(Choices!$G$1=5,Landsgennemsnit!U16,"")))),"") ->  | E16: =IF($Z$1=32,IF(Choices!$G$1=2,Landsgennemsnit!P16,IF(Choices!$G$1=3,Landsgennemsnit!R16,IF(Choices!$G$1=4,Landsgennemsnit!T16,IF(Choices!$G$1=5,Landsgennemsnit!V16,"")))),"") ->  | F16: =IF($Z$1=32,IFERROR(IF(ISTEXT($B16)=TRUE,DSUM(#REF!,""&LEFT($C16,LEN($C16)-$A16)&"",$M$4:INDIRECT(ADDRESS($AK$3,$AK$4)))/DSUM(#REF!,""&$B16&"",$M$4:INDIRECT(ADDRESS($AK$3,$AK$4))),IF($B16=0,DAVERAGE(#REF!,""&LEFT($C16,LEN($C16)-$A16)&"",$M$4:INDIRECT(ADDRESS($AK$3,$AK$4))),IF($B16=1,DSUM(#REF!,""&LEFT($C16,LEN($C16)-$A16)&"",$M$4:INDIRECT(ADDRESS($AK$3,$AK$4)))/DSUM(#REF!,""&$I$4&"",$M$4:INDIRECT(ADDRESS($AK$3,$AK$4))),DSUM(#REF!,""&LEFT($C16,LEN($C16)-$A16)&"",$M$4:INDIRECT(ADDRESS($AK$3,$AK$4)))/DSUM(#REF!,""&$J$4&"",$M$4:INDIRECT(ADDRESS($AK$3,$AK$4)))))),""),"") ->  | G16: =IF($Z$1=32,IFERROR(IF(ISTEXT($B16)=TRUE,DSUM(#REF!,""&LEFT($C16,LEN($C16)-$A16)&"",$L$4:INDIRECT(ADDRESS($AK$3,$AK$4)))/DSUM(#REF!,""&$B16&"",$L$4:INDIRECT(ADDRESS($AK$3,$AK$4))),IF($B16=0,DAVERAGE(#REF!,""&LEFT($C16,LEN($C16)-$A16)&"",$L$4:INDIRECT(ADDRESS($AK$3,$AK$4))),IF($B16=1,DSUM(#REF!,""&LEFT($C16,LEN($C16)-$A16)&"",$L$4:INDIRECT(ADDRESS($AK$3,$AK$4)))/DSUM(#REF!,""&$I$4&"",$L$4:INDIRECT(ADDRESS($AK$3,$AK$4))),IF($B16=2,DSUM(#REF!,""&LEFT($C16,LEN($C16)-$A16)&"",$L$4:INDIRECT(ADDRESS($AK$3,$AK$4)))/DSUM(#REF!,""&$J$4&"",$L$4:INDIRECT(ADDRESS($AK$3,$AK$4))))))),""),"") ->  | L16: =$M$5 -> =7200 | M16: =M15 -> < | Z16: 2 | AA16: =$AA$14*10+Z16 -> 3242 | AB16: >7000 | AC16: <10000 | AD16: TRUE | AE16: <2
D17: =IF($Z$1=32,IF(Choices!$G$1=2,Landsgennemsnit!O17,IF(Choices!$G$1=3,Landsgennemsnit!Q17,IF(Choices!$G$1=4,Landsgennemsnit!S17,IF(Choices!$G$1=5,Landsgennemsnit!U17,"")))),"") ->  | E17: =IF($Z$1=32,IF(Choices!$G$1=2,Landsgennemsnit!P17,IF(Choices!$G$1=3,Landsgennemsnit!R17,IF(Choices!$G$1=4,Landsgennemsnit!T17,IF(Choices!$G$1=5,Landsgennemsnit!V17,"")))),"") ->  | F17: =IF($Z$1=32,IFERROR(IF(ISTEXT($B17)=TRUE,DSUM(#REF!,""&LEFT($C17,LEN($C17)-$A17)&"",$M$4:INDIRECT(ADDRESS($AK$3,$AK$4)))/DSUM(#REF!,""&$B17&"",$M$4:INDIRECT(ADDRESS($AK$3,$AK$4))),IF($B17=0,DAVERAGE(#REF!,""&LEFT($C17,LEN($C17)-$A17)&"",$M$4:INDIRECT(ADDRESS($AK$3,$AK$4))),IF($B17=1,DSUM(#REF!,""&LEFT($C17,LEN($C17)-$A17)&"",$M$4:INDIRECT(ADDRESS($AK$3,$AK$4)))/DSUM(#REF!,""&$I$4&"",$M$4:INDIRECT(ADDRESS($AK$3,$AK$4))),DSUM(#REF!,""&LEFT($C17,LEN($C17)-$A17)&"",$M$4:INDIRECT(ADDRESS($AK$3,$AK$4)))/DSUM(#REF!,""&$J$4&"",$M$4:INDIRECT(ADDRESS($AK$3,$AK$4)))))),""),"") ->  | G17: =IF($Z$1=32,IFERROR(IF(ISTEXT($B17)=TRUE,DSUM(#REF!,""&LEFT($C17,LEN($C17)-$A17)&"",$L$4:INDIRECT(ADDRESS($AK$3,$AK$4)))/DSUM(#REF!,""&$B17&"",$L$4:INDIRECT(ADDRESS($AK$3,$AK$4))),IF($B17=0,DAVERAGE(#REF!,""&LEFT($C17,LEN($C17)-$A17)&"",$L$4:INDIRECT(ADDRESS($AK$3,$AK$4))),IF($B17=1,DSUM(#REF!,""&LEFT($C17,LEN($C17)-$A17)&"",$L$4:INDIRECT(ADDRESS($AK$3,$AK$4)))/DSUM(#REF!,""&$I$4&"",$L$4:INDIRECT(ADDRESS($AK$3,$AK$4))),IF($B17=2,DSUM(#REF!,""&LEFT($C17,LEN($C17)-$A17)&"",$L$4:INDIRECT(ADDRESS($AK$3,$AK$4)))/DSUM(#REF!,""&$J$4&"",$L$4:INDIRECT(ADDRESS($AK$3,$AK$4))))))),""),"") ->  | L17: =$M$5 -> =7200 | M17: =M15 -> < | Z17: 3 | AA17: =$AA$14*10+Z17 -> 3243 | AB17: >7000 | AC17: <10000 | AD17: TRUE | AE17: <2
A18: 10 | B18: Antal producerede slagtesvin | C18: Bundet kapital pr. enhed | D18: =IF($Z$1=32,IF(Choices!$G$1=2,Landsgennemsnit!O18,IF(Choices!$G$1=3,Landsgennemsnit!Q18,IF(Choices!$G$1=4,Landsgennemsnit!S18,IF(Choices!$G$1=5,Landsgennemsnit!U18,"")))),"") ->  | E18: =IF($Z$1=32,IF(Choices!$G$1=2,Landsgennemsnit!P18,IF(Choices!$G$1=3,Landsgennemsnit!R18,IF(Choices!$G$1=4,Landsgennemsnit!T18,IF(Choices!$G$1=5,Landsgennemsnit!V18,"")))),"") ->  | F18: =IF($Z$1=32,IFERROR(IF(ISTEXT($B18)=TRUE,DSUM(#REF!,""&LEFT($C18,LEN($C18)-$A18)&"",$M$4:INDIRECT(ADDRESS($AK$3,$AK$4)))/DSUM(#REF!,""&$B18&"",$M$4:INDIRECT(ADDRESS($AK$3,$AK$4))),IF($B18=0,DAVERAGE(#REF!,""&LEFT($C18,LEN($C18)-$A18)&"",$M$4:INDIRECT(ADDRESS($AK$3,$AK$4))),IF($B18=1,DSUM(#REF!,""&LEFT($C18,LEN($C18)-$A18)&"",$M$4:INDIRECT(ADDRESS($AK$3,$AK$4)))/DSUM(#REF!,""&$I$4&"",$M$4:INDIRECT(ADDRESS($AK$3,$AK$4))),DSUM(#REF!,""&LEFT($C18,LEN($C18)-$A18)&"",$M$4:INDIRECT(ADDRESS($AK$3,$AK$4)))/DSUM(#REF!,""&$J$4&"",$M$4:INDIRECT(ADDRESS($AK$3,$AK$4)))))),""),"") ->  | G18: =IF($Z$1=32,IFERROR(IF(ISTEXT($B18)=TRUE,DSUM(#REF!,""&LEFT($C18,LEN($C18)-$A18)&"",$L$4:INDIRECT(ADDRESS($AK$3,$AK$4)))/DSUM(#REF!,""&$B18&"",$L$4:INDIRECT(ADDRESS($AK$3,$AK$4))),IF($B18=0,DAVERAGE(#REF!,""&LEFT($C18,LEN($C18)-$A18)&"",$L$4:INDIRECT(ADDRESS($AK$3,$AK$4))),IF($B18=1,DSUM(#REF!,""&LEFT($C18,LEN($C18)-$A18)&"",$L$4:INDIRECT(ADDRESS($AK$3,$AK$4)))/DSUM(#REF!,""&$I$4&"",$L$4:INDIRECT(ADDRESS($AK$3,$AK$4))),IF($B18=2,DSUM(#REF!,""&LEFT($C18,LEN($C18)-$A18)&"",$L$4:INDIRECT(ADDRESS($AK$3,$AK$4)))/DSUM(#REF!,""&$J$4&"",$L$4:INDIRECT(ADDRESS($AK$3,$AK$4))))))),""),"") ->  | L18: Prodgren | M18: =$L$4 -> årets resultat pr. slagtesvin | N18: =IF(N$4="","",N$4) ->  | Z18: 4 | AA18: =$AA$14*10+Z18 -> 3244 | AB18: >7000 | AC18: <10000 | AD18: TRUE | AE18: <2
A19: 0 | B19: 0 | C19: Anvendt rentesats, pct. | D19: =IF($Z$1=32,IF(Choices!$G$1=2,Landsgennemsnit!O19,IF(Choices!$G$1=3,Landsgennemsnit!Q19,IF(Choices!$G$1=4,Landsgennemsnit!S19,IF(Choices!$G$1=5,Landsgennemsnit!U19,"")))),"") ->  | E19: =IF($Z$1=32,IF(Choices!$G$1=2,Landsgennemsnit!P19,IF(Choices!$G$1=3,Landsgennemsnit!R19,IF(Choices!$G$1=4,Landsgennemsnit!T19,IF(Choices!$G$1=5,Landsgennemsnit!V19,"")))),"") ->  | F19: =IF($Z$1=32,IFERROR(IF(ISTEXT($B19)=TRUE,DSUM(#REF!,""&LEFT($C19,LEN($C19)-$A19)&"",$M$4:INDIRECT(ADDRESS($AK$3,$AK$4)))/DSUM(#REF!,""&$B19&"",$M$4:INDIRECT(ADDRESS($AK$3,$AK$4))),IF($B19=0,DAVERAGE(#REF!,""&LEFT($C19,LEN($C19)-$A19)&"",$M$4:INDIRECT(ADDRESS($AK$3,$AK$4))),IF($B19=1,DSUM(#REF!,""&LEFT($C19,LEN($C19)-$A19)&"",$M$4:INDIRECT(ADDRESS($AK$3,$AK$4)))/DSUM(#REF!,""&$I$4&"",$M$4:INDIRECT(ADDRESS($AK$3,$AK$4))),DSUM(#REF!,""&LEFT($C19,LEN($C19)-$A19)&"",$M$4:INDIRECT(ADDRESS($AK$3,$AK$4)))/DSUM(#REF!,""&$J$4&"",$M$4:INDIRECT(ADDRESS($AK$3,$AK$4)))))),""),"") ->  | G19: =IF($Z$1=32,IFERROR(IF(ISTEXT($B19)=TRUE,DSUM(#REF!,""&LEFT($C19,LEN($C19)-$A19)&"",$L$4:INDIRECT(ADDRESS($AK$3,$AK$4)))/DSUM(#REF!,""&$B19&"",$L$4:INDIRECT(ADDRESS($AK$3,$AK$4))),IF($B19=0,DAVERAGE(#REF!,""&LEFT($C19,LEN($C19)-$A19)&"",$L$4:INDIRECT(ADDRESS($AK$3,$AK$4))),IF($B19=1,DSUM(#REF!,""&LEFT($C19,LEN($C19)-$A19)&"",$L$4:INDIRECT(ADDRESS($AK$3,$AK$4)))/DSUM(#REF!,""&$I$4&"",$L$4:INDIRECT(ADDRESS($AK$3,$AK$4))),IF($B19=2,DSUM(#REF!,""&LEFT($C19,LEN($C19)-$A19)&"",$L$4:INDIRECT(ADDRESS($AK$3,$AK$4)))/DSUM(#REF!,""&$J$4&"",$L$4:INDIRECT(ADDRESS($AK$3,$AK$4))))))),""),"") ->  | J19: =IF($Z$1=32,SUMIFS(#REF!,#REF!,K19),"") ->  | K19: =IF($Z$1=32,DMAX(#REF!,""&$K$14&"",$L14:INDIRECT(ADDRESS($AK19,$AK$4))),"") ->  | L19: =$M$5 -> =7200 | M19: ="<"&K19&"" -> < | N19: =IF(N$4>0,N5,"") ->  | AJ19: Række | AK19: =ROW(AJ19)-2 -> 17
A20: 0 | B20: Antal producerede slagtesvin | C20: Resultatkorrektion ved 4 % rente | D20: =IF($Z$1=32,IF(Choices!$G$1=2,Landsgennemsnit!O20,IF(Choices!$G$1=3,Landsgennemsnit!Q20,IF(Choices!$G$1=4,Landsgennemsnit!S20,IF(Choices!$G$1=5,Landsgennemsnit!U20,"")))),"") ->  | E20: =IF($Z$1=32,IF(Choices!$G$1=2,Landsgennemsnit!P20,IF(Choices!$G$1=3,Landsgennemsnit!R20,IF(Choices!$G$1=4,Landsgennemsnit!T20,IF(Choices!$G$1=5,Landsgennemsnit!V20,"")))),"") ->  | F20: =IF($Z$1=32,IFERROR(IF(ISTEXT($B20)=TRUE,DSUM(#REF!,""&LEFT($C20,LEN($C20)-$A20)&"",$M$4:INDIRECT(ADDRESS($AK$3,$AK$4)))/DSUM(#REF!,""&$B20&"",$M$4:INDIRECT(ADDRESS($AK$3,$AK$4))),IF($B20=0,DAVERAGE(#REF!,""&LEFT($C20,LEN($C20)-$A20)&"",$M$4:INDIRECT(ADDRESS($AK$3,$AK$4))),IF($B20=1,DSUM(#REF!,""&LEFT($C20,LEN($C20)-$A20)&"",$M$4:INDIRECT(ADDRESS($AK$3,$AK$4)))/DSUM(#REF!,""&$I$4&"",$M$4:INDIRECT(ADDRESS($AK$3,$AK$4))),DSUM(#REF!,""&LEFT($C20,LEN($C20)-$A20)&"",$M$4:INDIRECT(ADDRESS($AK$3,$AK$4)))/DSUM(#REF!,""&$J$4&"",$M$4:INDIRECT(ADDRESS($AK$3,$AK$4)))))),""),"") ->  | G20: =IF($Z$1=32,IFERROR(IF(ISTEXT($B20)=TRUE,DSUM(#REF!,""&LEFT($C20,LEN($C20)-$A20)&"",$L$4:INDIRECT(ADDRESS($AK$3,$AK$4)))/DSUM(#REF!,""&$B20&"",$L$4:INDIRECT(ADDRESS($AK$3,$AK$4))),IF($B20=0,DAVERAGE(#REF!,""&LEFT($C20,LEN($C20)-$A20)&"",$L$4:INDIRECT(ADDRESS($AK$3,$AK$4))),IF($B20=1,DSUM(#REF!,""&LEFT($C20,LEN($C20)-$A20)&"",$L$4:INDIRECT(ADDRESS($AK$3,$AK$4)))/DSUM(#REF!,""&$I$4&"",$L$4:INDIRECT(ADDRESS($AK$3,$AK$4))),IF($B20=2,DSUM(#REF!,""&LEFT($C20,LEN($C20)-$A20)&"",$L$4:INDIRECT(ADDRESS($AK$3,$AK$4)))/DSUM(#REF!,""&$J$4&"",$L$4:INDIRECT(ADDRESS($AK$3,$AK$4))))))),""),"") ->  | L20: =$L$16 -> =7200 | M20: =M19 -> < | N20: =IF(N$4>0,N6,"") ->  | AA20: 325 | AB20: Mere end 10000 producerede slagtesvin
A21: 0 | B21: 0 | C21: Afkastningsgrad | D21: =IF($Z$1=32,IF(Choices!$G$1=2,Landsgennemsnit!O21,IF(Choices!$G$1=3,Landsgennemsnit!Q21,IF(Choices!$G$1=4,Landsgennemsnit!S21,IF(Choices!$G$1=5,Landsgennemsnit!U21,"")))),"") ->  | E21: =IF($Z$1=32,IF(Choices!$G$1=2,Landsgennemsnit!P21,IF(Choices!$G$1=3,Landsgennemsnit!R21,IF(Choices!$G$1=4,Landsgennemsnit!T21,IF(Choices!$G$1=5,Landsgennemsnit!V21,"")))),"") ->  | F21: =IF($Z$1=32,IFERROR(IF(ISTEXT($B21)=TRUE,DSUM(#REF!,""&LEFT($C21,LEN($C21)-$A21)&"",$M$4:INDIRECT(ADDRESS($AK$3,$AK$4)))/DSUM(#REF!,""&$B21&"",$M$4:INDIRECT(ADDRESS($AK$3,$AK$4))),IF($B21=0,DAVERAGE(#REF!,""&LEFT($C21,LEN($C21)-$A21)&"",$M$4:INDIRECT(ADDRESS($AK$3,$AK$4))),IF($B21=1,DSUM(#REF!,""&LEFT($C21,LEN($C21)-$A21)&"",$M$4:INDIRECT(ADDRESS($AK$3,$AK$4)))/DSUM(#REF!,""&$I$4&"",$M$4:INDIRECT(ADDRESS($AK$3,$AK$4))),DSUM(#REF!,""&LEFT($C21,LEN($C21)-$A21)&"",$M$4:INDIRECT(ADDRESS($AK$3,$AK$4)))/DSUM(#REF!,""&$J$4&"",$M$4:INDIRECT(ADDRESS($AK$3,$AK$4)))))),""),"") ->  | G21: =IF($Z$1=32,IFERROR(IF(ISTEXT($B21)=TRUE,DSUM(#REF!,""&LEFT($C21,LEN($C21)-$A21)&"",$L$4:INDIRECT(ADDRESS($AK$3,$AK$4)))/DSUM(#REF!,""&$B21&"",$L$4:INDIRECT(ADDRESS($AK$3,$AK$4))),IF($B21=0,DAVERAGE(#REF!,""&LEFT($C21,LEN($C21)-$A21)&"",$L$4:INDIRECT(ADDRESS($AK$3,$AK$4))),IF($B21=1,DSUM(#REF!,""&LEFT($C21,LEN($C21)-$A21)&"",$L$4:INDIRECT(ADDRESS($AK$3,$AK$4)))/DSUM(#REF!,""&$I$4&"",$L$4:INDIRECT(ADDRESS($AK$3,$AK$4))),IF($B21=2,DSUM(#REF!,""&LEFT($C21,LEN($C21)-$A21)&"",$L$4:INDIRECT(ADDRESS($AK$3,$AK$4)))/DSUM(#REF!,""&$J$4&"",$L$4:INDIRECT(ADDRESS($AK$3,$AK$4))))))),""),"") ->  | L21: =$L$16 -> =7200 | M21: =M19 -> < | Z21: 1 | AA21: =$AA$20*10+Z21 -> 3251 | AB21: Antal producerede slagtesvin | AC21: Godkendt | AD21: Økologisk_konventionel
D22: =IF($Z$1=32,IF(Choices!$G$1=2,Landsgennemsnit!O22,IF(Choices!$G$1=3,Landsgennemsnit!Q22,IF(Choices!$G$1=4,Landsgennemsnit!S22,IF(Choices!$G$1=5,Landsgennemsnit!U22,"")))),"") ->  | E22: =IF($Z$1=32,IF(Choices!$G$1=2,Landsgennemsnit!P22,IF(Choices!$G$1=3,Landsgennemsnit!R22,IF(Choices!$G$1=4,Landsgennemsnit!T22,IF(Choices!$G$1=5,Landsgennemsnit!V22,"")))),"") ->  | F22: =IF($Z$1=32,IFERROR(IF(ISTEXT($B22)=TRUE,DSUM(#REF!,""&LEFT($C22,LEN($C22)-$A22)&"",$M$4:INDIRECT(ADDRESS($AK$3,$AK$4)))/DSUM(#REF!,""&$B22&"",$M$4:INDIRECT(ADDRESS($AK$3,$AK$4))),IF($B22=0,DAVERAGE(#REF!,""&LEFT($C22,LEN($C22)-$A22)&"",$M$4:INDIRECT(ADDRESS($AK$3,$AK$4))),IF($B22=1,DSUM(#REF!,""&LEFT($C22,LEN($C22)-$A22)&"",$M$4:INDIRECT(ADDRESS($AK$3,$AK$4)))/DSUM(#REF!,""&$I$4&"",$M$4:INDIRECT(ADDRESS($AK$3,$AK$4))),DSUM(#REF!,""&LEFT($C22,LEN($C22)-$A22)&"",$M$4:INDIRECT(ADDRESS($AK$3,$AK$4)))/DSUM(#REF!,""&$J$4&"",$M$4:INDIRECT(ADDRESS($AK$3,$AK$4)))))),""),"") ->  | G22: =IF($Z$1=32,IFERROR(IF(ISTEXT($B22)=TRUE,DSUM(#REF!,""&LEFT($C22,LEN($C22)-$A22)&"",$L$4:INDIRECT(ADDRESS($AK$3,$AK$4)))/DSUM(#REF!,""&$B22&"",$L$4:INDIRECT(ADDRESS($AK$3,$AK$4))),IF($B22=0,DAVERAGE(#REF!,""&LEFT($C22,LEN($C22)-$A22)&"",$L$4:INDIRECT(ADDRESS($AK$3,$AK$4))),IF($B22=1,DSUM(#REF!,""&LEFT($C22,LEN($C22)-$A22)&"",$L$4:INDIRECT(ADDRESS($AK$3,$AK$4)))/DSUM(#REF!,""&$I$4&"",$L$4:INDIRECT(ADDRESS($AK$3,$AK$4))),IF($B22=2,DSUM(#REF!,""&LEFT($C22,LEN($C22)-$A22)&"",$L$4:INDIRECT(ADDRESS($AK$3,$AK$4)))/DSUM(#REF!,""&$J$4&"",$L$4:INDIRECT(ADDRESS($AK$3,$AK$4))))))),""),"") ->  | L22: Prodgren | M22: =$L$4 -> årets resultat pr. slagtesvin | N22: =IF(N$4="","",N$4) ->  | Z22: 2 | AA22: =$AA$20*10+Z22 -> 3252 | AB22: >10000 | AC22: TRUE | AD22: <2
B23: 0 | C23: Fremstillingspris pr. kg sl.svin | D23: =IF($Z$1=32,IF(Choices!$G$1=2,Landsgennemsnit!O23,IF(Choices!$G$1=3,Landsgennemsnit!Q23,IF(Choices!$G$1=4,Landsgennemsnit!S23,IF(Choices!$G$1=5,Landsgennemsnit!U23,"")))),"") ->  | E23: =IF($Z$1=32,IF(Choices!$G$1=2,Landsgennemsnit!P23,IF(Choices!$G$1=3,Landsgennemsnit!R23,IF(Choices!$G$1=4,Landsgennemsnit!T23,IF(Choices!$G$1=5,Landsgennemsnit!V23,"")))),"") ->  | F23: =IF($Z$1=32,IFERROR(IF(ISTEXT($B23)=TRUE,DSUM(#REF!,""&LEFT($C23,LEN($C23)-$A23)&"",$M$4:INDIRECT(ADDRESS($AK$3,$AK$4)))/DSUM(#REF!,""&$B23&"",$M$4:INDIRECT(ADDRESS($AK$3,$AK$4))),IF($B23=0,DAVERAGE(#REF!,""&LEFT($C23,LEN($C23)-$A23)&"",$M$4:INDIRECT(ADDRESS($AK$3,$AK$4))),IF($B23=1,DSUM(#REF!,""&LEFT($C23,LEN($C23)-$A23)&"",$M$4:INDIRECT(ADDRESS($AK$3,$AK$4)))/DSUM(#REF!,""&$I$4&"",$M$4:INDIRECT(ADDRESS($AK$3,$AK$4))),DSUM(#REF!,""&LEFT($C23,LEN($C23)-$A23)&"",$M$4:INDIRECT(ADDRESS($AK$3,$AK$4)))/DSUM(#REF!,""&$J$4&"",$M$4:INDIRECT(ADDRESS($AK$3,$AK$4)))))),""),"") ->  | G23: =IF($Z$1=32,IFERROR(IF(ISTEXT($B23)=TRUE,DSUM(#REF!,""&LEFT($C23,LEN($C23)-$A23)&"",$L$4:INDIRECT(ADDRESS($AK$3,$AK$4)))/DSUM(#REF!,""&$B23&"",$L$4:INDIRECT(ADDRESS($AK$3,$AK$4))),IF($B23=0,DAVERAGE(#REF!,""&LEFT($C23,LEN($C23)-$A23)&"",$L$4:INDIRECT(ADDRESS($AK$3,$AK$4))),IF($B23=1,DSUM(#REF!,""&LEFT($C23,LEN($C23)-$A23)&"",$L$4:INDIRECT(ADDRESS($AK$3,$AK$4)))/DSUM(#REF!,""&$I$4&"",$L$4:INDIRECT(ADDRESS($AK$3,$AK$4))),IF($B23=2,DSUM(#REF!,""&LEFT($C23,LEN($C23)-$A23)&"",$L$4:INDIRECT(ADDRESS($AK$3,$AK$4)))/DSUM(#REF!,""&$J$4&"",$L$4:INDIRECT(ADDRESS($AK$3,$AK$4))))))),""),"") ->  | J23: =IF($Z$1=32,SUMIFS(#REF!,#REF!,K23),"") ->  | K23: =IF($Z$1=32,DMAX(#REF!,""&$K$14&"",$L18:INDIRECT(ADDRESS($AK23,$AK$4))),"") ->  | L23: =$M$5 -> =7200 | M23: ="<"&K23&"" -> < | N23: =IF(N$4>0,N5,"") ->  | Z23: 3 | AA23: =$AA$20*10+Z23 -> 3253 | AB23: >10000 | AC23: TRUE | AD23: <2 | AJ23: Række | AK23: =ROW(AJ23)-2 -> 21
B24: Samlet vægt slagtesvin | C24: Pris pr. kg prod. slagtesvin | D24: =IF($Z$1=32,IF(Choices!$G$1=2,Landsgennemsnit!O24,IF(Choices!$G$1=3,Landsgennemsnit!Q24,IF(Choices!$G$1=4,Landsgennemsnit!S24,IF(Choices!$G$1=5,Landsgennemsnit!U24,"")))),"") ->  | E24: =IF($Z$1=32,IF(Choices!$G$1=2,Landsgennemsnit!P24,IF(Choices!$G$1=3,Landsgennemsnit!R24,IF(Choices!$G$1=4,Landsgennemsnit!T24,IF(Choices!$G$1=5,Landsgennemsnit!V24,"")))),"") ->  | F24: =IF($Z$1=32,IFERROR(IF(ISTEXT($B24)=TRUE,DSUM(#REF!,""&LEFT($C24,LEN($C24)-$A24)&"",$M$4:INDIRECT(ADDRESS($AK$3,$AK$4)))/DSUM(#REF!,""&$B24&"",$M$4:INDIRECT(ADDRESS($AK$3,$AK$4))),IF($B24=0,DAVERAGE(#REF!,""&LEFT($C24,LEN($C24)-$A24)&"",$M$4:INDIRECT(ADDRESS($AK$3,$AK$4))),IF($B24=1,DSUM(#REF!,""&LEFT($C24,LEN($C24)-$A24)&"",$M$4:INDIRECT(ADDRESS($AK$3,$AK$4)))/DSUM(#REF!,""&$I$4&"",$M$4:INDIRECT(ADDRESS($AK$3,$AK$4))),DSUM(#REF!,""&LEFT($C24,LEN($C24)-$A24)&"",$M$4:INDIRECT(ADDRESS($AK$3,$AK$4)))/DSUM(#REF!,""&$J$4&"",$M$4:INDIRECT(ADDRESS($AK$3,$AK$4)))))),""),"") ->  | G24: =IF($Z$1=32,IFERROR(IF(ISTEXT($B24)=TRUE,DSUM(#REF!,""&LEFT($C24,LEN($C24)-$A24)&"",$L$4:INDIRECT(ADDRESS($AK$3,$AK$4)))/DSUM(#REF!,""&$B24&"",$L$4:INDIRECT(ADDRESS($AK$3,$AK$4))),IF($B24=0,DAVERAGE(#REF!,""&LEFT($C24,LEN($C24)-$A24)&"",$L$4:INDIRECT(ADDRESS($AK$3,$AK$4))),IF($B24=1,DSUM(#REF!,""&LEFT($C24,LEN($C24)-$A24)&"",$L$4:INDIRECT(ADDRESS($AK$3,$AK$4)))/DSUM(#REF!,""&$I$4&"",$L$4:INDIRECT(ADDRESS($AK$3,$AK$4))),IF($B24=2,DSUM(#REF!,""&LEFT($C24,LEN($C24)-$A24)&"",$L$4:INDIRECT(ADDRESS($AK$3,$AK$4)))/DSUM(#REF!,""&$J$4&"",$L$4:INDIRECT(ADDRESS($AK$3,$AK$4))))))),""),"") ->  | L24: =$L$16 -> =7200 | M24: =M23 -> < | N24: =IF(N$4>0,N6,"") ->  | Z24: 4 | AA24: =$AA$20*10+Z24 -> 3254 | AB24: >10000 | AC24: TRUE | AD24: <2
D25: =IF($Z$1=32,IF(Choices!$G$1=2,Landsgennemsnit!O25,IF(Choices!$G$1=3,Landsgennemsnit!Q25,IF(Choices!$G$1=4,Landsgennemsnit!S25,IF(Choices!$G$1=5,Landsgennemsnit!U25,"")))),"") ->  | E25: =IF($Z$1=32,IF(Choices!$G$1=2,Landsgennemsnit!P25,IF(Choices!$G$1=3,Landsgennemsnit!R25,IF(Choices!$G$1=4,Landsgennemsnit!T25,IF(Choices!$G$1=5,Landsgennemsnit!V25,"")))),"") ->  | F25: =IF($Z$1=32,IFERROR(IF(ISTEXT($B25)=TRUE,DSUM(#REF!,""&LEFT($C25,LEN($C25)-$A25)&"",$M$4:INDIRECT(ADDRESS($AK$3,$AK$4)))/DSUM(#REF!,""&$B25&"",$M$4:INDIRECT(ADDRESS($AK$3,$AK$4))),IF($B25=0,DAVERAGE(#REF!,""&LEFT($C25,LEN($C25)-$A25)&"",$M$4:INDIRECT(ADDRESS($AK$3,$AK$4))),IF($B25=1,DSUM(#REF!,""&LEFT($C25,LEN($C25)-$A25)&"",$M$4:INDIRECT(ADDRESS($AK$3,$AK$4)))/DSUM(#REF!,""&$I$4&"",$M$4:INDIRECT(ADDRESS($AK$3,$AK$4))),DSUM(#REF!,""&LEFT($C25,LEN($C25)-$A25)&"",$M$4:INDIRECT(ADDRESS($AK$3,$AK$4)))/DSUM(#REF!,""&$J$4&"",$M$4:INDIRECT(ADDRESS($AK$3,$AK$4)))))),""),"") ->  | G25: =IF($Z$1=32,IFERROR(IF(ISTEXT($B25)=TRUE,DSUM(#REF!,""&LEFT($C25,LEN($C25)-$A25)&"",$L$4:INDIRECT(ADDRESS($AK$3,$AK$4)))/DSUM(#REF!,""&$B25&"",$L$4:INDIRECT(ADDRESS($AK$3,$AK$4))),IF($B25=0,DAVERAGE(#REF!,""&LEFT($C25,LEN($C25)-$A25)&"",$L$4:INDIRECT(ADDRESS($AK$3,$AK$4))),IF($B25=1,DSUM(#REF!,""&LEFT($C25,LEN($C25)-$A25)&"",$L$4:INDIRECT(ADDRESS($AK$3,$AK$4)))/DSUM(#REF!,""&$I$4&"",$L$4:INDIRECT(ADDRESS($AK$3,$AK$4))),IF($B25=2,DSUM(#REF!,""&LEFT($C25,LEN($C25)-$A25)&"",$L$4:INDIRECT(ADDRESS($AK$3,$AK$4)))/DSUM(#REF!,""&$J$4&"",$L$4:INDIRECT(ADDRESS($AK$3,$AK$4))))))),""),"") ->  | L25: =$L$16 -> =7200 | M25: =M23 -> <
A26: 7 | B26: Vægt soyaskrå, kg | C26: Pris soyaskrå, kr. pr. kg | D26: =IF($Z$1=32,IF(Choices!$G$1=2,Landsgennemsnit!O26,IF(Choices!$G$1=3,Landsgennemsnit!Q26,IF(Choices!$G$1=4,Landsgennemsnit!S26,IF(Choices!$G$1=5,Landsgennemsnit!U26,"")))),"") ->  | E26: =IF($Z$1=32,IF(Choices!$G$1=2,Landsgennemsnit!P26,IF(Choices!$G$1=3,Landsgennemsnit!R26,IF(Choices!$G$1=4,Landsgennemsnit!T26,IF(Choices!$G$1=5,Landsgennemsnit!V26,"")))),"") ->  | F26: =IF($Z$1=32,IFERROR(IF(ISTEXT($B26)=TRUE,DSUM(#REF!,""&LEFT($C26,LEN($C26)-$A26)&"",$M$4:INDIRECT(ADDRESS($AK$3,$AK$4)))/DSUM(#REF!,""&$B26&"",$M$4:INDIRECT(ADDRESS($AK$3,$AK$4))),IF($B26=0,DAVERAGE(#REF!,""&LEFT($C26,LEN($C26)-$A26)&"",$M$4:INDIRECT(ADDRESS($AK$3,$AK$4))),IF($B26=1,DSUM(#REF!,""&LEFT($C26,LEN($C26)-$A26)&"",$M$4:INDIRECT(ADDRESS($AK$3,$AK$4)))/DSUM(#REF!,""&$I$4&"",$M$4:INDIRECT(ADDRESS($AK$3,$AK$4))),DSUM(#REF!,""&LEFT($C26,LEN($C26)-$A26)&"",$M$4:INDIRECT(ADDRESS($AK$3,$AK$4)))/DSUM(#REF!,""&$J$4&"",$M$4:INDIRECT(ADDRESS($AK$3,$AK$4)))))),""),"") ->  | G26: =IF($Z$1=32,IFERROR(IF(ISTEXT($B26)=TRUE,DSUM(#REF!,""&LEFT($C26,LEN($C26)-$A26)&"",$L$4:INDIRECT(ADDRESS($AK$3,$AK$4)))/DSUM(#REF!,""&$B26&"",$L$4:INDIRECT(ADDRESS($AK$3,$AK$4))),IF($B26=0,DAVERAGE(#REF!,""&LEFT($C26,LEN($C26)-$A26)&"",$L$4:INDIRECT(ADDRESS($AK$3,$AK$4))),IF($B26=1,DSUM(#REF!,""&LEFT($C26,LEN($C26)-$A26)&"",$L$4:INDIRECT(ADDRESS($AK$3,$AK$4)))/DSUM(#REF!,""&$I$4&"",$L$4:INDIRECT(ADDRESS($AK$3,$AK$4))),IF($B26=2,DSUM(#REF!,""&LEFT($C26,LEN($C26)-$A26)&"",$L$4:INDIRECT(ADDRESS($AK$3,$AK$4)))/DSUM(#REF!,""&$J$4&"",$L$4:INDIRECT(ADDRESS($AK$3,$AK$4))))))),""),"") ->  | L26: Prodgren | M26: =$L$4 -> årets resultat pr. slagtesvin | N26: =IF(N$4="","",N$4) -> 
A27: 7 | B27: Vægt tilskudsfoder, kg | C27: Pris tilskudsfoder, kr. pr. kg | D27: =IF($Z$1=32,IF(Choices!$G$1=2,Landsgennemsnit!O27,IF(Choices!$G$1=3,Landsgennemsnit!Q27,IF(Choices!$G$1=4,Landsgennemsnit!S27,IF(Choices!$G$1=5,Landsgennemsnit!U27,"")))),"") ->  | E27: =IF($Z$1=32,IF(Choices!$G$1=2,Landsgennemsnit!P27,IF(Choices!$G$1=3,Landsgennemsnit!R27,IF(Choices!$G$1=4,Landsgennemsnit!T27,IF(Choices!$G$1=5,Landsgennemsnit!V27,"")))),"") ->  | F27: =IF($Z$1=32,IFERROR(IF(ISTEXT($B27)=TRUE,DSUM(#REF!,""&LEFT($C27,LEN($C27)-$A27)&"",$M$4:INDIRECT(ADDRESS($AK$3,$AK$4)))/DSUM(#REF!,""&$B27&"",$M$4:INDIRECT(ADDRESS($AK$3,$AK$4))),IF($B27=0,DAVERAGE(#REF!,""&LEFT($C27,LEN($C27)-$A27)&"",$M$4:INDIRECT(ADDRESS($AK$3,$AK$4))),IF($B27=1,DSUM(#REF!,""&LEFT($C27,LEN($C27)-$A27)&"",$M$4:INDIRECT(ADDRESS($AK$3,$AK$4)))/DSUM(#REF!,""&$I$4&"",$M$4:INDIRECT(ADDRESS($AK$3,$AK$4))),DSUM(#REF!,""&LEFT($C27,LEN($C27)-$A27)&"",$M$4:INDIRECT(ADDRESS($AK$3,$AK$4)))/DSUM(#REF!,""&$J$4&"",$M$4:INDIRECT(ADDRESS($AK$3,$AK$4)))))),""),"") ->  | G27: =IF($Z$1=32,IFERROR(IF(ISTEXT($B27)=TRUE,DSUM(#REF!,""&LEFT($C27,LEN($C27)-$A27)&"",$L$4:INDIRECT(ADDRESS($AK$3,$AK$4)))/DSUM(#REF!,""&$B27&"",$L$4:INDIRECT(ADDRESS($AK$3,$AK$4))),IF($B27=0,DAVERAGE(#REF!,""&LEFT($C27,LEN($C27)-$A27)&"",$L$4:INDIRECT(ADDRESS($AK$3,$AK$4))),IF($B27=1,DSUM(#REF!,""&LEFT($C27,LEN($C27)-$A27)&"",$L$4:INDIRECT(ADDRESS($AK$3,$AK$4)))/DSUM(#REF!,""&$I$4&"",$L$4:INDIRECT(ADDRESS($AK$3,$AK$4))),IF($B27=2,DSUM(#REF!,""&LEFT($C27,LEN($C27)-$A27)&"",$L$4:INDIRECT(ADDRESS($AK$3,$AK$4)))/DSUM(#REF!,""&$J$4&"",$L$4:INDIRECT(ADDRESS($AK$3,$AK$4))))))),""),"") ->  | J27: =IF($Z$1=32,SUMIFS(#REF!,#REF!,K27),"") ->  | K27: =IF($Z$1=32,DMAX(#REF!,""&$K$14&"",$L22:INDIRECT(ADDRESS($AK27,$AK$4))),"") ->  | L27: =$M$5 -> =7200 | M27: ="<"&K27&"" -> < | N27: =IF(N$4>0,N5,"") ->  | AJ27: Række | AK27: =ROW(AJ27)-2 -> 25
A28: 7 | B28: Vægt proteinblanding, kg | C28: Pris proteinblanding, kr. pr. kg | D28: =IF($Z$1=32,IF(Choices!$G$1=2,Landsgennemsnit!O28,IF(Choices!$G$1=3,Landsgennemsnit!Q28,IF(Choices!$G$1=4,Landsgennemsnit!S28,IF(Choices!$G$1=5,Landsgennemsnit!U28,"")))),"") ->  | E28: =IF($Z$1=32,IF(Choices!$G$1=2,Landsgennemsnit!P28,IF(Choices!$G$1=3,Landsgennemsnit!R28,IF(Choices!$G$1=4,Landsgennemsnit!T28,IF(Choices!$G$1=5,Landsgennemsnit!V28,"")))),"") ->  | F28: =IF($Z$1=32,IFERROR(IF(ISTEXT($B28)=TRUE,DSUM(#REF!,""&LEFT($C28,LEN($C28)-$A28)&"",$M$4:INDIRECT(ADDRESS($AK$3,$AK$4)))/DSUM(#REF!,""&$B28&"",$M$4:INDIRECT(ADDRESS($AK$3,$AK$4))),IF($B28=0,DAVERAGE(#REF!,""&LEFT($C28,LEN($C28)-$A28)&"",$M$4:INDIRECT(ADDRESS($AK$3,$AK$4))),IF($B28=1,DSUM(#REF!,""&LEFT($C28,LEN($C28)-$A28)&"",$M$4:INDIRECT(ADDRESS($AK$3,$AK$4)))/DSUM(#REF!,""&$I$4&"",$M$4:INDIRECT(ADDRESS($AK$3,$AK$4))),DSUM(#REF!,""&LEFT($C28,LEN($C28)-$A28)&"",$M$4:INDIRECT(ADDRESS($AK$3,$AK$4)))/DSUM(#REF!,""&$J$4&"",$M$4:INDIRECT(ADDRESS($AK$3,$AK$4)))))),""),"") ->  | G28: =IF($Z$1=32,IFERROR(IF(ISTEXT($B28)=TRUE,DSUM(#REF!,""&LEFT($C28,LEN($C28)-$A28)&"",$L$4:INDIRECT(ADDRESS($AK$3,$AK$4)))/DSUM(#REF!,""&$B28&"",$L$4:INDIRECT(ADDRESS($AK$3,$AK$4))),IF($B28=0,DAVERAGE(#REF!,""&LEFT($C28,LEN($C28)-$A28)&"",$L$4:INDIRECT(ADDRESS($AK$3,$AK$4))),IF($B28=1,DSUM(#REF!,""&LEFT($C28,LEN($C28)-$A28)&"",$L$4:INDIRECT(ADDRESS($AK$3,$AK$4)))/DSUM(#REF!,""&$I$4&"",$L$4:INDIRECT(ADDRESS($AK$3,$AK$4))),IF($B28=2,DSUM(#REF!,""&LEFT($C28,LEN($C28)-$A28)&"",$L$4:INDIRECT(ADDRESS($AK$3,$AK$4)))/DSUM(#REF!,""&$J$4&"",$L$4:INDIRECT(ADDRESS($AK$3,$AK$4))))))),""),"") ->  | L28: =$L$16 -> =7200 | M28: =M27 -> < | N28: =IF(N$4>0,N6,"") -> 
A29: 7 | B29: Vægt færdigblanding slsvin, kg | C29: Pris færdigblanding slsvin, kr. pr. kg | D29: =IF($Z$1=32,IF(Choices!$G$1=2,Landsgennemsnit!O29,IF(Choices!$G$1=3,Landsgennemsnit!Q29,IF(Choices!$G$1=4,Landsgennemsnit!S29,IF(Choices!$G$1=5,Landsgennemsnit!U29,"")))),"") ->  | E29: =IF($Z$1=32,IF(Choices!$G$1=2,Landsgennemsnit!P29,IF(Choices!$G$1=3,Landsgennemsnit!R29,IF(Choices!$G$1=4,Landsgennemsnit!T29,IF(Choices!$G$1=5,Landsgennemsnit!V29,"")))),"") ->  | F29: =IF($Z$1=32,IFERROR(IF(ISTEXT($B29)=TRUE,DSUM(#REF!,""&LEFT($C29,LEN($C29)-$A29)&"",$M$4:INDIRECT(ADDRESS($AK$3,$AK$4)))/DSUM(#REF!,""&$B29&"",$M$4:INDIRECT(ADDRESS($AK$3,$AK$4))),IF($B29=0,DAVERAGE(#REF!,""&LEFT($C29,LEN($C29)-$A29)&"",$M$4:INDIRECT(ADDRESS($AK$3,$AK$4))),IF($B29=1,DSUM(#REF!,""&LEFT($C29,LEN($C29)-$A29)&"",$M$4:INDIRECT(ADDRESS($AK$3,$AK$4)))/DSUM(#REF!,""&$I$4&"",$M$4:INDIRECT(ADDRESS($AK$3,$AK$4))),DSUM(#REF!,""&LEFT($C29,LEN($C29)-$A29)&"",$M$4:INDIRECT(ADDRESS($AK$3,$AK$4)))/DSUM(#REF!,""&$J$4&"",$M$4:INDIRECT(ADDRESS($AK$3,$AK$4)))))),""),"") ->  | G29: =IF($Z$1=32,IFERROR(IF(ISTEXT($B29)=TRUE,DSUM(#REF!,""&LEFT($C29,LEN($C29)-$A29)&"",$L$4:INDIRECT(ADDRESS($AK$3,$AK$4)))/DSUM(#REF!,""&$B29&"",$L$4:INDIRECT(ADDRESS($AK$3,$AK$4))),IF($B29=0,DAVERAGE(#REF!,""&LEFT($C29,LEN($C29)-$A29)&"",$L$4:INDIRECT(ADDRESS($AK$3,$AK$4))),IF($B29=1,DSUM(#REF!,""&LEFT($C29,LEN($C29)-$A29)&"",$L$4:INDIRECT(ADDRESS($AK$3,$AK$4)))/DSUM(#REF!,""&$I$4&"",$L$4:INDIRECT(ADDRESS($AK$3,$AK$4))),IF($B29=2,DSUM(#REF!,""&LEFT($C29,LEN($C29)-$A29)&"",$L$4:INDIRECT(ADDRESS($AK$3,$AK$4)))/DSUM(#REF!,""&$J$4&"",$L$4:INDIRECT(ADDRESS($AK$3,$AK$4))))))),""),"") ->  | L29: =$L$16 -> =7200 | M29: =M27 -> <
D30: =IF($Z$1=32,IF(Choices!$G$1=2,Landsgennemsnit!O30,IF(Choices!$G$1=3,Landsgennemsnit!Q30,IF(Choices!$G$1=4,Landsgennemsnit!S30,IF(Choices!$G$1=5,Landsgennemsnit!U30,"")))),"") ->  | E30: =IF($Z$1=32,IF(Choices!$G$1=2,Landsgennemsnit!P30,IF(Choices!$G$1=3,Landsgennemsnit!R30,IF(Choices!$G$1=4,Landsgennemsnit!T30,IF(Choices!$G$1=5,Landsgennemsnit!V30,"")))),"") ->  | F30: =IF($Z$1=32,IFERROR(IF(ISTEXT($B30)=TRUE,DSUM(#REF!,""&LEFT($C30,LEN($C30)-$A30)&"",$M$4:INDIRECT(ADDRESS($AK$3,$AK$4)))/DSUM(#REF!,""&$B30&"",$M$4:INDIRECT(ADDRESS($AK$3,$AK$4))),IF($B30=0,DAVERAGE(#REF!,""&LEFT($C30,LEN($C30)-$A30)&"",$M$4:INDIRECT(ADDRESS($AK$3,$AK$4))),IF($B30=1,DSUM(#REF!,""&LEFT($C30,LEN($C30)-$A30)&"",$M$4:INDIRECT(ADDRESS($AK$3,$AK$4)))/DSUM(#REF!,""&$I$4&"",$M$4:INDIRECT(ADDRESS($AK$3,$AK$4))),DSUM(#REF!,""&LEFT($C30,LEN($C30)-$A30)&"",$M$4:INDIRECT(ADDRESS($AK$3,$AK$4)))/DSUM(#REF!,""&$J$4&"",$M$4:INDIRECT(ADDRESS($AK$3,$AK$4)))))),""),"") ->  | G30: =IF($Z$1=32,IFERROR(IF(ISTEXT($B30)=TRUE,DSUM(#REF!,""&LEFT($C30,LEN($C30)-$A30)&"",$L$4:INDIRECT(ADDRESS($AK$3,$AK$4)))/DSUM(#REF!,""&$B30&"",$L$4:INDIRECT(ADDRESS($AK$3,$AK$4))),IF($B30=0,DAVERAGE(#REF!,""&LEFT($C30,LEN($C30)-$A30)&"",$L$4:INDIRECT(ADDRESS($AK$3,$AK$4))),IF($B30=1,DSUM(#REF!,""&LEFT($C30,LEN($C30)-$A30)&"",$L$4:INDIRECT(ADDRESS($AK$3,$AK$4)))/DSUM(#REF!,""&$I$4&"",$L$4:INDIRECT(ADDRESS($AK$3,$AK$4))),IF($B30=2,DSUM(#REF!,""&LEFT($C30,LEN($C30)-$A30)&"",$L$4:INDIRECT(ADDRESS($AK$3,$AK$4)))/DSUM(#REF!,""&$J$4&"",$L$4:INDIRECT(ADDRESS($AK$3,$AK$4))))))),""),"") ->  | L30: Prodgren | M30: =$L$4 -> årets resultat pr. slagtesvin | N30: =IF(N$4="","",N$4) -> 
C31: Specifikation af resultat | D31: =IF($Z$1=32,IF(Choices!$G$1=2,Landsgennemsnit!O31,IF(Choices!$G$1=3,Landsgennemsnit!Q31,IF(Choices!$G$1=4,Landsgennemsnit!S31,IF(Choices!$G$1=5,Landsgennemsnit!U31,"")))),"") ->  | E31: =IF($Z$1=32,IF(Choices!$G$1=2,Landsgennemsnit!P31,IF(Choices!$G$1=3,Landsgennemsnit!R31,IF(Choices!$G$1=4,Landsgennemsnit!T31,IF(Choices!$G$1=5,Landsgennemsnit!V31,"")))),"") ->  | F31: =IF($Z$1=32,IFERROR(IF(ISTEXT($B31)=TRUE,DSUM(#REF!,""&LEFT($C31,LEN($C31)-$A31)&"",$M$4:INDIRECT(ADDRESS($AK$3,$AK$4)))/DSUM(#REF!,""&$B31&"",$M$4:INDIRECT(ADDRESS($AK$3,$AK$4))),IF($B31=0,DAVERAGE(#REF!,""&LEFT($C31,LEN($C31)-$A31)&"",$M$4:INDIRECT(ADDRESS($AK$3,$AK$4))),IF($B31=1,DSUM(#REF!,""&LEFT($C31,LEN($C31)-$A31)&"",$M$4:INDIRECT(ADDRESS($AK$3,$AK$4)))/DSUM(#REF!,""&$I$4&"",$M$4:INDIRECT(ADDRESS($AK$3,$AK$4))),DSUM(#REF!,""&LEFT($C31,LEN($C31)-$A31)&"",$M$4:INDIRECT(ADDRESS($AK$3,$AK$4)))/DSUM(#REF!,""&$J$4&"",$M$4:INDIRECT(ADDRESS($AK$3,$AK$4)))))),""),"") ->  | G31: =IF($Z$1=32,IFERROR(IF(ISTEXT($B31)=TRUE,DSUM(#REF!,""&LEFT($C31,LEN($C31)-$A31)&"",$L$4:INDIRECT(ADDRESS($AK$3,$AK$4)))/DSUM(#REF!,""&$B31&"",$L$4:INDIRECT(ADDRESS($AK$3,$AK$4))),IF($B31=0,DAVERAGE(#REF!,""&LEFT($C31,LEN($C31)-$A31)&"",$L$4:INDIRECT(ADDRESS($AK$3,$AK$4))),IF($B31=1,DSUM(#REF!,""&LEFT($C31,LEN($C31)-$A31)&"",$L$4:INDIRECT(ADDRESS($AK$3,$AK$4)))/DSUM(#REF!,""&$I$4&"",$L$4:INDIRECT(ADDRESS($AK$3,$AK$4))),IF($B31=2,DSUM(#REF!,""&LEFT($C31,LEN($C31)-$A31)&"",$L$4:INDIRECT(ADDRESS($AK$3,$AK$4)))/DSUM(#REF!,""&$J$4&"",$L$4:INDIRECT(ADDRESS($AK$3,$AK$4))))))),""),"") ->  | J31: =IF($Z$1=32,SUMIFS(#REF!,#REF!,K31),"") ->  | K31: =IF($Z$1=32,DMAX(#REF!,""&$K$14&"",$L26:INDIRECT(ADDRESS($AK31,$AK$4))),"") ->  | L31: =$M$5 -> =7200 | M31: ="<"&K31&"" -> < | N31: =IF(N$4>0,N5,"") ->  | AJ31: Række | AK31: =ROW(AJ31)-2 -> 29
B32: Antal producerede slagtesvin | C32: Salg slagtesvin | D32: =IF($Z$1=32,IF(Choices!$G$1=2,Landsgennemsnit!O32,IF(Choices!$G$1=3,Landsgennemsnit!Q32,IF(Choices!$G$1=4,Landsgennemsnit!S32,IF(Choices!$G$1=5,Landsgennemsnit!U32,"")))),"") ->  | E32: =IF($Z$1=32,IF(Choices!$G$1=2,Landsgennemsnit!P32,IF(Choices!$G$1=3,Landsgennemsnit!R32,IF(Choices!$G$1=4,Landsgennemsnit!T32,IF(Choices!$G$1=5,Landsgennemsnit!V32,"")))),"") ->  | F32: =IF($Z$1=32,IFERROR(IF(ISTEXT($B32)=TRUE,DSUM(#REF!,""&LEFT($C32,LEN($C32)-$A32)&"",$M$4:INDIRECT(ADDRESS($AK$3,$AK$4)))/DSUM(#REF!,""&$B32&"",$M$4:INDIRECT(ADDRESS($AK$3,$AK$4))),IF($B32=0,DAVERAGE(#REF!,""&LEFT($C32,LEN($C32)-$A32)&"",$M$4:INDIRECT(ADDRESS($AK$3,$AK$4))),IF($B32=1,DSUM(#REF!,""&LEFT($C32,LEN($C32)-$A32)&"",$M$4:INDIRECT(ADDRESS($AK$3,$AK$4)))/DSUM(#REF!,""&$I$4&"",$M$4:INDIRECT(ADDRESS($AK$3,$AK$4))),DSUM(#REF!,""&LEFT($C32,LEN($C32)-$A32)&"",$M$4:INDIRECT(ADDRESS($AK$3,$AK$4)))/DSUM(#REF!,""&$J$4&"",$M$4:INDIRECT(ADDRESS($AK$3,$AK$4)))))),""),"") ->  | G32: =IF($Z$1=32,IFERROR(IF(ISTEXT($B32)=TRUE,DSUM(#REF!,""&LEFT($C32,LEN($C32)-$A32)&"",$L$4:INDIRECT(ADDRESS($AK$3,$AK$4)))/DSUM(#REF!,""&$B32&"",$L$4:INDIRECT(ADDRESS($AK$3,$AK$4))),IF($B32=0,DAVERAGE(#REF!,""&LEFT($C32,LEN($C32)-$A32)&"",$L$4:INDIRECT(ADDRESS($AK$3,$AK$4))),IF($B32=1,DSUM(#REF!,""&LEFT($C32,LEN($C32)-$A32)&"",$L$4:INDIRECT(ADDRESS($AK$3,$AK$4)))/DSUM(#REF!,""&$I$4&"",$L$4:INDIRECT(ADDRESS($AK$3,$AK$4))),IF($B32=2,DSUM(#REF!,""&LEFT($C32,LEN($C32)-$A32)&"",$L$4:INDIRECT(ADDRESS($AK$3,$AK$4)))/DSUM(#REF!,""&$J$4&"",$L$4:INDIRECT(ADDRESS($AK$3,$AK$4))))))),""),"") ->  | L32: =$L$16 -> =7200 | M32: =M31 -> < | N32: =IF(N$4>0,N6,"") -> 
B33: Antal producerede slagtesvin | C33: Køb af grise | D33: =IF($Z$1=32,IF(Choices!$G$1=2,Landsgennemsnit!O33,IF(Choices!$G$1=3,Landsgennemsnit!Q33,IF(Choices!$G$1=4,Landsgennemsnit!S33,IF(Choices!$G$1=5,Landsgennemsnit!U33,"")))),"") ->  | E33: =IF($Z$1=32,IF(Choices!$G$1=2,Landsgennemsnit!P33,IF(Choices!$G$1=3,Landsgennemsnit!R33,IF(Choices!$G$1=4,Landsgennemsnit!T33,IF(Choices!$G$1=5,Landsgennemsnit!V33,"")))),"") ->  | F33: =IF($Z$1=32,IFERROR(IF(ISTEXT($B33)=TRUE,DSUM(#REF!,""&LEFT($C33,LEN($C33)-$A33)&"",$M$4:INDIRECT(ADDRESS($AK$3,$AK$4)))/DSUM(#REF!,""&$B33&"",$M$4:INDIRECT(ADDRESS($AK$3,$AK$4))),IF($B33=0,DAVERAGE(#REF!,""&LEFT($C33,LEN($C33)-$A33)&"",$M$4:INDIRECT(ADDRESS($AK$3,$AK$4))),IF($B33=1,DSUM(#REF!,""&LEFT($C33,LEN($C33)-$A33)&"",$M$4:INDIRECT(ADDRESS($AK$3,$AK$4)))/DSUM(#REF!,""&$I$4&"",$M$4:INDIRECT(ADDRESS($AK$3,$AK$4))),DSUM(#REF!,""&LEFT($C33,LEN($C33)-$A33)&"",$M$4:INDIRECT(ADDRESS($AK$3,$AK$4)))/DSUM(#REF!,""&$J$4&"",$M$4:INDIRECT(ADDRESS($AK$3,$AK$4)))))),""),"") ->  | G33: =IF($Z$1=32,IFERROR(IF(ISTEXT($B33)=TRUE,DSUM(#REF!,""&LEFT($C33,LEN($C33)-$A33)&"",$L$4:INDIRECT(ADDRESS($AK$3,$AK$4)))/DSUM(#REF!,""&$B33&"",$L$4:INDIRECT(ADDRESS($AK$3,$AK$4))),IF($B33=0,DAVERAGE(#REF!,""&LEFT($C33,LEN($C33)-$A33)&"",$L$4:INDIRECT(ADDRESS($AK$3,$AK$4))),IF($B33=1,DSUM(#REF!,""&LEFT($C33,LEN($C33)-$A33)&"",$L$4:INDIRECT(ADDRESS($AK$3,$AK$4)))/DSUM(#REF!,""&$I$4&"",$L$4:INDIRECT(ADDRESS($AK$3,$AK$4))),IF($B33=2,DSUM(#REF!,""&LEFT($C33,LEN($C33)-$A33)&"",$L$4:INDIRECT(ADDRESS($AK$3,$AK$4)))/DSUM(#REF!,""&$J$4&"",$L$4:INDIRECT(ADDRESS($AK$3,$AK$4))))))),""),"") ->  | L33: =$L$16 -> =7200 | M33: =M31 -> <
B34: Antal producerede slagtesvin | C34: Besætningsforskydning | D34: =IF($Z$1=32,IF(Choices!$G$1=2,Landsgennemsnit!O34,IF(Choices!$G$1=3,Landsgennemsnit!Q34,IF(Choices!$G$1=4,Landsgennemsnit!S34,IF(Choices!$G$1=5,Landsgennemsnit!U34,"")))),"") ->  | E34: =IF($Z$1=32,IF(Choices!$G$1=2,Landsgennemsnit!P34,IF(Choices!$G$1=3,Landsgennemsnit!R34,IF(Choices!$G$1=4,Landsgennemsnit!T34,IF(Choices!$G$1=5,Landsgennemsnit!V34,"")))),"") ->  | F34: =IF($Z$1=32,IFERROR(IF(ISTEXT($B34)=TRUE,DSUM(#REF!,""&LEFT($C34,LEN($C34)-$A34)&"",$M$4:INDIRECT(ADDRESS($AK$3,$AK$4)))/DSUM(#REF!,""&$B34&"",$M$4:INDIRECT(ADDRESS($AK$3,$AK$4))),IF($B34=0,DAVERAGE(#REF!,""&LEFT($C34,LEN($C34)-$A34)&"",$M$4:INDIRECT(ADDRESS($AK$3,$AK$4))),IF($B34=1,DSUM(#REF!,""&LEFT($C34,LEN($C34)-$A34)&"",$M$4:INDIRECT(ADDRESS($AK$3,$AK$4)))/DSUM(#REF!,""&$I$4&"",$M$4:INDIRECT(ADDRESS($AK$3,$AK$4))),DSUM(#REF!,""&LEFT($C34,LEN($C34)-$A34)&"",$M$4:INDIRECT(ADDRESS($AK$3,$AK$4)))/DSUM(#REF!,""&$J$4&"",$M$4:INDIRECT(ADDRESS($AK$3,$AK$4)))))),""),"") ->  | G34: =IF($Z$1=32,IFERROR(IF(ISTEXT($B34)=TRUE,DSUM(#REF!,""&LEFT($C34,LEN($C34)-$A34)&"",$L$4:INDIRECT(ADDRESS($AK$3,$AK$4)))/DSUM(#REF!,""&$B34&"",$L$4:INDIRECT(ADDRESS($AK$3,$AK$4))),IF($B34=0,DAVERAGE(#REF!,""&LEFT($C34,LEN($C34)-$A34)&"",$L$4:INDIRECT(ADDRESS($AK$3,$AK$4))),IF($B34=1,DSUM(#REF!,""&LEFT($C34,LEN($C34)-$A34)&"",$L$4:INDIRECT(ADDRESS($AK$3,$AK$4)))/DSUM(#REF!,""&$I$4&"",$L$4:INDIRECT(ADDRESS($AK$3,$AK$4))),IF($B34=2,DSUM(#REF!,""&LEFT($C34,LEN($C34)-$A34)&"",$L$4:INDIRECT(ADDRESS($AK$3,$AK$4)))/DSUM(#REF!,""&$J$4&"",$L$4:INDIRECT(ADDRESS($AK$3,$AK$4))))))),""),"") -> 
B35: Antal producerede slagtesvin | C35: Andre Landbrugsindtægter slsvin | D35: =IF($Z$1=32,IF(Choices!$G$1=2,Landsgennemsnit!O35,IF(Choices!$G$1=3,Landsgennemsnit!Q35,IF(Choices!$G$1=4,Landsgennemsnit!S35,IF(Choices!$G$1=5,Landsgennemsnit!U35,"")))),"") ->  | E35: =IF($Z$1=32,IF(Choices!$G$1=2,Landsgennemsnit!P35,IF(Choices!$G$1=3,Landsgennemsnit!R35,IF(Choices!$G$1=4,Landsgennemsnit!T35,IF(Choices!$G$1=5,Landsgennemsnit!V35,"")))),"") ->  | F35: =IF($Z$1=32,IFERROR(IF(ISTEXT($B35)=TRUE,DSUM(#REF!,""&LEFT($C35,LEN($C35)-$A35)&"",$M$4:INDIRECT(ADDRESS($AK$3,$AK$4)))/DSUM(#REF!,""&$B35&"",$M$4:INDIRECT(ADDRESS($AK$3,$AK$4))),IF($B35=0,DAVERAGE(#REF!,""&LEFT($C35,LEN($C35)-$A35)&"",$M$4:INDIRECT(ADDRESS($AK$3,$AK$4))),IF($B35=1,DSUM(#REF!,""&LEFT($C35,LEN($C35)-$A35)&"",$M$4:INDIRECT(ADDRESS($AK$3,$AK$4)))/DSUM(#REF!,""&$I$4&"",$M$4:INDIRECT(ADDRESS($AK$3,$AK$4))),DSUM(#REF!,""&LEFT($C35,LEN($C35)-$A35)&"",$M$4:INDIRECT(ADDRESS($AK$3,$AK$4)))/DSUM(#REF!,""&$J$4&"",$M$4:INDIRECT(ADDRESS($AK$3,$AK$4)))))),""),"") ->  | G35: =IF($Z$1=32,IFERROR(IF(ISTEXT($B35)=TRUE,DSUM(#REF!,""&LEFT($C35,LEN($C35)-$A35)&"",$L$4:INDIRECT(ADDRESS($AK$3,$AK$4)))/DSUM(#REF!,""&$B35&"",$L$4:INDIRECT(ADDRESS($AK$3,$AK$4))),IF($B35=0,DAVERAGE(#REF!,""&LEFT($C35,LEN($C35)-$A35)&"",$L$4:INDIRECT(ADDRESS($AK$3,$AK$4))),IF($B35=1,DSUM(#REF!,""&LEFT($C35,LEN($C35)-$A35)&"",$L$4:INDIRECT(ADDRESS($AK$3,$AK$4)))/DSUM(#REF!,""&$I$4&"",$L$4:INDIRECT(ADDRESS($AK$3,$AK$4))),IF($B35=2,DSUM(#REF!,""&LEFT($C35,LEN($C35)-$A35)&"",$L$4:INDIRECT(ADDRESS($AK$3,$AK$4)))/DSUM(#REF!,""&$J$4&"",$L$4:INDIRECT(ADDRESS($AK$3,$AK$4))))))),""),"") ->  | AJ35: Række | AK35: =ROW(AJ35)-2 -> 33
B36: Antal producerede slagtesvin | C36: Bruttoudbytte i alt | D36: =IF($Z$1=32,IF(Choices!$G$1=2,Landsgennemsnit!O36,IF(Choices!$G$1=3,Landsgennemsnit!Q36,IF(Choices!$G$1=4,Landsgennemsnit!S36,IF(Choices!$G$1=5,Landsgennemsnit!U36,"")))),"") ->  | E36: =IF($Z$1=32,IF(Choices!$G$1=2,Landsgennemsnit!P36,IF(Choices!$G$1=3,Landsgennemsnit!R36,IF(Choices!$G$1=4,Landsgennemsnit!T36,IF(Choices!$G$1=5,Landsgennemsnit!V36,"")))),"") ->  | F36: =IF($Z$1=32,IFERROR(IF(ISTEXT($B36)=TRUE,DSUM(#REF!,""&LEFT($C36,LEN($C36)-$A36)&"",$M$4:INDIRECT(ADDRESS($AK$3,$AK$4)))/DSUM(#REF!,""&$B36&"",$M$4:INDIRECT(ADDRESS($AK$3,$AK$4))),IF($B36=0,DAVERAGE(#REF!,""&LEFT($C36,LEN($C36)-$A36)&"",$M$4:INDIRECT(ADDRESS($AK$3,$AK$4))),IF($B36=1,DSUM(#REF!,""&LEFT($C36,LEN($C36)-$A36)&"",$M$4:INDIRECT(ADDRESS($AK$3,$AK$4)))/DSUM(#REF!,""&$I$4&"",$M$4:INDIRECT(ADDRESS($AK$3,$AK$4))),DSUM(#REF!,""&LEFT($C36,LEN($C36)-$A36)&"",$M$4:INDIRECT(ADDRESS($AK$3,$AK$4)))/DSUM(#REF!,""&$J$4&"",$M$4:INDIRECT(ADDRESS($AK$3,$AK$4)))))),""),"") ->  | G36: =IF($Z$1=32,IFERROR(IF(ISTEXT($B36)=TRUE,DSUM(#REF!,""&LEFT($C36,LEN($C36)-$A36)&"",$L$4:INDIRECT(ADDRESS($AK$3,$AK$4)))/DSUM(#REF!,""&$B36&"",$L$4:INDIRECT(ADDRESS($AK$3,$AK$4))),IF($B36=0,DAVERAGE(#REF!,""&LEFT($C36,LEN($C36)-$A36)&"",$L$4:INDIRECT(ADDRESS($AK$3,$AK$4))),IF($B36=1,DSUM(#REF!,""&LEFT($C36,LEN($C36)-$A36)&"",$L$4:INDIRECT(ADDRESS($AK$3,$AK$4)))/DSUM(#REF!,""&$I$4&"",$L$4:INDIRECT(ADDRESS($AK$3,$AK$4))),IF($B36=2,DSUM(#REF!,""&LEFT($C36,LEN($C36)-$A36)&"",$L$4:INDIRECT(ADDRESS($AK$3,$AK$4)))/DSUM(#REF!,""&$J$4&"",$L$4:INDIRECT(ADDRESS($AK$3,$AK$4))))))),""),"") -> 
D37: =IF($Z$1=32,IF(Choices!$G$1=2,Landsgennemsnit!O37,IF(Choices!$G$1=3,Landsgennemsnit!Q37,IF(Choices!$G$1=4,Landsgennemsnit!S37,IF(Choices!$G$1=5,Landsgennemsnit!U37,"")))),"") ->  | E37: =IF($Z$1=32,IF(Choices!$G$1=2,Landsgennemsnit!P37,IF(Choices!$G$1=3,Landsgennemsnit!R37,IF(Choices!$G$1=4,Landsgennemsnit!T37,IF(Choices!$G$1=5,Landsgennemsnit!V37,"")))),"") ->  | F37: =IF($Z$1=32,IFERROR(IF(ISTEXT($B37)=TRUE,DSUM(#REF!,""&LEFT($C37,LEN($C37)-$A37)&"",$M$4:INDIRECT(ADDRESS($AK$3,$AK$4)))/DSUM(#REF!,""&$B37&"",$M$4:INDIRECT(ADDRESS($AK$3,$AK$4))),IF($B37=0,DAVERAGE(#REF!,""&LEFT($C37,LEN($C37)-$A37)&"",$M$4:INDIRECT(ADDRESS($AK$3,$AK$4))),IF($B37=1,DSUM(#REF!,""&LEFT($C37,LEN($C37)-$A37)&"",$M$4:INDIRECT(ADDRESS($AK$3,$AK$4)))/DSUM(#REF!,""&$I$4&"",$M$4:INDIRECT(ADDRESS($AK$3,$AK$4))),DSUM(#REF!,""&LEFT($C37,LEN($C37)-$A37)&"",$M$4:INDIRECT(ADDRESS($AK$3,$AK$4)))/DSUM(#REF!,""&$J$4&"",$M$4:INDIRECT(ADDRESS($AK$3,$AK$4)))))),""),"") ->  | G37: =IF($Z$1=32,IFERROR(IF(ISTEXT($B37)=TRUE,DSUM(#REF!,""&LEFT($C37,LEN($C37)-$A37)&"",$L$4:INDIRECT(ADDRESS($AK$3,$AK$4)))/DSUM(#REF!,""&$B37&"",$L$4:INDIRECT(ADDRESS($AK$3,$AK$4))),IF($B37=0,DAVERAGE(#REF!,""&LEFT($C37,LEN($C37)-$A37)&"",$L$4:INDIRECT(ADDRESS($AK$3,$AK$4))),IF($B37=1,DSUM(#REF!,""&LEFT($C37,LEN($C37)-$A37)&"",$L$4:INDIRECT(ADDRESS($AK$3,$AK$4)))/DSUM(#REF!,""&$I$4&"",$L$4:INDIRECT(ADDRESS($AK$3,$AK$4))),IF($B37=2,DSUM(#REF!,""&LEFT($C37,LEN($C37)-$A37)&"",$L$4:INDIRECT(ADDRESS($AK$3,$AK$4)))/DSUM(#REF!,""&$J$4&"",$L$4:INDIRECT(ADDRESS($AK$3,$AK$4))))))),""),"") -> 
B38: Antal producerede slagtesvin | C38: Korn | D38: =IF($Z$1=32,IF(Choices!$G$1=2,Landsgennemsnit!O38,IF(Choices!$G$1=3,Landsgennemsnit!Q38,IF(Choices!$G$1=4,Landsgennemsnit!S38,IF(Choices!$G$1=5,Landsgennemsnit!U38,"")))),"") ->  | E38: =IF($Z$1=32,IF(Choices!$G$1=2,Landsgennemsnit!P38,IF(Choices!$G$1=3,Landsgennemsnit!R38,IF(Choices!$G$1=4,Landsgennemsnit!T38,IF(Choices!$G$1=5,Landsgennemsnit!V38,"")))),"") ->  | F38: =IF($Z$1=32,IFERROR(IF(ISTEXT($B38)=TRUE,DSUM(#REF!,""&LEFT($C38,LEN($C38)-$A38)&"",$M$4:INDIRECT(ADDRESS($AK$3,$AK$4)))/DSUM(#REF!,""&$B38&"",$M$4:INDIRECT(ADDRESS($AK$3,$AK$4))),IF($B38=0,DAVERAGE(#REF!,""&LEFT($C38,LEN($C38)-$A38)&"",$M$4:INDIRECT(ADDRESS($AK$3,$AK$4))),IF($B38=1,DSUM(#REF!,""&LEFT($C38,LEN($C38)-$A38)&"",$M$4:INDIRECT(ADDRESS($AK$3,$AK$4)))/DSUM(#REF!,""&$I$4&"",$M$4:INDIRECT(ADDRESS($AK$3,$AK$4))),DSUM(#REF!,""&LEFT($C38,LEN($C38)-$A38)&"",$M$4:INDIRECT(ADDRESS($AK$3,$AK$4)))/DSUM(#REF!,""&$J$4&"",$M$4:INDIRECT(ADDRESS($AK$3,$AK$4)))))),""),"") ->  | G38: =IF($Z$1=32,IFERROR(IF(ISTEXT($B38)=TRUE,DSUM(#REF!,""&LEFT($C38,LEN($C38)-$A38)&"",$L$4:INDIRECT(ADDRESS($AK$3,$AK$4)))/DSUM(#REF!,""&$B38&"",$L$4:INDIRECT(ADDRESS($AK$3,$AK$4))),IF($B38=0,DAVERAGE(#REF!,""&LEFT($C38,LEN($C38)-$A38)&"",$L$4:INDIRECT(ADDRESS($AK$3,$AK$4))),IF($B38=1,DSUM(#REF!,""&LEFT($C38,LEN($C38)-$A38)&"",$L$4:INDIRECT(ADDRESS($AK$3,$AK$4)))/DSUM(#REF!,""&$I$4&"",$L$4:INDIRECT(ADDRESS($AK$3,$AK$4))),IF($B38=2,DSUM(#REF!,""&LEFT($C38,LEN($C38)-$A38)&"",$L$4:INDIRECT(ADDRESS($AK$3,$AK$4)))/DSUM(#REF!,""&$J$4&"",$L$4:INDIRECT(ADDRESS($AK$3,$AK$4))))))),""),"") -> 
B39: Antal producerede slagtesvin | C39: Tilskudsfoder og råvarer | D39: =IF($Z$1=32,IF(Choices!$G$1=2,Landsgennemsnit!O39,IF(Choices!$G$1=3,Landsgennemsnit!Q39,IF(Choices!$G$1=4,Landsgennemsnit!S39,IF(Choices!$G$1=5,Landsgennemsnit!U39,"")))),"") ->  | E39: =IF($Z$1=32,IF(Choices!$G$1=2,Landsgennemsnit!P39,IF(Choices!$G$1=3,Landsgennemsnit!R39,IF(Choices!$G$1=4,Landsgennemsnit!T39,IF(Choices!$G$1=5,Landsgennemsnit!V39,"")))),"") ->  | F39: =IF($Z$1=32,IFERROR(IF(ISTEXT($B39)=TRUE,DSUM(#REF!,""&LEFT($C39,LEN($C39)-$A39)&"",$M$4:INDIRECT(ADDRESS($AK$3,$AK$4)))/DSUM(#REF!,""&$B39&"",$M$4:INDIRECT(ADDRESS($AK$3,$AK$4))),IF($B39=0,DAVERAGE(#REF!,""&LEFT($C39,LEN($C39)-$A39)&"",$M$4:INDIRECT(ADDRESS($AK$3,$AK$4))),IF($B39=1,DSUM(#REF!,""&LEFT($C39,LEN($C39)-$A39)&"",$M$4:INDIRECT(ADDRESS($AK$3,$AK$4)))/DSUM(#REF!,""&$I$4&"",$M$4:INDIRECT(ADDRESS($AK$3,$AK$4))),DSUM(#REF!,""&LEFT($C39,LEN($C39)-$A39)&"",$M$4:INDIRECT(ADDRESS($AK$3,$AK$4)))/DSUM(#REF!,""&$J$4&"",$M$4:INDIRECT(ADDRESS($AK$3,$AK$4)))))),""),"") ->  | G39: =IF($Z$1=32,IFERROR(IF(ISTEXT($B39)=TRUE,DSUM(#REF!,""&LEFT($C39,LEN($C39)-$A39)&"",$L$4:INDIRECT(ADDRESS($AK$3,$AK$4)))/DSUM(#REF!,""&$B39&"",$L$4:INDIRECT(ADDRESS($AK$3,$AK$4))),IF($B39=0,DAVERAGE(#REF!,""&LEFT($C39,LEN($C39)-$A39)&"",$L$4:INDIRECT(ADDRESS($AK$3,$AK$4))),IF($B39=1,DSUM(#REF!,""&LEFT($C39,LEN($C39)-$A39)&"",$L$4:INDIRECT(ADDRESS($AK$3,$AK$4)))/DSUM(#REF!,""&$I$4&"",$L$4:INDIRECT(ADDRESS($AK$3,$AK$4))),IF($B39=2,DSUM(#REF!,""&LEFT($C39,LEN($C39)-$A39)&"",$L$4:INDIRECT(ADDRESS($AK$3,$AK$4)))/DSUM(#REF!,""&$J$4&"",$L$4:INDIRECT(ADDRESS($AK$3,$AK$4))))))),""),"") -> 
B40: Antal producerede slagtesvin | C40: Færdigblanding | D40: =IF($Z$1=32,IF(Choices!$G$1=2,Landsgennemsnit!O40,IF(Choices!$G$1=3,Landsgennemsnit!Q40,IF(Choices!$G$1=4,Landsgennemsnit!S40,IF(Choices!$G$1=5,Landsgennemsnit!U40,"")))),"") ->  | E40: =IF($Z$1=32,IF(Choices!$G$1=2,Landsgennemsnit!P40,IF(Choices!$G$1=3,Landsgennemsnit!R40,IF(Choices!$G$1=4,Landsgennemsnit!T40,IF(Choices!$G$1=5,Landsgennemsnit!V40,"")))),"") ->  | F40: =IF($Z$1=32,IFERROR(IF(ISTEXT($B40)=TRUE,DSUM(#REF!,""&LEFT($C40,LEN($C40)-$A40)&"",$M$4:INDIRECT(ADDRESS($AK$3,$AK$4)))/DSUM(#REF!,""&$B40&"",$M$4:INDIRECT(ADDRESS($AK$3,$AK$4))),IF($B40=0,DAVERAGE(#REF!,""&LEFT($C40,LEN($C40)-$A40)&"",$M$4:INDIRECT(ADDRESS($AK$3,$AK$4))),IF($B40=1,DSUM(#REF!,""&LEFT($C40,LEN($C40)-$A40)&"",$M$4:INDIRECT(ADDRESS($AK$3,$AK$4)))/DSUM(#REF!,""&$I$4&"",$M$4:INDIRECT(ADDRESS($AK$3,$AK$4))),DSUM(#REF!,""&LEFT($C40,LEN($C40)-$A40)&"",$M$4:INDIRECT(ADDRESS($AK$3,$AK$4)))/DSUM(#REF!,""&$J$4&"",$M$4:INDIRECT(ADDRESS($AK$3,$AK$4)))))),""),"") ->  | G40: =IF($Z$1=32,IFERROR(IF(ISTEXT($B40)=TRUE,DSUM(#REF!,""&LEFT($C40,LEN($C40)-$A40)&"",$L$4:INDIRECT(ADDRESS($AK$3,$AK$4)))/DSUM(#REF!,""&$B40&"",$L$4:INDIRECT(ADDRESS($AK$3,$AK$4))),IF($B40=0,DAVERAGE(#REF!,""&LEFT($C40,LEN($C40)-$A40)&"",$L$4:INDIRECT(ADDRESS($AK$3,$AK$4))),IF($B40=1,DSUM(#REF!,""&LEFT($C40,LEN($C40)-$A40)&"",$L$4:INDIRECT(ADDRESS($AK$3,$AK$4)))/DSUM(#REF!,""&$I$4&"",$L$4:INDIRECT(ADDRESS($AK$3,$AK$4))),IF($B40=2,DSUM(#REF!,""&LEFT($C40,LEN($C40)-$A40)&"",$L$4:INDIRECT(ADDRESS($AK$3,$AK$4)))/DSUM(#REF!,""&$J$4&"",$L$4:INDIRECT(ADDRESS($AK$3,$AK$4))))))),""),"") -> 
B41: Antal producerede slagtesvin | C41: Andet foder | D41: =IF($Z$1=32,IF(Choices!$G$1=2,Landsgennemsnit!O41,IF(Choices!$G$1=3,Landsgennemsnit!Q41,IF(Choices!$G$1=4,Landsgennemsnit!S41,IF(Choices!$G$1=5,Landsgennemsnit!U41,"")))),"") ->  | E41: =IF($Z$1=32,IF(Choices!$G$1=2,Landsgennemsnit!P41,IF(Choices!$G$1=3,Landsgennemsnit!R41,IF(Choices!$G$1=4,Landsgennemsnit!T41,IF(Choices!$G$1=5,Landsgennemsnit!V41,"")))),"") ->  | F41: =IF($Z$1=32,IFERROR(IF(ISTEXT($B41)=TRUE,DSUM(#REF!,""&LEFT($C41,LEN($C41)-$A41)&"",$M$4:INDIRECT(ADDRESS($AK$3,$AK$4)))/DSUM(#REF!,""&$B41&"",$M$4:INDIRECT(ADDRESS($AK$3,$AK$4))),IF($B41=0,DAVERAGE(#REF!,""&LEFT($C41,LEN($C41)-$A41)&"",$M$4:INDIRECT(ADDRESS($AK$3,$AK$4))),IF($B41=1,DSUM(#REF!,""&LEFT($C41,LEN($C41)-$A41)&"",$M$4:INDIRECT(ADDRESS($AK$3,$AK$4)))/DSUM(#REF!,""&$I$4&"",$M$4:INDIRECT(ADDRESS($AK$3,$AK$4))),DSUM(#REF!,""&LEFT($C41,LEN($C41)-$A41)&"",$M$4:INDIRECT(ADDRESS($AK$3,$AK$4)))/DSUM(#REF!,""&$J$4&"",$M$4:INDIRECT(ADDRESS($AK$3,$AK$4)))))),""),"") ->  | G41: =IF($Z$1=32,IFERROR(IF(ISTEXT($B41)=TRUE,DSUM(#REF!,""&LEFT($C41,LEN($C41)-$A41)&"",$L$4:INDIRECT(ADDRESS($AK$3,$AK$4)))/DSUM(#REF!,""&$B41&"",$L$4:INDIRECT(ADDRESS($AK$3,$AK$4))),IF($B41=0,DAVERAGE(#REF!,""&LEFT($C41,LEN($C41)-$A41)&"",$L$4:INDIRECT(ADDRESS($AK$3,$AK$4))),IF($B41=1,DSUM(#REF!,""&LEFT($C41,LEN($C41)-$A41)&"",$L$4:INDIRECT(ADDRESS($AK$3,$AK$4)))/DSUM(#REF!,""&$I$4&"",$L$4:INDIRECT(ADDRESS($AK$3,$AK$4))),IF($B41=2,DSUM(#REF!,""&LEFT($C41,LEN($C41)-$A41)&"",$L$4:INDIRECT(ADDRESS($AK$3,$AK$4)))/DSUM(#REF!,""&$J$4&"",$L$4:INDIRECT(ADDRESS($AK$3,$AK$4))))))),""),"") -> 
B42: Antal producerede slagtesvin | C42: Dyrlæge og medicin | D42: =IF($Z$1=32,IF(Choices!$G$1=2,Landsgennemsnit!O42,IF(Choices!$G$1=3,Landsgennemsnit!Q42,IF(Choices!$G$1=4,Landsgennemsnit!S42,IF(Choices!$G$1=5,Landsgennemsnit!U42,"")))),"") ->  | E42: =IF($Z$1=32,IF(Choices!$G$1=2,Landsgennemsnit!P42,IF(Choices!$G$1=3,Landsgennemsnit!R42,IF(Choices!$G$1=4,Landsgennemsnit!T42,IF(Choices!$G$1=5,Landsgennemsnit!V42,"")))),"") ->  | F42: =IF($Z$1=32,IFERROR(IF(ISTEXT($B42)=TRUE,DSUM(#REF!,""&LEFT($C42,LEN($C42)-$A42)&"",$M$4:INDIRECT(ADDRESS($AK$3,$AK$4)))/DSUM(#REF!,""&$B42&"",$M$4:INDIRECT(ADDRESS($AK$3,$AK$4))),IF($B42=0,DAVERAGE(#REF!,""&LEFT($C42,LEN($C42)-$A42)&"",$M$4:INDIRECT(ADDRESS($AK$3,$AK$4))),IF($B42=1,DSUM(#REF!,""&LEFT($C42,LEN($C42)-$A42)&"",$M$4:INDIRECT(ADDRESS($AK$3,$AK$4)))/DSUM(#REF!,""&$I$4&"",$M$4:INDIRECT(ADDRESS($AK$3,$AK$4))),DSUM(#REF!,""&LEFT($C42,LEN($C42)-$A42)&"",$M$4:INDIRECT(ADDRESS($AK$3,$AK$4)))/DSUM(#REF!,""&$J$4&"",$M$4:INDIRECT(ADDRESS($AK$3,$AK$4)))))),""),"") ->  | G42: =IF($Z$1=32,IFERROR(IF(ISTEXT($B42)=TRUE,DSUM(#REF!,""&LEFT($C42,LEN($C42)-$A42)&"",$L$4:INDIRECT(ADDRESS($AK$3,$AK$4)))/DSUM(#REF!,""&$B42&"",$L$4:INDIRECT(ADDRESS($AK$3,$AK$4))),IF($B42=0,DAVERAGE(#REF!,""&LEFT($C42,LEN($C42)-$A42)&"",$L$4:INDIRECT(ADDRESS($AK$3,$AK$4))),IF($B42=1,DSUM(#REF!,""&LEFT($C42,LEN($C42)-$A42)&"",$L$4:INDIRECT(ADDRESS($AK$3,$AK$4)))/DSUM(#REF!,""&$I$4&"",$L$4:INDIRECT(ADDRESS($AK$3,$AK$4))),IF($B42=2,DSUM(#REF!,""&LEFT($C42,LEN($C42)-$A42)&"",$L$4:INDIRECT(ADDRESS($AK$3,$AK$4)))/DSUM(#REF!,""&$J$4&"",$L$4:INDIRECT(ADDRESS($AK$3,$AK$4))))))),""),"") -> 
B43: Antal producerede slagtesvin | C43: Avl, rådgivning og kontrol | D43: =IF($Z$1=32,IF(Choices!$G$1=2,Landsgennemsnit!O43,IF(Choices!$G$1=3,Landsgennemsnit!Q43,IF(Choices!$G$1=4,Landsgennemsnit!S43,IF(Choices!$G$1=5,Landsgennemsnit!U43,"")))),"") ->  | E43: =IF($Z$1=32,IF(Choices!$G$1=2,Landsgennemsnit!P43,IF(Choices!$G$1=3,Landsgennemsnit!R43,IF(Choices!$G$1=4,Landsgennemsnit!T43,IF(Choices!$G$1=5,Landsgennemsnit!V43,"")))),"") ->  | F43: =IF($Z$1=32,IFERROR(IF(ISTEXT($B43)=TRUE,DSUM(#REF!,""&LEFT($C43,LEN($C43)-$A43)&"",$M$4:INDIRECT(ADDRESS($AK$3,$AK$4)))/DSUM(#REF!,""&$B43&"",$M$4:INDIRECT(ADDRESS($AK$3,$AK$4))),IF($B43=0,DAVERAGE(#REF!,""&LEFT($C43,LEN($C43)-$A43)&"",$M$4:INDIRECT(ADDRESS($AK$3,$AK$4))),IF($B43=1,DSUM(#REF!,""&LEFT($C43,LEN($C43)-$A43)&"",$M$4:INDIRECT(ADDRESS($AK$3,$AK$4)))/DSUM(#REF!,""&$I$4&"",$M$4:INDIRECT(ADDRESS($AK$3,$AK$4))),DSUM(#REF!,""&LEFT($C43,LEN($C43)-$A43)&"",$M$4:INDIRECT(ADDRESS($AK$3,$AK$4)))/DSUM(#REF!,""&$J$4&"",$M$4:INDIRECT(ADDRESS($AK$3,$AK$4)))))),""),"") ->  | G43: =IF($Z$1=32,IFERROR(IF(ISTEXT($B43)=TRUE,DSUM(#REF!,""&LEFT($C43,LEN($C43)-$A43)&"",$L$4:INDIRECT(ADDRESS($AK$3,$AK$4)))/DSUM(#REF!,""&$B43&"",$L$4:INDIRECT(ADDRESS($AK$3,$AK$4))),IF($B43=0,DAVERAGE(#REF!,""&LEFT($C43,LEN($C43)-$A43)&"",$L$4:INDIRECT(ADDRESS($AK$3,$AK$4))),IF($B43=1,DSUM(#REF!,""&LEFT($C43,LEN($C43)-$A43)&"",$L$4:INDIRECT(ADDRESS($AK$3,$AK$4)))/DSUM(#REF!,""&$I$4&"",$L$4:INDIRECT(ADDRESS($AK$3,$AK$4))),IF($B43=2,DSUM(#REF!,""&LEFT($C43,LEN($C43)-$A43)&"",$L$4:INDIRECT(ADDRESS($AK$3,$AK$4)))/DSUM(#REF!,""&$J$4&"",$L$4:INDIRECT(ADDRESS($AK$3,$AK$4))))))),""),"") -> 
B44: Antal producerede slagtesvin | C44: Diverse vedr. husdyr | D44: =IF($Z$1=32,IF(Choices!$G$1=2,Landsgennemsnit!O44,IF(Choices!$G$1=3,Landsgennemsnit!Q44,IF(Choices!$G$1=4,Landsgennemsnit!S44,IF(Choices!$G$1=5,Landsgennemsnit!U44,"")))),"") ->  | E44: =IF($Z$1=32,IF(Choices!$G$1=2,Landsgennemsnit!P44,IF(Choices!$G$1=3,Landsgennemsnit!R44,IF(Choices!$G$1=4,Landsgennemsnit!T44,IF(Choices!$G$1=5,Landsgennemsnit!V44,"")))),"") ->  | F44: =IF($Z$1=32,IFERROR(IF(ISTEXT($B44)=TRUE,DSUM(#REF!,""&LEFT($C44,LEN($C44)-$A44)&"",$M$4:INDIRECT(ADDRESS($AK$3,$AK$4)))/DSUM(#REF!,""&$B44&"",$M$4:INDIRECT(ADDRESS($AK$3,$AK$4))),IF($B44=0,DAVERAGE(#REF!,""&LEFT($C44,LEN($C44)-$A44)&"",$M$4:INDIRECT(ADDRESS($AK$3,$AK$4))),IF($B44=1,DSUM(#REF!,""&LEFT($C44,LEN($C44)-$A44)&"",$M$4:INDIRECT(ADDRESS($AK$3,$AK$4)))/DSUM(#REF!,""&$I$4&"",$M$4:INDIRECT(ADDRESS($AK$3,$AK$4))),DSUM(#REF!,""&LEFT($C44,LEN($C44)-$A44)&"",$M$4:INDIRECT(ADDRESS($AK$3,$AK$4)))/DSUM(#REF!,""&$J$4&"",$M$4:INDIRECT(ADDRESS($AK$3,$AK$4)))))),""),"") ->  | G44: =IF($Z$1=32,IFERROR(IF(ISTEXT($B44)=TRUE,DSUM(#REF!,""&LEFT($C44,LEN($C44)-$A44)&"",$L$4:INDIRECT(ADDRESS($AK$3,$AK$4)))/DSUM(#REF!,""&$B44&"",$L$4:INDIRECT(ADDRESS($AK$3,$AK$4))),IF($B44=0,DAVERAGE(#REF!,""&LEFT($C44,LEN($C44)-$A44)&"",$L$4:INDIRECT(ADDRESS($AK$3,$AK$4))),IF($B44=1,DSUM(#REF!,""&LEFT($C44,LEN($C44)-$A44)&"",$L$4:INDIRECT(ADDRESS($AK$3,$AK$4)))/DSUM(#REF!,""&$I$4&"",$L$4:INDIRECT(ADDRESS($AK$3,$AK$4))),IF($B44=2,DSUM(#REF!,""&LEFT($C44,LEN($C44)-$A44)&"",$L$4:INDIRECT(ADDRESS($AK$3,$AK$4)))/DSUM(#REF!,""&$J$4&"",$L$4:INDIRECT(ADDRESS($AK$3,$AK$4))))))),""),"") -> 
B45: Antal producerede slagtesvin | C45: Stykomkostninger i alt | D45: =IF($Z$1=32,IF(Choices!$G$1=2,Landsgennemsnit!O45,IF(Choices!$G$1=3,Landsgennemsnit!Q45,IF(Choices!$G$1=4,Landsgennemsnit!S45,IF(Choices!$G$1=5,Landsgennemsnit!U45,"")))),"") ->  | E45: =IF($Z$1=32,IF(Choices!$G$1=2,Landsgennemsnit!P45,IF(Choices!$G$1=3,Landsgennemsnit!R45,IF(Choices!$G$1=4,Landsgennemsnit!T45,IF(Choices!$G$1=5,Landsgennemsnit!V45,"")))),"") ->  | F45: =IF($Z$1=32,IFERROR(IF(ISTEXT($B45)=TRUE,DSUM(#REF!,""&LEFT($C45,LEN($C45)-$A45)&"",$M$4:INDIRECT(ADDRESS($AK$3,$AK$4)))/DSUM(#REF!,""&$B45&"",$M$4:INDIRECT(ADDRESS($AK$3,$AK$4))),IF($B45=0,DAVERAGE(#REF!,""&LEFT($C45,LEN($C45)-$A45)&"",$M$4:INDIRECT(ADDRESS($AK$3,$AK$4))),IF($B45=1,DSUM(#REF!,""&LEFT($C45,LEN($C45)-$A45)&"",$M$4:INDIRECT(ADDRESS($AK$3,$AK$4)))/DSUM(#REF!,""&$I$4&"",$M$4:INDIRECT(ADDRESS($AK$3,$AK$4))),DSUM(#REF!,""&LEFT($C45,LEN($C45)-$A45)&"",$M$4:INDIRECT(ADDRESS($AK$3,$AK$4)))/DSUM(#REF!,""&$J$4&"",$M$4:INDIRECT(ADDRESS($AK$3,$AK$4)))))),""),"") ->  | G45: =IF($Z$1=32,IFERROR(IF(ISTEXT($B45)=TRUE,DSUM(#REF!,""&LEFT($C45,LEN($C45)-$A45)&"",$L$4:INDIRECT(ADDRESS($AK$3,$AK$4)))/DSUM(#REF!,""&$B45&"",$L$4:INDIRECT(ADDRESS($AK$3,$AK$4))),IF($B45=0,DAVERAGE(#REF!,""&LEFT($C45,LEN($C45)-$A45)&"",$L$4:INDIRECT(ADDRESS($AK$3,$AK$4))),IF($B45=1,DSUM(#REF!,""&LEFT($C45,LEN($C45)-$A45)&"",$L$4:INDIRECT(ADDRESS($AK$3,$AK$4)))/DSUM(#REF!,""&$I$4&"",$L$4:INDIRECT(ADDRESS($AK$3,$AK$4))),IF($B45=2,DSUM(#REF!,""&LEFT($C45,LEN($C45)-$A45)&"",$L$4:INDIRECT(ADDRESS($AK$3,$AK$4)))/DSUM(#REF!,""&$J$4&"",$L$4:INDIRECT(ADDRESS($AK$3,$AK$4))))))),""),"") -> 
D46: =IF($Z$1=32,IF(Choices!$G$1=2,Landsgennemsnit!O46,IF(Choices!$G$1=3,Landsgennemsnit!Q46,IF(Choices!$G$1=4,Landsgennemsnit!S46,IF(Choices!$G$1=5,Landsgennemsnit!U46,"")))),"") ->  | E46: =IF($Z$1=32,IF(Choices!$G$1=2,Landsgennemsnit!P46,IF(Choices!$G$1=3,Landsgennemsnit!R46,IF(Choices!$G$1=4,Landsgennemsnit!T46,IF(Choices!$G$1=5,Landsgennemsnit!V46,"")))),"") ->  | F46: =IF($Z$1=32,IFERROR(IF(ISTEXT($B46)=TRUE,DSUM(#REF!,""&LEFT($C46,LEN($C46)-$A46)&"",$M$4:INDIRECT(ADDRESS($AK$3,$AK$4)))/DSUM(#REF!,""&$B46&"",$M$4:INDIRECT(ADDRESS($AK$3,$AK$4))),IF($B46=0,DAVERAGE(#REF!,""&LEFT($C46,LEN($C46)-$A46)&"",$M$4:INDIRECT(ADDRESS($AK$3,$AK$4))),IF($B46=1,DSUM(#REF!,""&LEFT($C46,LEN($C46)-$A46)&"",$M$4:INDIRECT(ADDRESS($AK$3,$AK$4)))/DSUM(#REF!,""&$I$4&"",$M$4:INDIRECT(ADDRESS($AK$3,$AK$4))),DSUM(#REF!,""&LEFT($C46,LEN($C46)-$A46)&"",$M$4:INDIRECT(ADDRESS($AK$3,$AK$4)))/DSUM(#REF!,""&$J$4&"",$M$4:INDIRECT(ADDRESS($AK$3,$AK$4)))))),""),"") ->  | G46: =IF($Z$1=32,IFERROR(IF(ISTEXT($B46)=TRUE,DSUM(#REF!,""&LEFT($C46,LEN($C46)-$A46)&"",$L$4:INDIRECT(ADDRESS($AK$3,$AK$4)))/DSUM(#REF!,""&$B46&"",$L$4:INDIRECT(ADDRESS($AK$3,$AK$4))),IF($B46=0,DAVERAGE(#REF!,""&LEFT($C46,LEN($C46)-$A46)&"",$L$4:INDIRECT(ADDRESS($AK$3,$AK$4))),IF($B46=1,DSUM(#REF!,""&LEFT($C46,LEN($C46)-$A46)&"",$L$4:INDIRECT(ADDRESS($AK$3,$AK$4)))/DSUM(#REF!,""&$I$4&"",$L$4:INDIRECT(ADDRESS($AK$3,$AK$4))),IF($B46=2,DSUM(#REF!,""&LEFT($C46,LEN($C46)-$A46)&"",$L$4:INDIRECT(ADDRESS($AK$3,$AK$4)))/DSUM(#REF!,""&$J$4&"",$L$4:INDIRECT(ADDRESS($AK$3,$AK$4))))))),""),"") -> 
B47: Antal producerede slagtesvin | C47: Dækningsbidrag | D47: =IF($Z$1=32,IF(Choices!$G$1=2,Landsgennemsnit!O47,IF(Choices!$G$1=3,Landsgennemsnit!Q47,IF(Choices!$G$1=4,Landsgennemsnit!S47,IF(Choices!$G$1=5,Landsgennemsnit!U47,"")))),"") ->  | E47: =IF($Z$1=32,IF(Choices!$G$1=2,Landsgennemsnit!P47,IF(Choices!$G$1=3,Landsgennemsnit!R47,IF(Choices!$G$1=4,Landsgennemsnit!T47,IF(Choices!$G$1=5,Landsgennemsnit!V47,"")))),"") ->  | F47: =IF($Z$1=32,IFERROR(IF(ISTEXT($B47)=TRUE,DSUM(#REF!,""&LEFT($C47,LEN($C47)-$A47)&"",$M$4:INDIRECT(ADDRESS($AK$3,$AK$4)))/DSUM(#REF!,""&$B47&"",$M$4:INDIRECT(ADDRESS($AK$3,$AK$4))),IF($B47=0,DAVERAGE(#REF!,""&LEFT($C47,LEN($C47)-$A47)&"",$M$4:INDIRECT(ADDRESS($AK$3,$AK$4))),IF($B47=1,DSUM(#REF!,""&LEFT($C47,LEN($C47)-$A47)&"",$M$4:INDIRECT(ADDRESS($AK$3,$AK$4)))/DSUM(#REF!,""&$I$4&"",$M$4:INDIRECT(ADDRESS($AK$3,$AK$4))),DSUM(#REF!,""&LEFT($C47,LEN($C47)-$A47)&"",$M$4:INDIRECT(ADDRESS($AK$3,$AK$4)))/DSUM(#REF!,""&$J$4&"",$M$4:INDIRECT(ADDRESS($AK$3,$AK$4)))))),""),"") ->  | G47: =IF($Z$1=32,IFERROR(IF(ISTEXT($B47)=TRUE,DSUM(#REF!,""&LEFT($C47,LEN($C47)-$A47)&"",$L$4:INDIRECT(ADDRESS($AK$3,$AK$4)))/DSUM(#REF!,""&$B47&"",$L$4:INDIRECT(ADDRESS($AK$3,$AK$4))),IF($B47=0,DAVERAGE(#REF!,""&LEFT($C47,LEN($C47)-$A47)&"",$L$4:INDIRECT(ADDRESS($AK$3,$AK$4))),IF($B47=1,DSUM(#REF!,""&LEFT($C47,LEN($C47)-$A47)&"",$L$4:INDIRECT(ADDRESS($AK$3,$AK$4)))/DSUM(#REF!,""&$I$4&"",$L$4:INDIRECT(ADDRESS($AK$3,$AK$4))),IF($B47=2,DSUM(#REF!,""&LEFT($C47,LEN($C47)-$A47)&"",$L$4:INDIRECT(ADDRESS($AK$3,$AK$4)))/DSUM(#REF!,""&$J$4&"",$L$4:INDIRECT(ADDRESS($AK$3,$AK$4))))))),""),"") -> 
D48: =IF($Z$1=32,IF(Choices!$G$1=2,Landsgennemsnit!O48,IF(Choices!$G$1=3,Landsgennemsnit!Q48,IF(Choices!$G$1=4,Landsgennemsnit!S48,IF(Choices!$G$1=5,Landsgennemsnit!U48,"")))),"") ->  | E48: =IF($Z$1=32,IF(Choices!$G$1=2,Landsgennemsnit!P48,IF(Choices!$G$1=3,Landsgennemsnit!R48,IF(Choices!$G$1=4,Landsgennemsnit!T48,IF(Choices!$G$1=5,Landsgennemsnit!V48,"")))),"") ->  | F48: =IF($Z$1=32,IFERROR(IF(ISTEXT($B48)=TRUE,DSUM(#REF!,""&LEFT($C48,LEN($C48)-$A48)&"",$M$4:INDIRECT(ADDRESS($AK$3,$AK$4)))/DSUM(#REF!,""&$B48&"",$M$4:INDIRECT(ADDRESS($AK$3,$AK$4))),IF($B48=0,DAVERAGE(#REF!,""&LEFT($C48,LEN($C48)-$A48)&"",$M$4:INDIRECT(ADDRESS($AK$3,$AK$4))),IF($B48=1,DSUM(#REF!,""&LEFT($C48,LEN($C48)-$A48)&"",$M$4:INDIRECT(ADDRESS($AK$3,$AK$4)))/DSUM(#REF!,""&$I$4&"",$M$4:INDIRECT(ADDRESS($AK$3,$AK$4))),DSUM(#REF!,""&LEFT($C48,LEN($C48)-$A48)&"",$M$4:INDIRECT(ADDRESS($AK$3,$AK$4)))/DSUM(#REF!,""&$J$4&"",$M$4:INDIRECT(ADDRESS($AK$3,$AK$4)))))),""),"") ->  | G48: =IF($Z$1=32,IFERROR(IF(ISTEXT($B48)=TRUE,DSUM(#REF!,""&LEFT($C48,LEN($C48)-$A48)&"",$L$4:INDIRECT(ADDRESS($AK$3,$AK$4)))/DSUM(#REF!,""&$B48&"",$L$4:INDIRECT(ADDRESS($AK$3,$AK$4))),IF($B48=0,DAVERAGE(#REF!,""&LEFT($C48,LEN($C48)-$A48)&"",$L$4:INDIRECT(ADDRESS($AK$3,$AK$4))),IF($B48=1,DSUM(#REF!,""&LEFT($C48,LEN($C48)-$A48)&"",$L$4:INDIRECT(ADDRESS($AK$3,$AK$4)))/DSUM(#REF!,""&$I$4&"",$L$4:INDIRECT(ADDRESS($AK$3,$AK$4))),IF($B48=2,DSUM(#REF!,""&LEFT($C48,LEN($C48)-$A48)&"",$L$4:INDIRECT(ADDRESS($AK$3,$AK$4)))/DSUM(#REF!,""&$J$4&"",$L$4:INDIRECT(ADDRESS($AK$3,$AK$4))))))),""),"") -> 
B49: Antal producerede slagtesvin | C49: Energi svin | D49: =IF($Z$1=32,IF(Choices!$G$1=2,Landsgennemsnit!O49,IF(Choices!$G$1=3,Landsgennemsnit!Q49,IF(Choices!$G$1=4,Landsgennemsnit!S49,IF(Choices!$G$1=5,Landsgennemsnit!U49,"")))),"") ->  | E49: =IF($Z$1=32,IF(Choices!$G$1=2,Landsgennemsnit!P49,IF(Choices!$G$1=3,Landsgennemsnit!R49,IF(Choices!$G$1=4,Landsgennemsnit!T49,IF(Choices!$G$1=5,Landsgennemsnit!V49,"")))),"") ->  | F49: =IF($Z$1=32,IFERROR(IF(ISTEXT($B49)=TRUE,DSUM(#REF!,""&LEFT($C49,LEN($C49)-$A49)&"",$M$4:INDIRECT(ADDRESS($AK$3,$AK$4)))/DSUM(#REF!,""&$B49&"",$M$4:INDIRECT(ADDRESS($AK$3,$AK$4))),IF($B49=0,DAVERAGE(#REF!,""&LEFT($C49,LEN($C49)-$A49)&"",$M$4:INDIRECT(ADDRESS($AK$3,$AK$4))),IF($B49=1,DSUM(#REF!,""&LEFT($C49,LEN($C49)-$A49)&"",$M$4:INDIRECT(ADDRESS($AK$3,$AK$4)))/DSUM(#REF!,""&$I$4&"",$M$4:INDIRECT(ADDRESS($AK$3,$AK$4))),DSUM(#REF!,""&LEFT($C49,LEN($C49)-$A49)&"",$M$4:INDIRECT(ADDRESS($AK$3,$AK$4)))/DSUM(#REF!,""&$J$4&"",$M$4:INDIRECT(ADDRESS($AK$3,$AK$4)))))),""),"") ->  | G49: =IF($Z$1=32,IFERROR(IF(ISTEXT($B49)=TRUE,DSUM(#REF!,""&LEFT($C49,LEN($C49)-$A49)&"",$L$4:INDIRECT(ADDRESS($AK$3,$AK$4)))/DSUM(#REF!,""&$B49&"",$L$4:INDIRECT(ADDRESS($AK$3,$AK$4))),IF($B49=0,DAVERAGE(#REF!,""&LEFT($C49,LEN($C49)-$A49)&"",$L$4:INDIRECT(ADDRESS($AK$3,$AK$4))),IF($B49=1,DSUM(#REF!,""&LEFT($C49,LEN($C49)-$A49)&"",$L$4:INDIRECT(ADDRESS($AK$3,$AK$4)))/DSUM(#REF!,""&$I$4&"",$L$4:INDIRECT(ADDRESS($AK$3,$AK$4))),IF($B49=2,DSUM(#REF!,""&LEFT($C49,LEN($C49)-$A49)&"",$L$4:INDIRECT(ADDRESS($AK$3,$AK$4)))/DSUM(#REF!,""&$J$4&"",$L$4:INDIRECT(ADDRESS($AK$3,$AK$4))))))),""),"") -> 
B50: Antal producerede slagtesvin | C50: Vedligehold | D50: =IF($Z$1=32,IF(Choices!$G$1=2,Landsgennemsnit!O50,IF(Choices!$G$1=3,Landsgennemsnit!Q50,IF(Choices!$G$1=4,Landsgennemsnit!S50,IF(Choices!$G$1=5,Landsgennemsnit!U50,"")))),"") ->  | E50: =IF($Z$1=32,IF(Choices!$G$1=2,Landsgennemsnit!P50,IF(Choices!$G$1=3,Landsgennemsnit!R50,IF(Choices!$G$1=4,Landsgennemsnit!T50,IF(Choices!$G$1=5,Landsgennemsnit!V50,"")))),"") ->  | F50: =IF($Z$1=32,IFERROR(IF(ISTEXT($B50)=TRUE,DSUM(#REF!,""&LEFT($C50,LEN($C50)-$A50)&"",$M$4:INDIRECT(ADDRESS($AK$3,$AK$4)))/DSUM(#REF!,""&$B50&"",$M$4:INDIRECT(ADDRESS($AK$3,$AK$4))),IF($B50=0,DAVERAGE(#REF!,""&LEFT($C50,LEN($C50)-$A50)&"",$M$4:INDIRECT(ADDRESS($AK$3,$AK$4))),IF($B50=1,DSUM(#REF!,""&LEFT($C50,LEN($C50)-$A50)&"",$M$4:INDIRECT(ADDRESS($AK$3,$AK$4)))/DSUM(#REF!,""&$I$4&"",$M$4:INDIRECT(ADDRESS($AK$3,$AK$4))),DSUM(#REF!,""&LEFT($C50,LEN($C50)-$A50)&"",$M$4:INDIRECT(ADDRESS($AK$3,$AK$4)))/DSUM(#REF!,""&$J$4&"",$M$4:INDIRECT(ADDRESS($AK$3,$AK$4)))))),""),"") ->  | G50: =IF($Z$1=32,IFERROR(IF(ISTEXT($B50)=TRUE,DSUM(#REF!,""&LEFT($C50,LEN($C50)-$A50)&"",$L$4:INDIRECT(ADDRESS($AK$3,$AK$4)))/DSUM(#REF!,""&$B50&"",$L$4:INDIRECT(ADDRESS($AK$3,$AK$4))),IF($B50=0,DAVERAGE(#REF!,""&LEFT($C50,LEN($C50)-$A50)&"",$L$4:INDIRECT(ADDRESS($AK$3,$AK$4))),IF($B50=1,DSUM(#REF!,""&LEFT($C50,LEN($C50)-$A50)&"",$L$4:INDIRECT(ADDRESS($AK$3,$AK$4)))/DSUM(#REF!,""&$I$4&"",$L$4:INDIRECT(ADDRESS($AK$3,$AK$4))),IF($B50=2,DSUM(#REF!,""&LEFT($C50,LEN($C50)-$A50)&"",$L$4:INDIRECT(ADDRESS($AK$3,$AK$4)))/DSUM(#REF!,""&$J$4&"",$L$4:INDIRECT(ADDRESS($AK$3,$AK$4))))))),""),"") -> 
B51: Antal producerede slagtesvin | C51: Lønomkostninger | D51: =IF($Z$1=32,IF(Choices!$G$1=2,Landsgennemsnit!O51,IF(Choices!$G$1=3,Landsgennemsnit!Q51,IF(Choices!$G$1=4,Landsgennemsnit!S51,IF(Choices!$G$1=5,Landsgennemsnit!U51,"")))),"") ->  | E51: =IF($Z$1=32,IF(Choices!$G$1=2,Landsgennemsnit!P51,IF(Choices!$G$1=3,Landsgennemsnit!R51,IF(Choices!$G$1=4,Landsgennemsnit!T51,IF(Choices!$G$1=5,Landsgennemsnit!V51,"")))),"") ->  | F51: =IF($Z$1=32,IFERROR(IF(ISTEXT($B51)=TRUE,DSUM(#REF!,""&LEFT($C51,LEN($C51)-$A51)&"",$M$4:INDIRECT(ADDRESS($AK$3,$AK$4)))/DSUM(#REF!,""&$B51&"",$M$4:INDIRECT(ADDRESS($AK$3,$AK$4))),IF($B51=0,DAVERAGE(#REF!,""&LEFT($C51,LEN($C51)-$A51)&"",$M$4:INDIRECT(ADDRESS($AK$3,$AK$4))),IF($B51=1,DSUM(#REF!,""&LEFT($C51,LEN($C51)-$A51)&"",$M$4:INDIRECT(ADDRESS($AK$3,$AK$4)))/DSUM(#REF!,""&$I$4&"",$M$4:INDIRECT(ADDRESS($AK$3,$AK$4))),DSUM(#REF!,""&LEFT($C51,LEN($C51)-$A51)&"",$M$4:INDIRECT(ADDRESS($AK$3,$AK$4)))/DSUM(#REF!,""&$J$4&"",$M$4:INDIRECT(ADDRESS($AK$3,$AK$4)))))),""),"") ->  | G51: =IF($Z$1=32,IFERROR(IF(ISTEXT($B51)=TRUE,DSUM(#REF!,""&LEFT($C51,LEN($C51)-$A51)&"",$L$4:INDIRECT(ADDRESS($AK$3,$AK$4)))/DSUM(#REF!,""&$B51&"",$L$4:INDIRECT(ADDRESS($AK$3,$AK$4))),IF($B51=0,DAVERAGE(#REF!,""&LEFT($C51,LEN($C51)-$A51)&"",$L$4:INDIRECT(ADDRESS($AK$3,$AK$4))),IF($B51=1,DSUM(#REF!,""&LEFT($C51,LEN($C51)-$A51)&"",$L$4:INDIRECT(ADDRESS($AK$3,$AK$4)))/DSUM(#REF!,""&$I$4&"",$L$4:INDIRECT(ADDRESS($AK$3,$AK$4))),IF($B51=2,DSUM(#REF!,""&LEFT($C51,LEN($C51)-$A51)&"",$L$4:INDIRECT(ADDRESS($AK$3,$AK$4)))/DSUM(#REF!,""&$J$4&"",$L$4:INDIRECT(ADDRESS($AK$3,$AK$4))))))),""),"") -> 
B52: Antal producerede slagtesvin | C52: Ejeraflønning | D52: =IF($Z$1=32,IF(Choices!$G$1=2,Landsgennemsnit!O52,IF(Choices!$G$1=3,Landsgennemsnit!Q52,IF(Choices!$G$1=4,Landsgennemsnit!S52,IF(Choices!$G$1=5,Landsgennemsnit!U52,"")))),"") ->  | E52: =IF($Z$1=32,IF(Choices!$G$1=2,Landsgennemsnit!P52,IF(Choices!$G$1=3,Landsgennemsnit!R52,IF(Choices!$G$1=4,Landsgennemsnit!T52,IF(Choices!$G$1=5,Landsgennemsnit!V52,"")))),"") ->  | F52: =IF($Z$1=32,IFERROR(IF(ISTEXT($B52)=TRUE,DSUM(#REF!,""&LEFT($C52,LEN($C52)-$A52)&"",$M$4:INDIRECT(ADDRESS($AK$3,$AK$4)))/DSUM(#REF!,""&$B52&"",$M$4:INDIRECT(ADDRESS($AK$3,$AK$4))),IF($B52=0,DAVERAGE(#REF!,""&LEFT($C52,LEN($C52)-$A52)&"",$M$4:INDIRECT(ADDRESS($AK$3,$AK$4))),IF($B52=1,DSUM(#REF!,""&LEFT($C52,LEN($C52)-$A52)&"",$M$4:INDIRECT(ADDRESS($AK$3,$AK$4)))/DSUM(#REF!,""&$I$4&"",$M$4:INDIRECT(ADDRESS($AK$3,$AK$4))),DSUM(#REF!,""&LEFT($C52,LEN($C52)-$A52)&"",$M$4:INDIRECT(ADDRESS($AK$3,$AK$4)))/DSUM(#REF!,""&$J$4&"",$M$4:INDIRECT(ADDRESS($AK$3,$AK$4)))))),""),"") ->  | G52: =IF($Z$1=32,IFERROR(IF(ISTEXT($B52)=TRUE,DSUM(#REF!,""&LEFT($C52,LEN($C52)-$A52)&"",$L$4:INDIRECT(ADDRESS($AK$3,$AK$4)))/DSUM(#REF!,""&$B52&"",$L$4:INDIRECT(ADDRESS($AK$3,$AK$4))),IF($B52=0,DAVERAGE(#REF!,""&LEFT($C52,LEN($C52)-$A52)&"",$L$4:INDIRECT(ADDRESS($AK$3,$AK$4))),IF($B52=1,DSUM(#REF!,""&LEFT($C52,LEN($C52)-$A52)&"",$L$4:INDIRECT(ADDRESS($AK$3,$AK$4)))/DSUM(#REF!,""&$I$4&"",$L$4:INDIRECT(ADDRESS($AK$3,$AK$4))),IF($B52=2,DSUM(#REF!,""&LEFT($C52,LEN($C52)-$A52)&"",$L$4:INDIRECT(ADDRESS($AK$3,$AK$4)))/DSUM(#REF!,""&$J$4&"",$L$4:INDIRECT(ADDRESS($AK$3,$AK$4))))))),""),"") -> 
B53: Antal producerede slagtesvin | C53: Forsikring | D53: =IF($Z$1=32,IF(Choices!$G$1=2,Landsgennemsnit!O53,IF(Choices!$G$1=3,Landsgennemsnit!Q53,IF(Choices!$G$1=4,Landsgennemsnit!S53,IF(Choices!$G$1=5,Landsgennemsnit!U53,"")))),"") ->  | E53: =IF($Z$1=32,IF(Choices!$G$1=2,Landsgennemsnit!P53,IF(Choices!$G$1=3,Landsgennemsnit!R53,IF(Choices!$G$1=4,Landsgennemsnit!T53,IF(Choices!$G$1=5,Landsgennemsnit!V53,"")))),"") ->  | F53: =IF($Z$1=32,IFERROR(IF(ISTEXT($B53)=TRUE,DSUM(#REF!,""&LEFT($C53,LEN($C53)-$A53)&"",$M$4:INDIRECT(ADDRESS($AK$3,$AK$4)))/DSUM(#REF!,""&$B53&"",$M$4:INDIRECT(ADDRESS($AK$3,$AK$4))),IF($B53=0,DAVERAGE(#REF!,""&LEFT($C53,LEN($C53)-$A53)&"",$M$4:INDIRECT(ADDRESS($AK$3,$AK$4))),IF($B53=1,DSUM(#REF!,""&LEFT($C53,LEN($C53)-$A53)&"",$M$4:INDIRECT(ADDRESS($AK$3,$AK$4)))/DSUM(#REF!,""&$I$4&"",$M$4:INDIRECT(ADDRESS($AK$3,$AK$4))),DSUM(#REF!,""&LEFT($C53,LEN($C53)-$A53)&"",$M$4:INDIRECT(ADDRESS($AK$3,$AK$4)))/DSUM(#REF!,""&$J$4&"",$M$4:INDIRECT(ADDRESS($AK$3,$AK$4)))))),""),"") ->  | G53: =IF($Z$1=32,IFERROR(IF(ISTEXT($B53)=TRUE,DSUM(#REF!,""&LEFT($C53,LEN($C53)-$A53)&"",$L$4:INDIRECT(ADDRESS($AK$3,$AK$4)))/DSUM(#REF!,""&$B53&"",$L$4:INDIRECT(ADDRESS($AK$3,$AK$4))),IF($B53=0,DAVERAGE(#REF!,""&LEFT($C53,LEN($C53)-$A53)&"",$L$4:INDIRECT(ADDRESS($AK$3,$AK$4))),IF($B53=1,DSUM(#REF!,""&LEFT($C53,LEN($C53)-$A53)&"",$L$4:INDIRECT(ADDRESS($AK$3,$AK$4)))/DSUM(#REF!,""&$I$4&"",$L$4:INDIRECT(ADDRESS($AK$3,$AK$4))),IF($B53=2,DSUM(#REF!,""&LEFT($C53,LEN($C53)-$A53)&"",$L$4:INDIRECT(ADDRESS($AK$3,$AK$4)))/DSUM(#REF!,""&$J$4&"",$L$4:INDIRECT(ADDRESS($AK$3,$AK$4))))))),""),"") -> 
B54: Antal producerede slagtesvin | C54: Diverse kapacitetsomkostninger | D54: =IF($Z$1=32,IF(Choices!$G$1=2,Landsgennemsnit!O54,IF(Choices!$G$1=3,Landsgennemsnit!Q54,IF(Choices!$G$1=4,Landsgennemsnit!S54,IF(Choices!$G$1=5,Landsgennemsnit!U54,"")))),"") ->  | E54: =IF($Z$1=32,IF(Choices!$G$1=2,Landsgennemsnit!P54,IF(Choices!$G$1=3,Landsgennemsnit!R54,IF(Choices!$G$1=4,Landsgennemsnit!T54,IF(Choices!$G$1=5,Landsgennemsnit!V54,"")))),"") ->  | F54: =IF($Z$1=32,IFERROR(IF(ISTEXT($B54)=TRUE,DSUM(#REF!,""&LEFT($C54,LEN($C54)-$A54)&"",$M$4:INDIRECT(ADDRESS($AK$3,$AK$4)))/DSUM(#REF!,""&$B54&"",$M$4:INDIRECT(ADDRESS($AK$3,$AK$4))),IF($B54=0,DAVERAGE(#REF!,""&LEFT($C54,LEN($C54)-$A54)&"",$M$4:INDIRECT(ADDRESS($AK$3,$AK$4))),IF($B54=1,DSUM(#REF!,""&LEFT($C54,LEN($C54)-$A54)&"",$M$4:INDIRECT(ADDRESS($AK$3,$AK$4)))/DSUM(#REF!,""&$I$4&"",$M$4:INDIRECT(ADDRESS($AK$3,$AK$4))),DSUM(#REF!,""&LEFT($C54,LEN($C54)-$A54)&"",$M$4:INDIRECT(ADDRESS($AK$3,$AK$4)))/DSUM(#REF!,""&$J$4&"",$M$4:INDIRECT(ADDRESS($AK$3,$AK$4)))))),""),"") ->  | G54: =IF($Z$1=32,IFERROR(IF(ISTEXT($B54)=TRUE,DSUM(#REF!,""&LEFT($C54,LEN($C54)-$A54)&"",$L$4:INDIRECT(ADDRESS($AK$3,$AK$4)))/DSUM(#REF!,""&$B54&"",$L$4:INDIRECT(ADDRESS($AK$3,$AK$4))),IF($B54=0,DAVERAGE(#REF!,""&LEFT($C54,LEN($C54)-$A54)&"",$L$4:INDIRECT(ADDRESS($AK$3,$AK$4))),IF($B54=1,DSUM(#REF!,""&LEFT($C54,LEN($C54)-$A54)&"",$L$4:INDIRECT(ADDRESS($AK$3,$AK$4)))/DSUM(#REF!,""&$I$4&"",$L$4:INDIRECT(ADDRESS($AK$3,$AK$4))),IF($B54=2,DSUM(#REF!,""&LEFT($C54,LEN($C54)-$A54)&"",$L$4:INDIRECT(ADDRESS($AK$3,$AK$4)))/DSUM(#REF!,""&$J$4&"",$L$4:INDIRECT(ADDRESS($AK$3,$AK$4))))))),""),"") -> 
B55: Antal producerede slagtesvin | C55: Kapacitetsomkostninger i alt | D55: =IF($Z$1=32,IF(Choices!$G$1=2,Landsgennemsnit!O55,IF(Choices!$G$1=3,Landsgennemsnit!Q55,IF(Choices!$G$1=4,Landsgennemsnit!S55,IF(Choices!$G$1=5,Landsgennemsnit!U55,"")))),"") ->  | E55: =IF($Z$1=32,IF(Choices!$G$1=2,Landsgennemsnit!P55,IF(Choices!$G$1=3,Landsgennemsnit!R55,IF(Choices!$G$1=4,Landsgennemsnit!T55,IF(Choices!$G$1=5,Landsgennemsnit!V55,"")))),"") ->  | F55: =IF($Z$1=32,IFERROR(IF(ISTEXT($B55)=TRUE,DSUM(#REF!,""&LEFT($C55,LEN($C55)-$A55)&"",$M$4:INDIRECT(ADDRESS($AK$3,$AK$4)))/DSUM(#REF!,""&$B55&"",$M$4:INDIRECT(ADDRESS($AK$3,$AK$4))),IF($B55=0,DAVERAGE(#REF!,""&LEFT($C55,LEN($C55)-$A55)&"",$M$4:INDIRECT(ADDRESS($AK$3,$AK$4))),IF($B55=1,DSUM(#REF!,""&LEFT($C55,LEN($C55)-$A55)&"",$M$4:INDIRECT(ADDRESS($AK$3,$AK$4)))/DSUM(#REF!,""&$I$4&"",$M$4:INDIRECT(ADDRESS($AK$3,$AK$4))),DSUM(#REF!,""&LEFT($C55,LEN($C55)-$A55)&"",$M$4:INDIRECT(ADDRESS($AK$3,$AK$4)))/DSUM(#REF!,""&$J$4&"",$M$4:INDIRECT(ADDRESS($AK$3,$AK$4)))))),""),"") ->  | G55: =IF($Z$1=32,IFERROR(IF(ISTEXT($B55)=TRUE,DSUM(#REF!,""&LEFT($C55,LEN($C55)-$A55)&"",$L$4:INDIRECT(ADDRESS($AK$3,$AK$4)))/DSUM(#REF!,""&$B55&"",$L$4:INDIRECT(ADDRESS($AK$3,$AK$4))),IF($B55=0,DAVERAGE(#REF!,""&LEFT($C55,LEN($C55)-$A55)&"",$L$4:INDIRECT(ADDRESS($AK$3,$AK$4))),IF($B55=1,DSUM(#REF!,""&LEFT($C55,LEN($C55)-$A55)&"",$L$4:INDIRECT(ADDRESS($AK$3,$AK$4)))/DSUM(#REF!,""&$I$4&"",$L$4:INDIRECT(ADDRESS($AK$3,$AK$4))),IF($B55=2,DSUM(#REF!,""&LEFT($C55,LEN($C55)-$A55)&"",$L$4:INDIRECT(ADDRESS($AK$3,$AK$4)))/DSUM(#REF!,""&$J$4&"",$L$4:INDIRECT(ADDRESS($AK$3,$AK$4))))))),""),"") -> 
D56: =IF($Z$1=32,IF(Choices!$G$1=2,Landsgennemsnit!O56,IF(Choices!$G$1=3,Landsgennemsnit!Q56,IF(Choices!$G$1=4,Landsgennemsnit!S56,IF(Choices!$G$1=5,Landsgennemsnit!U56,"")))),"") ->  | E56: =IF($Z$1=32,IF(Choices!$G$1=2,Landsgennemsnit!P56,IF(Choices!$G$1=3,Landsgennemsnit!R56,IF(Choices!$G$1=4,Landsgennemsnit!T56,IF(Choices!$G$1=5,Landsgennemsnit!V56,"")))),"") ->  | F56: =IF($Z$1=32,IFERROR(IF(ISTEXT($B56)=TRUE,DSUM(#REF!,""&LEFT($C56,LEN($C56)-$A56)&"",$M$4:INDIRECT(ADDRESS($AK$3,$AK$4)))/DSUM(#REF!,""&$B56&"",$M$4:INDIRECT(ADDRESS($AK$3,$AK$4))),IF($B56=0,DAVERAGE(#REF!,""&LEFT($C56,LEN($C56)-$A56)&"",$M$4:INDIRECT(ADDRESS($AK$3,$AK$4))),IF($B56=1,DSUM(#REF!,""&LEFT($C56,LEN($C56)-$A56)&"",$M$4:INDIRECT(ADDRESS($AK$3,$AK$4)))/DSUM(#REF!,""&$I$4&"",$M$4:INDIRECT(ADDRESS($AK$3,$AK$4))),DSUM(#REF!,""&LEFT($C56,LEN($C56)-$A56)&"",$M$4:INDIRECT(ADDRESS($AK$3,$AK$4)))/DSUM(#REF!,""&$J$4&"",$M$4:INDIRECT(ADDRESS($AK$3,$AK$4)))))),""),"") ->  | G56: =IF($Z$1=32,IFERROR(IF(ISTEXT($B56)=TRUE,DSUM(#REF!,""&LEFT($C56,LEN($C56)-$A56)&"",$L$4:INDIRECT(ADDRESS($AK$3,$AK$4)))/DSUM(#REF!,""&$B56&"",$L$4:INDIRECT(ADDRESS($AK$3,$AK$4))),IF($B56=0,DAVERAGE(#REF!,""&LEFT($C56,LEN($C56)-$A56)&"",$L$4:INDIRECT(ADDRESS($AK$3,$AK$4))),IF($B56=1,DSUM(#REF!,""&LEFT($C56,LEN($C56)-$A56)&"",$L$4:INDIRECT(ADDRESS($AK$3,$AK$4)))/DSUM(#REF!,""&$I$4&"",$L$4:INDIRECT(ADDRESS($AK$3,$AK$4))),IF($B56=2,DSUM(#REF!,""&LEFT($C56,LEN($C56)-$A56)&"",$L$4:INDIRECT(ADDRESS($AK$3,$AK$4)))/DSUM(#REF!,""&$J$4&"",$L$4:INDIRECT(ADDRESS($AK$3,$AK$4))))))),""),"") -> 
B57: Antal producerede slagtesvin | C57: Afskrivning bygninger | D57: =IF($Z$1=32,IF(Choices!$G$1=2,Landsgennemsnit!O57,IF(Choices!$G$1=3,Landsgennemsnit!Q57,IF(Choices!$G$1=4,Landsgennemsnit!S57,IF(Choices!$G$1=5,Landsgennemsnit!U57,"")))),"") ->  | E57: =IF($Z$1=32,IF(Choices!$G$1=2,Landsgennemsnit!P57,IF(Choices!$G$1=3,Landsgennemsnit!R57,IF(Choices!$G$1=4,Landsgennemsnit!T57,IF(Choices!$G$1=5,Landsgennemsnit!V57,"")))),"") ->  | F57: =IF($Z$1=32,IFERROR(IF(ISTEXT($B57)=TRUE,DSUM(#REF!,""&LEFT($C57,LEN($C57)-$A57)&"",$M$4:INDIRECT(ADDRESS($AK$3,$AK$4)))/DSUM(#REF!,""&$B57&"",$M$4:INDIRECT(ADDRESS($AK$3,$AK$4))),IF($B57=0,DAVERAGE(#REF!,""&LEFT($C57,LEN($C57)-$A57)&"",$M$4:INDIRECT(ADDRESS($AK$3,$AK$4))),IF($B57=1,DSUM(#REF!,""&LEFT($C57,LEN($C57)-$A57)&"",$M$4:INDIRECT(ADDRESS($AK$3,$AK$4)))/DSUM(#REF!,""&$I$4&"",$M$4:INDIRECT(ADDRESS($AK$3,$AK$4))),DSUM(#REF!,""&LEFT($C57,LEN($C57)-$A57)&"",$M$4:INDIRECT(ADDRESS($AK$3,$AK$4)))/DSUM(#REF!,""&$J$4&"",$M$4:INDIRECT(ADDRESS($AK$3,$AK$4)))))),""),"") ->  | G57: =IF($Z$1=32,IFERROR(IF(ISTEXT($B57)=TRUE,DSUM(#REF!,""&LEFT($C57,LEN($C57)-$A57)&"",$L$4:INDIRECT(ADDRESS($AK$3,$AK$4)))/DSUM(#REF!,""&$B57&"",$L$4:INDIRECT(ADDRESS($AK$3,$AK$4))),IF($B57=0,DAVERAGE(#REF!,""&LEFT($C57,LEN($C57)-$A57)&"",$L$4:INDIRECT(ADDRESS($AK$3,$AK$4))),IF($B57=1,DSUM(#REF!,""&LEFT($C57,LEN($C57)-$A57)&"",$L$4:INDIRECT(ADDRESS($AK$3,$AK$4)))/DSUM(#REF!,""&$I$4&"",$L$4:INDIRECT(ADDRESS($AK$3,$AK$4))),IF($B57=2,DSUM(#REF!,""&LEFT($C57,LEN($C57)-$A57)&"",$L$4:INDIRECT(ADDRESS($AK$3,$AK$4)))/DSUM(#REF!,""&$J$4&"",$L$4:INDIRECT(ADDRESS($AK$3,$AK$4))))))),""),"") -> 
B58: Antal producerede slagtesvin | C58: Afskrivning inventar | D58: =IF($Z$1=32,IF(Choices!$G$1=2,Landsgennemsnit!O58,IF(Choices!$G$1=3,Landsgennemsnit!Q58,IF(Choices!$G$1=4,Landsgennemsnit!S58,IF(Choices!$G$1=5,Landsgennemsnit!U58,"")))),"") ->  | E58: =IF($Z$1=32,IF(Choices!$G$1=2,Landsgennemsnit!P58,IF(Choices!$G$1=3,Landsgennemsnit!R58,IF(Choices!$G$1=4,Landsgennemsnit!T58,IF(Choices!$G$1=5,Landsgennemsnit!V58,"")))),"") ->  | F58: =IF($Z$1=32,IFERROR(IF(ISTEXT($B58)=TRUE,DSUM(#REF!,""&LEFT($C58,LEN($C58)-$A58)&"",$M$4:INDIRECT(ADDRESS($AK$3,$AK$4)))/DSUM(#REF!,""&$B58&"",$M$4:INDIRECT(ADDRESS($AK$3,$AK$4))),IF($B58=0,DAVERAGE(#REF!,""&LEFT($C58,LEN($C58)-$A58)&"",$M$4:INDIRECT(ADDRESS($AK$3,$AK$4))),IF($B58=1,DSUM(#REF!,""&LEFT($C58,LEN($C58)-$A58)&"",$M$4:INDIRECT(ADDRESS($AK$3,$AK$4)))/DSUM(#REF!,""&$I$4&"",$M$4:INDIRECT(ADDRESS($AK$3,$AK$4))),DSUM(#REF!,""&LEFT($C58,LEN($C58)-$A58)&"",$M$4:INDIRECT(ADDRESS($AK$3,$AK$4)))/DSUM(#REF!,""&$J$4&"",$M$4:INDIRECT(ADDRESS($AK$3,$AK$4)))))),""),"") ->  | G58: =IF($Z$1=32,IFERROR(IF(ISTEXT($B58)=TRUE,DSUM(#REF!,""&LEFT($C58,LEN($C58)-$A58)&"",$L$4:INDIRECT(ADDRESS($AK$3,$AK$4)))/DSUM(#REF!,""&$B58&"",$L$4:INDIRECT(ADDRESS($AK$3,$AK$4))),IF($B58=0,DAVERAGE(#REF!,""&LEFT($C58,LEN($C58)-$A58)&"",$L$4:INDIRECT(ADDRESS($AK$3,$AK$4))),IF($B58=1,DSUM(#REF!,""&LEFT($C58,LEN($C58)-$A58)&"",$L$4:INDIRECT(ADDRESS($AK$3,$AK$4)))/DSUM(#REF!,""&$I$4&"",$L$4:INDIRECT(ADDRESS($AK$3,$AK$4))),IF($B58=2,DSUM(#REF!,""&LEFT($C58,LEN($C58)-$A58)&"",$L$4:INDIRECT(ADDRESS($AK$3,$AK$4)))/DSUM(#REF!,""&$J$4&"",$L$4:INDIRECT(ADDRESS($AK$3,$AK$4))))))),""),"") -> 
B59: Antal producerede slagtesvin | C59: Leje af driftsbygninger | D59: =IF($Z$1=32,IF(Choices!$G$1=2,Landsgennemsnit!O59,IF(Choices!$G$1=3,Landsgennemsnit!Q59,IF(Choices!$G$1=4,Landsgennemsnit!S59,IF(Choices!$G$1=5,Landsgennemsnit!U59,"")))),"") ->  | E59: =IF($Z$1=32,IF(Choices!$G$1=2,Landsgennemsnit!P59,IF(Choices!$G$1=3,Landsgennemsnit!R59,IF(Choices!$G$1=4,Landsgennemsnit!T59,IF(Choices!$G$1=5,Landsgennemsnit!V59,"")))),"") ->  | F59: =IF($Z$1=32,IFERROR(IF(ISTEXT($B59)=TRUE,DSUM(#REF!,""&LEFT($C59,LEN($C59)-$A59)&"",$M$4:INDIRECT(ADDRESS($AK$3,$AK$4)))/DSUM(#REF!,""&$B59&"",$M$4:INDIRECT(ADDRESS($AK$3,$AK$4))),IF($B59=0,DAVERAGE(#REF!,""&LEFT($C59,LEN($C59)-$A59)&"",$M$4:INDIRECT(ADDRESS($AK$3,$AK$4))),IF($B59=1,DSUM(#REF!,""&LEFT($C59,LEN($C59)-$A59)&"",$M$4:INDIRECT(ADDRESS($AK$3,$AK$4)))/DSUM(#REF!,""&$I$4&"",$M$4:INDIRECT(ADDRESS($AK$3,$AK$4))),DSUM(#REF!,""&LEFT($C59,LEN($C59)-$A59)&"",$M$4:INDIRECT(ADDRESS($AK$3,$AK$4)))/DSUM(#REF!,""&$J$4&"",$M$4:INDIRECT(ADDRESS($AK$3,$AK$4)))))),""),"") ->  | G59: =IF($Z$1=32,IFERROR(IF(ISTEXT($B59)=TRUE,DSUM(#REF!,""&LEFT($C59,LEN($C59)-$A59)&"",$L$4:INDIRECT(ADDRESS($AK$3,$AK$4)))/DSUM(#REF!,""&$B59&"",$L$4:INDIRECT(ADDRESS($AK$3,$AK$4))),IF($B59=0,DAVERAGE(#REF!,""&LEFT($C59,LEN($C59)-$A59)&"",$L$4:INDIRECT(ADDRESS($AK$3,$AK$4))),IF($B59=1,DSUM(#REF!,""&LEFT($C59,LEN($C59)-$A59)&"",$L$4:INDIRECT(ADDRESS($AK$3,$AK$4)))/DSUM(#REF!,""&$I$4&"",$L$4:INDIRECT(ADDRESS($AK$3,$AK$4))),IF($B59=2,DSUM(#REF!,""&LEFT($C59,LEN($C59)-$A59)&"",$L$4:INDIRECT(ADDRESS($AK$3,$AK$4)))/DSUM(#REF!,""&$J$4&"",$L$4:INDIRECT(ADDRESS($AK$3,$AK$4))))))),""),"") -> 
B60: Antal producerede slagtesvin | C60: Renteomk. af bundet kapital | D60: =IF($Z$1=32,IF(Choices!$G$1=2,Landsgennemsnit!O60,IF(Choices!$G$1=3,Landsgennemsnit!Q60,IF(Choices!$G$1=4,Landsgennemsnit!S60,IF(Choices!$G$1=5,Landsgennemsnit!U60,"")))),"") ->  | E60: =IF($Z$1=32,IF(Choices!$G$1=2,Landsgennemsnit!P60,IF(Choices!$G$1=3,Landsgennemsnit!R60,IF(Choices!$G$1=4,Landsgennemsnit!T60,IF(Choices!$G$1=5,Landsgennemsnit!V60,"")))),"") ->  | F60: =IF($Z$1=32,IFERROR(IF(ISTEXT($B60)=TRUE,DSUM(#REF!,""&LEFT($C60,LEN($C60)-$A60)&"",$M$4:INDIRECT(ADDRESS($AK$3,$AK$4)))/DSUM(#REF!,""&$B60&"",$M$4:INDIRECT(ADDRESS($AK$3,$AK$4))),IF($B60=0,DAVERAGE(#REF!,""&LEFT($C60,LEN($C60)-$A60)&"",$M$4:INDIRECT(ADDRESS($AK$3,$AK$4))),IF($B60=1,DSUM(#REF!,""&LEFT($C60,LEN($C60)-$A60)&"",$M$4:INDIRECT(ADDRESS($AK$3,$AK$4)))/DSUM(#REF!,""&$I$4&"",$M$4:INDIRECT(ADDRESS($AK$3,$AK$4))),DSUM(#REF!,""&LEFT($C60,LEN($C60)-$A60)&"",$M$4:INDIRECT(ADDRESS($AK$3,$AK$4)))/DSUM(#REF!,""&$J$4&"",$M$4:INDIRECT(ADDRESS($AK$3,$AK$4)))))),""),"") ->  | G60: =IF($Z$1=32,IFERROR(IF(ISTEXT($B60)=TRUE,DSUM(#REF!,""&LEFT($C60,LEN($C60)-$A60)&"",$L$4:INDIRECT(ADDRESS($AK$3,$AK$4)))/DSUM(#REF!,""&$B60&"",$L$4:INDIRECT(ADDRESS($AK$3,$AK$4))),IF($B60=0,DAVERAGE(#REF!,""&LEFT($C60,LEN($C60)-$A60)&"",$L$4:INDIRECT(ADDRESS($AK$3,$AK$4))),IF($B60=1,DSUM(#REF!,""&LEFT($C60,LEN($C60)-$A60)&"",$L$4:INDIRECT(ADDRESS($AK$3,$AK$4)))/DSUM(#REF!,""&$I$4&"",$L$4:INDIRECT(ADDRESS($AK$3,$AK$4))),IF($B60=2,DSUM(#REF!,""&LEFT($C60,LEN($C60)-$A60)&"",$L$4:INDIRECT(ADDRESS($AK$3,$AK$4)))/DSUM(#REF!,""&$J$4&"",$L$4:INDIRECT(ADDRESS($AK$3,$AK$4))))))),""),"") -> 
B61: Antal producerede slagtesvin | C61: Kapitalomkostninger i alt | D61: =IF($Z$1=32,IF(Choices!$G$1=2,Landsgennemsnit!O61,IF(Choices!$G$1=3,Landsgennemsnit!Q61,IF(Choices!$G$1=4,Landsgennemsnit!S61,IF(Choices!$G$1=5,Landsgennemsnit!U61,"")))),"") ->  | E61: =IF($Z$1=32,IF(Choices!$G$1=2,Landsgennemsnit!P61,IF(Choices!$G$1=3,Landsgennemsnit!R61,IF(Choices!$G$1=4,Landsgennemsnit!T61,IF(Choices!$G$1=5,Landsgennemsnit!V61,"")))),"") ->  | F61: =IF($Z$1=32,IFERROR(IF(ISTEXT($B61)=TRUE,DSUM(#REF!,""&LEFT($C61,LEN($C61)-$A61)&"",$M$4:INDIRECT(ADDRESS($AK$3,$AK$4)))/DSUM(#REF!,""&$B61&"",$M$4:INDIRECT(ADDRESS($AK$3,$AK$4))),IF($B61=0,DAVERAGE(#REF!,""&LEFT($C61,LEN($C61)-$A61)&"",$M$4:INDIRECT(ADDRESS($AK$3,$AK$4))),IF($B61=1,DSUM(#REF!,""&LEFT($C61,LEN($C61)-$A61)&"",$M$4:INDIRECT(ADDRESS($AK$3,$AK$4)))/DSUM(#REF!,""&$I$4&"",$M$4:INDIRECT(ADDRESS($AK$3,$AK$4))),DSUM(#REF!,""&LEFT($C61,LEN($C61)-$A61)&"",$M$4:INDIRECT(ADDRESS($AK$3,$AK$4)))/DSUM(#REF!,""&$J$4&"",$M$4:INDIRECT(ADDRESS($AK$3,$AK$4)))))),""),"") ->  | G61: =IF($Z$1=32,IFERROR(IF(ISTEXT($B61)=TRUE,DSUM(#REF!,""&LEFT($C61,LEN($C61)-$A61)&"",$L$4:INDIRECT(ADDRESS($AK$3,$AK$4)))/DSUM(#REF!,""&$B61&"",$L$4:INDIRECT(ADDRESS($AK$3,$AK$4))),IF($B61=0,DAVERAGE(#REF!,""&LEFT($C61,LEN($C61)-$A61)&"",$L$4:INDIRECT(ADDRESS($AK$3,$AK$4))),IF($B61=1,DSUM(#REF!,""&LEFT($C61,LEN($C61)-$A61)&"",$L$4:INDIRECT(ADDRESS($AK$3,$AK$4)))/DSUM(#REF!,""&$I$4&"",$L$4:INDIRECT(ADDRESS($AK$3,$AK$4))),IF($B61=2,DSUM(#REF!,""&LEFT($C61,LEN($C61)-$A61)&"",$L$4:INDIRECT(ADDRESS($AK$3,$AK$4)))/DSUM(#REF!,""&$J$4&"",$L$4:INDIRECT(ADDRESS($AK$3,$AK$4))))))),""),"") -> 
D62: =IF($Z$1=32,IF(Choices!$G$1=2,Landsgennemsnit!O62,IF(Choices!$G$1=3,Landsgennemsnit!Q62,IF(Choices!$G$1=4,Landsgennemsnit!S62,IF(Choices!$G$1=5,Landsgennemsnit!U62,"")))),"") ->  | E62: =IF($Z$1=32,IF(Choices!$G$1=2,Landsgennemsnit!P62,IF(Choices!$G$1=3,Landsgennemsnit!R62,IF(Choices!$G$1=4,Landsgennemsnit!T62,IF(Choices!$G$1=5,Landsgennemsnit!V62,"")))),"") ->  | F62: =IF($Z$1=32,IFERROR(IF(ISTEXT($B62)=TRUE,DSUM(#REF!,""&LEFT($C62,LEN($C62)-$A62)&"",$M$4:INDIRECT(ADDRESS($AK$3,$AK$4)))/DSUM(#REF!,""&$B62&"",$M$4:INDIRECT(ADDRESS($AK$3,$AK$4))),IF($B62=0,DAVERAGE(#REF!,""&LEFT($C62,LEN($C62)-$A62)&"",$M$4:INDIRECT(ADDRESS($AK$3,$AK$4))),IF($B62=1,DSUM(#REF!,""&LEFT($C62,LEN($C62)-$A62)&"",$M$4:INDIRECT(ADDRESS($AK$3,$AK$4)))/DSUM(#REF!,""&$I$4&"",$M$4:INDIRECT(ADDRESS($AK$3,$AK$4))),DSUM(#REF!,""&LEFT($C62,LEN($C62)-$A62)&"",$M$4:INDIRECT(ADDRESS($AK$3,$AK$4)))/DSUM(#REF!,""&$J$4&"",$M$4:INDIRECT(ADDRESS($AK$3,$AK$4)))))),""),"") ->  | G62: =IF($Z$1=32,IFERROR(IF(ISTEXT($B62)=TRUE,DSUM(#REF!,""&LEFT($C62,LEN($C62)-$A62)&"",$L$4:INDIRECT(ADDRESS($AK$3,$AK$4)))/DSUM(#REF!,""&$B62&"",$L$4:INDIRECT(ADDRESS($AK$3,$AK$4))),IF($B62=0,DAVERAGE(#REF!,""&LEFT($C62,LEN($C62)-$A62)&"",$L$4:INDIRECT(ADDRESS($AK$3,$AK$4))),IF($B62=1,DSUM(#REF!,""&LEFT($C62,LEN($C62)-$A62)&"",$L$4:INDIRECT(ADDRESS($AK$3,$AK$4)))/DSUM(#REF!,""&$I$4&"",$L$4:INDIRECT(ADDRESS($AK$3,$AK$4))),IF($B62=2,DSUM(#REF!,""&LEFT($C62,LEN($C62)-$A62)&"",$L$4:INDIRECT(ADDRESS($AK$3,$AK$4)))/DSUM(#REF!,""&$J$4&"",$L$4:INDIRECT(ADDRESS($AK$3,$AK$4))))))),""),"") -> 
B63: Antal producerede slagtesvin | C63: Årets resultat | D63: =IF($Z$1=32,IF(Choices!$G$1=2,Landsgennemsnit!O63,IF(Choices!$G$1=3,Landsgennemsnit!Q63,IF(Choices!$G$1=4,Landsgennemsnit!S63,IF(Choices!$G$1=5,Landsgennemsnit!U63,"")))),"") ->  | E63: =IF($Z$1=32,IF(Choices!$G$1=2,Landsgennemsnit!P63,IF(Choices!$G$1=3,Landsgennemsnit!R63,IF(Choices!$G$1=4,Landsgennemsnit!T63,IF(Choices!$G$1=5,Landsgennemsnit!V63,"")))),"") ->  | F63: =IF($Z$1=32,IFERROR(IF(ISTEXT($B63)=TRUE,DSUM(#REF!,""&LEFT($C63,LEN($C63)-$A63)&"",$M$4:INDIRECT(ADDRESS($AK$3,$AK$4)))/DSUM(#REF!,""&$B63&"",$M$4:INDIRECT(ADDRESS($AK$3,$AK$4))),IF($B63=0,DAVERAGE(#REF!,""&LEFT($C63,LEN($C63)-$A63)&"",$M$4:INDIRECT(ADDRESS($AK$3,$AK$4))),IF($B63=1,DSUM(#REF!,""&LEFT($C63,LEN($C63)-$A63)&"",$M$4:INDIRECT(ADDRESS($AK$3,$AK$4)))/DSUM(#REF!,""&$I$4&"",$M$4:INDIRECT(ADDRESS($AK$3,$AK$4))),DSUM(#REF!,""&LEFT($C63,LEN($C63)-$A63)&"",$M$4:INDIRECT(ADDRESS($AK$3,$AK$4)))/DSUM(#REF!,""&$J$4&"",$M$4:INDIRECT(ADDRESS($AK$3,$AK$4)))))),""),"") ->  | G63: =IF($Z$1=32,IFERROR(IF(ISTEXT($B63)=TRUE,DSUM(#REF!,""&LEFT($C63,LEN($C63)-$A63)&"",$L$4:INDIRECT(ADDRESS($AK$3,$AK$4)))/DSUM(#REF!,""&$B63&"",$L$4:INDIRECT(ADDRESS($AK$3,$AK$4))),IF($B63=0,DAVERAGE(#REF!,""&LEFT($C63,LEN($C63)-$A63)&"",$L$4:INDIRECT(ADDRESS($AK$3,$AK$4))),IF($B63=1,DSUM(#REF!,""&LEFT($C63,LEN($C63)-$A63)&"",$L$4:INDIRECT(ADDRESS($AK$3,$AK$4)))/DSUM(#REF!,""&$I$4&"",$L$4:INDIRECT(ADDRESS($AK$3,$AK$4))),IF($B63=2,DSUM(#REF!,""&LEFT($C63,LEN($C63)-$A63)&"",$L$4:INDIRECT(ADDRESS($AK$3,$AK$4)))/DSUM(#REF!,""&$J$4&"",$L$4:INDIRECT(ADDRESS($AK$3,$AK$4))))))),""),"") -> 
D64: =IF($Z$1=32,IF(Choices!$G$1=2,Landsgennemsnit!O64,IF(Choices!$G$1=3,Landsgennemsnit!Q64,IF(Choices!$G$1=4,Landsgennemsnit!S64,IF(Choices!$G$1=5,Landsgennemsnit!U64,"")))),"") ->  | E64: =IF($Z$1=32,IF(Choices!$G$1=2,Landsgennemsnit!P64,IF(Choices!$G$1=3,Landsgennemsnit!R64,IF(Choices!$G$1=4,Landsgennemsnit!T64,IF(Choices!$G$1=5,Landsgennemsnit!V64,"")))),"") ->  | F64: =IF($Z$1=32,IFERROR(IF(ISTEXT($B64)=TRUE,DSUM(#REF!,""&LEFT($C64,LEN($C64)-$A64)&"",$M$4:INDIRECT(ADDRESS($AK$3,$AK$4)))/DSUM(#REF!,""&$B64&"",$M$4:INDIRECT(ADDRESS($AK$3,$AK$4))),IF($B64=0,DAVERAGE(#REF!,""&LEFT($C64,LEN($C64)-$A64)&"",$M$4:INDIRECT(ADDRESS($AK$3,$AK$4))),IF($B64=1,DSUM(#REF!,""&LEFT($C64,LEN($C64)-$A64)&"",$M$4:INDIRECT(ADDRESS($AK$3,$AK$4)))/DSUM(#REF!,""&$I$4&"",$M$4:INDIRECT(ADDRESS($AK$3,$AK$4))),DSUM(#REF!,""&LEFT($C64,LEN($C64)-$A64)&"",$M$4:INDIRECT(ADDRESS($AK$3,$AK$4)))/DSUM(#REF!,""&$J$4&"",$M$4:INDIRECT(ADDRESS($AK$3,$AK$4)))))),""),"") ->  | G64: =IF($Z$1=32,IFERROR(IF(ISTEXT($B64)=TRUE,DSUM(#REF!,""&LEFT($C64,LEN($C64)-$A64)&"",$L$4:INDIRECT(ADDRESS($AK$3,$AK$4)))/DSUM(#REF!,""&$B64&"",$L$4:INDIRECT(ADDRESS($AK$3,$AK$4))),IF($B64=0,DAVERAGE(#REF!,""&LEFT($C64,LEN($C64)-$A64)&"",$L$4:INDIRECT(ADDRESS($AK$3,$AK$4))),IF($B64=1,DSUM(#REF!,""&LEFT($C64,LEN($C64)-$A64)&"",$L$4:INDIRECT(ADDRESS($AK$3,$AK$4)))/DSUM(#REF!,""&$I$4&"",$L$4:INDIRECT(ADDRESS($AK$3,$AK$4))),IF($B64=2,DSUM(#REF!,""&LEFT($C64,LEN($C64)-$A64)&"",$L$4:INDIRECT(ADDRESS($AK$3,$AK$4)))/DSUM(#REF!,""&$J$4&"",$L$4:INDIRECT(ADDRESS($AK$3,$AK$4))))))),""),"") -> 
D65: =IF($Z$1=32,IF(Choices!$G$1=2,Landsgennemsnit!O65,IF(Choices!$G$1=3,Landsgennemsnit!Q65,IF(Choices!$G$1=4,Landsgennemsnit!S65,IF(Choices!$G$1=5,Landsgennemsnit!U65,"")))),"") ->  | E65: =IF($Z$1=32,IF(Choices!$G$1=2,Landsgennemsnit!P65,IF(Choices!$G$1=3,Landsgennemsnit!R65,IF(Choices!$G$1=4,Landsgennemsnit!T65,IF(Choices!$G$1=5,Landsgennemsnit!V65,"")))),"") ->  | F65: =IF($Z$1=32,IFERROR(IF(ISTEXT($B65)=TRUE,DSUM(#REF!,""&LEFT($C65,LEN($C65)-$A65)&"",$M$4:INDIRECT(ADDRESS($AK$3,$AK$4)))/DSUM(#REF!,""&$B65&"",$M$4:INDIRECT(ADDRESS($AK$3,$AK$4))),IF($B65=0,DAVERAGE(#REF!,""&LEFT($C65,LEN($C65)-$A65)&"",$M$4:INDIRECT(ADDRESS($AK$3,$AK$4))),IF($B65=1,DSUM(#REF!,""&LEFT($C65,LEN($C65)-$A65)&"",$M$4:INDIRECT(ADDRESS($AK$3,$AK$4)))/DSUM(#REF!,""&$I$4&"",$M$4:INDIRECT(ADDRESS($AK$3,$AK$4))),DSUM(#REF!,""&LEFT($C65,LEN($C65)-$A65)&"",$M$4:INDIRECT(ADDRESS($AK$3,$AK$4)))/DSUM(#REF!,""&$J$4&"",$M$4:INDIRECT(ADDRESS($AK$3,$AK$4)))))),""),"") ->  | G65: =IF($Z$1=32,IFERROR(IF(ISTEXT($B65)=TRUE,DSUM(#REF!,""&LEFT($C65,LEN($C65)-$A65)&"",$L$4:INDIRECT(ADDRESS($AK$3,$AK$4)))/DSUM(#REF!,""&$B65&"",$L$4:INDIRECT(ADDRESS($AK$3,$AK$4))),IF($B65=0,DAVERAGE(#REF!,""&LEFT($C65,LEN($C65)-$A65)&"",$L$4:INDIRECT(ADDRESS($AK$3,$AK$4))),IF($B65=1,DSUM(#REF!,""&LEFT($C65,LEN($C65)-$A65)&"",$L$4:INDIRECT(ADDRESS($AK$3,$AK$4)))/DSUM(#REF!,""&$I$4&"",$L$4:INDIRECT(ADDRESS($AK$3,$AK$4))),IF($B65=2,DSUM(#REF!,""&LEFT($C65,LEN($C65)-$A65)&"",$L$4:INDIRECT(ADDRESS($AK$3,$AK$4)))/DSUM(#REF!,""&$J$4&"",$L$4:INDIRECT(ADDRESS($AK$3,$AK$4))))))),""),"") -> 
D66: =IF($Z$1=32,IF(Choices!$G$1=2,Landsgennemsnit!O66,IF(Choices!$G$1=3,Landsgennemsnit!Q66,IF(Choices!$G$1=4,Landsgennemsnit!S66,IF(Choices!$G$1=5,Landsgennemsnit!U66,"")))),"") ->  | E66: =IF($Z$1=32,IF(Choices!$G$1=2,Landsgennemsnit!P66,IF(Choices!$G$1=3,Landsgennemsnit!R66,IF(Choices!$G$1=4,Landsgennemsnit!T66,IF(Choices!$G$1=5,Landsgennemsnit!V66,"")))),"") ->  | F66: =IF($Z$1=32,IFERROR(IF(ISTEXT($B66)=TRUE,DSUM(#REF!,""&LEFT($C66,LEN($C66)-$A66)&"",$M$4:INDIRECT(ADDRESS($AK$3,$AK$4)))/DSUM(#REF!,""&$B66&"",$M$4:INDIRECT(ADDRESS($AK$3,$AK$4))),IF($B66=0,DAVERAGE(#REF!,""&LEFT($C66,LEN($C66)-$A66)&"",$M$4:INDIRECT(ADDRESS($AK$3,$AK$4))),IF($B66=1,DSUM(#REF!,""&LEFT($C66,LEN($C66)-$A66)&"",$M$4:INDIRECT(ADDRESS($AK$3,$AK$4)))/DSUM(#REF!,""&$I$4&"",$M$4:INDIRECT(ADDRESS($AK$3,$AK$4))),DSUM(#REF!,""&LEFT($C66,LEN($C66)-$A66)&"",$M$4:INDIRECT(ADDRESS($AK$3,$AK$4)))/DSUM(#REF!,""&$J$4&"",$M$4:INDIRECT(ADDRESS($AK$3,$AK$4)))))),""),"") ->  | G66: =IF($Z$1=32,IFERROR(IF(ISTEXT($B66)=TRUE,DSUM(#REF!,""&LEFT($C66,LEN($C66)-$A66)&"",$L$4:INDIRECT(ADDRESS($AK$3,$AK$4)))/DSUM(#REF!,""&$B66&"",$L$4:INDIRECT(ADDRESS($AK$3,$AK$4))),IF($B66=0,DAVERAGE(#REF!,""&LEFT($C66,LEN($C66)-$A66)&"",$L$4:INDIRECT(ADDRESS($AK$3,$AK$4))),IF($B66=1,DSUM(#REF!,""&LEFT($C66,LEN($C66)-$A66)&"",$L$4:INDIRECT(ADDRESS($AK$3,$AK$4)))/DSUM(#REF!,""&$I$4&"",$L$4:INDIRECT(ADDRESS($AK$3,$AK$4))),IF($B66=2,DSUM(#REF!,""&LEFT($C66,LEN($C66)-$A66)&"",$L$4:INDIRECT(ADDRESS($AK$3,$AK$4)))/DSUM(#REF!,""&$J$4&"",$L$4:INDIRECT(ADDRESS($AK$3,$AK$4))))))),""),"") -> 
D67: =IF($Z$1=32,IF(Choices!$G$1=2,Landsgennemsnit!O67,IF(Choices!$G$1=3,Landsgennemsnit!Q67,IF(Choices!$G$1=4,Landsgennemsnit!S67,IF(Choices!$G$1=5,Landsgennemsnit!U67,"")))),"") ->  | E67: =IF($Z$1=32,IF(Choices!$G$1=2,Landsgennemsnit!P67,IF(Choices!$G$1=3,Landsgennemsnit!R67,IF(Choices!$G$1=4,Landsgennemsnit!T67,IF(Choices!$G$1=5,Landsgennemsnit!V67,"")))),"") ->  | F67: =IF($Z$1=32,IFERROR(IF(ISTEXT($B67)=TRUE,DSUM(#REF!,""&LEFT($C67,LEN($C67)-$A67)&"",$M$4:INDIRECT(ADDRESS($AK$3,$AK$4)))/DSUM(#REF!,""&$B67&"",$M$4:INDIRECT(ADDRESS($AK$3,$AK$4))),IF($B67=0,DAVERAGE(#REF!,""&LEFT($C67,LEN($C67)-$A67)&"",$M$4:INDIRECT(ADDRESS($AK$3,$AK$4))),IF($B67=1,DSUM(#REF!,""&LEFT($C67,LEN($C67)-$A67)&"",$M$4:INDIRECT(ADDRESS($AK$3,$AK$4)))/DSUM(#REF!,""&$I$4&"",$M$4:INDIRECT(ADDRESS($AK$3,$AK$4))),DSUM(#REF!,""&LEFT($C67,LEN($C67)-$A67)&"",$M$4:INDIRECT(ADDRESS($AK$3,$AK$4)))/DSUM(#REF!,""&$J$4&"",$M$4:INDIRECT(ADDRESS($AK$3,$AK$4)))))),""),"") ->  | G67: =IF($Z$1=32,IFERROR(IF(ISTEXT($B67)=TRUE,DSUM(#REF!,""&LEFT($C67,LEN($C67)-$A67)&"",$L$4:INDIRECT(ADDRESS($AK$3,$AK$4)))/DSUM(#REF!,""&$B67&"",$L$4:INDIRECT(ADDRESS($AK$3,$AK$4))),IF($B67=0,DAVERAGE(#REF!,""&LEFT($C67,LEN($C67)-$A67)&"",$L$4:INDIRECT(ADDRESS($AK$3,$AK$4))),IF($B67=1,DSUM(#REF!,""&LEFT($C67,LEN($C67)-$A67)&"",$L$4:INDIRECT(ADDRESS($AK$3,$AK$4)))/DSUM(#REF!,""&$I$4&"",$L$4:INDIRECT(ADDRESS($AK$3,$AK$4))),IF($B67=2,DSUM(#REF!,""&LEFT($C67,LEN($C67)-$A67)&"",$L$4:INDIRECT(ADDRESS($AK$3,$AK$4)))/DSUM(#REF!,""&$J$4&"",$L$4:INDIRECT(ADDRESS($AK$3,$AK$4))))))),""),"") -> 
D68: =IF($Z$1=32,IF(Choices!$G$1=2,Landsgennemsnit!O68,IF(Choices!$G$1=3,Landsgennemsnit!Q68,IF(Choices!$G$1=4,Landsgennemsnit!S68,IF(Choices!$G$1=5,Landsgennemsnit!U68,"")))),"") ->  | E68: =IF($Z$1=32,IF(Choices!$G$1=2,Landsgennemsnit!P68,IF(Choices!$G$1=3,Landsgennemsnit!R68,IF(Choices!$G$1=4,Landsgennemsnit!T68,IF(Choices!$G$1=5,Landsgennemsnit!V68,"")))),"") ->  | F68: =IF($Z$1=32,IFERROR(IF(ISTEXT($B68)=TRUE,DSUM(#REF!,""&LEFT($C68,LEN($C68)-$A68)&"",$M$4:INDIRECT(ADDRESS($AK$3,$AK$4)))/DSUM(#REF!,""&$B68&"",$M$4:INDIRECT(ADDRESS($AK$3,$AK$4))),IF($B68=0,DAVERAGE(#REF!,""&LEFT($C68,LEN($C68)-$A68)&"",$M$4:INDIRECT(ADDRESS($AK$3,$AK$4))),IF($B68=1,DSUM(#REF!,""&LEFT($C68,LEN($C68)-$A68)&"",$M$4:INDIRECT(ADDRESS($AK$3,$AK$4)))/DSUM(#REF!,""&$I$4&"",$M$4:INDIRECT(ADDRESS($AK$3,$AK$4))),DSUM(#REF!,""&LEFT($C68,LEN($C68)-$A68)&"",$M$4:INDIRECT(ADDRESS($AK$3,$AK$4)))/DSUM(#REF!,""&$J$4&"",$M$4:INDIRECT(ADDRESS($AK$3,$AK$4)))))),""),"") ->  | G68: =IF($Z$1=32,IFERROR(IF(ISTEXT($B68)=TRUE,DSUM(#REF!,""&LEFT($C68,LEN($C68)-$A68)&"",$L$4:INDIRECT(ADDRESS($AK$3,$AK$4)))/DSUM(#REF!,""&$B68&"",$L$4:INDIRECT(ADDRESS($AK$3,$AK$4))),IF($B68=0,DAVERAGE(#REF!,""&LEFT($C68,LEN($C68)-$A68)&"",$L$4:INDIRECT(ADDRESS($AK$3,$AK$4))),IF($B68=1,DSUM(#REF!,""&LEFT($C68,LEN($C68)-$A68)&"",$L$4:INDIRECT(ADDRESS($AK$3,$AK$4)))/DSUM(#REF!,""&$I$4&"",$L$4:INDIRECT(ADDRESS($AK$3,$AK$4))),IF($B68=2,DSUM(#REF!,""&LEFT($C68,LEN($C68)-$A68)&"",$L$4:INDIRECT(ADDRESS($AK$3,$AK$4)))/DSUM(#REF!,""&$J$4&"",$L$4:INDIRECT(ADDRESS($AK$3,$AK$4))))))),""),"") -> 
D69: =IF($Z$1=32,IF(Choices!$G$1=2,Landsgennemsnit!O69,IF(Choices!$G$1=3,Landsgennemsnit!Q69,IF(Choices!$G$1=4,Landsgennemsnit!S69,IF(Choices!$G$1=5,Landsgennemsnit!U69,"")))),"") ->  | E69: =IF($Z$1=32,IF(Choices!$G$1=2,Landsgennemsnit!P69,IF(Choices!$G$1=3,Landsgennemsnit!R69,IF(Choices!$G$1=4,Landsgennemsnit!T69,IF(Choices!$G$1=5,Landsgennemsnit!V69,"")))),"") ->  | F69: =IF($Z$1=32,IFERROR(IF(ISTEXT($B69)=TRUE,DSUM(#REF!,""&LEFT($C69,LEN($C69)-$A69)&"",$M$4:INDIRECT(ADDRESS($AK$3,$AK$4)))/DSUM(#REF!,""&$B69&"",$M$4:INDIRECT(ADDRESS($AK$3,$AK$4))),IF($B69=0,DAVERAGE(#REF!,""&LEFT($C69,LEN($C69)-$A69)&"",$M$4:INDIRECT(ADDRESS($AK$3,$AK$4))),IF($B69=1,DSUM(#REF!,""&LEFT($C69,LEN($C69)-$A69)&"",$M$4:INDIRECT(ADDRESS($AK$3,$AK$4)))/DSUM(#REF!,""&$I$4&"",$M$4:INDIRECT(ADDRESS($AK$3,$AK$4))),DSUM(#REF!,""&LEFT($C69,LEN($C69)-$A69)&"",$M$4:INDIRECT(ADDRESS($AK$3,$AK$4)))/DSUM(#REF!,""&$J$4&"",$M$4:INDIRECT(ADDRESS($AK$3,$AK$4)))))),""),"") ->  | G69: =IF($Z$1=32,IFERROR(IF(ISTEXT($B69)=TRUE,DSUM(#REF!,""&LEFT($C69,LEN($C69)-$A69)&"",$L$4:INDIRECT(ADDRESS($AK$3,$AK$4)))/DSUM(#REF!,""&$B69&"",$L$4:INDIRECT(ADDRESS($AK$3,$AK$4))),IF($B69=0,DAVERAGE(#REF!,""&LEFT($C69,LEN($C69)-$A69)&"",$L$4:INDIRECT(ADDRESS($AK$3,$AK$4))),IF($B69=1,DSUM(#REF!,""&LEFT($C69,LEN($C69)-$A69)&"",$L$4:INDIRECT(ADDRESS($AK$3,$AK$4)))/DSUM(#REF!,""&$I$4&"",$L$4:INDIRECT(ADDRESS($AK$3,$AK$4))),IF($B69=2,DSUM(#REF!,""&LEFT($C69,LEN($C69)-$A69)&"",$L$4:INDIRECT(ADDRESS($AK$3,$AK$4)))/DSUM(#REF!,""&$J$4&"",$L$4:INDIRECT(ADDRESS($AK$3,$AK$4))))))),""),"") -> 
D70: =IF($Z$1=32,IF(Choices!$G$1=2,Landsgennemsnit!O70,IF(Choices!$G$1=3,Landsgennemsnit!Q70,IF(Choices!$G$1=4,Landsgennemsnit!S70,IF(Choices!$G$1=5,Landsgennemsnit!U70,"")))),"") ->  | E70: =IF($Z$1=32,IF(Choices!$G$1=2,Landsgennemsnit!P70,IF(Choices!$G$1=3,Landsgennemsnit!R70,IF(Choices!$G$1=4,Landsgennemsnit!T70,IF(Choices!$G$1=5,Landsgennemsnit!V70,"")))),"") ->  | F70: =IF($Z$1=32,IFERROR(IF(ISTEXT($B70)=TRUE,DSUM(#REF!,""&LEFT($C70,LEN($C70)-$A70)&"",$M$4:INDIRECT(ADDRESS($AK$3,$AK$4)))/DSUM(#REF!,""&$B70&"",$M$4:INDIRECT(ADDRESS($AK$3,$AK$4))),IF($B70=0,DAVERAGE(#REF!,""&LEFT($C70,LEN($C70)-$A70)&"",$M$4:INDIRECT(ADDRESS($AK$3,$AK$4))),IF($B70=1,DSUM(#REF!,""&LEFT($C70,LEN($C70)-$A70)&"",$M$4:INDIRECT(ADDRESS($AK$3,$AK$4)))/DSUM(#REF!,""&$I$4&"",$M$4:INDIRECT(ADDRESS($AK$3,$AK$4))),DSUM(#REF!,""&LEFT($C70,LEN($C70)-$A70)&"",$M$4:INDIRECT(ADDRESS($AK$3,$AK$4)))/DSUM(#REF!,""&$J$4&"",$M$4:INDIRECT(ADDRESS($AK$3,$AK$4)))))),""),"") ->  | G70: =IF($Z$1=32,IFERROR(IF(ISTEXT($B70)=TRUE,DSUM(#REF!,""&LEFT($C70,LEN($C70)-$A70)&"",$L$4:INDIRECT(ADDRESS($AK$3,$AK$4)))/DSUM(#REF!,""&$B70&"",$L$4:INDIRECT(ADDRESS($AK$3,$AK$4))),IF($B70=0,DAVERAGE(#REF!,""&LEFT($C70,LEN($C70)-$A70)&"",$L$4:INDIRECT(ADDRESS($AK$3,$AK$4))),IF($B70=1,DSUM(#REF!,""&LEFT($C70,LEN($C70)-$A70)&"",$L$4:INDIRECT(ADDRESS($AK$3,$AK$4)))/DSUM(#REF!,""&$I$4&"",$L$4:INDIRECT(ADDRESS($AK$3,$AK$4))),IF($B70=2,DSUM(#REF!,""&LEFT($C70,LEN($C70)-$A70)&"",$L$4:INDIRECT(ADDRESS($AK$3,$AK$4)))/DSUM(#REF!,""&$J$4&"",$L$4:INDIRECT(ADDRESS($AK$3,$AK$4))))))),""),"") -> 
D71: =IF($Z$1=32,IF(Choices!$G$1=2,Landsgennemsnit!O71,IF(Choices!$G$1=3,Landsgennemsnit!Q71,IF(Choices!$G$1=4,Landsgennemsnit!S71,IF(Choices!$G$1=5,Landsgennemsnit!U71,"")))),"") ->  | E71: =IF($Z$1=32,IF(Choices!$G$1=2,Landsgennemsnit!P71,IF(Choices!$G$1=3,Landsgennemsnit!R71,IF(Choices!$G$1=4,Landsgennemsnit!T71,IF(Choices!$G$1=5,Landsgennemsnit!V71,"")))),"") ->  | F71: =IF($Z$1=32,IFERROR(IF(ISTEXT($B71)=TRUE,DSUM(#REF!,""&LEFT($C71,LEN($C71)-$A71)&"",$M$4:INDIRECT(ADDRESS($AK$3,$AK$4)))/DSUM(#REF!,""&$B71&"",$M$4:INDIRECT(ADDRESS($AK$3,$AK$4))),IF($B71=0,DAVERAGE(#REF!,""&LEFT($C71,LEN($C71)-$A71)&"",$M$4:INDIRECT(ADDRESS($AK$3,$AK$4))),IF($B71=1,DSUM(#REF!,""&LEFT($C71,LEN($C71)-$A71)&"",$M$4:INDIRECT(ADDRESS($AK$3,$AK$4)))/DSUM(#REF!,""&$I$4&"",$M$4:INDIRECT(ADDRESS($AK$3,$AK$4))),DSUM(#REF!,""&LEFT($C71,LEN($C71)-$A71)&"",$M$4:INDIRECT(ADDRESS($AK$3,$AK$4)))/DSUM(#REF!,""&$J$4&"",$M$4:INDIRECT(ADDRESS($AK$3,$AK$4)))))),""),"") ->  | G71: =IF($Z$1=32,IFERROR(IF(ISTEXT($B71)=TRUE,DSUM(#REF!,""&LEFT($C71,LEN($C71)-$A71)&"",$L$4:INDIRECT(ADDRESS($AK$3,$AK$4)))/DSUM(#REF!,""&$B71&"",$L$4:INDIRECT(ADDRESS($AK$3,$AK$4))),IF($B71=0,DAVERAGE(#REF!,""&LEFT($C71,LEN($C71)-$A71)&"",$L$4:INDIRECT(ADDRESS($AK$3,$AK$4))),IF($B71=1,DSUM(#REF!,""&LEFT($C71,LEN($C71)-$A71)&"",$L$4:INDIRECT(ADDRESS($AK$3,$AK$4)))/DSUM(#REF!,""&$I$4&"",$L$4:INDIRECT(ADDRESS($AK$3,$AK$4))),IF($B71=2,DSUM(#REF!,""&LEFT($C71,LEN($C71)-$A71)&"",$L$4:INDIRECT(ADDRESS($AK$3,$AK$4)))/DSUM(#REF!,""&$J$4&"",$L$4:INDIRECT(ADDRESS($AK$3,$AK$4))))))),""),"") -> 
D72: =IF($Z$1=32,IF(Choices!$G$1=2,Landsgennemsnit!O72,IF(Choices!$G$1=3,Landsgennemsnit!Q72,IF(Choices!$G$1=4,Landsgennemsnit!S72,IF(Choices!$G$1=5,Landsgennemsnit!U72,"")))),"") ->  | E72: =IF($Z$1=32,IF(Choices!$G$1=2,Landsgennemsnit!P72,IF(Choices!$G$1=3,Landsgennemsnit!R72,IF(Choices!$G$1=4,Landsgennemsnit!T72,IF(Choices!$G$1=5,Landsgennemsnit!V72,"")))),"") ->  | F72: =IF($Z$1=32,IFERROR(IF(ISTEXT($B72)=TRUE,DSUM(#REF!,""&LEFT($C72,LEN($C72)-$A72)&"",$M$4:INDIRECT(ADDRESS($AK$3,$AK$4)))/DSUM(#REF!,""&$B72&"",$M$4:INDIRECT(ADDRESS($AK$3,$AK$4))),IF($B72=0,DAVERAGE(#REF!,""&LEFT($C72,LEN($C72)-$A72)&"",$M$4:INDIRECT(ADDRESS($AK$3,$AK$4))),IF($B72=1,DSUM(#REF!,""&LEFT($C72,LEN($C72)-$A72)&"",$M$4:INDIRECT(ADDRESS($AK$3,$AK$4)))/DSUM(#REF!,""&$I$4&"",$M$4:INDIRECT(ADDRESS($AK$3,$AK$4))),DSUM(#REF!,""&LEFT($C72,LEN($C72)-$A72)&"",$M$4:INDIRECT(ADDRESS($AK$3,$AK$4)))/DSUM(#REF!,""&$J$4&"",$M$4:INDIRECT(ADDRESS($AK$3,$AK$4)))))),""),"") ->  | G72: =IF($Z$1=32,IFERROR(IF(ISTEXT($B72)=TRUE,DSUM(#REF!,""&LEFT($C72,LEN($C72)-$A72)&"",$L$4:INDIRECT(ADDRESS($AK$3,$AK$4)))/DSUM(#REF!,""&$B72&"",$L$4:INDIRECT(ADDRESS($AK$3,$AK$4))),IF($B72=0,DAVERAGE(#REF!,""&LEFT($C72,LEN($C72)-$A72)&"",$L$4:INDIRECT(ADDRESS($AK$3,$AK$4))),IF($B72=1,DSUM(#REF!,""&LEFT($C72,LEN($C72)-$A72)&"",$L$4:INDIRECT(ADDRESS($AK$3,$AK$4)))/DSUM(#REF!,""&$I$4&"",$L$4:INDIRECT(ADDRESS($AK$3,$AK$4))),IF($B72=2,DSUM(#REF!,""&LEFT($C72,LEN($C72)-$A72)&"",$L$4:INDIRECT(ADDRESS($AK$3,$AK$4)))/DSUM(#REF!,""&$J$4&"",$L$4:INDIRECT(ADDRESS($AK$3,$AK$4))))))),""),"") -> 
D73: =IF($Z$1=32,IF(Choices!$G$1=2,Landsgennemsnit!O73,IF(Choices!$G$1=3,Landsgennemsnit!Q73,IF(Choices!$G$1=4,Landsgennemsnit!S73,IF(Choices!$G$1=5,Landsgennemsnit!U73,"")))),"") ->  | E73: =IF($Z$1=32,IF(Choices!$G$1=2,Landsgennemsnit!P73,IF(Choices!$G$1=3,Landsgennemsnit!R73,IF(Choices!$G$1=4,Landsgennemsnit!T73,IF(Choices!$G$1=5,Landsgennemsnit!V73,"")))),"") ->  | F73: =IF($Z$1=32,IFERROR(IF(ISTEXT($B73)=TRUE,DSUM(#REF!,""&LEFT($C73,LEN($C73)-$A73)&"",$M$4:INDIRECT(ADDRESS($AK$3,$AK$4)))/DSUM(#REF!,""&$B73&"",$M$4:INDIRECT(ADDRESS($AK$3,$AK$4))),IF($B73=0,DAVERAGE(#REF!,""&LEFT($C73,LEN($C73)-$A73)&"",$M$4:INDIRECT(ADDRESS($AK$3,$AK$4))),IF($B73=1,DSUM(#REF!,""&LEFT($C73,LEN($C73)-$A73)&"",$M$4:INDIRECT(ADDRESS($AK$3,$AK$4)))/DSUM(#REF!,""&$I$4&"",$M$4:INDIRECT(ADDRESS($AK$3,$AK$4))),DSUM(#REF!,""&LEFT($C73,LEN($C73)-$A73)&"",$M$4:INDIRECT(ADDRESS($AK$3,$AK$4)))/DSUM(#REF!,""&$J$4&"",$M$4:INDIRECT(ADDRESS($AK$3,$AK$4)))))),""),"") ->  | G73: =IF($Z$1=32,IFERROR(IF(ISTEXT($B73)=TRUE,DSUM(#REF!,""&LEFT($C73,LEN($C73)-$A73)&"",$L$4:INDIRECT(ADDRESS($AK$3,$AK$4)))/DSUM(#REF!,""&$B73&"",$L$4:INDIRECT(ADDRESS($AK$3,$AK$4))),IF($B73=0,DAVERAGE(#REF!,""&LEFT($C73,LEN($C73)-$A73)&"",$L$4:INDIRECT(ADDRESS($AK$3,$AK$4))),IF($B73=1,DSUM(#REF!,""&LEFT($C73,LEN($C73)-$A73)&"",$L$4:INDIRECT(ADDRESS($AK$3,$AK$4)))/DSUM(#REF!,""&$I$4&"",$L$4:INDIRECT(ADDRESS($AK$3,$AK$4))),IF($B73=2,DSUM(#REF!,""&LEFT($C73,LEN($C73)-$A73)&"",$L$4:INDIRECT(ADDRESS($AK$3,$AK$4)))/DSUM(#REF!,""&$J$4&"",$L$4:INDIRECT(ADDRESS($AK$3,$AK$4))))))),""),"") -> 
D74: =IF($Z$1=32,IF(Choices!$G$1=2,Landsgennemsnit!O74,IF(Choices!$G$1=3,Landsgennemsnit!Q74,IF(Choices!$G$1=4,Landsgennemsnit!S74,IF(Choices!$G$1=5,Landsgennemsnit!U74,"")))),"") ->  | E74: =IF($Z$1=32,IF(Choices!$G$1=2,Landsgennemsnit!P74,IF(Choices!$G$1=3,Landsgennemsnit!R74,IF(Choices!$G$1=4,Landsgennemsnit!T74,IF(Choices!$G$1=5,Landsgennemsnit!V74,"")))),"") ->  | F74: =IF($Z$1=32,IFERROR(IF(ISTEXT($B74)=TRUE,DSUM(#REF!,""&LEFT($C74,LEN($C74)-$A74)&"",$M$4:INDIRECT(ADDRESS($AK$3,$AK$4)))/DSUM(#REF!,""&$B74&"",$M$4:INDIRECT(ADDRESS($AK$3,$AK$4))),IF($B74=0,DAVERAGE(#REF!,""&LEFT($C74,LEN($C74)-$A74)&"",$M$4:INDIRECT(ADDRESS($AK$3,$AK$4))),IF($B74=1,DSUM(#REF!,""&LEFT($C74,LEN($C74)-$A74)&"",$M$4:INDIRECT(ADDRESS($AK$3,$AK$4)))/DSUM(#REF!,""&$I$4&"",$M$4:INDIRECT(ADDRESS($AK$3,$AK$4))),DSUM(#REF!,""&LEFT($C74,LEN($C74)-$A74)&"",$M$4:INDIRECT(ADDRESS($AK$3,$AK$4)))/DSUM(#REF!,""&$J$4&"",$M$4:INDIRECT(ADDRESS($AK$3,$AK$4)))))),""),"") ->  | G74: =IF($Z$1=32,IFERROR(IF(ISTEXT($B74)=TRUE,DSUM(#REF!,""&LEFT($C74,LEN($C74)-$A74)&"",$L$4:INDIRECT(ADDRESS($AK$3,$AK$4)))/DSUM(#REF!,""&$B74&"",$L$4:INDIRECT(ADDRESS($AK$3,$AK$4))),IF($B74=0,DAVERAGE(#REF!,""&LEFT($C74,LEN($C74)-$A74)&"",$L$4:INDIRECT(ADDRESS($AK$3,$AK$4))),IF($B74=1,DSUM(#REF!,""&LEFT($C74,LEN($C74)-$A74)&"",$L$4:INDIRECT(ADDRESS($AK$3,$AK$4)))/DSUM(#REF!,""&$I$4&"",$L$4:INDIRECT(ADDRESS($AK$3,$AK$4))),IF($B74=2,DSUM(#REF!,""&LEFT($C74,LEN($C74)-$A74)&"",$L$4:INDIRECT(ADDRESS($AK$3,$AK$4)))/DSUM(#REF!,""&$J$4&"",$L$4:INDIRECT(ADDRESS($AK$3,$AK$4))))))),""),"") -> 
D75: =IF($Z$1=32,IF(Choices!$G$1=2,Landsgennemsnit!O75,IF(Choices!$G$1=3,Landsgennemsnit!Q75,IF(Choices!$G$1=4,Landsgennemsnit!S75,IF(Choices!$G$1=5,Landsgennemsnit!U75,"")))),"") ->  | E75: =IF($Z$1=32,IF(Choices!$G$1=2,Landsgennemsnit!P75,IF(Choices!$G$1=3,Landsgennemsnit!R75,IF(Choices!$G$1=4,Landsgennemsnit!T75,IF(Choices!$G$1=5,Landsgennemsnit!V75,"")))),"") ->  | F75: =IF($Z$1=32,IFERROR(IF(ISTEXT($B75)=TRUE,DSUM(#REF!,""&LEFT($C75,LEN($C75)-$A75)&"",$M$4:INDIRECT(ADDRESS($AK$3,$AK$4)))/DSUM(#REF!,""&$B75&"",$M$4:INDIRECT(ADDRESS($AK$3,$AK$4))),IF($B75=0,DAVERAGE(#REF!,""&LEFT($C75,LEN($C75)-$A75)&"",$M$4:INDIRECT(ADDRESS($AK$3,$AK$4))),IF($B75=1,DSUM(#REF!,""&LEFT($C75,LEN($C75)-$A75)&"",$M$4:INDIRECT(ADDRESS($AK$3,$AK$4)))/DSUM(#REF!,""&$I$4&"",$M$4:INDIRECT(ADDRESS($AK$3,$AK$4))),DSUM(#REF!,""&LEFT($C75,LEN($C75)-$A75)&"",$M$4:INDIRECT(ADDRESS($AK$3,$AK$4)))/DSUM(#REF!,""&$J$4&"",$M$4:INDIRECT(ADDRESS($AK$3,$AK$4)))))),""),"") ->  | G75: =IF($Z$1=32,IFERROR(IF(ISTEXT($B75)=TRUE,DSUM(#REF!,""&LEFT($C75,LEN($C75)-$A75)&"",$L$4:INDIRECT(ADDRESS($AK$3,$AK$4)))/DSUM(#REF!,""&$B75&"",$L$4:INDIRECT(ADDRESS($AK$3,$AK$4))),IF($B75=0,DAVERAGE(#REF!,""&LEFT($C75,LEN($C75)-$A75)&"",$L$4:INDIRECT(ADDRESS($AK$3,$AK$4))),IF($B75=1,DSUM(#REF!,""&LEFT($C75,LEN($C75)-$A75)&"",$L$4:INDIRECT(ADDRESS($AK$3,$AK$4)))/DSUM(#REF!,""&$I$4&"",$L$4:INDIRECT(ADDRESS($AK$3,$AK$4))),IF($B75=2,DSUM(#REF!,""&LEFT($C75,LEN($C75)-$A75)&"",$L$4:INDIRECT(ADDRESS($AK$3,$AK$4)))/DSUM(#REF!,""&$J$4&"",$L$4:INDIRECT(ADDRESS($AK$3,$AK$4))))))),""),"") -> 
D76: =IF($Z$1=32,IF(Choices!$G$1=2,Landsgennemsnit!O76,IF(Choices!$G$1=3,Landsgennemsnit!Q76,IF(Choices!$G$1=4,Landsgennemsnit!S76,IF(Choices!$G$1=5,Landsgennemsnit!U76,"")))),"") ->  | E76: =IF($Z$1=32,IF(Choices!$G$1=2,Landsgennemsnit!P76,IF(Choices!$G$1=3,Landsgennemsnit!R76,IF(Choices!$G$1=4,Landsgennemsnit!T76,IF(Choices!$G$1=5,Landsgennemsnit!V76,"")))),"") ->  | F76: =IF($Z$1=32,IFERROR(IF(ISTEXT($B76)=TRUE,DSUM(#REF!,""&LEFT($C76,LEN($C76)-$A76)&"",$M$4:INDIRECT(ADDRESS($AK$3,$AK$4)))/DSUM(#REF!,""&$B76&"",$M$4:INDIRECT(ADDRESS($AK$3,$AK$4))),IF($B76=0,DAVERAGE(#REF!,""&LEFT($C76,LEN($C76)-$A76)&"",$M$4:INDIRECT(ADDRESS($AK$3,$AK$4))),IF($B76=1,DSUM(#REF!,""&LEFT($C76,LEN($C76)-$A76)&"",$M$4:INDIRECT(ADDRESS($AK$3,$AK$4)))/DSUM(#REF!,""&$I$4&"",$M$4:INDIRECT(ADDRESS($AK$3,$AK$4))),DSUM(#REF!,""&LEFT($C76,LEN($C76)-$A76)&"",$M$4:INDIRECT(ADDRESS($AK$3,$AK$4)))/DSUM(#REF!,""&$J$4&"",$M$4:INDIRECT(ADDRESS($AK$3,$AK$4)))))),""),"") ->  | G76: =IF($Z$1=32,IFERROR(IF(ISTEXT($B76)=TRUE,DSUM(#REF!,""&LEFT($C76,LEN($C76)-$A76)&"",$L$4:INDIRECT(ADDRESS($AK$3,$AK$4)))/DSUM(#REF!,""&$B76&"",$L$4:INDIRECT(ADDRESS($AK$3,$AK$4))),IF($B76=0,DAVERAGE(#REF!,""&LEFT($C76,LEN($C76)-$A76)&"",$L$4:INDIRECT(ADDRESS($AK$3,$AK$4))),IF($B76=1,DSUM(#REF!,""&LEFT($C76,LEN($C76)-$A76)&"",$L$4:INDIRECT(ADDRESS($AK$3,$AK$4)))/DSUM(#REF!,""&$I$4&"",$L$4:INDIRECT(ADDRESS($AK$3,$AK$4))),IF($B76=2,DSUM(#REF!,""&LEFT($C76,LEN($C76)-$A76)&"",$L$4:INDIRECT(ADDRESS($AK$3,$AK$4)))/DSUM(#REF!,""&$J$4&"",$L$4:INDIRECT(ADDRESS($AK$3,$AK$4))))))),""),"") -> 
D77: =IF($Z$1=32,IF(Choices!$G$1=2,Landsgennemsnit!O77,IF(Choices!$G$1=3,Landsgennemsnit!Q77,IF(Choices!$G$1=4,Landsgennemsnit!S77,IF(Choices!$G$1=5,Landsgennemsnit!U77,"")))),"") ->  | E77: =IF($Z$1=32,IF(Choices!$G$1=2,Landsgennemsnit!P77,IF(Choices!$G$1=3,Landsgennemsnit!R77,IF(Choices!$G$1=4,Landsgennemsnit!T77,IF(Choices!$G$1=5,Landsgennemsnit!V77,"")))),"") ->  | F77: =IF($Z$1=32,IFERROR(IF(ISTEXT($B77)=TRUE,DSUM(#REF!,""&LEFT($C77,LEN($C77)-$A77)&"",$M$4:INDIRECT(ADDRESS($AK$3,$AK$4)))/DSUM(#REF!,""&$B77&"",$M$4:INDIRECT(ADDRESS($AK$3,$AK$4))),IF($B77=0,DAVERAGE(#REF!,""&LEFT($C77,LEN($C77)-$A77)&"",$M$4:INDIRECT(ADDRESS($AK$3,$AK$4))),IF($B77=1,DSUM(#REF!,""&LEFT($C77,LEN($C77)-$A77)&"",$M$4:INDIRECT(ADDRESS($AK$3,$AK$4)))/DSUM(#REF!,""&$I$4&"",$M$4:INDIRECT(ADDRESS($AK$3,$AK$4))),DSUM(#REF!,""&LEFT($C77,LEN($C77)-$A77)&"",$M$4:INDIRECT(ADDRESS($AK$3,$AK$4)))/DSUM(#REF!,""&$J$4&"",$M$4:INDIRECT(ADDRESS($AK$3,$AK$4)))))),""),"") ->  | G77: =IF($Z$1=32,IFERROR(IF(ISTEXT($B77)=TRUE,DSUM(#REF!,""&LEFT($C77,LEN($C77)-$A77)&"",$L$4:INDIRECT(ADDRESS($AK$3,$AK$4)))/DSUM(#REF!,""&$B77&"",$L$4:INDIRECT(ADDRESS($AK$3,$AK$4))),IF($B77=0,DAVERAGE(#REF!,""&LEFT($C77,LEN($C77)-$A77)&"",$L$4:INDIRECT(ADDRESS($AK$3,$AK$4))),IF($B77=1,DSUM(#REF!,""&LEFT($C77,LEN($C77)-$A77)&"",$L$4:INDIRECT(ADDRESS($AK$3,$AK$4)))/DSUM(#REF!,""&$I$4&"",$L$4:INDIRECT(ADDRESS($AK$3,$AK$4))),IF($B77=2,DSUM(#REF!,""&LEFT($C77,LEN($C77)-$A77)&"",$L$4:INDIRECT(ADDRESS($AK$3,$AK$4)))/DSUM(#REF!,""&$J$4&"",$L$4:INDIRECT(ADDRESS($AK$3,$AK$4))))))),""),"") -> 
C84: Slagtesvin - 2.000 - 7.000 producerede slagtesvin | D84: Formattering
C85: =C4 -> Antal producerede slagtesvin | D85: 101 | E85: 1
C86: =C5 -> Slagtevægt, kg. | D86: 1 | E86: 1
C87: Vægt indsatte smågrise, kg. | D87: 1 | E87: 1
D88: 9 | E88: 1
C89: Nøgletal | D89: 111 | E89: 1
C90: Foderomkostninger pr. enhed | D90: 1 | E90: 1
C91: Værdiændring besætning | D91: 101 | E91: 1
C92: Arbejdsomkostninger pr. enhed | D92: 1 | E92: 1
C93: Bygningsomk. pr. enhed | D93: 1 | E93: 1
C94: Inventar inkl. energi pr. enhed | D94: 1 | E94: 1
C95: Forrentning driftskapital pr. enhed | D95: 1 | E95: 1
C96: Øvrige omkostninger pr. enhed | D96: 101 | E96: 1
C97: Krav til dækningsbidrag pr. enhed | D97: 110 | E97: 1
D98: 9 | E98: 1
C99: Bundet kapital pr. enhed | D99: 1 | E99: 1
C100: Anvendt rentesats, pct. | D100: 1 | E100: 1
C101: Resultatkorrektion ved 4 % rente | D101: 1 | E101: 1
C102: Afkastningsgrad | D102: 110 | E102: 1
D103: 9 | E103: 1
C104: Fremstillingspris pr. kg sl.svin | D104: 110 | E104: 1
C105: Pris pr. kg prod. slagtesvin | D105: 1 | E105: 1
D106: 9 | E106: 1
C107: Pris soyaskrå, kr. pr. kg | D107: 1 | E107: 1
C108: Pris tilskudsfoder, kr. pr. kg | D108: 1 | E108: 1
C109: Pris proteinblanding, kr. pr. kg | D109: 1 | E109: 1
C110: Pris færdigblanding slsvin, kr. pr. kg | D110: 1 | E110: 1
D111: 9 | E111: 1
C112: Specifikation af resultat | D112: 111 | E112: 1
C113: Salg slagtesvin | D113: 102 | E113: 1
C114: Køb af grise | D114: 1 | E114: 1
C115: Besætningsforskydning | D115: 1 | E115: 1
C116: Andre Landbrugsindtægter slsvin | D116: 1 | E116: 1
C117: Bruttoudbytte i alt | D117: 113 | E117: 1
D118: 9 | E118: 1
C119: Korn | D119: 1 | E119: 1
C120: Tilskudsfoder og råvarer | D120: 1 | E120: 1
C121: Færdigblanding | D121: 1 | E121: 1
C122: Andet foder | D122: 1 | E122: 1
C123: Dyrlæge og medicin | D123: 1 | E123: 1
C124: Avl, rådgivning og kontrol | D124: 1 | E124: 1
C125: Diverse vedr. husdyr | D125: 1 | E125: 1
C126: Stykomkostninger i alt | D126: 113 | E126: 1
D127: 9 | E127: 1
C128: Dækningsbidrag | D128: 113 | E128: 1
D129: 9 | E129: 1
C130: Energi svin | D130: 1 | E130: 1
C131: Vedligehold | D131: 1 | E131: 1
C132: Lønomkostninger | D132: 1 | E132: 1
C133: Ejeraflønning | D133: 1 | E133: 1
C134: Forsikring | D134: 1 | E134: 1
C135: Diverse kapacitetsomkostninger | D135: 1 | E135: 1
C136: Kapacitetsomkostninger i alt | D136: 113 | E136: 1
D137: 9 | E137: 1
C138: Afskrivning bygninger | D138: 1 | E138: 1
C139: Afskrivning inventar | D139: 1 | E139: 1
C140: Leje af driftsbygninger | D140: 1 | E140: 1
C141: Renteomk. af bundet kapital | D141: 1 | E141: 1
C142: Kapitalomkostninger i alt | D142: 113 | E142: 1
D143: 9 | E143: 1
C144: Årets resultat | D144: 201 | E144: 1
C145: 0
C146: 0
C147: 0
C148: 0
C149: 0

Sheet Søer med smågrise (hidden)
A1: Søer med smågrise (7910) | Y1: Ident | Z1: =Choices!$A$1*10+Choices!$D$1 -> 43 | AA1: =Choices!$A$1*100+Choices!$D$1*10+Choices!$G$1 -> 434 | AB1: 2 | AC1: 3 | AD1: 4 | AE1: 5 | AF1: 6 | AG1: 7 | AJ1: Til adresseformel
D2: Landsplan | F2: ="Kreds "&Kredsudvælgelse!$A$2&"" -> Kreds | L2: Betingelser | AA2: 332 | AB2: Sohold 30 kg - under 500 årssøer | AJ2: =ISTEXT(N4) -> TRUE | AK2: TRUE | AL2: TRUE | AM2: TRUE | AN2: TRUE | AO2: TRUE
A3: Tegn (fra højre der skal væk så navnet passer med navnet i forespørgslen) | B3: Divisor, til snit | C3: =IF(Choices!$A$1=3,IF(Choices!$D$1=1,"",IF(Choices!$D$1=3,IF(Choices!$G$1=2,"Sohold 30 kg- under 500 årssøer",IF(Choices!$G$1=3,"Sohold 30 kg - over 500 årssøer",""))))) -> FALSE | D3: =IF($Z$1=33,IF(Choices!$G$1=2,Landsgennemsnit!X3,IF(Choices!$G$1=3,Landsgennemsnit!Z3,"")),"") ->  | E3: Top 5 | F3: Gennemsnit | G3: Top 5 | I3: Divisor 1 | J3: Divisor 2 | L3: =IF(L4="","",IF(ISERROR(HLOOKUP(L4,#REF!,1,FALSE))=TRUE,"Ikke fundet i forespørgslen","")) -> Ikke fundet i forespørgslen | M3: =IF(M4="","",IF(ISERROR(HLOOKUP(M4,#REF!,1,FALSE))=TRUE,"Ikke fundet i forespørgslen","")) -> Ikke fundet i forespørgslen | N3: =IF(N4="","",IF(ISERROR(HLOOKUP(N4,#REF!,1,FALSE))=TRUE,"Ikke fundet i forespørgslen","")) ->  | O3: =IF(O4="","",IF(ISERROR(HLOOKUP(O4,#REF!,1,FALSE))=TRUE,"Ikke fundet i forespørgslen","")) ->  | P3: =IF(P4="","",IF(ISERROR(HLOOKUP(P4,#REF!,1,FALSE))=TRUE,"Ikke fundet i forespørgslen","")) ->  | Q3: =IF(Q4="","",IF(ISERROR(HLOOKUP(Q4,#REF!,1,FALSE))=TRUE,"Ikke fundet i forespørgslen","")) ->  | R3: =IF(R4="","",IF(ISERROR(HLOOKUP(R4,#REF!,1,FALSE))=TRUE,"Ikke fundet i forespørgslen","")) ->  | S3: =IF(S4="","",IF(ISERROR(HLOOKUP(S4,#REF!,1,FALSE))=TRUE,"Ikke fundet i forespørgslen","")) ->  | Z3: 1 | AA3: =$AA$2*10+Z3 -> 3321 | AB3: Antal årssøer | AC3: Godkendt | AD3: Økologisk_konventionel | AE3: Bes_type | AJ3: Række | AK3: 7
A4: 0 | B4: 0 | C4: Antal årssøer | D4: =IF($Z$1=33,IF(Choices!$G$1=2,Landsgennemsnit!X4,IF(Choices!$G$1=3,Landsgennemsnit!Z4,"")),"") ->  | E4: =IF($Z$1=33,IF(Choices!$G$1=2,Landsgennemsnit!Y4,IF(Choices!$G$1=3,Landsgennemsnit!AA4,"")),"") ->  | F4: =IF($Z$1=33,IFERROR(IF(ISTEXT($B4)=TRUE,DSUM(#REF!,""&LEFT($C4,LEN($C4)-$A4)&"",$M$4:INDIRECT(ADDRESS($AK$3,$AK$4)))/DSUM(#REF!,""&$B4&"",$M$4:INDIRECT(ADDRESS($AK$3,$AK$4))),IF($B4=0,DAVERAGE(#REF!,""&LEFT($C4,LEN($C4)-$A4)&"",$M$4:INDIRECT(ADDRESS($AK$3,$AK$4))),IF($B4=1,DSUM(#REF!,""&LEFT($C4,LEN($C4)-$A4)&"",$M$4:INDIRECT(ADDRESS($AK$3,$AK$4)))/DSUM(#REF!,""&$I$4&"",$M$4:INDIRECT(ADDRESS($AK$3,$AK$4))),DSUM(#REF!,""&LEFT($C4,LEN($C4)-$A4)&"",$M$4:INDIRECT(ADDRESS($AK$3,$AK$4)))/DSUM(#REF!,""&$J$4&"",$M$4:INDIRECT(ADDRESS($AK$3,$AK$4)))))),""),"") ->  | G4: =IF($Z$1=33,IFERROR(IF(ISTEXT($B4)=TRUE,DSUM(#REF!,""&LEFT($C4,LEN($C4)-$A4)&"",$L$4:INDIRECT(ADDRESS($AK$3,$AK$4)))/DSUM(#REF!,""&$B4&"",$L$4:INDIRECT(ADDRESS($AK$3,$AK$4))),IF($B4=0,DAVERAGE(#REF!,""&LEFT($C4,LEN($C4)-$A4)&"",$L$4:INDIRECT(ADDRESS($AK$3,$AK$4))),IF($B4=1,DSUM(#REF!,""&LEFT($C4,LEN($C4)-$A4)&"",$L$4:INDIRECT(ADDRESS($AK$3,$AK$4)))/DSUM(#REF!,""&$I$4&"",$L$4:INDIRECT(ADDRESS($AK$3,$AK$4))),IF($B4=2,DSUM(#REF!,""&LEFT($C4,LEN($C4)-$A4)&"",$L$4:INDIRECT(ADDRESS($AK$3,$AK$4)))/DSUM(#REF!,""&$J$4&"",$L$4:INDIRECT(ADDRESS($AK$3,$AK$4))))))),""),"") ->  | I4: Antal årssøer | J4: Antal producerede smågrise | L4: årets resultat pr. årsso | M4: Prodgren | N4: =IF($Z$1=33,IFERROR(VLOOKUP($AA$1*10+$Z3,$AA$3:$AG$36,AB$1,FALSE),""),"") ->  | O4: =IF($Z$1=33,IFERROR(VLOOKUP($AA$1*10+$Z3,$AA$3:$AG$36,AC$1,FALSE),""),"") ->  | Z4: 2 | AA4: =$AA$2*10+Z4 -> 3322 | AB4: <500 | AC4: TRUE | AD4: <2 | AE4: 0 | AJ4: Kolonne | AK4: =13+COUNTIF(AJ2:AO2,"SAND") -> 19
A5: 0 | B5: 0 | C5: Antal producerede smågrise | D5: =IF($Z$1=33,IF(Choices!$G$1=2,Landsgennemsnit!X5,IF(Choices!$G$1=3,Landsgennemsnit!Z5,"")),"") ->  | E5: =IF($Z$1=33,IF(Choices!$G$1=2,Landsgennemsnit!Y5,IF(Choices!$G$1=3,Landsgennemsnit!AA5,"")),"") ->  | F5: =IF($Z$1=33,IFERROR(IF(ISTEXT($B5)=TRUE,DSUM(#REF!,""&LEFT($C5,LEN($C5)-$A5)&"",$M$4:INDIRECT(ADDRESS($AK$3,$AK$4)))/DSUM(#REF!,""&$B5&"",$M$4:INDIRECT(ADDRESS($AK$3,$AK$4))),IF($B5=0,DAVERAGE(#REF!,""&LEFT($C5,LEN($C5)-$A5)&"",$M$4:INDIRECT(ADDRESS($AK$3,$AK$4))),IF($B5=1,DSUM(#REF!,""&LEFT($C5,LEN($C5)-$A5)&"",$M$4:INDIRECT(ADDRESS($AK$3,$AK$4)))/DSUM(#REF!,""&$I$4&"",$M$4:INDIRECT(ADDRESS($AK$3,$AK$4))),DSUM(#REF!,""&LEFT($C5,LEN($C5)-$A5)&"",$M$4:INDIRECT(ADDRESS($AK$3,$AK$4)))/DSUM(#REF!,""&$J$4&"",$M$4:INDIRECT(ADDRESS($AK$3,$AK$4)))))),""),"") ->  | G5: =IF($Z$1=33,IFERROR(IF(ISTEXT($B5)=TRUE,DSUM(#REF!,""&LEFT($C5,LEN($C5)-$A5)&"",$L$4:INDIRECT(ADDRESS($AK$3,$AK$4)))/DSUM(#REF!,""&$B5&"",$L$4:INDIRECT(ADDRESS($AK$3,$AK$4))),IF($B5=0,DAVERAGE(#REF!,""&LEFT($C5,LEN($C5)-$A5)&"",$L$4:INDIRECT(ADDRESS($AK$3,$AK$4))),IF($B5=1,DSUM(#REF!,""&LEFT($C5,LEN($C5)-$A5)&"",$L$4:INDIRECT(ADDRESS($AK$3,$AK$4)))/DSUM(#REF!,""&$I$4&"",$L$4:INDIRECT(ADDRESS($AK$3,$AK$4))),IF($B5=2,DSUM(#REF!,""&LEFT($C5,LEN($C5)-$A5)&"",$L$4:INDIRECT(ADDRESS($AK$3,$AK$4)))/DSUM(#REF!,""&$J$4&"",$L$4:INDIRECT(ADDRESS($AK$3,$AK$4))))))),""),"") ->  | L5: =IF($Z$1=33,">"&IF(I8<=5,"For få relevante observationer",DMAX(#REF!,""&$K$14&"",$L$30:INDIRECT(ADDRESS($AK$35,$AK$4))))&"","") ->  | M5: ="=7910" -> =7910 | N5: =IF($Z$1=33,IFERROR(VLOOKUP($AA$1*10+$Z4,$AA$3:$AG$36,AB$1,FALSE),""),"") ->  | Z5: 3 | AA5: =$AA$2*10+Z5 -> 3323 | AB5: <500 | AC5: TRUE | AD5: <2 | AE5: 1
A6: 0 | B6: 0 | C6: Producerede grise pr. årsso | D6: =IF($Z$1=33,IF(Choices!$G$1=2,Landsgennemsnit!X6,IF(Choices!$G$1=3,Landsgennemsnit!Z6,"")),"") ->  | E6: =IF($Z$1=33,IF(Choices!$G$1=2,Landsgennemsnit!Y6,IF(Choices!$G$1=3,Landsgennemsnit!AA6,"")),"") ->  | F6: =IF($Z$1=33,IFERROR(IF(ISTEXT($B6)=TRUE,DSUM(#REF!,""&LEFT($C6,LEN($C6)-$A6)&"",$M$4:INDIRECT(ADDRESS($AK$3,$AK$4)))/DSUM(#REF!,""&$B6&"",$M$4:INDIRECT(ADDRESS($AK$3,$AK$4))),IF($B6=0,DAVERAGE(#REF!,""&LEFT($C6,LEN($C6)-$A6)&"",$M$4:INDIRECT(ADDRESS($AK$3,$AK$4))),IF($B6=1,DSUM(#REF!,""&LEFT($C6,LEN($C6)-$A6)&"",$M$4:INDIRECT(ADDRESS($AK$3,$AK$4)))/DSUM(#REF!,""&$I$4&"",$M$4:INDIRECT(ADDRESS($AK$3,$AK$4))),DSUM(#REF!,""&LEFT($C6,LEN($C6)-$A6)&"",$M$4:INDIRECT(ADDRESS($AK$3,$AK$4)))/DSUM(#REF!,""&$J$4&"",$M$4:INDIRECT(ADDRESS($AK$3,$AK$4)))))),""),"") ->  | G6: =IF($Z$1=33,IFERROR(IF(ISTEXT($B6)=TRUE,DSUM(#REF!,""&LEFT($C6,LEN($C6)-$A6)&"",$L$4:INDIRECT(ADDRESS($AK$3,$AK$4)))/DSUM(#REF!,""&$B6&"",$L$4:INDIRECT(ADDRESS($AK$3,$AK$4))),IF($B6=0,DAVERAGE(#REF!,""&LEFT($C6,LEN($C6)-$A6)&"",$L$4:INDIRECT(ADDRESS($AK$3,$AK$4))),IF($B6=1,DSUM(#REF!,""&LEFT($C6,LEN($C6)-$A6)&"",$L$4:INDIRECT(ADDRESS($AK$3,$AK$4)))/DSUM(#REF!,""&$I$4&"",$L$4:INDIRECT(ADDRESS($AK$3,$AK$4))),IF($B6=2,DSUM(#REF!,""&LEFT($C6,LEN($C6)-$A6)&"",$L$4:INDIRECT(ADDRESS($AK$3,$AK$4)))/DSUM(#REF!,""&$J$4&"",$L$4:INDIRECT(ADDRESS($AK$3,$AK$4))))))),""),"") ->  | L6: =$L$5 ->  | M6: =$M$5 -> =7910 | N6: =IF($Z$1=33,IFERROR(VLOOKUP($AA$1*10+$Z5,$AA$3:$AG$36,AB$1,FALSE),""),"") ->  | Z6: 4 | AA6: =$AA$2*10+Z6 -> 3324 | AB6: <500 | AC6: TRUE | AD6: <2 | AE6: 1
C7: Vægt solgte/overførte smågrise, kg. | D7: =IF($Z$1=33,IF(Choices!$G$1=2,Landsgennemsnit!X7,IF(Choices!$G$1=3,Landsgennemsnit!Z7,"")),"") ->  | E7: =IF($Z$1=33,IF(Choices!$G$1=2,Landsgennemsnit!Y7,IF(Choices!$G$1=3,Landsgennemsnit!AA7,"")),"") ->  | F7: =IF($Z$1=33,IFERROR(IF(ISTEXT($B7)=TRUE,DSUM(#REF!,""&LEFT($C7,LEN($C7)-$A7)&"",$M$4:INDIRECT(ADDRESS($AK$3,$AK$4)))/DSUM(#REF!,""&$B7&"",$M$4:INDIRECT(ADDRESS($AK$3,$AK$4))),IF($B7=0,DAVERAGE(#REF!,""&LEFT($C7,LEN($C7)-$A7)&"",$M$4:INDIRECT(ADDRESS($AK$3,$AK$4))),IF($B7=1,DSUM(#REF!,""&LEFT($C7,LEN($C7)-$A7)&"",$M$4:INDIRECT(ADDRESS($AK$3,$AK$4)))/DSUM(#REF!,""&$I$4&"",$M$4:INDIRECT(ADDRESS($AK$3,$AK$4))),DSUM(#REF!,""&LEFT($C7,LEN($C7)-$A7)&"",$M$4:INDIRECT(ADDRESS($AK$3,$AK$4)))/DSUM(#REF!,""&$J$4&"",$M$4:INDIRECT(ADDRESS($AK$3,$AK$4)))))),""),"") ->  | G7: =IF($Z$1=33,IFERROR(IF(ISTEXT($B7)=TRUE,DSUM(#REF!,""&LEFT($C7,LEN($C7)-$A7)&"",$L$4:INDIRECT(ADDRESS($AK$3,$AK$4)))/DSUM(#REF!,""&$B7&"",$L$4:INDIRECT(ADDRESS($AK$3,$AK$4))),IF($B7=0,DAVERAGE(#REF!,""&LEFT($C7,LEN($C7)-$A7)&"",$L$4:INDIRECT(ADDRESS($AK$3,$AK$4))),IF($B7=1,DSUM(#REF!,""&LEFT($C7,LEN($C7)-$A7)&"",$L$4:INDIRECT(ADDRESS($AK$3,$AK$4)))/DSUM(#REF!,""&$I$4&"",$L$4:INDIRECT(ADDRESS($AK$3,$AK$4))),IF($B7=2,DSUM(#REF!,""&LEFT($C7,LEN($C7)-$A7)&"",$L$4:INDIRECT(ADDRESS($AK$3,$AK$4)))/DSUM(#REF!,""&$J$4&"",$L$4:INDIRECT(ADDRESS($AK$3,$AK$4))))))),""),"") ->  | I7: Samlet antal inkluderet under betingelserne | L7: =$L$5 ->  | M7: =$M$5 -> =7910 | N7: =IF($Z$1=33,IFERROR(VLOOKUP($AA$1*10+$Z6,$AA$3:$AG$36,AB$1,FALSE),""),"") -> 
D8: =IF($Z$1=33,IF(Choices!$G$1=2,Landsgennemsnit!X8,IF(Choices!$G$1=3,Landsgennemsnit!Z8,"")),"") ->  | E8: =IF($Z$1=33,IF(Choices!$G$1=2,Landsgennemsnit!Y8,IF(Choices!$G$1=3,Landsgennemsnit!AA8,"")),"") ->  | F8: =IF($Z$1=33,IFERROR(IF(ISTEXT($B8)=TRUE,DSUM(#REF!,""&LEFT($C8,LEN($C8)-$A8)&"",$M$4:INDIRECT(ADDRESS($AK$3,$AK$4)))/DSUM(#REF!,""&$B8&"",$M$4:INDIRECT(ADDRESS($AK$3,$AK$4))),IF($B8=0,DAVERAGE(#REF!,""&LEFT($C8,LEN($C8)-$A8)&"",$M$4:INDIRECT(ADDRESS($AK$3,$AK$4))),IF($B8=1,DSUM(#REF!,""&LEFT($C8,LEN($C8)-$A8)&"",$M$4:INDIRECT(ADDRESS($AK$3,$AK$4)))/DSUM(#REF!,""&$I$4&"",$M$4:INDIRECT(ADDRESS($AK$3,$AK$4))),DSUM(#REF!,""&LEFT($C8,LEN($C8)-$A8)&"",$M$4:INDIRECT(ADDRESS($AK$3,$AK$4)))/DSUM(#REF!,""&$J$4&"",$M$4:INDIRECT(ADDRESS($AK$3,$AK$4)))))),""),"") ->  | G8: =IF($Z$1=33,IFERROR(IF(ISTEXT($B8)=TRUE,DSUM(#REF!,""&LEFT($C8,LEN($C8)-$A8)&"",$L$4:INDIRECT(ADDRESS($AK$3,$AK$4)))/DSUM(#REF!,""&$B8&"",$L$4:INDIRECT(ADDRESS($AK$3,$AK$4))),IF($B8=0,DAVERAGE(#REF!,""&LEFT($C8,LEN($C8)-$A8)&"",$L$4:INDIRECT(ADDRESS($AK$3,$AK$4))),IF($B8=1,DSUM(#REF!,""&LEFT($C8,LEN($C8)-$A8)&"",$L$4:INDIRECT(ADDRESS($AK$3,$AK$4)))/DSUM(#REF!,""&$I$4&"",$L$4:INDIRECT(ADDRESS($AK$3,$AK$4))),IF($B8=2,DSUM(#REF!,""&LEFT($C8,LEN($C8)-$A8)&"",$L$4:INDIRECT(ADDRESS($AK$3,$AK$4)))/DSUM(#REF!,""&$J$4&"",$L$4:INDIRECT(ADDRESS($AK$3,$AK$4))))))),""),"") ->  | I8: =IF($Z$1=33,DCOUNT(#REF!,""&L4&"",IF(N4=0,M4:M7,IF(O4=0,M4:N7,IF(P4=0,M4:O7,IF(Q4=0,M4:P7,IF(R4=0,M4:Q7,IF(S4=0,M4:R7,""))))))),"") ->  | N8: Skiller ved 500 | AA8: 333 | AB8: Sohold 30 kg - over 500 årssøer
C9: Nøgletal | D9: =IF($Z$1=33,IF(Choices!$G$1=2,Landsgennemsnit!X9,IF(Choices!$G$1=3,Landsgennemsnit!Z9,"")),"") ->  | E9: =IF($Z$1=33,IF(Choices!$G$1=2,Landsgennemsnit!Y9,IF(Choices!$G$1=3,Landsgennemsnit!AA9,"")),"") ->  | F9: =IF($Z$1=33,IFERROR(IF(ISTEXT($B9)=TRUE,DSUM(#REF!,""&LEFT($C9,LEN($C9)-$A9)&"",$M$4:INDIRECT(ADDRESS($AK$3,$AK$4)))/DSUM(#REF!,""&$B9&"",$M$4:INDIRECT(ADDRESS($AK$3,$AK$4))),IF($B9=0,DAVERAGE(#REF!,""&LEFT($C9,LEN($C9)-$A9)&"",$M$4:INDIRECT(ADDRESS($AK$3,$AK$4))),IF($B9=1,DSUM(#REF!,""&LEFT($C9,LEN($C9)-$A9)&"",$M$4:INDIRECT(ADDRESS($AK$3,$AK$4)))/DSUM(#REF!,""&$I$4&"",$M$4:INDIRECT(ADDRESS($AK$3,$AK$4))),DSUM(#REF!,""&LEFT($C9,LEN($C9)-$A9)&"",$M$4:INDIRECT(ADDRESS($AK$3,$AK$4)))/DSUM(#REF!,""&$J$4&"",$M$4:INDIRECT(ADDRESS($AK$3,$AK$4)))))),""),"") ->  | G9: =IF($Z$1=33,IFERROR(IF(ISTEXT($B9)=TRUE,DSUM(#REF!,""&LEFT($C9,LEN($C9)-$A9)&"",$L$4:INDIRECT(ADDRESS($AK$3,$AK$4)))/DSUM(#REF!,""&$B9&"",$L$4:INDIRECT(ADDRESS($AK$3,$AK$4))),IF($B9=0,DAVERAGE(#REF!,""&LEFT($C9,LEN($C9)-$A9)&"",$L$4:INDIRECT(ADDRESS($AK$3,$AK$4))),IF($B9=1,DSUM(#REF!,""&LEFT($C9,LEN($C9)-$A9)&"",$L$4:INDIRECT(ADDRESS($AK$3,$AK$4)))/DSUM(#REF!,""&$I$4&"",$L$4:INDIRECT(ADDRESS($AK$3,$AK$4))),IF($B9=2,DSUM(#REF!,""&LEFT($C9,LEN($C9)-$A9)&"",$L$4:INDIRECT(ADDRESS($AK$3,$AK$4)))/DSUM(#REF!,""&$J$4&"",$L$4:INDIRECT(ADDRESS($AK$3,$AK$4))))))),""),"") ->  | Z9: 1 | AA9: =$AA$8*10+Z9 -> 3331 | AB9: Antal årssøer | AC9: Godkendt | AD9: Økologisk_konventionel | AE9: Bes_type
A10: 10 | B10: Antal årssøer | C10: Foderomkostninger pr. enhed | D10: =IF($Z$1=33,IF(Choices!$G$1=2,Landsgennemsnit!X10,IF(Choices!$G$1=3,Landsgennemsnit!Z10,"")),"") ->  | E10: =IF($Z$1=33,IF(Choices!$G$1=2,Landsgennemsnit!Y10,IF(Choices!$G$1=3,Landsgennemsnit!AA10,"")),"") ->  | F10: =IF($Z$1=33,IFERROR(IF(ISTEXT($B10)=TRUE,DSUM(#REF!,""&LEFT($C10,LEN($C10)-$A10)&"",$M$4:INDIRECT(ADDRESS($AK$3,$AK$4)))/DSUM(#REF!,""&$B10&"",$M$4:INDIRECT(ADDRESS($AK$3,$AK$4))),IF($B10=0,DAVERAGE(#REF!,""&LEFT($C10,LEN($C10)-$A10)&"",$M$4:INDIRECT(ADDRESS($AK$3,$AK$4))),IF($B10=1,DSUM(#REF!,""&LEFT($C10,LEN($C10)-$A10)&"",$M$4:INDIRECT(ADDRESS($AK$3,$AK$4)))/DSUM(#REF!,""&$I$4&"",$M$4:INDIRECT(ADDRESS($AK$3,$AK$4))),DSUM(#REF!,""&LEFT($C10,LEN($C10)-$A10)&"",$M$4:INDIRECT(ADDRESS($AK$3,$AK$4)))/DSUM(#REF!,""&$J$4&"",$M$4:INDIRECT(ADDRESS($AK$3,$AK$4)))))),""),"") ->  | G10: =IF($Z$1=33,IFERROR(IF(ISTEXT($B10)=TRUE,DSUM(#REF!,""&LEFT($C10,LEN($C10)-$A10)&"",$L$4:INDIRECT(ADDRESS($AK$3,$AK$4)))/DSUM(#REF!,""&$B10&"",$L$4:INDIRECT(ADDRESS($AK$3,$AK$4))),IF($B10=0,DAVERAGE(#REF!,""&LEFT($C10,LEN($C10)-$A10)&"",$L$4:INDIRECT(ADDRESS($AK$3,$AK$4))),IF($B10=1,DSUM(#REF!,""&LEFT($C10,LEN($C10)-$A10)&"",$L$4:INDIRECT(ADDRESS($AK$3,$AK$4)))/DSUM(#REF!,""&$I$4&"",$L$4:INDIRECT(ADDRESS($AK$3,$AK$4))),IF($B10=2,DSUM(#REF!,""&LEFT($C10,LEN($C10)-$A10)&"",$L$4:INDIRECT(ADDRESS($AK$3,$AK$4)))/DSUM(#REF!,""&$J$4&"",$L$4:INDIRECT(ADDRESS($AK$3,$AK$4))))))),""),"") ->  | Z10: 2 | AA10: =$AA$8*10+Z10 -> 3332 | AB10: >500 | AC10: TRUE | AD10: <2 | AE10: 0
A11: 0 | B11: Antal årssøer | C11: Værdiændring besætning | D11: =IF($Z$1=33,IF(Choices!$G$1=2,Landsgennemsnit!X11,IF(Choices!$G$1=3,Landsgennemsnit!Z11,"")),"") ->  | E11: =IF($Z$1=33,IF(Choices!$G$1=2,Landsgennemsnit!Y11,IF(Choices!$G$1=3,Landsgennemsnit!AA11,"")),"") ->  | F11: =IF($Z$1=33,IFERROR(IF(ISTEXT($B11)=TRUE,DSUM(#REF!,""&LEFT($C11,LEN($C11)-$A11)&"",$M$4:INDIRECT(ADDRESS($AK$3,$AK$4)))/DSUM(#REF!,""&$B11&"",$M$4:INDIRECT(ADDRESS($AK$3,$AK$4))),IF($B11=0,DAVERAGE(#REF!,""&LEFT($C11,LEN($C11)-$A11)&"",$M$4:INDIRECT(ADDRESS($AK$3,$AK$4))),IF($B11=1,DSUM(#REF!,""&LEFT($C11,LEN($C11)-$A11)&"",$M$4:INDIRECT(ADDRESS($AK$3,$AK$4)))/DSUM(#REF!,""&$I$4&"",$M$4:INDIRECT(ADDRESS($AK$3,$AK$4))),DSUM(#REF!,""&LEFT($C11,LEN($C11)-$A11)&"",$M$4:INDIRECT(ADDRESS($AK$3,$AK$4)))/DSUM(#REF!,""&$J$4&"",$M$4:INDIRECT(ADDRESS($AK$3,$AK$4)))))),""),"") ->  | G11: =IF($Z$1=33,IFERROR(IF(ISTEXT($B11)=TRUE,DSUM(#REF!,""&LEFT($C11,LEN($C11)-$A11)&"",$L$4:INDIRECT(ADDRESS($AK$3,$AK$4)))/DSUM(#REF!,""&$B11&"",$L$4:INDIRECT(ADDRESS($AK$3,$AK$4))),IF($B11=0,DAVERAGE(#REF!,""&LEFT($C11,LEN($C11)-$A11)&"",$L$4:INDIRECT(ADDRESS($AK$3,$AK$4))),IF($B11=1,DSUM(#REF!,""&LEFT($C11,LEN($C11)-$A11)&"",$L$4:INDIRECT(ADDRESS($AK$3,$AK$4)))/DSUM(#REF!,""&$I$4&"",$L$4:INDIRECT(ADDRESS($AK$3,$AK$4))),IF($B11=2,DSUM(#REF!,""&LEFT($C11,LEN($C11)-$A11)&"",$L$4:INDIRECT(ADDRESS($AK$3,$AK$4)))/DSUM(#REF!,""&$J$4&"",$L$4:INDIRECT(ADDRESS($AK$3,$AK$4))))))),""),"") ->  | Z11: 3 | AA11: =$AA$8*10+Z11 -> 3333 | AB11: >500 | AC11: TRUE | AD11: <2 | AE11: 1
A12: 10 | B12: Antal årssøer | C12: Arbejdsomkostninger pr. enhed | D12: =IF($Z$1=33,IF(Choices!$G$1=2,Landsgennemsnit!X12,IF(Choices!$G$1=3,Landsgennemsnit!Z12,"")),"") ->  | E12: =IF($Z$1=33,IF(Choices!$G$1=2,Landsgennemsnit!Y12,IF(Choices!$G$1=3,Landsgennemsnit!AA12,"")),"") ->  | F12: =IF($Z$1=33,IFERROR(IF(ISTEXT($B12)=TRUE,DSUM(#REF!,""&LEFT($C12,LEN($C12)-$A12)&"",$M$4:INDIRECT(ADDRESS($AK$3,$AK$4)))/DSUM(#REF!,""&$B12&"",$M$4:INDIRECT(ADDRESS($AK$3,$AK$4))),IF($B12=0,DAVERAGE(#REF!,""&LEFT($C12,LEN($C12)-$A12)&"",$M$4:INDIRECT(ADDRESS($AK$3,$AK$4))),IF($B12=1,DSUM(#REF!,""&LEFT($C12,LEN($C12)-$A12)&"",$M$4:INDIRECT(ADDRESS($AK$3,$AK$4)))/DSUM(#REF!,""&$I$4&"",$M$4:INDIRECT(ADDRESS($AK$3,$AK$4))),DSUM(#REF!,""&LEFT($C12,LEN($C12)-$A12)&"",$M$4:INDIRECT(ADDRESS($AK$3,$AK$4)))/DSUM(#REF!,""&$J$4&"",$M$4:INDIRECT(ADDRESS($AK$3,$AK$4)))))),""),"") ->  | G12: =IF($Z$1=33,IFERROR(IF(ISTEXT($B12)=TRUE,DSUM(#REF!,""&LEFT($C12,LEN($C12)-$A12)&"",$L$4:INDIRECT(ADDRESS($AK$3,$AK$4)))/DSUM(#REF!,""&$B12&"",$L$4:INDIRECT(ADDRESS($AK$3,$AK$4))),IF($B12=0,DAVERAGE(#REF!,""&LEFT($C12,LEN($C12)-$A12)&"",$L$4:INDIRECT(ADDRESS($AK$3,$AK$4))),IF($B12=1,DSUM(#REF!,""&LEFT($C12,LEN($C12)-$A12)&"",$L$4:INDIRECT(ADDRESS($AK$3,$AK$4)))/DSUM(#REF!,""&$I$4&"",$L$4:INDIRECT(ADDRESS($AK$3,$AK$4))),IF($B12=2,DSUM(#REF!,""&LEFT($C12,LEN($C12)-$A12)&"",$L$4:INDIRECT(ADDRESS($AK$3,$AK$4)))/DSUM(#REF!,""&$J$4&"",$L$4:INDIRECT(ADDRESS($AK$3,$AK$4))))))),""),"") ->  | L12: De største værdier | Z12: 4 | AA12: =$AA$8*10+Z12 -> 3334 | AB12: >500 | AC12: TRUE | AD12: <2 | AE12: 1
A13: 10 | B13: Antal årssøer | C13: Bygningsomk. pr. enhed | D13: =IF($Z$1=33,IF(Choices!$G$1=2,Landsgennemsnit!X13,IF(Choices!$G$1=3,Landsgennemsnit!Z13,"")),"") ->  | E13: =IF($Z$1=33,IF(Choices!$G$1=2,Landsgennemsnit!Y13,IF(Choices!$G$1=3,Landsgennemsnit!AA13,"")),"") ->  | F13: =IF($Z$1=33,IFERROR(IF(ISTEXT($B13)=TRUE,DSUM(#REF!,""&LEFT($C13,LEN($C13)-$A13)&"",$M$4:INDIRECT(ADDRESS($AK$3,$AK$4)))/DSUM(#REF!,""&$B13&"",$M$4:INDIRECT(ADDRESS($AK$3,$AK$4))),IF($B13=0,DAVERAGE(#REF!,""&LEFT($C13,LEN($C13)-$A13)&"",$M$4:INDIRECT(ADDRESS($AK$3,$AK$4))),IF($B13=1,DSUM(#REF!,""&LEFT($C13,LEN($C13)-$A13)&"",$M$4:INDIRECT(ADDRESS($AK$3,$AK$4)))/DSUM(#REF!,""&$I$4&"",$M$4:INDIRECT(ADDRESS($AK$3,$AK$4))),DSUM(#REF!,""&LEFT($C13,LEN($C13)-$A13)&"",$M$4:INDIRECT(ADDRESS($AK$3,$AK$4)))/DSUM(#REF!,""&$J$4&"",$M$4:INDIRECT(ADDRESS($AK$3,$AK$4)))))),""),"") ->  | G13: =IF($Z$1=33,IFERROR(IF(ISTEXT($B13)=TRUE,DSUM(#REF!,""&LEFT($C13,LEN($C13)-$A13)&"",$L$4:INDIRECT(ADDRESS($AK$3,$AK$4)))/DSUM(#REF!,""&$B13&"",$L$4:INDIRECT(ADDRESS($AK$3,$AK$4))),IF($B13=0,DAVERAGE(#REF!,""&LEFT($C13,LEN($C13)-$A13)&"",$L$4:INDIRECT(ADDRESS($AK$3,$AK$4))),IF($B13=1,DSUM(#REF!,""&LEFT($C13,LEN($C13)-$A13)&"",$L$4:INDIRECT(ADDRESS($AK$3,$AK$4)))/DSUM(#REF!,""&$I$4&"",$L$4:INDIRECT(ADDRESS($AK$3,$AK$4))),IF($B13=2,DSUM(#REF!,""&LEFT($C13,LEN($C13)-$A13)&"",$L$4:INDIRECT(ADDRESS($AK$3,$AK$4)))/DSUM(#REF!,""&$J$4&"",$L$4:INDIRECT(ADDRESS($AK$3,$AK$4))))))),""),"") ->  | K13: De 5 største værdier:
A14: 10 | B14: Antal årssøer | C14: Inventar inkl. energi pr. enhed | D14: =IF($Z$1=33,IF(Choices!$G$1=2,Landsgennemsnit!X14,IF(Choices!$G$1=3,Landsgennemsnit!Z14,"")),"") ->  | E14: =IF($Z$1=33,IF(Choices!$G$1=2,Landsgennemsnit!Y14,IF(Choices!$G$1=3,Landsgennemsnit!AA14,"")),"") ->  | F14: =IF($Z$1=33,IFERROR(IF(ISTEXT($B14)=TRUE,DSUM(#REF!,""&LEFT($C14,LEN($C14)-$A14)&"",$M$4:INDIRECT(ADDRESS($AK$3,$AK$4)))/DSUM(#REF!,""&$B14&"",$M$4:INDIRECT(ADDRESS($AK$3,$AK$4))),IF($B14=0,DAVERAGE(#REF!,""&LEFT($C14,LEN($C14)-$A14)&"",$M$4:INDIRECT(ADDRESS($AK$3,$AK$4))),IF($B14=1,DSUM(#REF!,""&LEFT($C14,LEN($C14)-$A14)&"",$M$4:INDIRECT(ADDRESS($AK$3,$AK$4)))/DSUM(#REF!,""&$I$4&"",$M$4:INDIRECT(ADDRESS($AK$3,$AK$4))),DSUM(#REF!,""&LEFT($C14,LEN($C14)-$A14)&"",$M$4:INDIRECT(ADDRESS($AK$3,$AK$4)))/DSUM(#REF!,""&$J$4&"",$M$4:INDIRECT(ADDRESS($AK$3,$AK$4)))))),""),"") ->  | G14: =IF($Z$1=33,IFERROR(IF(ISTEXT($B14)=TRUE,DSUM(#REF!,""&LEFT($C14,LEN($C14)-$A14)&"",$L$4:INDIRECT(ADDRESS($AK$3,$AK$4)))/DSUM(#REF!,""&$B14&"",$L$4:INDIRECT(ADDRESS($AK$3,$AK$4))),IF($B14=0,DAVERAGE(#REF!,""&LEFT($C14,LEN($C14)-$A14)&"",$L$4:INDIRECT(ADDRESS($AK$3,$AK$4))),IF($B14=1,DSUM(#REF!,""&LEFT($C14,LEN($C14)-$A14)&"",$L$4:INDIRECT(ADDRESS($AK$3,$AK$4)))/DSUM(#REF!,""&$I$4&"",$L$4:INDIRECT(ADDRESS($AK$3,$AK$4))),IF($B14=2,DSUM(#REF!,""&LEFT($C14,LEN($C14)-$A14)&"",$L$4:INDIRECT(ADDRESS($AK$3,$AK$4)))/DSUM(#REF!,""&$J$4&"",$L$4:INDIRECT(ADDRESS($AK$3,$AK$4))))))),""),"") ->  | J14: Ejd i top 5 | K14: =M14 -> årets resultat pr. årsso | L14: Prodgren | M14: =$L$4 -> årets resultat pr. årsso | N14: =IF(N$4="","",N$4) -> 
A15: 10 | B15: Antal årssøer | C15: Forrentning driftskapital pr. enhed | D15: =IF($Z$1=33,IF(Choices!$G$1=2,Landsgennemsnit!X15,IF(Choices!$G$1=3,Landsgennemsnit!Z15,"")),"") ->  | E15: =IF($Z$1=33,IF(Choices!$G$1=2,Landsgennemsnit!Y15,IF(Choices!$G$1=3,Landsgennemsnit!AA15,"")),"") ->  | F15: =IF($Z$1=33,IFERROR(IF(ISTEXT($B15)=TRUE,DSUM(#REF!,""&LEFT($C15,LEN($C15)-$A15)&"",$M$4:INDIRECT(ADDRESS($AK$3,$AK$4)))/DSUM(#REF!,""&$B15&"",$M$4:INDIRECT(ADDRESS($AK$3,$AK$4))),IF($B15=0,DAVERAGE(#REF!,""&LEFT($C15,LEN($C15)-$A15)&"",$M$4:INDIRECT(ADDRESS($AK$3,$AK$4))),IF($B15=1,DSUM(#REF!,""&LEFT($C15,LEN($C15)-$A15)&"",$M$4:INDIRECT(ADDRESS($AK$3,$AK$4)))/DSUM(#REF!,""&$I$4&"",$M$4:INDIRECT(ADDRESS($AK$3,$AK$4))),DSUM(#REF!,""&LEFT($C15,LEN($C15)-$A15)&"",$M$4:INDIRECT(ADDRESS($AK$3,$AK$4)))/DSUM(#REF!,""&$J$4&"",$M$4:INDIRECT(ADDRESS($AK$3,$AK$4)))))),""),"") ->  | G15: =IF($Z$1=33,IFERROR(IF(ISTEXT($B15)=TRUE,DSUM(#REF!,""&LEFT($C15,LEN($C15)-$A15)&"",$L$4:INDIRECT(ADDRESS($AK$3,$AK$4)))/DSUM(#REF!,""&$B15&"",$L$4:INDIRECT(ADDRESS($AK$3,$AK$4))),IF($B15=0,DAVERAGE(#REF!,""&LEFT($C15,LEN($C15)-$A15)&"",$L$4:INDIRECT(ADDRESS($AK$3,$AK$4))),IF($B15=1,DSUM(#REF!,""&LEFT($C15,LEN($C15)-$A15)&"",$L$4:INDIRECT(ADDRESS($AK$3,$AK$4)))/DSUM(#REF!,""&$I$4&"",$L$4:INDIRECT(ADDRESS($AK$3,$AK$4))),IF($B15=2,DSUM(#REF!,""&LEFT($C15,LEN($C15)-$A15)&"",$L$4:INDIRECT(ADDRESS($AK$3,$AK$4)))/DSUM(#REF!,""&$J$4&"",$L$4:INDIRECT(ADDRESS($AK$3,$AK$4))))))),""),"") ->  | J15: =IF($Z$1=33,SUMIFS(#REF!,#REF!,K15),"") ->  | K15: =IF($Z$1=33,DMAX(#REF!,""&$K$14&"",$M$4:INDIRECT(ADDRESS($AK$3,$AK$4))),"") ->  | L15: =$M$5 -> =7910 | M15: ="<"&K15&"" -> < | N15: =IF(N$4>0,N5,"") -> 
A16: 10 | B16: Antal årssøer | C16: Øvrige omkostninger pr. enhed | D16: =IF($Z$1=33,IF(Choices!$G$1=2,Landsgennemsnit!X16,IF(Choices!$G$1=3,Landsgennemsnit!Z16,"")),"") ->  | E16: =IF($Z$1=33,IF(Choices!$G$1=2,Landsgennemsnit!Y16,IF(Choices!$G$1=3,Landsgennemsnit!AA16,"")),"") ->  | F16: =IF($Z$1=33,IFERROR(IF(ISTEXT($B16)=TRUE,DSUM(#REF!,""&LEFT($C16,LEN($C16)-$A16)&"",$M$4:INDIRECT(ADDRESS($AK$3,$AK$4)))/DSUM(#REF!,""&$B16&"",$M$4:INDIRECT(ADDRESS($AK$3,$AK$4))),IF($B16=0,DAVERAGE(#REF!,""&LEFT($C16,LEN($C16)-$A16)&"",$M$4:INDIRECT(ADDRESS($AK$3,$AK$4))),IF($B16=1,DSUM(#REF!,""&LEFT($C16,LEN($C16)-$A16)&"",$M$4:INDIRECT(ADDRESS($AK$3,$AK$4)))/DSUM(#REF!,""&$I$4&"",$M$4:INDIRECT(ADDRESS($AK$3,$AK$4))),DSUM(#REF!,""&LEFT($C16,LEN($C16)-$A16)&"",$M$4:INDIRECT(ADDRESS($AK$3,$AK$4)))/DSUM(#REF!,""&$J$4&"",$M$4:INDIRECT(ADDRESS($AK$3,$AK$4)))))),""),"") ->  | G16: =IF($Z$1=33,IFERROR(IF(ISTEXT($B16)=TRUE,DSUM(#REF!,""&LEFT($C16,LEN($C16)-$A16)&"",$L$4:INDIRECT(ADDRESS($AK$3,$AK$4)))/DSUM(#REF!,""&$B16&"",$L$4:INDIRECT(ADDRESS($AK$3,$AK$4))),IF($B16=0,DAVERAGE(#REF!,""&LEFT($C16,LEN($C16)-$A16)&"",$L$4:INDIRECT(ADDRESS($AK$3,$AK$4))),IF($B16=1,DSUM(#REF!,""&LEFT($C16,LEN($C16)-$A16)&"",$L$4:INDIRECT(ADDRESS($AK$3,$AK$4)))/DSUM(#REF!,""&$I$4&"",$L$4:INDIRECT(ADDRESS($AK$3,$AK$4))),IF($B16=2,DSUM(#REF!,""&LEFT($C16,LEN($C16)-$A16)&"",$L$4:INDIRECT(ADDRESS($AK$3,$AK$4)))/DSUM(#REF!,""&$J$4&"",$L$4:INDIRECT(ADDRESS($AK$3,$AK$4))))))),""),"") ->  | L16: =$M$5 -> =7910 | M16: =M15 -> < | N16: =IF(N$4>0,N6,"") -> 
A17: 10 | B17: Antal årssøer | C17: Krav til dækningsbidrag pr. enhed | D17: =IF($Z$1=33,IF(Choices!$G$1=2,Landsgennemsnit!X17,IF(Choices!$G$1=3,Landsgennemsnit!Z17,"")),"") ->  | E17: =IF($Z$1=33,IF(Choices!$G$1=2,Landsgennemsnit!Y17,IF(Choices!$G$1=3,Landsgennemsnit!AA17,"")),"") ->  | F17: =IF($Z$1=33,IFERROR(IF(ISTEXT($B17)=TRUE,DSUM(#REF!,""&LEFT($C17,LEN($C17)-$A17)&"",$M$4:INDIRECT(ADDRESS($AK$3,$AK$4)))/DSUM(#REF!,""&$B17&"",$M$4:INDIRECT(ADDRESS($AK$3,$AK$4))),IF($B17=0,DAVERAGE(#REF!,""&LEFT($C17,LEN($C17)-$A17)&"",$M$4:INDIRECT(ADDRESS($AK$3,$AK$4))),IF($B17=1,DSUM(#REF!,""&LEFT($C17,LEN($C17)-$A17)&"",$M$4:INDIRECT(ADDRESS($AK$3,$AK$4)))/DSUM(#REF!,""&$I$4&"",$M$4:INDIRECT(ADDRESS($AK$3,$AK$4))),DSUM(#REF!,""&LEFT($C17,LEN($C17)-$A17)&"",$M$4:INDIRECT(ADDRESS($AK$3,$AK$4)))/DSUM(#REF!,""&$J$4&"",$M$4:INDIRECT(ADDRESS($AK$3,$AK$4)))))),""),"") ->  | G17: =IF($Z$1=33,IFERROR(IF(ISTEXT($B17)=TRUE,DSUM(#REF!,""&LEFT($C17,LEN($C17)-$A17)&"",$L$4:INDIRECT(ADDRESS($AK$3,$AK$4)))/DSUM(#REF!,""&$B17&"",$L$4:INDIRECT(ADDRESS($AK$3,$AK$4))),IF($B17=0,DAVERAGE(#REF!,""&LEFT($C17,LEN($C17)-$A17)&"",$L$4:INDIRECT(ADDRESS($AK$3,$AK$4))),IF($B17=1,DSUM(#REF!,""&LEFT($C17,LEN($C17)-$A17)&"",$L$4:INDIRECT(ADDRESS($AK$3,$AK$4)))/DSUM(#REF!,""&$I$4&"",$L$4:INDIRECT(ADDRESS($AK$3,$AK$4))),IF($B17=2,DSUM(#REF!,""&LEFT($C17,LEN($C17)-$A17)&"",$L$4:INDIRECT(ADDRESS($AK$3,$AK$4)))/DSUM(#REF!,""&$J$4&"",$L$4:INDIRECT(ADDRESS($AK$3,$AK$4))))))),""),"") ->  | L17: =$M$5 -> =7910 | M17: =M15 -> <
D18: =IF($Z$1=33,IF(Choices!$G$1=2,Landsgennemsnit!X18,IF(Choices!$G$1=3,Landsgennemsnit!Z18,"")),"") ->  | E18: =IF($Z$1=33,IF(Choices!$G$1=2,Landsgennemsnit!Y18,IF(Choices!$G$1=3,Landsgennemsnit!AA18,"")),"") ->  | F18: =IF($Z$1=33,IFERROR(IF(ISTEXT($B18)=TRUE,DSUM(#REF!,""&LEFT($C18,LEN($C18)-$A18)&"",$M$4:INDIRECT(ADDRESS($AK$3,$AK$4)))/DSUM(#REF!,""&$B18&"",$M$4:INDIRECT(ADDRESS($AK$3,$AK$4))),IF($B18=0,DAVERAGE(#REF!,""&LEFT($C18,LEN($C18)-$A18)&"",$M$4:INDIRECT(ADDRESS($AK$3,$AK$4))),IF($B18=1,DSUM(#REF!,""&LEFT($C18,LEN($C18)-$A18)&"",$M$4:INDIRECT(ADDRESS($AK$3,$AK$4)))/DSUM(#REF!,""&$I$4&"",$M$4:INDIRECT(ADDRESS($AK$3,$AK$4))),DSUM(#REF!,""&LEFT($C18,LEN($C18)-$A18)&"",$M$4:INDIRECT(ADDRESS($AK$3,$AK$4)))/DSUM(#REF!,""&$J$4&"",$M$4:INDIRECT(ADDRESS($AK$3,$AK$4)))))),""),"") ->  | G18: =IF($Z$1=33,IFERROR(IF(ISTEXT($B18)=TRUE,DSUM(#REF!,""&LEFT($C18,LEN($C18)-$A18)&"",$L$4:INDIRECT(ADDRESS($AK$3,$AK$4)))/DSUM(#REF!,""&$B18&"",$L$4:INDIRECT(ADDRESS($AK$3,$AK$4))),IF($B18=0,DAVERAGE(#REF!,""&LEFT($C18,LEN($C18)-$A18)&"",$L$4:INDIRECT(ADDRESS($AK$3,$AK$4))),IF($B18=1,DSUM(#REF!,""&LEFT($C18,LEN($C18)-$A18)&"",$L$4:INDIRECT(ADDRESS($AK$3,$AK$4)))/DSUM(#REF!,""&$I$4&"",$L$4:INDIRECT(ADDRESS($AK$3,$AK$4))),IF($B18=2,DSUM(#REF!,""&LEFT($C18,LEN($C18)-$A18)&"",$L$4:INDIRECT(ADDRESS($AK$3,$AK$4)))/DSUM(#REF!,""&$J$4&"",$L$4:INDIRECT(ADDRESS($AK$3,$AK$4))))))),""),"") ->  | L18: Prodgren | M18: =$L$4 -> årets resultat pr. årsso | N18: =IF(N$4="","",N$4) -> 
A19: 10 | B19: Antal årssøer | C19: Bundet kapital pr. enhed | D19: =IF($Z$1=33,IF(Choices!$G$1=2,Landsgennemsnit!X19,IF(Choices!$G$1=3,Landsgennemsnit!Z19,"")),"") ->  | E19: =IF($Z$1=33,IF(Choices!$G$1=2,Landsgennemsnit!Y19,IF(Choices!$G$1=3,Landsgennemsnit!AA19,"")),"") ->  | F19: =IF($Z$1=33,IFERROR(IF(ISTEXT($B19)=TRUE,DSUM(#REF!,""&LEFT($C19,LEN($C19)-$A19)&"",$M$4:INDIRECT(ADDRESS($AK$3,$AK$4)))/DSUM(#REF!,""&$B19&"",$M$4:INDIRECT(ADDRESS($AK$3,$AK$4))),IF($B19=0,DAVERAGE(#REF!,""&LEFT($C19,LEN($C19)-$A19)&"",$M$4:INDIRECT(ADDRESS($AK$3,$AK$4))),IF($B19=1,DSUM(#REF!,""&LEFT($C19,LEN($C19)-$A19)&"",$M$4:INDIRECT(ADDRESS($AK$3,$AK$4)))/DSUM(#REF!,""&$I$4&"",$M$4:INDIRECT(ADDRESS($AK$3,$AK$4))),DSUM(#REF!,""&LEFT($C19,LEN($C19)-$A19)&"",$M$4:INDIRECT(ADDRESS($AK$3,$AK$4)))/DSUM(#REF!,""&$J$4&"",$M$4:INDIRECT(ADDRESS($AK$3,$AK$4)))))),""),"") ->  | G19: =IF($Z$1=33,IFERROR(IF(ISTEXT($B19)=TRUE,DSUM(#REF!,""&LEFT($C19,LEN($C19)-$A19)&"",$L$4:INDIRECT(ADDRESS($AK$3,$AK$4)))/DSUM(#REF!,""&$B19&"",$L$4:INDIRECT(ADDRESS($AK$3,$AK$4))),IF($B19=0,DAVERAGE(#REF!,""&LEFT($C19,LEN($C19)-$A19)&"",$L$4:INDIRECT(ADDRESS($AK$3,$AK$4))),IF($B19=1,DSUM(#REF!,""&LEFT($C19,LEN($C19)-$A19)&"",$L$4:INDIRECT(ADDRESS($AK$3,$AK$4)))/DSUM(#REF!,""&$I$4&"",$L$4:INDIRECT(ADDRESS($AK$3,$AK$4))),IF($B19=2,DSUM(#REF!,""&LEFT($C19,LEN($C19)-$A19)&"",$L$4:INDIRECT(ADDRESS($AK$3,$AK$4)))/DSUM(#REF!,""&$J$4&"",$L$4:INDIRECT(ADDRESS($AK$3,$AK$4))))))),""),"") ->  | J19: =IF($Z$1=33,SUMIFS(#REF!,#REF!,K19),"") ->  | K19: =IF($Z$1=33,DMAX(#REF!,""&$K$14&"",$L14:INDIRECT(ADDRESS($AK19,$AK$4))),"") ->  | L19: =$M$5 -> =7910 | M19: ="<"&K19&"" -> < | N19: =IF(N$4>0,N5,"") ->  | AJ19: Række | AK19: =ROW(AJ19)-2 -> 17
B20: 0 | C20: Anvendt rentesats, pct. | D20: =IF($Z$1=33,IF(Choices!$G$1=2,Landsgennemsnit!X20,IF(Choices!$G$1=3,Landsgennemsnit!Z20,"")),"") ->  | E20: =IF($Z$1=33,IF(Choices!$G$1=2,Landsgennemsnit!Y20,IF(Choices!$G$1=3,Landsgennemsnit!AA20,"")),"") ->  | F20: =IF($Z$1=33,IFERROR(IF(ISTEXT($B20)=TRUE,DSUM(#REF!,""&LEFT($C20,LEN($C20)-$A20)&"",$M$4:INDIRECT(ADDRESS($AK$3,$AK$4)))/DSUM(#REF!,""&$B20&"",$M$4:INDIRECT(ADDRESS($AK$3,$AK$4))),IF($B20=0,DAVERAGE(#REF!,""&LEFT($C20,LEN($C20)-$A20)&"",$M$4:INDIRECT(ADDRESS($AK$3,$AK$4))),IF($B20=1,DSUM(#REF!,""&LEFT($C20,LEN($C20)-$A20)&"",$M$4:INDIRECT(ADDRESS($AK$3,$AK$4)))/DSUM(#REF!,""&$I$4&"",$M$4:INDIRECT(ADDRESS($AK$3,$AK$4))),DSUM(#REF!,""&LEFT($C20,LEN($C20)-$A20)&"",$M$4:INDIRECT(ADDRESS($AK$3,$AK$4)))/DSUM(#REF!,""&$J$4&"",$M$4:INDIRECT(ADDRESS($AK$3,$AK$4)))))),""),"") ->  | G20: =IF($Z$1=33,IFERROR(IF(ISTEXT($B20)=TRUE,DSUM(#REF!,""&LEFT($C20,LEN($C20)-$A20)&"",$L$4:INDIRECT(ADDRESS($AK$3,$AK$4)))/DSUM(#REF!,""&$B20&"",$L$4:INDIRECT(ADDRESS($AK$3,$AK$4))),IF($B20=0,DAVERAGE(#REF!,""&LEFT($C20,LEN($C20)-$A20)&"",$L$4:INDIRECT(ADDRESS($AK$3,$AK$4))),IF($B20=1,DSUM(#REF!,""&LEFT($C20,LEN($C20)-$A20)&"",$L$4:INDIRECT(ADDRESS($AK$3,$AK$4)))/DSUM(#REF!,""&$I$4&"",$L$4:INDIRECT(ADDRESS($AK$3,$AK$4))),IF($B20=2,DSUM(#REF!,""&LEFT($C20,LEN($C20)-$A20)&"",$L$4:INDIRECT(ADDRESS($AK$3,$AK$4)))/DSUM(#REF!,""&$J$4&"",$L$4:INDIRECT(ADDRESS($AK$3,$AK$4))))))),""),"") ->  | L20: =$L$17 -> =7910 | M20: =M19 -> < | N20: =IF(N$4>0,N6,"") -> 
B21: Antal årssøer | C21: Resultatkorrektion ved 4 % rente | D21: =IF($Z$1=33,IF(Choices!$G$1=2,Landsgennemsnit!X21,IF(Choices!$G$1=3,Landsgennemsnit!Z21,"")),"") ->  | E21: =IF($Z$1=33,IF(Choices!$G$1=2,Landsgennemsnit!Y21,IF(Choices!$G$1=3,Landsgennemsnit!AA21,"")),"") ->  | F21: =IF($Z$1=33,IFERROR(IF(ISTEXT($B21)=TRUE,DSUM(#REF!,""&LEFT($C21,LEN($C21)-$A21)&"",$M$4:INDIRECT(ADDRESS($AK$3,$AK$4)))/DSUM(#REF!,""&$B21&"",$M$4:INDIRECT(ADDRESS($AK$3,$AK$4))),IF($B21=0,DAVERAGE(#REF!,""&LEFT($C21,LEN($C21)-$A21)&"",$M$4:INDIRECT(ADDRESS($AK$3,$AK$4))),IF($B21=1,DSUM(#REF!,""&LEFT($C21,LEN($C21)-$A21)&"",$M$4:INDIRECT(ADDRESS($AK$3,$AK$4)))/DSUM(#REF!,""&$I$4&"",$M$4:INDIRECT(ADDRESS($AK$3,$AK$4))),DSUM(#REF!,""&LEFT($C21,LEN($C21)-$A21)&"",$M$4:INDIRECT(ADDRESS($AK$3,$AK$4)))/DSUM(#REF!,""&$J$4&"",$M$4:INDIRECT(ADDRESS($AK$3,$AK$4)))))),""),"") ->  | G21: =IF($Z$1=33,IFERROR(IF(ISTEXT($B21)=TRUE,DSUM(#REF!,""&LEFT($C21,LEN($C21)-$A21)&"",$L$4:INDIRECT(ADDRESS($AK$3,$AK$4)))/DSUM(#REF!,""&$B21&"",$L$4:INDIRECT(ADDRESS($AK$3,$AK$4))),IF($B21=0,DAVERAGE(#REF!,""&LEFT($C21,LEN($C21)-$A21)&"",$L$4:INDIRECT(ADDRESS($AK$3,$AK$4))),IF($B21=1,DSUM(#REF!,""&LEFT($C21,LEN($C21)-$A21)&"",$L$4:INDIRECT(ADDRESS($AK$3,$AK$4)))/DSUM(#REF!,""&$I$4&"",$L$4:INDIRECT(ADDRESS($AK$3,$AK$4))),IF($B21=2,DSUM(#REF!,""&LEFT($C21,LEN($C21)-$A21)&"",$L$4:INDIRECT(ADDRESS($AK$3,$AK$4)))/DSUM(#REF!,""&$J$4&"",$L$4:INDIRECT(ADDRESS($AK$3,$AK$4))))))),""),"") ->  | L21: =$L$17 -> =7910 | M21: =M19 -> <
B22: 0 | C22: Afkastningsgrad | D22: =IF($Z$1=33,IF(Choices!$G$1=2,Landsgennemsnit!X22,IF(Choices!$G$1=3,Landsgennemsnit!Z22,"")),"") ->  | E22: =IF($Z$1=33,IF(Choices!$G$1=2,Landsgennemsnit!Y22,IF(Choices!$G$1=3,Landsgennemsnit!AA22,"")),"") ->  | F22: =IF($Z$1=33,IFERROR(IF(ISTEXT($B22)=TRUE,DSUM(#REF!,""&LEFT($C22,LEN($C22)-$A22)&"",$M$4:INDIRECT(ADDRESS($AK$3,$AK$4)))/DSUM(#REF!,""&$B22&"",$M$4:INDIRECT(ADDRESS($AK$3,$AK$4))),IF($B22=0,DAVERAGE(#REF!,""&LEFT($C22,LEN($C22)-$A22)&"",$M$4:INDIRECT(ADDRESS($AK$3,$AK$4))),IF($B22=1,DSUM(#REF!,""&LEFT($C22,LEN($C22)-$A22)&"",$M$4:INDIRECT(ADDRESS($AK$3,$AK$4)))/DSUM(#REF!,""&$I$4&"",$M$4:INDIRECT(ADDRESS($AK$3,$AK$4))),DSUM(#REF!,""&LEFT($C22,LEN($C22)-$A22)&"",$M$4:INDIRECT(ADDRESS($AK$3,$AK$4)))/DSUM(#REF!,""&$J$4&"",$M$4:INDIRECT(ADDRESS($AK$3,$AK$4)))))),""),"") ->  | G22: =IF($Z$1=33,IFERROR(IF(ISTEXT($B22)=TRUE,DSUM(#REF!,""&LEFT($C22,LEN($C22)-$A22)&"",$L$4:INDIRECT(ADDRESS($AK$3,$AK$4)))/DSUM(#REF!,""&$B22&"",$L$4:INDIRECT(ADDRESS($AK$3,$AK$4))),IF($B22=0,DAVERAGE(#REF!,""&LEFT($C22,LEN($C22)-$A22)&"",$L$4:INDIRECT(ADDRESS($AK$3,$AK$4))),IF($B22=1,DSUM(#REF!,""&LEFT($C22,LEN($C22)-$A22)&"",$L$4:INDIRECT(ADDRESS($AK$3,$AK$4)))/DSUM(#REF!,""&$I$4&"",$L$4:INDIRECT(ADDRESS($AK$3,$AK$4))),IF($B22=2,DSUM(#REF!,""&LEFT($C22,LEN($C22)-$A22)&"",$L$4:INDIRECT(ADDRESS($AK$3,$AK$4)))/DSUM(#REF!,""&$J$4&"",$L$4:INDIRECT(ADDRESS($AK$3,$AK$4))))))),""),"") ->  | L22: Prodgren | M22: =$L$4 -> årets resultat pr. årsso | N22: =IF(N$4="","",N$4) -> 
D23: =IF($Z$1=33,IF(Choices!$G$1=2,Landsgennemsnit!X23,IF(Choices!$G$1=3,Landsgennemsnit!Z23,"")),"") ->  | E23: =IF($Z$1=33,IF(Choices!$G$1=2,Landsgennemsnit!Y23,IF(Choices!$G$1=3,Landsgennemsnit!AA23,"")),"") ->  | F23: =IF($Z$1=33,IFERROR(IF(ISTEXT($B23)=TRUE,DSUM(#REF!,""&LEFT($C23,LEN($C23)-$A23)&"",$M$4:INDIRECT(ADDRESS($AK$3,$AK$4)))/DSUM(#REF!,""&$B23&"",$M$4:INDIRECT(ADDRESS($AK$3,$AK$4))),IF($B23=0,DAVERAGE(#REF!,""&LEFT($C23,LEN($C23)-$A23)&"",$M$4:INDIRECT(ADDRESS($AK$3,$AK$4))),IF($B23=1,DSUM(#REF!,""&LEFT($C23,LEN($C23)-$A23)&"",$M$4:INDIRECT(ADDRESS($AK$3,$AK$4)))/DSUM(#REF!,""&$I$4&"",$M$4:INDIRECT(ADDRESS($AK$3,$AK$4))),DSUM(#REF!,""&LEFT($C23,LEN($C23)-$A23)&"",$M$4:INDIRECT(ADDRESS($AK$3,$AK$4)))/DSUM(#REF!,""&$J$4&"",$M$4:INDIRECT(ADDRESS($AK$3,$AK$4)))))),""),"") ->  | G23: =IF($Z$1=33,IFERROR(IF(ISTEXT($B23)=TRUE,DSUM(#REF!,""&LEFT($C23,LEN($C23)-$A23)&"",$L$4:INDIRECT(ADDRESS($AK$3,$AK$4)))/DSUM(#REF!,""&$B23&"",$L$4:INDIRECT(ADDRESS($AK$3,$AK$4))),IF($B23=0,DAVERAGE(#REF!,""&LEFT($C23,LEN($C23)-$A23)&"",$L$4:INDIRECT(ADDRESS($AK$3,$AK$4))),IF($B23=1,DSUM(#REF!,""&LEFT($C23,LEN($C23)-$A23)&"",$L$4:INDIRECT(ADDRESS($AK$3,$AK$4)))/DSUM(#REF!,""&$I$4&"",$L$4:INDIRECT(ADDRESS($AK$3,$AK$4))),IF($B23=2,DSUM(#REF!,""&LEFT($C23,LEN($C23)-$A23)&"",$L$4:INDIRECT(ADDRESS($AK$3,$AK$4)))/DSUM(#REF!,""&$J$4&"",$L$4:INDIRECT(ADDRESS($AK$3,$AK$4))))))),""),"") ->  | J23: =IF($Z$1=33,SUMIFS(#REF!,#REF!,K23),"") ->  | K23: =IF($Z$1=33,DMAX(#REF!,""&$K$14&"",$L18:INDIRECT(ADDRESS($AK23,$AK$4))),"") ->  | L23: =$M$5 -> =7910 | M23: ="<"&K23&"" -> < | N23: =IF(N$4>0,N5,"") ->  | AJ23: Række | AK23: =ROW(AJ23)-2 -> 21
C24: Fremstillingspris pr. smågris | D24: =IF($Z$1=33,IF(Choices!$G$1=2,Landsgennemsnit!X24,IF(Choices!$G$1=3,Landsgennemsnit!Z24,"")),"") ->  | E24: =IF($Z$1=33,IF(Choices!$G$1=2,Landsgennemsnit!Y24,IF(Choices!$G$1=3,Landsgennemsnit!AA24,"")),"") ->  | F24: =IF($Z$1=33,IFERROR(IF(ISTEXT($B24)=TRUE,DSUM(#REF!,""&LEFT($C24,LEN($C24)-$A24)&"",$M$4:INDIRECT(ADDRESS($AK$3,$AK$4)))/DSUM(#REF!,""&$B24&"",$M$4:INDIRECT(ADDRESS($AK$3,$AK$4))),IF($B24=0,DAVERAGE(#REF!,""&LEFT($C24,LEN($C24)-$A24)&"",$M$4:INDIRECT(ADDRESS($AK$3,$AK$4))),IF($B24=1,DSUM(#REF!,""&LEFT($C24,LEN($C24)-$A24)&"",$M$4:INDIRECT(ADDRESS($AK$3,$AK$4)))/DSUM(#REF!,""&$I$4&"",$M$4:INDIRECT(ADDRESS($AK$3,$AK$4))),DSUM(#REF!,""&LEFT($C24,LEN($C24)-$A24)&"",$M$4:INDIRECT(ADDRESS($AK$3,$AK$4)))/DSUM(#REF!,""&$J$4&"",$M$4:INDIRECT(ADDRESS($AK$3,$AK$4)))))),""),"") ->  | G24: =IF($Z$1=33,IFERROR(IF(ISTEXT($B24)=TRUE,DSUM(#REF!,""&LEFT($C24,LEN($C24)-$A24)&"",$L$4:INDIRECT(ADDRESS($AK$3,$AK$4)))/DSUM(#REF!,""&$B24&"",$L$4:INDIRECT(ADDRESS($AK$3,$AK$4))),IF($B24=0,DAVERAGE(#REF!,""&LEFT($C24,LEN($C24)-$A24)&"",$L$4:INDIRECT(ADDRESS($AK$3,$AK$4))),IF($B24=1,DSUM(#REF!,""&LEFT($C24,LEN($C24)-$A24)&"",$L$4:INDIRECT(ADDRESS($AK$3,$AK$4)))/DSUM(#REF!,""&$I$4&"",$L$4:INDIRECT(ADDRESS($AK$3,$AK$4))),IF($B24=2,DSUM(#REF!,""&LEFT($C24,LEN($C24)-$A24)&"",$L$4:INDIRECT(ADDRESS($AK$3,$AK$4)))/DSUM(#REF!,""&$J$4&"",$L$4:INDIRECT(ADDRESS($AK$3,$AK$4))))))),""),"") ->  | L24: =$L$17 -> =7910 | M24: =M23 -> < | N24: =IF(N$4>0,N6,"") -> 
C25: Kr. pr. solgt smågris | D25: =IF($Z$1=33,IF(Choices!$G$1=2,Landsgennemsnit!X25,IF(Choices!$G$1=3,Landsgennemsnit!Z25,"")),"") ->  | E25: =IF($Z$1=33,IF(Choices!$G$1=2,Landsgennemsnit!Y25,IF(Choices!$G$1=3,Landsgennemsnit!AA25,"")),"") ->  | F25: =IF($Z$1=33,IFERROR(IF(ISTEXT($B25)=TRUE,DSUM(#REF!,""&LEFT($C25,LEN($C25)-$A25)&"",$M$4:INDIRECT(ADDRESS($AK$3,$AK$4)))/DSUM(#REF!,""&$B25&"",$M$4:INDIRECT(ADDRESS($AK$3,$AK$4))),IF($B25=0,DAVERAGE(#REF!,""&LEFT($C25,LEN($C25)-$A25)&"",$M$4:INDIRECT(ADDRESS($AK$3,$AK$4))),IF($B25=1,DSUM(#REF!,""&LEFT($C25,LEN($C25)-$A25)&"",$M$4:INDIRECT(ADDRESS($AK$3,$AK$4)))/DSUM(#REF!,""&$I$4&"",$M$4:INDIRECT(ADDRESS($AK$3,$AK$4))),DSUM(#REF!,""&LEFT($C25,LEN($C25)-$A25)&"",$M$4:INDIRECT(ADDRESS($AK$3,$AK$4)))/DSUM(#REF!,""&$J$4&"",$M$4:INDIRECT(ADDRESS($AK$3,$AK$4)))))),""),"") ->  | G25: =IF($Z$1=33,IFERROR(IF(ISTEXT($B25)=TRUE,DSUM(#REF!,""&LEFT($C25,LEN($C25)-$A25)&"",$L$4:INDIRECT(ADDRESS($AK$3,$AK$4)))/DSUM(#REF!,""&$B25&"",$L$4:INDIRECT(ADDRESS($AK$3,$AK$4))),IF($B25=0,DAVERAGE(#REF!,""&LEFT($C25,LEN($C25)-$A25)&"",$L$4:INDIRECT(ADDRESS($AK$3,$AK$4))),IF($B25=1,DSUM(#REF!,""&LEFT($C25,LEN($C25)-$A25)&"",$L$4:INDIRECT(ADDRESS($AK$3,$AK$4)))/DSUM(#REF!,""&$I$4&"",$L$4:INDIRECT(ADDRESS($AK$3,$AK$4))),IF($B25=2,DSUM(#REF!,""&LEFT($C25,LEN($C25)-$A25)&"",$L$4:INDIRECT(ADDRESS($AK$3,$AK$4)))/DSUM(#REF!,""&$J$4&"",$L$4:INDIRECT(ADDRESS($AK$3,$AK$4))))))),""),"") ->  | L25: =$L$17 -> =7910 | M25: =M23 -> <
D26: =IF($Z$1=33,IF(Choices!$G$1=2,Landsgennemsnit!X26,IF(Choices!$G$1=3,Landsgennemsnit!Z26,"")),"") ->  | E26: =IF($Z$1=33,IF(Choices!$G$1=2,Landsgennemsnit!Y26,IF(Choices!$G$1=3,Landsgennemsnit!AA26,"")),"") ->  | F26: =IF($Z$1=33,IFERROR(IF(ISTEXT($B26)=TRUE,DSUM(#REF!,""&LEFT($C26,LEN($C26)-$A26)&"",$M$4:INDIRECT(ADDRESS($AK$3,$AK$4)))/DSUM(#REF!,""&$B26&"",$M$4:INDIRECT(ADDRESS($AK$3,$AK$4))),IF($B26=0,DAVERAGE(#REF!,""&LEFT($C26,LEN($C26)-$A26)&"",$M$4:INDIRECT(ADDRESS($AK$3,$AK$4))),IF($B26=1,DSUM(#REF!,""&LEFT($C26,LEN($C26)-$A26)&"",$M$4:INDIRECT(ADDRESS($AK$3,$AK$4)))/DSUM(#REF!,""&$I$4&"",$M$4:INDIRECT(ADDRESS($AK$3,$AK$4))),DSUM(#REF!,""&LEFT($C26,LEN($C26)-$A26)&"",$M$4:INDIRECT(ADDRESS($AK$3,$AK$4)))/DSUM(#REF!,""&$J$4&"",$M$4:INDIRECT(ADDRESS($AK$3,$AK$4)))))),""),"") ->  | G26: =IF($Z$1=33,IFERROR(IF(ISTEXT($B26)=TRUE,DSUM(#REF!,""&LEFT($C26,LEN($C26)-$A26)&"",$L$4:INDIRECT(ADDRESS($AK$3,$AK$4)))/DSUM(#REF!,""&$B26&"",$L$4:INDIRECT(ADDRESS($AK$3,$AK$4))),IF($B26=0,DAVERAGE(#REF!,""&LEFT($C26,LEN($C26)-$A26)&"",$L$4:INDIRECT(ADDRESS($AK$3,$AK$4))),IF($B26=1,DSUM(#REF!,""&LEFT($C26,LEN($C26)-$A26)&"",$L$4:INDIRECT(ADDRESS($AK$3,$AK$4)))/DSUM(#REF!,""&$I$4&"",$L$4:INDIRECT(ADDRESS($AK$3,$AK$4))),IF($B26=2,DSUM(#REF!,""&LEFT($C26,LEN($C26)-$A26)&"",$L$4:INDIRECT(ADDRESS($AK$3,$AK$4)))/DSUM(#REF!,""&$J$4&"",$L$4:INDIRECT(ADDRESS($AK$3,$AK$4))))))),""),"") ->  | L26: Prodgren | M26: =$L$4 -> årets resultat pr. årsso | N26: =IF(N$4="","",N$4) -> 
A27: 7 | B27: Vægt soyaskrå, kg | C27: Pris soyaskrå, kr. pr. kg | D27: =IF($Z$1=33,IF(Choices!$G$1=2,Landsgennemsnit!X27,IF(Choices!$G$1=3,Landsgennemsnit!Z27,"")),"") ->  | E27: =IF($Z$1=33,IF(Choices!$G$1=2,Landsgennemsnit!Y27,IF(Choices!$G$1=3,Landsgennemsnit!AA27,"")),"") ->  | F27: =IF($Z$1=33,IFERROR(IF(ISTEXT($B27)=TRUE,DSUM(#REF!,""&LEFT($C27,LEN($C27)-$A27)&"",$M$4:INDIRECT(ADDRESS($AK$3,$AK$4)))/DSUM(#REF!,""&$B27&"",$M$4:INDIRECT(ADDRESS($AK$3,$AK$4))),IF($B27=0,DAVERAGE(#REF!,""&LEFT($C27,LEN($C27)-$A27)&"",$M$4:INDIRECT(ADDRESS($AK$3,$AK$4))),IF($B27=1,DSUM(#REF!,""&LEFT($C27,LEN($C27)-$A27)&"",$M$4:INDIRECT(ADDRESS($AK$3,$AK$4)))/DSUM(#REF!,""&$I$4&"",$M$4:INDIRECT(ADDRESS($AK$3,$AK$4))),DSUM(#REF!,""&LEFT($C27,LEN($C27)-$A27)&"",$M$4:INDIRECT(ADDRESS($AK$3,$AK$4)))/DSUM(#REF!,""&$J$4&"",$M$4:INDIRECT(ADDRESS($AK$3,$AK$4)))))),""),"") ->  | G27: =IF($Z$1=33,IFERROR(IF(ISTEXT($B27)=TRUE,DSUM(#REF!,""&LEFT($C27,LEN($C27)-$A27)&"",$L$4:INDIRECT(ADDRESS($AK$3,$AK$4)))/DSUM(#REF!,""&$B27&"",$L$4:INDIRECT(ADDRESS($AK$3,$AK$4))),IF($B27=0,DAVERAGE(#REF!,""&LEFT($C27,LEN($C27)-$A27)&"",$L$4:INDIRECT(ADDRESS($AK$3,$AK$4))),IF($B27=1,DSUM(#REF!,""&LEFT($C27,LEN($C27)-$A27)&"",$L$4:INDIRECT(ADDRESS($AK$3,$AK$4)))/DSUM(#REF!,""&$I$4&"",$L$4:INDIRECT(ADDRESS($AK$3,$AK$4))),IF($B27=2,DSUM(#REF!,""&LEFT($C27,LEN($C27)-$A27)&"",$L$4:INDIRECT(ADDRESS($AK$3,$AK$4)))/DSUM(#REF!,""&$J$4&"",$L$4:INDIRECT(ADDRESS($AK$3,$AK$4))))))),""),"") ->  | J27: =IF($Z$1=33,SUMIFS(#REF!,#REF!,K27),"") ->  | K27: =IF($Z$1=33,DMAX(#REF!,""&$K$14&"",$L22:INDIRECT(ADDRESS($AK27,$AK$4))),"") ->  | L27: =$M$5 -> =7910 | M27: ="<"&K27&"" -> < | N27: =IF(N$4>0,N5,"") ->  | AJ27: Række | AK27: =ROW(AJ27)-2 -> 25
A28: 7 | B28: vægt tilskudsfoder, kg | C28: Pris tilskudsfoder, kr. pr. kg | D28: =IF($Z$1=33,IF(Choices!$G$1=2,Landsgennemsnit!X28,IF(Choices!$G$1=3,Landsgennemsnit!Z28,"")),"") ->  | E28: =IF($Z$1=33,IF(Choices!$G$1=2,Landsgennemsnit!Y28,IF(Choices!$G$1=3,Landsgennemsnit!AA28,"")),"") ->  | F28: =IF($Z$1=33,IFERROR(IF(ISTEXT($B28)=TRUE,DSUM(#REF!,""&LEFT($C28,LEN($C28)-$A28)&"",$M$4:INDIRECT(ADDRESS($AK$3,$AK$4)))/DSUM(#REF!,""&$B28&"",$M$4:INDIRECT(ADDRESS($AK$3,$AK$4))),IF($B28=0,DAVERAGE(#REF!,""&LEFT($C28,LEN($C28)-$A28)&"",$M$4:INDIRECT(ADDRESS($AK$3,$AK$4))),IF($B28=1,DSUM(#REF!,""&LEFT($C28,LEN($C28)-$A28)&"",$M$4:INDIRECT(ADDRESS($AK$3,$AK$4)))/DSUM(#REF!,""&$I$4&"",$M$4:INDIRECT(ADDRESS($AK$3,$AK$4))),DSUM(#REF!,""&LEFT($C28,LEN($C28)-$A28)&"",$M$4:INDIRECT(ADDRESS($AK$3,$AK$4)))/DSUM(#REF!,""&$J$4&"",$M$4:INDIRECT(ADDRESS($AK$3,$AK$4)))))),""),"") ->  | G28: =IF($Z$1=33,IFERROR(IF(ISTEXT($B28)=TRUE,DSUM(#REF!,""&LEFT($C28,LEN($C28)-$A28)&"",$L$4:INDIRECT(ADDRESS($AK$3,$AK$4)))/DSUM(#REF!,""&$B28&"",$L$4:INDIRECT(ADDRESS($AK$3,$AK$4))),IF($B28=0,DAVERAGE(#REF!,""&LEFT($C28,LEN($C28)-$A28)&"",$L$4:INDIRECT(ADDRESS($AK$3,$AK$4))),IF($B28=1,DSUM(#REF!,""&LEFT($C28,LEN($C28)-$A28)&"",$L$4:INDIRECT(ADDRESS($AK$3,$AK$4)))/DSUM(#REF!,""&$I$4&"",$L$4:INDIRECT(ADDRESS($AK$3,$AK$4))),IF($B28=2,DSUM(#REF!,""&LEFT($C28,LEN($C28)-$A28)&"",$L$4:INDIRECT(ADDRESS($AK$3,$AK$4)))/DSUM(#REF!,""&$J$4&"",$L$4:INDIRECT(ADDRESS($AK$3,$AK$4))))))),""),"") ->  | L28: =$L$17 -> =7910 | M28: =M27 -> < | N28: =IF(N$4>0,N6,"") -> 
A29: 7 | B29: Vægt tilskudsfoder smågrise, kg | C29: Pris tilskudsfoder smågrise, kr. pr. kg | D29: =IF($Z$1=33,IF(Choices!$G$1=2,Landsgennemsnit!X29,IF(Choices!$G$1=3,Landsgennemsnit!Z29,"")),"") ->  | E29: =IF($Z$1=33,IF(Choices!$G$1=2,Landsgennemsnit!Y29,IF(Choices!$G$1=3,Landsgennemsnit!AA29,"")),"") ->  | F29: =IF($Z$1=33,IFERROR(IF(ISTEXT($B29)=TRUE,DSUM(#REF!,""&LEFT($C29,LEN($C29)-$A29)&"",$M$4:INDIRECT(ADDRESS($AK$3,$AK$4)))/DSUM(#REF!,""&$B29&"",$M$4:INDIRECT(ADDRESS($AK$3,$AK$4))),IF($B29=0,DAVERAGE(#REF!,""&LEFT($C29,LEN($C29)-$A29)&"",$M$4:INDIRECT(ADDRESS($AK$3,$AK$4))),IF($B29=1,DSUM(#REF!,""&LEFT($C29,LEN($C29)-$A29)&"",$M$4:INDIRECT(ADDRESS($AK$3,$AK$4)))/DSUM(#REF!,""&$I$4&"",$M$4:INDIRECT(ADDRESS($AK$3,$AK$4))),DSUM(#REF!,""&LEFT($C29,LEN($C29)-$A29)&"",$M$4:INDIRECT(ADDRESS($AK$3,$AK$4)))/DSUM(#REF!,""&$J$4&"",$M$4:INDIRECT(ADDRESS($AK$3,$AK$4)))))),""),"") ->  | G29: =IF($Z$1=33,IFERROR(IF(ISTEXT($B29)=TRUE,DSUM(#REF!,""&LEFT($C29,LEN($C29)-$A29)&"",$L$4:INDIRECT(ADDRESS($AK$3,$AK$4)))/DSUM(#REF!,""&$B29&"",$L$4:INDIRECT(ADDRESS($AK$3,$AK$4))),IF($B29=0,DAVERAGE(#REF!,""&LEFT($C29,LEN($C29)-$A29)&"",$L$4:INDIRECT(ADDRESS($AK$3,$AK$4))),IF($B29=1,DSUM(#REF!,""&LEFT($C29,LEN($C29)-$A29)&"",$L$4:INDIRECT(ADDRESS($AK$3,$AK$4)))/DSUM(#REF!,""&$I$4&"",$L$4:INDIRECT(ADDRESS($AK$3,$AK$4))),IF($B29=2,DSUM(#REF!,""&LEFT($C29,LEN($C29)-$A29)&"",$L$4:INDIRECT(ADDRESS($AK$3,$AK$4)))/DSUM(#REF!,""&$J$4&"",$L$4:INDIRECT(ADDRESS($AK$3,$AK$4))))))),""),"") ->  | L29: =$L$17 -> =7910 | M29: =M27 -> < | N29: =IF(N$4>0,N7,"") -> 
A30: 7 | B30: Vægt proteinblanding, kg | C30: Pris proteinblanding, kr. pr. kg | D30: =IF($Z$1=33,IF(Choices!$G$1=2,Landsgennemsnit!X30,IF(Choices!$G$1=3,Landsgennemsnit!Z30,"")),"") ->  | E30: =IF($Z$1=33,IF(Choices!$G$1=2,Landsgennemsnit!Y30,IF(Choices!$G$1=3,Landsgennemsnit!AA30,"")),"") ->  | F30: =IF($Z$1=33,IFERROR(IF(ISTEXT($B30)=TRUE,DSUM(#REF!,""&LEFT($C30,LEN($C30)-$A30)&"",$M$4:INDIRECT(ADDRESS($AK$3,$AK$4)))/DSUM(#REF!,""&$B30&"",$M$4:INDIRECT(ADDRESS($AK$3,$AK$4))),IF($B30=0,DAVERAGE(#REF!,""&LEFT($C30,LEN($C30)-$A30)&"",$M$4:INDIRECT(ADDRESS($AK$3,$AK$4))),IF($B30=1,DSUM(#REF!,""&LEFT($C30,LEN($C30)-$A30)&"",$M$4:INDIRECT(ADDRESS($AK$3,$AK$4)))/DSUM(#REF!,""&$I$4&"",$M$4:INDIRECT(ADDRESS($AK$3,$AK$4))),DSUM(#REF!,""&LEFT($C30,LEN($C30)-$A30)&"",$M$4:INDIRECT(ADDRESS($AK$3,$AK$4)))/DSUM(#REF!,""&$J$4&"",$M$4:INDIRECT(ADDRESS($AK$3,$AK$4)))))),""),"") ->  | G30: =IF($Z$1=33,IFERROR(IF(ISTEXT($B30)=TRUE,DSUM(#REF!,""&LEFT($C30,LEN($C30)-$A30)&"",$L$4:INDIRECT(ADDRESS($AK$3,$AK$4)))/DSUM(#REF!,""&$B30&"",$L$4:INDIRECT(ADDRESS($AK$3,$AK$4))),IF($B30=0,DAVERAGE(#REF!,""&LEFT($C30,LEN($C30)-$A30)&"",$L$4:INDIRECT(ADDRESS($AK$3,$AK$4))),IF($B30=1,DSUM(#REF!,""&LEFT($C30,LEN($C30)-$A30)&"",$L$4:INDIRECT(ADDRESS($AK$3,$AK$4)))/DSUM(#REF!,""&$I$4&"",$L$4:INDIRECT(ADDRESS($AK$3,$AK$4))),IF($B30=2,DSUM(#REF!,""&LEFT($C30,LEN($C30)-$A30)&"",$L$4:INDIRECT(ADDRESS($AK$3,$AK$4)))/DSUM(#REF!,""&$J$4&"",$L$4:INDIRECT(ADDRESS($AK$3,$AK$4))))))),""),"") ->  | H30: =IFERROR(IF($B27=0,DAVERAGE(#REF!,""&LEFT($C27,LEN($C27)-$A27)&"",#REF!),IF($B27=1,DSUM(#REF!,""&LEFT($C27,LEN($C27)-$A27)&"",#REF!)/DSUM(#REF!,""&$I$4&"",#REF!),DSUM(#REF!,""&LEFT($C27,LEN($C27)-$A27)&"",#REF!)/DSUM(#REF!,""&$J$4&"",#REF!))),"") ->  | L30: Prodgren | M30: =$L$4 -> årets resultat pr. årsso | N30: =IF(N$4="","",N$4) -> 
A31: 7 | B31: Vægt smågriseblanding, kg | C31: Pris smågriseblanding, kr. pr. kg | D31: =IF($Z$1=33,IF(Choices!$G$1=2,Landsgennemsnit!X31,IF(Choices!$G$1=3,Landsgennemsnit!Z31,"")),"") ->  | E31: =IF($Z$1=33,IF(Choices!$G$1=2,Landsgennemsnit!Y31,IF(Choices!$G$1=3,Landsgennemsnit!AA31,"")),"") ->  | F31: =IF($Z$1=33,IFERROR(IF(ISTEXT($B31)=TRUE,DSUM(#REF!,""&LEFT($C31,LEN($C31)-$A31)&"",$M$4:INDIRECT(ADDRESS($AK$3,$AK$4)))/DSUM(#REF!,""&$B31&"",$M$4:INDIRECT(ADDRESS($AK$3,$AK$4))),IF($B31=0,DAVERAGE(#REF!,""&LEFT($C31,LEN($C31)-$A31)&"",$M$4:INDIRECT(ADDRESS($AK$3,$AK$4))),IF($B31=1,DSUM(#REF!,""&LEFT($C31,LEN($C31)-$A31)&"",$M$4:INDIRECT(ADDRESS($AK$3,$AK$4)))/DSUM(#REF!,""&$I$4&"",$M$4:INDIRECT(ADDRESS($AK$3,$AK$4))),DSUM(#REF!,""&LEFT($C31,LEN($C31)-$A31)&"",$M$4:INDIRECT(ADDRESS($AK$3,$AK$4)))/DSUM(#REF!,""&$J$4&"",$M$4:INDIRECT(ADDRESS($AK$3,$AK$4)))))),""),"") ->  | G31: =IF($Z$1=33,IFERROR(IF(ISTEXT($B31)=TRUE,DSUM(#REF!,""&LEFT($C31,LEN($C31)-$A31)&"",$L$4:INDIRECT(ADDRESS($AK$3,$AK$4)))/DSUM(#REF!,""&$B31&"",$L$4:INDIRECT(ADDRESS($AK$3,$AK$4))),IF($B31=0,DAVERAGE(#REF!,""&LEFT($C31,LEN($C31)-$A31)&"",$L$4:INDIRECT(ADDRESS($AK$3,$AK$4))),IF($B31=1,DSUM(#REF!,""&LEFT($C31,LEN($C31)-$A31)&"",$L$4:INDIRECT(ADDRESS($AK$3,$AK$4)))/DSUM(#REF!,""&$I$4&"",$L$4:INDIRECT(ADDRESS($AK$3,$AK$4))),IF($B31=2,DSUM(#REF!,""&LEFT($C31,LEN($C31)-$A31)&"",$L$4:INDIRECT(ADDRESS($AK$3,$AK$4)))/DSUM(#REF!,""&$J$4&"",$L$4:INDIRECT(ADDRESS($AK$3,$AK$4))))))),""),"") ->  | J31: =IF($Z$1=33,SUMIFS(#REF!,#REF!,K31),"") ->  | K31: =IF($Z$1=33,DMAX(#REF!,""&$K$14&"",$L26:INDIRECT(ADDRESS($AK31,$AK$4))),"") ->  | L31: =$M$5 -> =7910 | M31: ="<"&K31&"" -> < | N31: =IF(N$4>0,N5,"") ->  | AJ31: Række | AK31: =ROW(AJ31)-2 -> 29
A32: 7 | B32: Vægt færdigblanding søer, kg | C32: Pris færdigblanding søer, kr. pr. kg | D32: =IF($Z$1=33,IF(Choices!$G$1=2,Landsgennemsnit!X32,IF(Choices!$G$1=3,Landsgennemsnit!Z32,"")),"") ->  | E32: =IF($Z$1=33,IF(Choices!$G$1=2,Landsgennemsnit!Y32,IF(Choices!$G$1=3,Landsgennemsnit!AA32,"")),"") ->  | F32: =IF($Z$1=33,IFERROR(IF(ISTEXT($B32)=TRUE,DSUM(#REF!,""&LEFT($C32,LEN($C32)-$A32)&"",$M$4:INDIRECT(ADDRESS($AK$3,$AK$4)))/DSUM(#REF!,""&$B32&"",$M$4:INDIRECT(ADDRESS($AK$3,$AK$4))),IF($B32=0,DAVERAGE(#REF!,""&LEFT($C32,LEN($C32)-$A32)&"",$M$4:INDIRECT(ADDRESS($AK$3,$AK$4))),IF($B32=1,DSUM(#REF!,""&LEFT($C32,LEN($C32)-$A32)&"",$M$4:INDIRECT(ADDRESS($AK$3,$AK$4)))/DSUM(#REF!,""&$I$4&"",$M$4:INDIRECT(ADDRESS($AK$3,$AK$4))),DSUM(#REF!,""&LEFT($C32,LEN($C32)-$A32)&"",$M$4:INDIRECT(ADDRESS($AK$3,$AK$4)))/DSUM(#REF!,""&$J$4&"",$M$4:INDIRECT(ADDRESS($AK$3,$AK$4)))))),""),"") ->  | G32: =IF($Z$1=33,IFERROR(IF(ISTEXT($B32)=TRUE,DSUM(#REF!,""&LEFT($C32,LEN($C32)-$A32)&"",$L$4:INDIRECT(ADDRESS($AK$3,$AK$4)))/DSUM(#REF!,""&$B32&"",$L$4:INDIRECT(ADDRESS($AK$3,$AK$4))),IF($B32=0,DAVERAGE(#REF!,""&LEFT($C32,LEN($C32)-$A32)&"",$L$4:INDIRECT(ADDRESS($AK$3,$AK$4))),IF($B32=1,DSUM(#REF!,""&LEFT($C32,LEN($C32)-$A32)&"",$L$4:INDIRECT(ADDRESS($AK$3,$AK$4)))/DSUM(#REF!,""&$I$4&"",$L$4:INDIRECT(ADDRESS($AK$3,$AK$4))),IF($B32=2,DSUM(#REF!,""&LEFT($C32,LEN($C32)-$A32)&"",$L$4:INDIRECT(ADDRESS($AK$3,$AK$4)))/DSUM(#REF!,""&$J$4&"",$L$4:INDIRECT(ADDRESS($AK$3,$AK$4))))))),""),"") ->  | L32: =$L$17 -> =7910 | M32: =M31 -> < | N32: =IF(N$4>0,N6,"") -> 
A33: 7 | B33: Vægt færdigblanding smågrise, kg | C33: Pris færdigblanding smågrise, kr. pr. kg | D33: =IF($Z$1=33,IF(Choices!$G$1=2,Landsgennemsnit!X33,IF(Choices!$G$1=3,Landsgennemsnit!Z33,"")),"") ->  | E33: =IF($Z$1=33,IF(Choices!$G$1=2,Landsgennemsnit!Y33,IF(Choices!$G$1=3,Landsgennemsnit!AA33,"")),"") ->  | F33: =IF($Z$1=33,IFERROR(IF(ISTEXT($B33)=TRUE,DSUM(#REF!,""&LEFT($C33,LEN($C33)-$A33)&"",$M$4:INDIRECT(ADDRESS($AK$3,$AK$4)))/DSUM(#REF!,""&$B33&"",$M$4:INDIRECT(ADDRESS($AK$3,$AK$4))),IF($B33=0,DAVERAGE(#REF!,""&LEFT($C33,LEN($C33)-$A33)&"",$M$4:INDIRECT(ADDRESS($AK$3,$AK$4))),IF($B33=1,DSUM(#REF!,""&LEFT($C33,LEN($C33)-$A33)&"",$M$4:INDIRECT(ADDRESS($AK$3,$AK$4)))/DSUM(#REF!,""&$I$4&"",$M$4:INDIRECT(ADDRESS($AK$3,$AK$4))),DSUM(#REF!,""&LEFT($C33,LEN($C33)-$A33)&"",$M$4:INDIRECT(ADDRESS($AK$3,$AK$4)))/DSUM(#REF!,""&$J$4&"",$M$4:INDIRECT(ADDRESS($AK$3,$AK$4)))))),""),"") ->  | G33: =IF($Z$1=33,IFERROR(IF(ISTEXT($B33)=TRUE,DSUM(#REF!,""&LEFT($C33,LEN($C33)-$A33)&"",$L$4:INDIRECT(ADDRESS($AK$3,$AK$4)))/DSUM(#REF!,""&$B33&"",$L$4:INDIRECT(ADDRESS($AK$3,$AK$4))),IF($B33=0,DAVERAGE(#REF!,""&LEFT($C33,LEN($C33)-$A33)&"",$L$4:INDIRECT(ADDRESS($AK$3,$AK$4))),IF($B33=1,DSUM(#REF!,""&LEFT($C33,LEN($C33)-$A33)&"",$L$4:INDIRECT(ADDRESS($AK$3,$AK$4)))/DSUM(#REF!,""&$I$4&"",$L$4:INDIRECT(ADDRESS($AK$3,$AK$4))),IF($B33=2,DSUM(#REF!,""&LEFT($C33,LEN($C33)-$A33)&"",$L$4:INDIRECT(ADDRESS($AK$3,$AK$4)))/DSUM(#REF!,""&$J$4&"",$L$4:INDIRECT(ADDRESS($AK$3,$AK$4))))))),""),"") ->  | L33: =$L$17 -> =7910 | M33: =M31 -> <
D34: =IF($Z$1=33,IF(Choices!$G$1=2,Landsgennemsnit!X34,IF(Choices!$G$1=3,Landsgennemsnit!Z34,"")),"") ->  | E34: =IF($Z$1=33,IF(Choices!$G$1=2,Landsgennemsnit!Y34,IF(Choices!$G$1=3,Landsgennemsnit!AA34,"")),"") ->  | F34: =IF($Z$1=33,IFERROR(IF(ISTEXT($B34)=TRUE,DSUM(#REF!,""&LEFT($C34,LEN($C34)-$A34)&"",$M$4:INDIRECT(ADDRESS($AK$3,$AK$4)))/DSUM(#REF!,""&$B34&"",$M$4:INDIRECT(ADDRESS($AK$3,$AK$4))),IF($B34=0,DAVERAGE(#REF!,""&LEFT($C34,LEN($C34)-$A34)&"",$M$4:INDIRECT(ADDRESS($AK$3,$AK$4))),IF($B34=1,DSUM(#REF!,""&LEFT($C34,LEN($C34)-$A34)&"",$M$4:INDIRECT(ADDRESS($AK$3,$AK$4)))/DSUM(#REF!,""&$I$4&"",$M$4:INDIRECT(ADDRESS($AK$3,$AK$4))),DSUM(#REF!,""&LEFT($C34,LEN($C34)-$A34)&"",$M$4:INDIRECT(ADDRESS($AK$3,$AK$4)))/DSUM(#REF!,""&$J$4&"",$M$4:INDIRECT(ADDRESS($AK$3,$AK$4)))))),""),"") ->  | G34: =IF($Z$1=33,IFERROR(IF(ISTEXT($B34)=TRUE,DSUM(#REF!,""&LEFT($C34,LEN($C34)-$A34)&"",$L$4:INDIRECT(ADDRESS($AK$3,$AK$4)))/DSUM(#REF!,""&$B34&"",$L$4:INDIRECT(ADDRESS($AK$3,$AK$4))),IF($B34=0,DAVERAGE(#REF!,""&LEFT($C34,LEN($C34)-$A34)&"",$L$4:INDIRECT(ADDRESS($AK$3,$AK$4))),IF($B34=1,DSUM(#REF!,""&LEFT($C34,LEN($C34)-$A34)&"",$L$4:INDIRECT(ADDRESS($AK$3,$AK$4)))/DSUM(#REF!,""&$I$4&"",$L$4:INDIRECT(ADDRESS($AK$3,$AK$4))),IF($B34=2,DSUM(#REF!,""&LEFT($C34,LEN($C34)-$A34)&"",$L$4:INDIRECT(ADDRESS($AK$3,$AK$4)))/DSUM(#REF!,""&$J$4&"",$L$4:INDIRECT(ADDRESS($AK$3,$AK$4))))))),""),"") -> 
C35: Specifikation af resultat | D35: =IF($Z$1=33,IF(Choices!$G$1=2,Landsgennemsnit!X35,IF(Choices!$G$1=3,Landsgennemsnit!Z35,"")),"") ->  | E35: =IF($Z$1=33,IF(Choices!$G$1=2,Landsgennemsnit!Y35,IF(Choices!$G$1=3,Landsgennemsnit!AA35,"")),"") ->  | F35: =IF($Z$1=33,IFERROR(IF(ISTEXT($B35)=TRUE,DSUM(#REF!,""&LEFT($C35,LEN($C35)-$A35)&"",$M$4:INDIRECT(ADDRESS($AK$3,$AK$4)))/DSUM(#REF!,""&$B35&"",$M$4:INDIRECT(ADDRESS($AK$3,$AK$4))),IF($B35=0,DAVERAGE(#REF!,""&LEFT($C35,LEN($C35)-$A35)&"",$M$4:INDIRECT(ADDRESS($AK$3,$AK$4))),IF($B35=1,DSUM(#REF!,""&LEFT($C35,LEN($C35)-$A35)&"",$M$4:INDIRECT(ADDRESS($AK$3,$AK$4)))/DSUM(#REF!,""&$I$4&"",$M$4:INDIRECT(ADDRESS($AK$3,$AK$4))),DSUM(#REF!,""&LEFT($C35,LEN($C35)-$A35)&"",$M$4:INDIRECT(ADDRESS($AK$3,$AK$4)))/DSUM(#REF!,""&$J$4&"",$M$4:INDIRECT(ADDRESS($AK$3,$AK$4)))))),""),"") ->  | G35: =IF($Z$1=33,IFERROR(IF(ISTEXT($B35)=TRUE,DSUM(#REF!,""&LEFT($C35,LEN($C35)-$A35)&"",$L$4:INDIRECT(ADDRESS($AK$3,$AK$4)))/DSUM(#REF!,""&$B35&"",$L$4:INDIRECT(ADDRESS($AK$3,$AK$4))),IF($B35=0,DAVERAGE(#REF!,""&LEFT($C35,LEN($C35)-$A35)&"",$L$4:INDIRECT(ADDRESS($AK$3,$AK$4))),IF($B35=1,DSUM(#REF!,""&LEFT($C35,LEN($C35)-$A35)&"",$L$4:INDIRECT(ADDRESS($AK$3,$AK$4)))/DSUM(#REF!,""&$I$4&"",$L$4:INDIRECT(ADDRESS($AK$3,$AK$4))),IF($B35=2,DSUM(#REF!,""&LEFT($C35,LEN($C35)-$A35)&"",$L$4:INDIRECT(ADDRESS($AK$3,$AK$4)))/DSUM(#REF!,""&$J$4&"",$L$4:INDIRECT(ADDRESS($AK$3,$AK$4))))))),""),"") ->  | AJ35: Række | AK35: =ROW(AJ35)-2 -> 33
B36: Antal årssøer | C36: Salg/overførsel smågrise | D36: =IF($Z$1=33,IF(Choices!$G$1=2,Landsgennemsnit!X36,IF(Choices!$G$1=3,Landsgennemsnit!Z36,"")),"") ->  | E36: =IF($Z$1=33,IF(Choices!$G$1=2,Landsgennemsnit!Y36,IF(Choices!$G$1=3,Landsgennemsnit!AA36,"")),"") ->  | F36: =IF($Z$1=33,IFERROR(IF(ISTEXT($B36)=TRUE,DSUM(#REF!,""&LEFT($C36,LEN($C36)-$A36)&"",$M$4:INDIRECT(ADDRESS($AK$3,$AK$4)))/DSUM(#REF!,""&$B36&"",$M$4:INDIRECT(ADDRESS($AK$3,$AK$4))),IF($B36=0,DAVERAGE(#REF!,""&LEFT($C36,LEN($C36)-$A36)&"",$M$4:INDIRECT(ADDRESS($AK$3,$AK$4))),IF($B36=1,DSUM(#REF!,""&LEFT($C36,LEN($C36)-$A36)&"",$M$4:INDIRECT(ADDRESS($AK$3,$AK$4)))/DSUM(#REF!,""&$I$4&"",$M$4:INDIRECT(ADDRESS($AK$3,$AK$4))),DSUM(#REF!,""&LEFT($C36,LEN($C36)-$A36)&"",$M$4:INDIRECT(ADDRESS($AK$3,$AK$4)))/DSUM(#REF!,""&$J$4&"",$M$4:INDIRECT(ADDRESS($AK$3,$AK$4)))))),""),"") ->  | G36: =IF($Z$1=33,IFERROR(IF(ISTEXT($B36)=TRUE,DSUM(#REF!,""&LEFT($C36,LEN($C36)-$A36)&"",$L$4:INDIRECT(ADDRESS($AK$3,$AK$4)))/DSUM(#REF!,""&$B36&"",$L$4:INDIRECT(ADDRESS($AK$3,$AK$4))),IF($B36=0,DAVERAGE(#REF!,""&LEFT($C36,LEN($C36)-$A36)&"",$L$4:INDIRECT(ADDRESS($AK$3,$AK$4))),IF($B36=1,DSUM(#REF!,""&LEFT($C36,LEN($C36)-$A36)&"",$L$4:INDIRECT(ADDRESS($AK$3,$AK$4)))/DSUM(#REF!,""&$I$4&"",$L$4:INDIRECT(ADDRESS($AK$3,$AK$4))),IF($B36=2,DSUM(#REF!,""&LEFT($C36,LEN($C36)-$A36)&"",$L$4:INDIRECT(ADDRESS($AK$3,$AK$4)))/DSUM(#REF!,""&$J$4&"",$L$4:INDIRECT(ADDRESS($AK$3,$AK$4))))))),""),"") -> 
B37: Antal årssøer | C37: Salg andre svin | D37: =IF($Z$1=33,IF(Choices!$G$1=2,Landsgennemsnit!X37,IF(Choices!$G$1=3,Landsgennemsnit!Z37,"")),"") ->  | E37: =IF($Z$1=33,IF(Choices!$G$1=2,Landsgennemsnit!Y37,IF(Choices!$G$1=3,Landsgennemsnit!AA37,"")),"") ->  | F37: =IF($Z$1=33,IFERROR(IF(ISTEXT($B37)=TRUE,DSUM(#REF!,""&LEFT($C37,LEN($C37)-$A37)&"",$M$4:INDIRECT(ADDRESS($AK$3,$AK$4)))/DSUM(#REF!,""&$B37&"",$M$4:INDIRECT(ADDRESS($AK$3,$AK$4))),IF($B37=0,DAVERAGE(#REF!,""&LEFT($C37,LEN($C37)-$A37)&"",$M$4:INDIRECT(ADDRESS($AK$3,$AK$4))),IF($B37=1,DSUM(#REF!,""&LEFT($C37,LEN($C37)-$A37)&"",$M$4:INDIRECT(ADDRESS($AK$3,$AK$4)))/DSUM(#REF!,""&$I$4&"",$M$4:INDIRECT(ADDRESS($AK$3,$AK$4))),DSUM(#REF!,""&LEFT($C37,LEN($C37)-$A37)&"",$M$4:INDIRECT(ADDRESS($AK$3,$AK$4)))/DSUM(#REF!,""&$J$4&"",$M$4:INDIRECT(ADDRESS($AK$3,$AK$4)))))),""),"") ->  | G37: =IF($Z$1=33,IFERROR(IF(ISTEXT($B37)=TRUE,DSUM(#REF!,""&LEFT($C37,LEN($C37)-$A37)&"",$L$4:INDIRECT(ADDRESS($AK$3,$AK$4)))/DSUM(#REF!,""&$B37&"",$L$4:INDIRECT(ADDRESS($AK$3,$AK$4))),IF($B37=0,DAVERAGE(#REF!,""&LEFT($C37,LEN($C37)-$A37)&"",$L$4:INDIRECT(ADDRESS($AK$3,$AK$4))),IF($B37=1,DSUM(#REF!,""&LEFT($C37,LEN($C37)-$A37)&"",$L$4:INDIRECT(ADDRESS($AK$3,$AK$4)))/DSUM(#REF!,""&$I$4&"",$L$4:INDIRECT(ADDRESS($AK$3,$AK$4))),IF($B37=2,DSUM(#REF!,""&LEFT($C37,LEN($C37)-$A37)&"",$L$4:INDIRECT(ADDRESS($AK$3,$AK$4)))/DSUM(#REF!,""&$J$4&"",$L$4:INDIRECT(ADDRESS($AK$3,$AK$4))))))),""),"") -> 
B38: Antal årssøer | C38: Køb af grise | D38: =IF($Z$1=33,IF(Choices!$G$1=2,Landsgennemsnit!X38,IF(Choices!$G$1=3,Landsgennemsnit!Z38,"")),"") ->  | E38: =IF($Z$1=33,IF(Choices!$G$1=2,Landsgennemsnit!Y38,IF(Choices!$G$1=3,Landsgennemsnit!AA38,"")),"") ->  | F38: =IF($Z$1=33,IFERROR(IF(ISTEXT($B38)=TRUE,DSUM(#REF!,""&LEFT($C38,LEN($C38)-$A38)&"",$M$4:INDIRECT(ADDRESS($AK$3,$AK$4)))/DSUM(#REF!,""&$B38&"",$M$4:INDIRECT(ADDRESS($AK$3,$AK$4))),IF($B38=0,DAVERAGE(#REF!,""&LEFT($C38,LEN($C38)-$A38)&"",$M$4:INDIRECT(ADDRESS($AK$3,$AK$4))),IF($B38=1,DSUM(#REF!,""&LEFT($C38,LEN($C38)-$A38)&"",$M$4:INDIRECT(ADDRESS($AK$3,$AK$4)))/DSUM(#REF!,""&$I$4&"",$M$4:INDIRECT(ADDRESS($AK$3,$AK$4))),DSUM(#REF!,""&LEFT($C38,LEN($C38)-$A38)&"",$M$4:INDIRECT(ADDRESS($AK$3,$AK$4)))/DSUM(#REF!,""&$J$4&"",$M$4:INDIRECT(ADDRESS($AK$3,$AK$4)))))),""),"") ->  | G38: =IF($Z$1=33,IFERROR(IF(ISTEXT($B38)=TRUE,DSUM(#REF!,""&LEFT($C38,LEN($C38)-$A38)&"",$L$4:INDIRECT(ADDRESS($AK$3,$AK$4)))/DSUM(#REF!,""&$B38&"",$L$4:INDIRECT(ADDRESS($AK$3,$AK$4))),IF($B38=0,DAVERAGE(#REF!,""&LEFT($C38,LEN($C38)-$A38)&"",$L$4:INDIRECT(ADDRESS($AK$3,$AK$4))),IF($B38=1,DSUM(#REF!,""&LEFT($C38,LEN($C38)-$A38)&"",$L$4:INDIRECT(ADDRESS($AK$3,$AK$4)))/DSUM(#REF!,""&$I$4&"",$L$4:INDIRECT(ADDRESS($AK$3,$AK$4))),IF($B38=2,DSUM(#REF!,""&LEFT($C38,LEN($C38)-$A38)&"",$L$4:INDIRECT(ADDRESS($AK$3,$AK$4)))/DSUM(#REF!,""&$J$4&"",$L$4:INDIRECT(ADDRESS($AK$3,$AK$4))))))),""),"") -> 
B39: Antal årssøer | C39: Besætningsforskydning | D39: =IF($Z$1=33,IF(Choices!$G$1=2,Landsgennemsnit!X39,IF(Choices!$G$1=3,Landsgennemsnit!Z39,"")),"") ->  | E39: =IF($Z$1=33,IF(Choices!$G$1=2,Landsgennemsnit!Y39,IF(Choices!$G$1=3,Landsgennemsnit!AA39,"")),"") ->  | F39: =IF($Z$1=33,IFERROR(IF(ISTEXT($B39)=TRUE,DSUM(#REF!,""&LEFT($C39,LEN($C39)-$A39)&"",$M$4:INDIRECT(ADDRESS($AK$3,$AK$4)))/DSUM(#REF!,""&$B39&"",$M$4:INDIRECT(ADDRESS($AK$3,$AK$4))),IF($B39=0,DAVERAGE(#REF!,""&LEFT($C39,LEN($C39)-$A39)&"",$M$4:INDIRECT(ADDRESS($AK$3,$AK$4))),IF($B39=1,DSUM(#REF!,""&LEFT($C39,LEN($C39)-$A39)&"",$M$4:INDIRECT(ADDRESS($AK$3,$AK$4)))/DSUM(#REF!,""&$I$4&"",$M$4:INDIRECT(ADDRESS($AK$3,$AK$4))),DSUM(#REF!,""&LEFT($C39,LEN($C39)-$A39)&"",$M$4:INDIRECT(ADDRESS($AK$3,$AK$4)))/DSUM(#REF!,""&$J$4&"",$M$4:INDIRECT(ADDRESS($AK$3,$AK$4)))))),""),"") ->  | G39: =IF($Z$1=33,IFERROR(IF(ISTEXT($B39)=TRUE,DSUM(#REF!,""&LEFT($C39,LEN($C39)-$A39)&"",$L$4:INDIRECT(ADDRESS($AK$3,$AK$4)))/DSUM(#REF!,""&$B39&"",$L$4:INDIRECT(ADDRESS($AK$3,$AK$4))),IF($B39=0,DAVERAGE(#REF!,""&LEFT($C39,LEN($C39)-$A39)&"",$L$4:INDIRECT(ADDRESS($AK$3,$AK$4))),IF($B39=1,DSUM(#REF!,""&LEFT($C39,LEN($C39)-$A39)&"",$L$4:INDIRECT(ADDRESS($AK$3,$AK$4)))/DSUM(#REF!,""&$I$4&"",$L$4:INDIRECT(ADDRESS($AK$3,$AK$4))),IF($B39=2,DSUM(#REF!,""&LEFT($C39,LEN($C39)-$A39)&"",$L$4:INDIRECT(ADDRESS($AK$3,$AK$4)))/DSUM(#REF!,""&$J$4&"",$L$4:INDIRECT(ADDRESS($AK$3,$AK$4))))))),""),"") -> 
B40: Antal årssøer | C40: Andre Landbrugsindtægter svin | D40: =IF($Z$1=33,IF(Choices!$G$1=2,Landsgennemsnit!X40,IF(Choices!$G$1=3,Landsgennemsnit!Z40,"")),"") ->  | E40: =IF($Z$1=33,IF(Choices!$G$1=2,Landsgennemsnit!Y40,IF(Choices!$G$1=3,Landsgennemsnit!AA40,"")),"") ->  | F40: =IF($Z$1=33,IFERROR(IF(ISTEXT($B40)=TRUE,DSUM(#REF!,""&LEFT($C40,LEN($C40)-$A40)&"",$M$4:INDIRECT(ADDRESS($AK$3,$AK$4)))/DSUM(#REF!,""&$B40&"",$M$4:INDIRECT(ADDRESS($AK$3,$AK$4))),IF($B40=0,DAVERAGE(#REF!,""&LEFT($C40,LEN($C40)-$A40)&"",$M$4:INDIRECT(ADDRESS($AK$3,$AK$4))),IF($B40=1,DSUM(#REF!,""&LEFT($C40,LEN($C40)-$A40)&"",$M$4:INDIRECT(ADDRESS($AK$3,$AK$4)))/DSUM(#REF!,""&$I$4&"",$M$4:INDIRECT(ADDRESS($AK$3,$AK$4))),DSUM(#REF!,""&LEFT($C40,LEN($C40)-$A40)&"",$M$4:INDIRECT(ADDRESS($AK$3,$AK$4)))/DSUM(#REF!,""&$J$4&"",$M$4:INDIRECT(ADDRESS($AK$3,$AK$4)))))),""),"") ->  | G40: =IF($Z$1=33,IFERROR(IF(ISTEXT($B40)=TRUE,DSUM(#REF!,""&LEFT($C40,LEN($C40)-$A40)&"",$L$4:INDIRECT(ADDRESS($AK$3,$AK$4)))/DSUM(#REF!,""&$B40&"",$L$4:INDIRECT(ADDRESS($AK$3,$AK$4))),IF($B40=0,DAVERAGE(#REF!,""&LEFT($C40,LEN($C40)-$A40)&"",$L$4:INDIRECT(ADDRESS($AK$3,$AK$4))),IF($B40=1,DSUM(#REF!,""&LEFT($C40,LEN($C40)-$A40)&"",$L$4:INDIRECT(ADDRESS($AK$3,$AK$4)))/DSUM(#REF!,""&$I$4&"",$L$4:INDIRECT(ADDRESS($AK$3,$AK$4))),IF($B40=2,DSUM(#REF!,""&LEFT($C40,LEN($C40)-$A40)&"",$L$4:INDIRECT(ADDRESS($AK$3,$AK$4)))/DSUM(#REF!,""&$J$4&"",$L$4:INDIRECT(ADDRESS($AK$3,$AK$4))))))),""),"") -> 
B41: Antal årssøer | C41: Bruttoudbytte i alt | D41: =IF($Z$1=33,IF(Choices!$G$1=2,Landsgennemsnit!X41,IF(Choices!$G$1=3,Landsgennemsnit!Z41,"")),"") ->  | E41: =IF($Z$1=33,IF(Choices!$G$1=2,Landsgennemsnit!Y41,IF(Choices!$G$1=3,Landsgennemsnit!AA41,"")),"") ->  | F41: =IF($Z$1=33,IFERROR(IF(ISTEXT($B41)=TRUE,DSUM(#REF!,""&LEFT($C41,LEN($C41)-$A41)&"",$M$4:INDIRECT(ADDRESS($AK$3,$AK$4)))/DSUM(#REF!,""&$B41&"",$M$4:INDIRECT(ADDRESS($AK$3,$AK$4))),IF($B41=0,DAVERAGE(#REF!,""&LEFT($C41,LEN($C41)-$A41)&"",$M$4:INDIRECT(ADDRESS($AK$3,$AK$4))),IF($B41=1,DSUM(#REF!,""&LEFT($C41,LEN($C41)-$A41)&"",$M$4:INDIRECT(ADDRESS($AK$3,$AK$4)))/DSUM(#REF!,""&$I$4&"",$M$4:INDIRECT(ADDRESS($AK$3,$AK$4))),DSUM(#REF!,""&LEFT($C41,LEN($C41)-$A41)&"",$M$4:INDIRECT(ADDRESS($AK$3,$AK$4)))/DSUM(#REF!,""&$J$4&"",$M$4:INDIRECT(ADDRESS($AK$3,$AK$4)))))),""),"") ->  | G41: =IF($Z$1=33,IFERROR(IF(ISTEXT($B41)=TRUE,DSUM(#REF!,""&LEFT($C41,LEN($C41)-$A41)&"",$L$4:INDIRECT(ADDRESS($AK$3,$AK$4)))/DSUM(#REF!,""&$B41&"",$L$4:INDIRECT(ADDRESS($AK$3,$AK$4))),IF($B41=0,DAVERAGE(#REF!,""&LEFT($C41,LEN($C41)-$A41)&"",$L$4:INDIRECT(ADDRESS($AK$3,$AK$4))),IF($B41=1,DSUM(#REF!,""&LEFT($C41,LEN($C41)-$A41)&"",$L$4:INDIRECT(ADDRESS($AK$3,$AK$4)))/DSUM(#REF!,""&$I$4&"",$L$4:INDIRECT(ADDRESS($AK$3,$AK$4))),IF($B41=2,DSUM(#REF!,""&LEFT($C41,LEN($C41)-$A41)&"",$L$4:INDIRECT(ADDRESS($AK$3,$AK$4)))/DSUM(#REF!,""&$J$4&"",$L$4:INDIRECT(ADDRESS($AK$3,$AK$4))))))),""),"") -> 
D42: =IF($Z$1=33,IF(Choices!$G$1=2,Landsgennemsnit!X42,IF(Choices!$G$1=3,Landsgennemsnit!Z42,"")),"") ->  | E42: =IF($Z$1=33,IF(Choices!$G$1=2,Landsgennemsnit!Y42,IF(Choices!$G$1=3,Landsgennemsnit!AA42,"")),"") ->  | F42: =IF($Z$1=33,IFERROR(IF(ISTEXT($B42)=TRUE,DSUM(#REF!,""&LEFT($C42,LEN($C42)-$A42)&"",$M$4:INDIRECT(ADDRESS($AK$3,$AK$4)))/DSUM(#REF!,""&$B42&"",$M$4:INDIRECT(ADDRESS($AK$3,$AK$4))),IF($B42=0,DAVERAGE(#REF!,""&LEFT($C42,LEN($C42)-$A42)&"",$M$4:INDIRECT(ADDRESS($AK$3,$AK$4))),IF($B42=1,DSUM(#REF!,""&LEFT($C42,LEN($C42)-$A42)&"",$M$4:INDIRECT(ADDRESS($AK$3,$AK$4)))/DSUM(#REF!,""&$I$4&"",$M$4:INDIRECT(ADDRESS($AK$3,$AK$4))),DSUM(#REF!,""&LEFT($C42,LEN($C42)-$A42)&"",$M$4:INDIRECT(ADDRESS($AK$3,$AK$4)))/DSUM(#REF!,""&$J$4&"",$M$4:INDIRECT(ADDRESS($AK$3,$AK$4)))))),""),"") ->  | G42: =IF($Z$1=33,IFERROR(IF(ISTEXT($B42)=TRUE,DSUM(#REF!,""&LEFT($C42,LEN($C42)-$A42)&"",$L$4:INDIRECT(ADDRESS($AK$3,$AK$4)))/DSUM(#REF!,""&$B42&"",$L$4:INDIRECT(ADDRESS($AK$3,$AK$4))),IF($B42=0,DAVERAGE(#REF!,""&LEFT($C42,LEN($C42)-$A42)&"",$L$4:INDIRECT(ADDRESS($AK$3,$AK$4))),IF($B42=1,DSUM(#REF!,""&LEFT($C42,LEN($C42)-$A42)&"",$L$4:INDIRECT(ADDRESS($AK$3,$AK$4)))/DSUM(#REF!,""&$I$4&"",$L$4:INDIRECT(ADDRESS($AK$3,$AK$4))),IF($B42=2,DSUM(#REF!,""&LEFT($C42,LEN($C42)-$A42)&"",$L$4:INDIRECT(ADDRESS($AK$3,$AK$4)))/DSUM(#REF!,""&$J$4&"",$L$4:INDIRECT(ADDRESS($AK$3,$AK$4))))))),""),"") -> 
B43: Antal årssøer | C43: Korn | D43: =IF($Z$1=33,IF(Choices!$G$1=2,Landsgennemsnit!X43,IF(Choices!$G$1=3,Landsgennemsnit!Z43,"")),"") ->  | E43: =IF($Z$1=33,IF(Choices!$G$1=2,Landsgennemsnit!Y43,IF(Choices!$G$1=3,Landsgennemsnit!AA43,"")),"") ->  | F43: =IF($Z$1=33,IFERROR(IF(ISTEXT($B43)=TRUE,DSUM(#REF!,""&LEFT($C43,LEN($C43)-$A43)&"",$M$4:INDIRECT(ADDRESS($AK$3,$AK$4)))/DSUM(#REF!,""&$B43&"",$M$4:INDIRECT(ADDRESS($AK$3,$AK$4))),IF($B43=0,DAVERAGE(#REF!,""&LEFT($C43,LEN($C43)-$A43)&"",$M$4:INDIRECT(ADDRESS($AK$3,$AK$4))),IF($B43=1,DSUM(#REF!,""&LEFT($C43,LEN($C43)-$A43)&"",$M$4:INDIRECT(ADDRESS($AK$3,$AK$4)))/DSUM(#REF!,""&$I$4&"",$M$4:INDIRECT(ADDRESS($AK$3,$AK$4))),DSUM(#REF!,""&LEFT($C43,LEN($C43)-$A43)&"",$M$4:INDIRECT(ADDRESS($AK$3,$AK$4)))/DSUM(#REF!,""&$J$4&"",$M$4:INDIRECT(ADDRESS($AK$3,$AK$4)))))),""),"") ->  | G43: =IF($Z$1=33,IFERROR(IF(ISTEXT($B43)=TRUE,DSUM(#REF!,""&LEFT($C43,LEN($C43)-$A43)&"",$L$4:INDIRECT(ADDRESS($AK$3,$AK$4)))/DSUM(#REF!,""&$B43&"",$L$4:INDIRECT(ADDRESS($AK$3,$AK$4))),IF($B43=0,DAVERAGE(#REF!,""&LEFT($C43,LEN($C43)-$A43)&"",$L$4:INDIRECT(ADDRESS($AK$3,$AK$4))),IF($B43=1,DSUM(#REF!,""&LEFT($C43,LEN($C43)-$A43)&"",$L$4:INDIRECT(ADDRESS($AK$3,$AK$4)))/DSUM(#REF!,""&$I$4&"",$L$4:INDIRECT(ADDRESS($AK$3,$AK$4))),IF($B43=2,DSUM(#REF!,""&LEFT($C43,LEN($C43)-$A43)&"",$L$4:INDIRECT(ADDRESS($AK$3,$AK$4)))/DSUM(#REF!,""&$J$4&"",$L$4:INDIRECT(ADDRESS($AK$3,$AK$4))))))),""),"") -> 
B44: Antal årssøer | C44: Tilskudsfoder og råvarer | D44: =IF($Z$1=33,IF(Choices!$G$1=2,Landsgennemsnit!X44,IF(Choices!$G$1=3,Landsgennemsnit!Z44,"")),"") ->  | E44: =IF($Z$1=33,IF(Choices!$G$1=2,Landsgennemsnit!Y44,IF(Choices!$G$1=3,Landsgennemsnit!AA44,"")),"") ->  | F44: =IF($Z$1=33,IFERROR(IF(ISTEXT($B44)=TRUE,DSUM(#REF!,""&LEFT($C44,LEN($C44)-$A44)&"",$M$4:INDIRECT(ADDRESS($AK$3,$AK$4)))/DSUM(#REF!,""&$B44&"",$M$4:INDIRECT(ADDRESS($AK$3,$AK$4))),IF($B44=0,DAVERAGE(#REF!,""&LEFT($C44,LEN($C44)-$A44)&"",$M$4:INDIRECT(ADDRESS($AK$3,$AK$4))),IF($B44=1,DSUM(#REF!,""&LEFT($C44,LEN($C44)-$A44)&"",$M$4:INDIRECT(ADDRESS($AK$3,$AK$4)))/DSUM(#REF!,""&$I$4&"",$M$4:INDIRECT(ADDRESS($AK$3,$AK$4))),DSUM(#REF!,""&LEFT($C44,LEN($C44)-$A44)&"",$M$4:INDIRECT(ADDRESS($AK$3,$AK$4)))/DSUM(#REF!,""&$J$4&"",$M$4:INDIRECT(ADDRESS($AK$3,$AK$4)))))),""),"") ->  | G44: =IF($Z$1=33,IFERROR(IF(ISTEXT($B44)=TRUE,DSUM(#REF!,""&LEFT($C44,LEN($C44)-$A44)&"",$L$4:INDIRECT(ADDRESS($AK$3,$AK$4)))/DSUM(#REF!,""&$B44&"",$L$4:INDIRECT(ADDRESS($AK$3,$AK$4))),IF($B44=0,DAVERAGE(#REF!,""&LEFT($C44,LEN($C44)-$A44)&"",$L$4:INDIRECT(ADDRESS($AK$3,$AK$4))),IF($B44=1,DSUM(#REF!,""&LEFT($C44,LEN($C44)-$A44)&"",$L$4:INDIRECT(ADDRESS($AK$3,$AK$4)))/DSUM(#REF!,""&$I$4&"",$L$4:INDIRECT(ADDRESS($AK$3,$AK$4))),IF($B44=2,DSUM(#REF!,""&LEFT($C44,LEN($C44)-$A44)&"",$L$4:INDIRECT(ADDRESS($AK$3,$AK$4)))/DSUM(#REF!,""&$J$4&"",$L$4:INDIRECT(ADDRESS($AK$3,$AK$4))))))),""),"") -> 
B45: Antal årssøer | C45: Færdigblanding | D45: =IF($Z$1=33,IF(Choices!$G$1=2,Landsgennemsnit!X45,IF(Choices!$G$1=3,Landsgennemsnit!Z45,"")),"") ->  | E45: =IF($Z$1=33,IF(Choices!$G$1=2,Landsgennemsnit!Y45,IF(Choices!$G$1=3,Landsgennemsnit!AA45,"")),"") ->  | F45: =IF($Z$1=33,IFERROR(IF(ISTEXT($B45)=TRUE,DSUM(#REF!,""&LEFT($C45,LEN($C45)-$A45)&"",$M$4:INDIRECT(ADDRESS($AK$3,$AK$4)))/DSUM(#REF!,""&$B45&"",$M$4:INDIRECT(ADDRESS($AK$3,$AK$4))),IF($B45=0,DAVERAGE(#REF!,""&LEFT($C45,LEN($C45)-$A45)&"",$M$4:INDIRECT(ADDRESS($AK$3,$AK$4))),IF($B45=1,DSUM(#REF!,""&LEFT($C45,LEN($C45)-$A45)&"",$M$4:INDIRECT(ADDRESS($AK$3,$AK$4)))/DSUM(#REF!,""&$I$4&"",$M$4:INDIRECT(ADDRESS($AK$3,$AK$4))),DSUM(#REF!,""&LEFT($C45,LEN($C45)-$A45)&"",$M$4:INDIRECT(ADDRESS($AK$3,$AK$4)))/DSUM(#REF!,""&$J$4&"",$M$4:INDIRECT(ADDRESS($AK$3,$AK$4)))))),""),"") ->  | G45: =IF($Z$1=33,IFERROR(IF(ISTEXT($B45)=TRUE,DSUM(#REF!,""&LEFT($C45,LEN($C45)-$A45)&"",$L$4:INDIRECT(ADDRESS($AK$3,$AK$4)))/DSUM(#REF!,""&$B45&"",$L$4:INDIRECT(ADDRESS($AK$3,$AK$4))),IF($B45=0,DAVERAGE(#REF!,""&LEFT($C45,LEN($C45)-$A45)&"",$L$4:INDIRECT(ADDRESS($AK$3,$AK$4))),IF($B45=1,DSUM(#REF!,""&LEFT($C45,LEN($C45)-$A45)&"",$L$4:INDIRECT(ADDRESS($AK$3,$AK$4)))/DSUM(#REF!,""&$I$4&"",$L$4:INDIRECT(ADDRESS($AK$3,$AK$4))),IF($B45=2,DSUM(#REF!,""&LEFT($C45,LEN($C45)-$A45)&"",$L$4:INDIRECT(ADDRESS($AK$3,$AK$4)))/DSUM(#REF!,""&$J$4&"",$L$4:INDIRECT(ADDRESS($AK$3,$AK$4))))))),""),"") -> 
B46: Antal årssøer | C46: Andet foder | D46: =IF($Z$1=33,IF(Choices!$G$1=2,Landsgennemsnit!X46,IF(Choices!$G$1=3,Landsgennemsnit!Z46,"")),"") ->  | E46: =IF($Z$1=33,IF(Choices!$G$1=2,Landsgennemsnit!Y46,IF(Choices!$G$1=3,Landsgennemsnit!AA46,"")),"") ->  | F46: =IF($Z$1=33,IFERROR(IF(ISTEXT($B46)=TRUE,DSUM(#REF!,""&LEFT($C46,LEN($C46)-$A46)&"",$M$4:INDIRECT(ADDRESS($AK$3,$AK$4)))/DSUM(#REF!,""&$B46&"",$M$4:INDIRECT(ADDRESS($AK$3,$AK$4))),IF($B46=0,DAVERAGE(#REF!,""&LEFT($C46,LEN($C46)-$A46)&"",$M$4:INDIRECT(ADDRESS($AK$3,$AK$4))),IF($B46=1,DSUM(#REF!,""&LEFT($C46,LEN($C46)-$A46)&"",$M$4:INDIRECT(ADDRESS($AK$3,$AK$4)))/DSUM(#REF!,""&$I$4&"",$M$4:INDIRECT(ADDRESS($AK$3,$AK$4))),DSUM(#REF!,""&LEFT($C46,LEN($C46)-$A46)&"",$M$4:INDIRECT(ADDRESS($AK$3,$AK$4)))/DSUM(#REF!,""&$J$4&"",$M$4:INDIRECT(ADDRESS($AK$3,$AK$4)))))),""),"") ->  | G46: =IF($Z$1=33,IFERROR(IF(ISTEXT($B46)=TRUE,DSUM(#REF!,""&LEFT($C46,LEN($C46)-$A46)&"",$L$4:INDIRECT(ADDRESS($AK$3,$AK$4)))/DSUM(#REF!,""&$B46&"",$L$4:INDIRECT(ADDRESS($AK$3,$AK$4))),IF($B46=0,DAVERAGE(#REF!,""&LEFT($C46,LEN($C46)-$A46)&"",$L$4:INDIRECT(ADDRESS($AK$3,$AK$4))),IF($B46=1,DSUM(#REF!,""&LEFT($C46,LEN($C46)-$A46)&"",$L$4:INDIRECT(ADDRESS($AK$3,$AK$4)))/DSUM(#REF!,""&$I$4&"",$L$4:INDIRECT(ADDRESS($AK$3,$AK$4))),IF($B46=2,DSUM(#REF!,""&LEFT($C46,LEN($C46)-$A46)&"",$L$4:INDIRECT(ADDRESS($AK$3,$AK$4)))/DSUM(#REF!,""&$J$4&"",$L$4:INDIRECT(ADDRESS($AK$3,$AK$4))))))),""),"") -> 
B47: Antal årssøer | C47: Dyrlæge og medicin | D47: =IF($Z$1=33,IF(Choices!$G$1=2,Landsgennemsnit!X47,IF(Choices!$G$1=3,Landsgennemsnit!Z47,"")),"") ->  | E47: =IF($Z$1=33,IF(Choices!$G$1=2,Landsgennemsnit!Y47,IF(Choices!$G$1=3,Landsgennemsnit!AA47,"")),"") ->  | F47: =IF($Z$1=33,IFERROR(IF(ISTEXT($B47)=TRUE,DSUM(#REF!,""&LEFT($C47,LEN($C47)-$A47)&"",$M$4:INDIRECT(ADDRESS($AK$3,$AK$4)))/DSUM(#REF!,""&$B47&"",$M$4:INDIRECT(ADDRESS($AK$3,$AK$4))),IF($B47=0,DAVERAGE(#REF!,""&LEFT($C47,LEN($C47)-$A47)&"",$M$4:INDIRECT(ADDRESS($AK$3,$AK$4))),IF($B47=1,DSUM(#REF!,""&LEFT($C47,LEN($C47)-$A47)&"",$M$4:INDIRECT(ADDRESS($AK$3,$AK$4)))/DSUM(#REF!,""&$I$4&"",$M$4:INDIRECT(ADDRESS($AK$3,$AK$4))),DSUM(#REF!,""&LEFT($C47,LEN($C47)-$A47)&"",$M$4:INDIRECT(ADDRESS($AK$3,$AK$4)))/DSUM(#REF!,""&$J$4&"",$M$4:INDIRECT(ADDRESS($AK$3,$AK$4)))))),""),"") ->  | G47: =IF($Z$1=33,IFERROR(IF(ISTEXT($B47)=TRUE,DSUM(#REF!,""&LEFT($C47,LEN($C47)-$A47)&"",$L$4:INDIRECT(ADDRESS($AK$3,$AK$4)))/DSUM(#REF!,""&$B47&"",$L$4:INDIRECT(ADDRESS($AK$3,$AK$4))),IF($B47=0,DAVERAGE(#REF!,""&LEFT($C47,LEN($C47)-$A47)&"",$L$4:INDIRECT(ADDRESS($AK$3,$AK$4))),IF($B47=1,DSUM(#REF!,""&LEFT($C47,LEN($C47)-$A47)&"",$L$4:INDIRECT(ADDRESS($AK$3,$AK$4)))/DSUM(#REF!,""&$I$4&"",$L$4:INDIRECT(ADDRESS($AK$3,$AK$4))),IF($B47=2,DSUM(#REF!,""&LEFT($C47,LEN($C47)-$A47)&"",$L$4:INDIRECT(ADDRESS($AK$3,$AK$4)))/DSUM(#REF!,""&$J$4&"",$L$4:INDIRECT(ADDRESS($AK$3,$AK$4))))))),""),"") -> 
B48: Antal årssøer | C48: Avl, rådgivning og kontrol | D48: =IF($Z$1=33,IF(Choices!$G$1=2,Landsgennemsnit!X48,IF(Choices!$G$1=3,Landsgennemsnit!Z48,"")),"") ->  | E48: =IF($Z$1=33,IF(Choices!$G$1=2,Landsgennemsnit!Y48,IF(Choices!$G$1=3,Landsgennemsnit!AA48,"")),"") ->  | F48: =IF($Z$1=33,IFERROR(IF(ISTEXT($B48)=TRUE,DSUM(#REF!,""&LEFT($C48,LEN($C48)-$A48)&"",$M$4:INDIRECT(ADDRESS($AK$3,$AK$4)))/DSUM(#REF!,""&$B48&"",$M$4:INDIRECT(ADDRESS($AK$3,$AK$4))),IF($B48=0,DAVERAGE(#REF!,""&LEFT($C48,LEN($C48)-$A48)&"",$M$4:INDIRECT(ADDRESS($AK$3,$AK$4))),IF($B48=1,DSUM(#REF!,""&LEFT($C48,LEN($C48)-$A48)&"",$M$4:INDIRECT(ADDRESS($AK$3,$AK$4)))/DSUM(#REF!,""&$I$4&"",$M$4:INDIRECT(ADDRESS($AK$3,$AK$4))),DSUM(#REF!,""&LEFT($C48,LEN($C48)-$A48)&"",$M$4:INDIRECT(ADDRESS($AK$3,$AK$4)))/DSUM(#REF!,""&$J$4&"",$M$4:INDIRECT(ADDRESS($AK$3,$AK$4)))))),""),"") ->  | G48: =IF($Z$1=33,IFERROR(IF(ISTEXT($B48)=TRUE,DSUM(#REF!,""&LEFT($C48,LEN($C48)-$A48)&"",$L$4:INDIRECT(ADDRESS($AK$3,$AK$4)))/DSUM(#REF!,""&$B48&"",$L$4:INDIRECT(ADDRESS($AK$3,$AK$4))),IF($B48=0,DAVERAGE(#REF!,""&LEFT($C48,LEN($C48)-$A48)&"",$L$4:INDIRECT(ADDRESS($AK$3,$AK$4))),IF($B48=1,DSUM(#REF!,""&LEFT($C48,LEN($C48)-$A48)&"",$L$4:INDIRECT(ADDRESS($AK$3,$AK$4)))/DSUM(#REF!,""&$I$4&"",$L$4:INDIRECT(ADDRESS($AK$3,$AK$4))),IF($B48=2,DSUM(#REF!,""&LEFT($C48,LEN($C48)-$A48)&"",$L$4:INDIRECT(ADDRESS($AK$3,$AK$4)))/DSUM(#REF!,""&$J$4&"",$L$4:INDIRECT(ADDRESS($AK$3,$AK$4))))))),""),"") -> 
B49: Antal årssøer | C49: Diverse vedr. husdyr | D49: =IF($Z$1=33,IF(Choices!$G$1=2,Landsgennemsnit!X49,IF(Choices!$G$1=3,Landsgennemsnit!Z49,"")),"") ->  | E49: =IF($Z$1=33,IF(Choices!$G$1=2,Landsgennemsnit!Y49,IF(Choices!$G$1=3,Landsgennemsnit!AA49,"")),"") ->  | F49: =IF($Z$1=33,IFERROR(IF(ISTEXT($B49)=TRUE,DSUM(#REF!,""&LEFT($C49,LEN($C49)-$A49)&"",$M$4:INDIRECT(ADDRESS($AK$3,$AK$4)))/DSUM(#REF!,""&$B49&"",$M$4:INDIRECT(ADDRESS($AK$3,$AK$4))),IF($B49=0,DAVERAGE(#REF!,""&LEFT($C49,LEN($C49)-$A49)&"",$M$4:INDIRECT(ADDRESS($AK$3,$AK$4))),IF($B49=1,DSUM(#REF!,""&LEFT($C49,LEN($C49)-$A49)&"",$M$4:INDIRECT(ADDRESS($AK$3,$AK$4)))/DSUM(#REF!,""&$I$4&"",$M$4:INDIRECT(ADDRESS($AK$3,$AK$4))),DSUM(#REF!,""&LEFT($C49,LEN($C49)-$A49)&"",$M$4:INDIRECT(ADDRESS($AK$3,$AK$4)))/DSUM(#REF!,""&$J$4&"",$M$4:INDIRECT(ADDRESS($AK$3,$AK$4)))))),""),"") ->  | G49: =IF($Z$1=33,IFERROR(IF(ISTEXT($B49)=TRUE,DSUM(#REF!,""&LEFT($C49,LEN($C49)-$A49)&"",$L$4:INDIRECT(ADDRESS($AK$3,$AK$4)))/DSUM(#REF!,""&$B49&"",$L$4:INDIRECT(ADDRESS($AK$3,$AK$4))),IF($B49=0,DAVERAGE(#REF!,""&LEFT($C49,LEN($C49)-$A49)&"",$L$4:INDIRECT(ADDRESS($AK$3,$AK$4))),IF($B49=1,DSUM(#REF!,""&LEFT($C49,LEN($C49)-$A49)&"",$L$4:INDIRECT(ADDRESS($AK$3,$AK$4)))/DSUM(#REF!,""&$I$4&"",$L$4:INDIRECT(ADDRESS($AK$3,$AK$4))),IF($B49=2,DSUM(#REF!,""&LEFT($C49,LEN($C49)-$A49)&"",$L$4:INDIRECT(ADDRESS($AK$3,$AK$4)))/DSUM(#REF!,""&$J$4&"",$L$4:INDIRECT(ADDRESS($AK$3,$AK$4))))))),""),"") -> 
B50: Antal årssøer | C50: Stykomkostninger i alt | D50: =IF($Z$1=33,IF(Choices!$G$1=2,Landsgennemsnit!X50,IF(Choices!$G$1=3,Landsgennemsnit!Z50,"")),"") ->  | E50: =IF($Z$1=33,IF(Choices!$G$1=2,Landsgennemsnit!Y50,IF(Choices!$G$1=3,Landsgennemsnit!AA50,"")),"") ->  | F50: =IF($Z$1=33,IFERROR(IF(ISTEXT($B50)=TRUE,DSUM(#REF!,""&LEFT($C50,LEN($C50)-$A50)&"",$M$4:INDIRECT(ADDRESS($AK$3,$AK$4)))/DSUM(#REF!,""&$B50&"",$M$4:INDIRECT(ADDRESS($AK$3,$AK$4))),IF($B50=0,DAVERAGE(#REF!,""&LEFT($C50,LEN($C50)-$A50)&"",$M$4:INDIRECT(ADDRESS($AK$3,$AK$4))),IF($B50=1,DSUM(#REF!,""&LEFT($C50,LEN($C50)-$A50)&"",$M$4:INDIRECT(ADDRESS($AK$3,$AK$4)))/DSUM(#REF!,""&$I$4&"",$M$4:INDIRECT(ADDRESS($AK$3,$AK$4))),DSUM(#REF!,""&LEFT($C50,LEN($C50)-$A50)&"",$M$4:INDIRECT(ADDRESS($AK$3,$AK$4)))/DSUM(#REF!,""&$J$4&"",$M$4:INDIRECT(ADDRESS($AK$3,$AK$4)))))),""),"") ->  | G50: =IF($Z$1=33,IFERROR(IF(ISTEXT($B50)=TRUE,DSUM(#REF!,""&LEFT($C50,LEN($C50)-$A50)&"",$L$4:INDIRECT(ADDRESS($AK$3,$AK$4)))/DSUM(#REF!,""&$B50&"",$L$4:INDIRECT(ADDRESS($AK$3,$AK$4))),IF($B50=0,DAVERAGE(#REF!,""&LEFT($C50,LEN($C50)-$A50)&"",$L$4:INDIRECT(ADDRESS($AK$3,$AK$4))),IF($B50=1,DSUM(#REF!,""&LEFT($C50,LEN($C50)-$A50)&"",$L$4:INDIRECT(ADDRESS($AK$3,$AK$4)))/DSUM(#REF!,""&$I$4&"",$L$4:INDIRECT(ADDRESS($AK$3,$AK$4))),IF($B50=2,DSUM(#REF!,""&LEFT($C50,LEN($C50)-$A50)&"",$L$4:INDIRECT(ADDRESS($AK$3,$AK$4)))/DSUM(#REF!,""&$J$4&"",$L$4:INDIRECT(ADDRESS($AK$3,$AK$4))))))),""),"") -> 
D51: =IF($Z$1=33,IF(Choices!$G$1=2,Landsgennemsnit!X51,IF(Choices!$G$1=3,Landsgennemsnit!Z51,"")),"") ->  | E51: =IF($Z$1=33,IF(Choices!$G$1=2,Landsgennemsnit!Y51,IF(Choices!$G$1=3,Landsgennemsnit!AA51,"")),"") ->  | F51: =IF($Z$1=33,IFERROR(IF(ISTEXT($B51)=TRUE,DSUM(#REF!,""&LEFT($C51,LEN($C51)-$A51)&"",$M$4:INDIRECT(ADDRESS($AK$3,$AK$4)))/DSUM(#REF!,""&$B51&"",$M$4:INDIRECT(ADDRESS($AK$3,$AK$4))),IF($B51=0,DAVERAGE(#REF!,""&LEFT($C51,LEN($C51)-$A51)&"",$M$4:INDIRECT(ADDRESS($AK$3,$AK$4))),IF($B51=1,DSUM(#REF!,""&LEFT($C51,LEN($C51)-$A51)&"",$M$4:INDIRECT(ADDRESS($AK$3,$AK$4)))/DSUM(#REF!,""&$I$4&"",$M$4:INDIRECT(ADDRESS($AK$3,$AK$4))),DSUM(#REF!,""&LEFT($C51,LEN($C51)-$A51)&"",$M$4:INDIRECT(ADDRESS($AK$3,$AK$4)))/DSUM(#REF!,""&$J$4&"",$M$4:INDIRECT(ADDRESS($AK$3,$AK$4)))))),""),"") ->  | G51: =IF($Z$1=33,IFERROR(IF(ISTEXT($B51)=TRUE,DSUM(#REF!,""&LEFT($C51,LEN($C51)-$A51)&"",$L$4:INDIRECT(ADDRESS($AK$3,$AK$4)))/DSUM(#REF!,""&$B51&"",$L$4:INDIRECT(ADDRESS($AK$3,$AK$4))),IF($B51=0,DAVERAGE(#REF!,""&LEFT($C51,LEN($C51)-$A51)&"",$L$4:INDIRECT(ADDRESS($AK$3,$AK$4))),IF($B51=1,DSUM(#REF!,""&LEFT($C51,LEN($C51)-$A51)&"",$L$4:INDIRECT(ADDRESS($AK$3,$AK$4)))/DSUM(#REF!,""&$I$4&"",$L$4:INDIRECT(ADDRESS($AK$3,$AK$4))),IF($B51=2,DSUM(#REF!,""&LEFT($C51,LEN($C51)-$A51)&"",$L$4:INDIRECT(ADDRESS($AK$3,$AK$4)))/DSUM(#REF!,""&$J$4&"",$L$4:INDIRECT(ADDRESS($AK$3,$AK$4))))))),""),"") -> 
B52: Antal årssøer | C52: Dækningsbidrag | D52: =IF($Z$1=33,IF(Choices!$G$1=2,Landsgennemsnit!X52,IF(Choices!$G$1=3,Landsgennemsnit!Z52,"")),"") ->  | E52: =IF($Z$1=33,IF(Choices!$G$1=2,Landsgennemsnit!Y52,IF(Choices!$G$1=3,Landsgennemsnit!AA52,"")),"") ->  | F52: =IF($Z$1=33,IFERROR(IF(ISTEXT($B52)=TRUE,DSUM(#REF!,""&LEFT($C52,LEN($C52)-$A52)&"",$M$4:INDIRECT(ADDRESS($AK$3,$AK$4)))/DSUM(#REF!,""&$B52&"",$M$4:INDIRECT(ADDRESS($AK$3,$AK$4))),IF($B52=0,DAVERAGE(#REF!,""&LEFT($C52,LEN($C52)-$A52)&"",$M$4:INDIRECT(ADDRESS($AK$3,$AK$4))),IF($B52=1,DSUM(#REF!,""&LEFT($C52,LEN($C52)-$A52)&"",$M$4:INDIRECT(ADDRESS($AK$3,$AK$4)))/DSUM(#REF!,""&$I$4&"",$M$4:INDIRECT(ADDRESS($AK$3,$AK$4))),DSUM(#REF!,""&LEFT($C52,LEN($C52)-$A52)&"",$M$4:INDIRECT(ADDRESS($AK$3,$AK$4)))/DSUM(#REF!,""&$J$4&"",$M$4:INDIRECT(ADDRESS($AK$3,$AK$4)))))),""),"") ->  | G52: =IF($Z$1=33,IFERROR(IF(ISTEXT($B52)=TRUE,DSUM(#REF!,""&LEFT($C52,LEN($C52)-$A52)&"",$L$4:INDIRECT(ADDRESS($AK$3,$AK$4)))/DSUM(#REF!,""&$B52&"",$L$4:INDIRECT(ADDRESS($AK$3,$AK$4))),IF($B52=0,DAVERAGE(#REF!,""&LEFT($C52,LEN($C52)-$A52)&"",$L$4:INDIRECT(ADDRESS($AK$3,$AK$4))),IF($B52=1,DSUM(#REF!,""&LEFT($C52,LEN($C52)-$A52)&"",$L$4:INDIRECT(ADDRESS($AK$3,$AK$4)))/DSUM(#REF!,""&$I$4&"",$L$4:INDIRECT(ADDRESS($AK$3,$AK$4))),IF($B52=2,DSUM(#REF!,""&LEFT($C52,LEN($C52)-$A52)&"",$L$4:INDIRECT(ADDRESS($AK$3,$AK$4)))/DSUM(#REF!,""&$J$4&"",$L$4:INDIRECT(ADDRESS($AK$3,$AK$4))))))),""),"") -> 
D53: =IF($Z$1=33,IF(Choices!$G$1=2,Landsgennemsnit!X53,IF(Choices!$G$1=3,Landsgennemsnit!Z53,"")),"") ->  | E53: =IF($Z$1=33,IF(Choices!$G$1=2,Landsgennemsnit!Y53,IF(Choices!$G$1=3,Landsgennemsnit!AA53,"")),"") ->  | F53: =IF($Z$1=33,IFERROR(IF(ISTEXT($B53)=TRUE,DSUM(#REF!,""&LEFT($C53,LEN($C53)-$A53)&"",$M$4:INDIRECT(ADDRESS($AK$3,$AK$4)))/DSUM(#REF!,""&$B53&"",$M$4:INDIRECT(ADDRESS($AK$3,$AK$4))),IF($B53=0,DAVERAGE(#REF!,""&LEFT($C53,LEN($C53)-$A53)&"",$M$4:INDIRECT(ADDRESS($AK$3,$AK$4))),IF($B53=1,DSUM(#REF!,""&LEFT($C53,LEN($C53)-$A53)&"",$M$4:INDIRECT(ADDRESS($AK$3,$AK$4)))/DSUM(#REF!,""&$I$4&"",$M$4:INDIRECT(ADDRESS($AK$3,$AK$4))),DSUM(#REF!,""&LEFT($C53,LEN($C53)-$A53)&"",$M$4:INDIRECT(ADDRESS($AK$3,$AK$4)))/DSUM(#REF!,""&$J$4&"",$M$4:INDIRECT(ADDRESS($AK$3,$AK$4)))))),""),"") ->  | G53: =IF($Z$1=33,IFERROR(IF(ISTEXT($B53)=TRUE,DSUM(#REF!,""&LEFT($C53,LEN($C53)-$A53)&"",$L$4:INDIRECT(ADDRESS($AK$3,$AK$4)))/DSUM(#REF!,""&$B53&"",$L$4:INDIRECT(ADDRESS($AK$3,$AK$4))),IF($B53=0,DAVERAGE(#REF!,""&LEFT($C53,LEN($C53)-$A53)&"",$L$4:INDIRECT(ADDRESS($AK$3,$AK$4))),IF($B53=1,DSUM(#REF!,""&LEFT($C53,LEN($C53)-$A53)&"",$L$4:INDIRECT(ADDRESS($AK$3,$AK$4)))/DSUM(#REF!,""&$I$4&"",$L$4:INDIRECT(ADDRESS($AK$3,$AK$4))),IF($B53=2,DSUM(#REF!,""&LEFT($C53,LEN($C53)-$A53)&"",$L$4:INDIRECT(ADDRESS($AK$3,$AK$4)))/DSUM(#REF!,""&$J$4&"",$L$4:INDIRECT(ADDRESS($AK$3,$AK$4))))))),""),"") -> 
B54: Antal årssøer | C54: Energi svin | D54: =IF($Z$1=33,IF(Choices!$G$1=2,Landsgennemsnit!X54,IF(Choices!$G$1=3,Landsgennemsnit!Z54,"")),"") ->  | E54: =IF($Z$1=33,IF(Choices!$G$1=2,Landsgennemsnit!Y54,IF(Choices!$G$1=3,Landsgennemsnit!AA54,"")),"") ->  | F54: =IF($Z$1=33,IFERROR(IF(ISTEXT($B54)=TRUE,DSUM(#REF!,""&LEFT($C54,LEN($C54)-$A54)&"",$M$4:INDIRECT(ADDRESS($AK$3,$AK$4)))/DSUM(#REF!,""&$B54&"",$M$4:INDIRECT(ADDRESS($AK$3,$AK$4))),IF($B54=0,DAVERAGE(#REF!,""&LEFT($C54,LEN($C54)-$A54)&"",$M$4:INDIRECT(ADDRESS($AK$3,$AK$4))),IF($B54=1,DSUM(#REF!,""&LEFT($C54,LEN($C54)-$A54)&"",$M$4:INDIRECT(ADDRESS($AK$3,$AK$4)))/DSUM(#REF!,""&$I$4&"",$M$4:INDIRECT(ADDRESS($AK$3,$AK$4))),DSUM(#REF!,""&LEFT($C54,LEN($C54)-$A54)&"",$M$4:INDIRECT(ADDRESS($AK$3,$AK$4)))/DSUM(#REF!,""&$J$4&"",$M$4:INDIRECT(ADDRESS($AK$3,$AK$4)))))),""),"") ->  | G54: =IF($Z$1=33,IFERROR(IF(ISTEXT($B54)=TRUE,DSUM(#REF!,""&LEFT($C54,LEN($C54)-$A54)&"",$L$4:INDIRECT(ADDRESS($AK$3,$AK$4)))/DSUM(#REF!,""&$B54&"",$L$4:INDIRECT(ADDRESS($AK$3,$AK$4))),IF($B54=0,DAVERAGE(#REF!,""&LEFT($C54,LEN($C54)-$A54)&"",$L$4:INDIRECT(ADDRESS($AK$3,$AK$4))),IF($B54=1,DSUM(#REF!,""&LEFT($C54,LEN($C54)-$A54)&"",$L$4:INDIRECT(ADDRESS($AK$3,$AK$4)))/DSUM(#REF!,""&$I$4&"",$L$4:INDIRECT(ADDRESS($AK$3,$AK$4))),IF($B54=2,DSUM(#REF!,""&LEFT($C54,LEN($C54)-$A54)&"",$L$4:INDIRECT(ADDRESS($AK$3,$AK$4)))/DSUM(#REF!,""&$J$4&"",$L$4:INDIRECT(ADDRESS($AK$3,$AK$4))))))),""),"") -> 
B55: Antal årssøer | C55: Vedligehold | D55: =IF($Z$1=33,IF(Choices!$G$1=2,Landsgennemsnit!X55,IF(Choices!$G$1=3,Landsgennemsnit!Z55,"")),"") ->  | E55: =IF($Z$1=33,IF(Choices!$G$1=2,Landsgennemsnit!Y55,IF(Choices!$G$1=3,Landsgennemsnit!AA55,"")),"") ->  | F55: =IF($Z$1=33,IFERROR(IF(ISTEXT($B55)=TRUE,DSUM(#REF!,""&LEFT($C55,LEN($C55)-$A55)&"",$M$4:INDIRECT(ADDRESS($AK$3,$AK$4)))/DSUM(#REF!,""&$B55&"",$M$4:INDIRECT(ADDRESS($AK$3,$AK$4))),IF($B55=0,DAVERAGE(#REF!,""&LEFT($C55,LEN($C55)-$A55)&"",$M$4:INDIRECT(ADDRESS($AK$3,$AK$4))),IF($B55=1,DSUM(#REF!,""&LEFT($C55,LEN($C55)-$A55)&"",$M$4:INDIRECT(ADDRESS($AK$3,$AK$4)))/DSUM(#REF!,""&$I$4&"",$M$4:INDIRECT(ADDRESS($AK$3,$AK$4))),DSUM(#REF!,""&LEFT($C55,LEN($C55)-$A55)&"",$M$4:INDIRECT(ADDRESS($AK$3,$AK$4)))/DSUM(#REF!,""&$J$4&"",$M$4:INDIRECT(ADDRESS($AK$3,$AK$4)))))),""),"") ->  | G55: =IF($Z$1=33,IFERROR(IF(ISTEXT($B55)=TRUE,DSUM(#REF!,""&LEFT($C55,LEN($C55)-$A55)&"",$L$4:INDIRECT(ADDRESS($AK$3,$AK$4)))/DSUM(#REF!,""&$B55&"",$L$4:INDIRECT(ADDRESS($AK$3,$AK$4))),IF($B55=0,DAVERAGE(#REF!,""&LEFT($C55,LEN($C55)-$A55)&"",$L$4:INDIRECT(ADDRESS($AK$3,$AK$4))),IF($B55=1,DSUM(#REF!,""&LEFT($C55,LEN($C55)-$A55)&"",$L$4:INDIRECT(ADDRESS($AK$3,$AK$4)))/DSUM(#REF!,""&$I$4&"",$L$4:INDIRECT(ADDRESS($AK$3,$AK$4))),IF($B55=2,DSUM(#REF!,""&LEFT($C55,LEN($C55)-$A55)&"",$L$4:INDIRECT(ADDRESS($AK$3,$AK$4)))/DSUM(#REF!,""&$J$4&"",$L$4:INDIRECT(ADDRESS($AK$3,$AK$4))))))),""),"") -> 
B56: Antal årssøer | C56: Lønomkostninger | D56: =IF($Z$1=33,IF(Choices!$G$1=2,Landsgennemsnit!X56,IF(Choices!$G$1=3,Landsgennemsnit!Z56,"")),"") ->  | E56: =IF($Z$1=33,IF(Choices!$G$1=2,Landsgennemsnit!Y56,IF(Choices!$G$1=3,Landsgennemsnit!AA56,"")),"") ->  | F56: =IF($Z$1=33,IFERROR(IF(ISTEXT($B56)=TRUE,DSUM(#REF!,""&LEFT($C56,LEN($C56)-$A56)&"",$M$4:INDIRECT(ADDRESS($AK$3,$AK$4)))/DSUM(#REF!,""&$B56&"",$M$4:INDIRECT(ADDRESS($AK$3,$AK$4))),IF($B56=0,DAVERAGE(#REF!,""&LEFT($C56,LEN($C56)-$A56)&"",$M$4:INDIRECT(ADDRESS($AK$3,$AK$4))),IF($B56=1,DSUM(#REF!,""&LEFT($C56,LEN($C56)-$A56)&"",$M$4:INDIRECT(ADDRESS($AK$3,$AK$4)))/DSUM(#REF!,""&$I$4&"",$M$4:INDIRECT(ADDRESS($AK$3,$AK$4))),DSUM(#REF!,""&LEFT($C56,LEN($C56)-$A56)&"",$M$4:INDIRECT(ADDRESS($AK$3,$AK$4)))/DSUM(#REF!,""&$J$4&"",$M$4:INDIRECT(ADDRESS($AK$3,$AK$4)))))),""),"") ->  | G56: =IF($Z$1=33,IFERROR(IF(ISTEXT($B56)=TRUE,DSUM(#REF!,""&LEFT($C56,LEN($C56)-$A56)&"",$L$4:INDIRECT(ADDRESS($AK$3,$AK$4)))/DSUM(#REF!,""&$B56&"",$L$4:INDIRECT(ADDRESS($AK$3,$AK$4))),IF($B56=0,DAVERAGE(#REF!,""&LEFT($C56,LEN($C56)-$A56)&"",$L$4:INDIRECT(ADDRESS($AK$3,$AK$4))),IF($B56=1,DSUM(#REF!,""&LEFT($C56,LEN($C56)-$A56)&"",$L$4:INDIRECT(ADDRESS($AK$3,$AK$4)))/DSUM(#REF!,""&$I$4&"",$L$4:INDIRECT(ADDRESS($AK$3,$AK$4))),IF($B56=2,DSUM(#REF!,""&LEFT($C56,LEN($C56)-$A56)&"",$L$4:INDIRECT(ADDRESS($AK$3,$AK$4)))/DSUM(#REF!,""&$J$4&"",$L$4:INDIRECT(ADDRESS($AK$3,$AK$4))))))),""),"") -> 
B57: Antal årssøer | C57: Ejeraflønning | D57: =IF($Z$1=33,IF(Choices!$G$1=2,Landsgennemsnit!X57,IF(Choices!$G$1=3,Landsgennemsnit!Z57,"")),"") ->  | E57: =IF($Z$1=33,IF(Choices!$G$1=2,Landsgennemsnit!Y57,IF(Choices!$G$1=3,Landsgennemsnit!AA57,"")),"") ->  | F57: =IF($Z$1=33,IFERROR(IF(ISTEXT($B57)=TRUE,DSUM(#REF!,""&LEFT($C57,LEN($C57)-$A57)&"",$M$4:INDIRECT(ADDRESS($AK$3,$AK$4)))/DSUM(#REF!,""&$B57&"",$M$4:INDIRECT(ADDRESS($AK$3,$AK$4))),IF($B57=0,DAVERAGE(#REF!,""&LEFT($C57,LEN($C57)-$A57)&"",$M$4:INDIRECT(ADDRESS($AK$3,$AK$4))),IF($B57=1,DSUM(#REF!,""&LEFT($C57,LEN($C57)-$A57)&"",$M$4:INDIRECT(ADDRESS($AK$3,$AK$4)))/DSUM(#REF!,""&$I$4&"",$M$4:INDIRECT(ADDRESS($AK$3,$AK$4))),DSUM(#REF!,""&LEFT($C57,LEN($C57)-$A57)&"",$M$4:INDIRECT(ADDRESS($AK$3,$AK$4)))/DSUM(#REF!,""&$J$4&"",$M$4:INDIRECT(ADDRESS($AK$3,$AK$4)))))),""),"") ->  | G57: =IF($Z$1=33,IFERROR(IF(ISTEXT($B57)=TRUE,DSUM(#REF!,""&LEFT($C57,LEN($C57)-$A57)&"",$L$4:INDIRECT(ADDRESS($AK$3,$AK$4)))/DSUM(#REF!,""&$B57&"",$L$4:INDIRECT(ADDRESS($AK$3,$AK$4))),IF($B57=0,DAVERAGE(#REF!,""&LEFT($C57,LEN($C57)-$A57)&"",$L$4:INDIRECT(ADDRESS($AK$3,$AK$4))),IF($B57=1,DSUM(#REF!,""&LEFT($C57,LEN($C57)-$A57)&"",$L$4:INDIRECT(ADDRESS($AK$3,$AK$4)))/DSUM(#REF!,""&$I$4&"",$L$4:INDIRECT(ADDRESS($AK$3,$AK$4))),IF($B57=2,DSUM(#REF!,""&LEFT($C57,LEN($C57)-$A57)&"",$L$4:INDIRECT(ADDRESS($AK$3,$AK$4)))/DSUM(#REF!,""&$J$4&"",$L$4:INDIRECT(ADDRESS($AK$3,$AK$4))))))),""),"") -> 
B58: Antal årssøer | C58: Forsikring | D58: =IF($Z$1=33,IF(Choices!$G$1=2,Landsgennemsnit!X58,IF(Choices!$G$1=3,Landsgennemsnit!Z58,"")),"") ->  | E58: =IF($Z$1=33,IF(Choices!$G$1=2,Landsgennemsnit!Y58,IF(Choices!$G$1=3,Landsgennemsnit!AA58,"")),"") ->  | F58: =IF($Z$1=33,IFERROR(IF(ISTEXT($B58)=TRUE,DSUM(#REF!,""&LEFT($C58,LEN($C58)-$A58)&"",$M$4:INDIRECT(ADDRESS($AK$3,$AK$4)))/DSUM(#REF!,""&$B58&"",$M$4:INDIRECT(ADDRESS($AK$3,$AK$4))),IF($B58=0,DAVERAGE(#REF!,""&LEFT($C58,LEN($C58)-$A58)&"",$M$4:INDIRECT(ADDRESS($AK$3,$AK$4))),IF($B58=1,DSUM(#REF!,""&LEFT($C58,LEN($C58)-$A58)&"",$M$4:INDIRECT(ADDRESS($AK$3,$AK$4)))/DSUM(#REF!,""&$I$4&"",$M$4:INDIRECT(ADDRESS($AK$3,$AK$4))),DSUM(#REF!,""&LEFT($C58,LEN($C58)-$A58)&"",$M$4:INDIRECT(ADDRESS($AK$3,$AK$4)))/DSUM(#REF!,""&$J$4&"",$M$4:INDIRECT(ADDRESS($AK$3,$AK$4)))))),""),"") ->  | G58: =IF($Z$1=33,IFERROR(IF(ISTEXT($B58)=TRUE,DSUM(#REF!,""&LEFT($C58,LEN($C58)-$A58)&"",$L$4:INDIRECT(ADDRESS($AK$3,$AK$4)))/DSUM(#REF!,""&$B58&"",$L$4:INDIRECT(ADDRESS($AK$3,$AK$4))),IF($B58=0,DAVERAGE(#REF!,""&LEFT($C58,LEN($C58)-$A58)&"",$L$4:INDIRECT(ADDRESS($AK$3,$AK$4))),IF($B58=1,DSUM(#REF!,""&LEFT($C58,LEN($C58)-$A58)&"",$L$4:INDIRECT(ADDRESS($AK$3,$AK$4)))/DSUM(#REF!,""&$I$4&"",$L$4:INDIRECT(ADDRESS($AK$3,$AK$4))),IF($B58=2,DSUM(#REF!,""&LEFT($C58,LEN($C58)-$A58)&"",$L$4:INDIRECT(ADDRESS($AK$3,$AK$4)))/DSUM(#REF!,""&$J$4&"",$L$4:INDIRECT(ADDRESS($AK$3,$AK$4))))))),""),"") -> 
B59: Antal årssøer | C59: Diverse kapacitetsomkostninger svin | D59: =IF($Z$1=33,IF(Choices!$G$1=2,Landsgennemsnit!X59,IF(Choices!$G$1=3,Landsgennemsnit!Z59,"")),"") ->  | E59: =IF($Z$1=33,IF(Choices!$G$1=2,Landsgennemsnit!Y59,IF(Choices!$G$1=3,Landsgennemsnit!AA59,"")),"") ->  | F59: =IF($Z$1=33,IFERROR(IF(ISTEXT($B59)=TRUE,DSUM(#REF!,""&LEFT($C59,LEN($C59)-$A59)&"",$M$4:INDIRECT(ADDRESS($AK$3,$AK$4)))/DSUM(#REF!,""&$B59&"",$M$4:INDIRECT(ADDRESS($AK$3,$AK$4))),IF($B59=0,DAVERAGE(#REF!,""&LEFT($C59,LEN($C59)-$A59)&"",$M$4:INDIRECT(ADDRESS($AK$3,$AK$4))),IF($B59=1,DSUM(#REF!,""&LEFT($C59,LEN($C59)-$A59)&"",$M$4:INDIRECT(ADDRESS($AK$3,$AK$4)))/DSUM(#REF!,""&$I$4&"",$M$4:INDIRECT(ADDRESS($AK$3,$AK$4))),DSUM(#REF!,""&LEFT($C59,LEN($C59)-$A59)&"",$M$4:INDIRECT(ADDRESS($AK$3,$AK$4)))/DSUM(#REF!,""&$J$4&"",$M$4:INDIRECT(ADDRESS($AK$3,$AK$4)))))),""),"") ->  | G59: =IF($Z$1=33,IFERROR(IF(ISTEXT($B59)=TRUE,DSUM(#REF!,""&LEFT($C59,LEN($C59)-$A59)&"",$L$4:INDIRECT(ADDRESS($AK$3,$AK$4)))/DSUM(#REF!,""&$B59&"",$L$4:INDIRECT(ADDRESS($AK$3,$AK$4))),IF($B59=0,DAVERAGE(#REF!,""&LEFT($C59,LEN($C59)-$A59)&"",$L$4:INDIRECT(ADDRESS($AK$3,$AK$4))),IF($B59=1,DSUM(#REF!,""&LEFT($C59,LEN($C59)-$A59)&"",$L$4:INDIRECT(ADDRESS($AK$3,$AK$4)))/DSUM(#REF!,""&$I$4&"",$L$4:INDIRECT(ADDRESS($AK$3,$AK$4))),IF($B59=2,DSUM(#REF!,""&LEFT($C59,LEN($C59)-$A59)&"",$L$4:INDIRECT(ADDRESS($AK$3,$AK$4)))/DSUM(#REF!,""&$J$4&"",$L$4:INDIRECT(ADDRESS($AK$3,$AK$4))))))),""),"") -> 
B60: Antal årssøer | C60: Kapacitetsomkostninger i alt | D60: =IF($Z$1=33,IF(Choices!$G$1=2,Landsgennemsnit!X60,IF(Choices!$G$1=3,Landsgennemsnit!Z60,"")),"") ->  | E60: =IF($Z$1=33,IF(Choices!$G$1=2,Landsgennemsnit!Y60,IF(Choices!$G$1=3,Landsgennemsnit!AA60,"")),"") ->  | F60: =IF($Z$1=33,IFERROR(IF(ISTEXT($B60)=TRUE,DSUM(#REF!,""&LEFT($C60,LEN($C60)-$A60)&"",$M$4:INDIRECT(ADDRESS($AK$3,$AK$4)))/DSUM(#REF!,""&$B60&"",$M$4:INDIRECT(ADDRESS($AK$3,$AK$4))),IF($B60=0,DAVERAGE(#REF!,""&LEFT($C60,LEN($C60)-$A60)&"",$M$4:INDIRECT(ADDRESS($AK$3,$AK$4))),IF($B60=1,DSUM(#REF!,""&LEFT($C60,LEN($C60)-$A60)&"",$M$4:INDIRECT(ADDRESS($AK$3,$AK$4)))/DSUM(#REF!,""&$I$4&"",$M$4:INDIRECT(ADDRESS($AK$3,$AK$4))),DSUM(#REF!,""&LEFT($C60,LEN($C60)-$A60)&"",$M$4:INDIRECT(ADDRESS($AK$3,$AK$4)))/DSUM(#REF!,""&$J$4&"",$M$4:INDIRECT(ADDRESS($AK$3,$AK$4)))))),""),"") ->  | G60: =IF($Z$1=33,IFERROR(IF(ISTEXT($B60)=TRUE,DSUM(#REF!,""&LEFT($C60,LEN($C60)-$A60)&"",$L$4:INDIRECT(ADDRESS($AK$3,$AK$4)))/DSUM(#REF!,""&$B60&"",$L$4:INDIRECT(ADDRESS($AK$3,$AK$4))),IF($B60=0,DAVERAGE(#REF!,""&LEFT($C60,LEN($C60)-$A60)&"",$L$4:INDIRECT(ADDRESS($AK$3,$AK$4))),IF($B60=1,DSUM(#REF!,""&LEFT($C60,LEN($C60)-$A60)&"",$L$4:INDIRECT(ADDRESS($AK$3,$AK$4)))/DSUM(#REF!,""&$I$4&"",$L$4:INDIRECT(ADDRESS($AK$3,$AK$4))),IF($B60=2,DSUM(#REF!,""&LEFT($C60,LEN($C60)-$A60)&"",$L$4:INDIRECT(ADDRESS($AK$3,$AK$4)))/DSUM(#REF!,""&$J$4&"",$L$4:INDIRECT(ADDRESS($AK$3,$AK$4))))))),""),"") -> 
D61: =IF($Z$1=33,IF(Choices!$G$1=2,Landsgennemsnit!X61,IF(Choices!$G$1=3,Landsgennemsnit!Z61,"")),"") ->  | E61: =IF($Z$1=33,IF(Choices!$G$1=2,Landsgennemsnit!Y61,IF(Choices!$G$1=3,Landsgennemsnit!AA61,"")),"") ->  | F61: =IF($Z$1=33,IFERROR(IF(ISTEXT($B61)=TRUE,DSUM(#REF!,""&LEFT($C61,LEN($C61)-$A61)&"",$M$4:INDIRECT(ADDRESS($AK$3,$AK$4)))/DSUM(#REF!,""&$B61&"",$M$4:INDIRECT(ADDRESS($AK$3,$AK$4))),IF($B61=0,DAVERAGE(#REF!,""&LEFT($C61,LEN($C61)-$A61)&"",$M$4:INDIRECT(ADDRESS($AK$3,$AK$4))),IF($B61=1,DSUM(#REF!,""&LEFT($C61,LEN($C61)-$A61)&"",$M$4:INDIRECT(ADDRESS($AK$3,$AK$4)))/DSUM(#REF!,""&$I$4&"",$M$4:INDIRECT(ADDRESS($AK$3,$AK$4))),DSUM(#REF!,""&LEFT($C61,LEN($C61)-$A61)&"",$M$4:INDIRECT(ADDRESS($AK$3,$AK$4)))/DSUM(#REF!,""&$J$4&"",$M$4:INDIRECT(ADDRESS($AK$3,$AK$4)))))),""),"") ->  | G61: =IF($Z$1=33,IFERROR(IF(ISTEXT($B61)=TRUE,DSUM(#REF!,""&LEFT($C61,LEN($C61)-$A61)&"",$L$4:INDIRECT(ADDRESS($AK$3,$AK$4)))/DSUM(#REF!,""&$B61&"",$L$4:INDIRECT(ADDRESS($AK$3,$AK$4))),IF($B61=0,DAVERAGE(#REF!,""&LEFT($C61,LEN($C61)-$A61)&"",$L$4:INDIRECT(ADDRESS($AK$3,$AK$4))),IF($B61=1,DSUM(#REF!,""&LEFT($C61,LEN($C61)-$A61)&"",$L$4:INDIRECT(ADDRESS($AK$3,$AK$4)))/DSUM(#REF!,""&$I$4&"",$L$4:INDIRECT(ADDRESS($AK$3,$AK$4))),IF($B61=2,DSUM(#REF!,""&LEFT($C61,LEN($C61)-$A61)&"",$L$4:INDIRECT(ADDRESS($AK$3,$AK$4)))/DSUM(#REF!,""&$J$4&"",$L$4:INDIRECT(ADDRESS($AK$3,$AK$4))))))),""),"") -> 
B62: Antal årssøer | C62: Afskrivning bygninger | D62: =IF($Z$1=33,IF(Choices!$G$1=2,Landsgennemsnit!X62,IF(Choices!$G$1=3,Landsgennemsnit!Z62,"")),"") ->  | E62: =IF($Z$1=33,IF(Choices!$G$1=2,Landsgennemsnit!Y62,IF(Choices!$G$1=3,Landsgennemsnit!AA62,"")),"") ->  | F62: =IF($Z$1=33,IFERROR(IF(ISTEXT($B62)=TRUE,DSUM(#REF!,""&LEFT($C62,LEN($C62)-$A62)&"",$M$4:INDIRECT(ADDRESS($AK$3,$AK$4)))/DSUM(#REF!,""&$B62&"",$M$4:INDIRECT(ADDRESS($AK$3,$AK$4))),IF($B62=0,DAVERAGE(#REF!,""&LEFT($C62,LEN($C62)-$A62)&"",$M$4:INDIRECT(ADDRESS($AK$3,$AK$4))),IF($B62=1,DSUM(#REF!,""&LEFT($C62,LEN($C62)-$A62)&"",$M$4:INDIRECT(ADDRESS($AK$3,$AK$4)))/DSUM(#REF!,""&$I$4&"",$M$4:INDIRECT(ADDRESS($AK$3,$AK$4))),DSUM(#REF!,""&LEFT($C62,LEN($C62)-$A62)&"",$M$4:INDIRECT(ADDRESS($AK$3,$AK$4)))/DSUM(#REF!,""&$J$4&"",$M$4:INDIRECT(ADDRESS($AK$3,$AK$4)))))),""),"") ->  | G62: =IF($Z$1=33,IFERROR(IF(ISTEXT($B62)=TRUE,DSUM(#REF!,""&LEFT($C62,LEN($C62)-$A62)&"",$L$4:INDIRECT(ADDRESS($AK$3,$AK$4)))/DSUM(#REF!,""&$B62&"",$L$4:INDIRECT(ADDRESS($AK$3,$AK$4))),IF($B62=0,DAVERAGE(#REF!,""&LEFT($C62,LEN($C62)-$A62)&"",$L$4:INDIRECT(ADDRESS($AK$3,$AK$4))),IF($B62=1,DSUM(#REF!,""&LEFT($C62,LEN($C62)-$A62)&"",$L$4:INDIRECT(ADDRESS($AK$3,$AK$4)))/DSUM(#REF!,""&$I$4&"",$L$4:INDIRECT(ADDRESS($AK$3,$AK$4))),IF($B62=2,DSUM(#REF!,""&LEFT($C62,LEN($C62)-$A62)&"",$L$4:INDIRECT(ADDRESS($AK$3,$AK$4)))/DSUM(#REF!,""&$J$4&"",$L$4:INDIRECT(ADDRESS($AK$3,$AK$4))))))),""),"") -> 
B63: Antal årssøer | C63: Afskrivning inventar og Øvrige omk. | D63: =IF($Z$1=33,IF(Choices!$G$1=2,Landsgennemsnit!X63,IF(Choices!$G$1=3,Landsgennemsnit!Z63,"")),"") ->  | E63: =IF($Z$1=33,IF(Choices!$G$1=2,Landsgennemsnit!Y63,IF(Choices!$G$1=3,Landsgennemsnit!AA63,"")),"") ->  | F63: =IF($Z$1=33,IFERROR(IF(ISTEXT($B63)=TRUE,DSUM(#REF!,""&LEFT($C63,LEN($C63)-$A63)&"",$M$4:INDIRECT(ADDRESS($AK$3,$AK$4)))/DSUM(#REF!,""&$B63&"",$M$4:INDIRECT(ADDRESS($AK$3,$AK$4))),IF($B63=0,DAVERAGE(#REF!,""&LEFT($C63,LEN($C63)-$A63)&"",$M$4:INDIRECT(ADDRESS($AK$3,$AK$4))),IF($B63=1,DSUM(#REF!,""&LEFT($C63,LEN($C63)-$A63)&"",$M$4:INDIRECT(ADDRESS($AK$3,$AK$4)))/DSUM(#REF!,""&$I$4&"",$M$4:INDIRECT(ADDRESS($AK$3,$AK$4))),DSUM(#REF!,""&LEFT($C63,LEN($C63)-$A63)&"",$M$4:INDIRECT(ADDRESS($AK$3,$AK$4)))/DSUM(#REF!,""&$J$4&"",$M$4:INDIRECT(ADDRESS($AK$3,$AK$4)))))),""),"") ->  | G63: =IF($Z$1=33,IFERROR(IF(ISTEXT($B63)=TRUE,DSUM(#REF!,""&LEFT($C63,LEN($C63)-$A63)&"",$L$4:INDIRECT(ADDRESS($AK$3,$AK$4)))/DSUM(#REF!,""&$B63&"",$L$4:INDIRECT(ADDRESS($AK$3,$AK$4))),IF($B63=0,DAVERAGE(#REF!,""&LEFT($C63,LEN($C63)-$A63)&"",$L$4:INDIRECT(ADDRESS($AK$3,$AK$4))),IF($B63=1,DSUM(#REF!,""&LEFT($C63,LEN($C63)-$A63)&"",$L$4:INDIRECT(ADDRESS($AK$3,$AK$4)))/DSUM(#REF!,""&$I$4&"",$L$4:INDIRECT(ADDRESS($AK$3,$AK$4))),IF($B63=2,DSUM(#REF!,""&LEFT($C63,LEN($C63)-$A63)&"",$L$4:INDIRECT(ADDRESS($AK$3,$AK$4)))/DSUM(#REF!,""&$J$4&"",$L$4:INDIRECT(ADDRESS($AK$3,$AK$4))))))),""),"") -> 
B64: Antal årssøer | C64: Leje af driftsbygninger | D64: =IF($Z$1=33,IF(Choices!$G$1=2,Landsgennemsnit!X64,IF(Choices!$G$1=3,Landsgennemsnit!Z64,"")),"") ->  | E64: =IF($Z$1=33,IF(Choices!$G$1=2,Landsgennemsnit!Y64,IF(Choices!$G$1=3,Landsgennemsnit!AA64,"")),"") ->  | F64: =IF($Z$1=33,IFERROR(IF(ISTEXT($B64)=TRUE,DSUM(#REF!,""&LEFT($C64,LEN($C64)-$A64)&"",$M$4:INDIRECT(ADDRESS($AK$3,$AK$4)))/DSUM(#REF!,""&$B64&"",$M$4:INDIRECT(ADDRESS($AK$3,$AK$4))),IF($B64=0,DAVERAGE(#REF!,""&LEFT($C64,LEN($C64)-$A64)&"",$M$4:INDIRECT(ADDRESS($AK$3,$AK$4))),IF($B64=1,DSUM(#REF!,""&LEFT($C64,LEN($C64)-$A64)&"",$M$4:INDIRECT(ADDRESS($AK$3,$AK$4)))/DSUM(#REF!,""&$I$4&"",$M$4:INDIRECT(ADDRESS($AK$3,$AK$4))),DSUM(#REF!,""&LEFT($C64,LEN($C64)-$A64)&"",$M$4:INDIRECT(ADDRESS($AK$3,$AK$4)))/DSUM(#REF!,""&$J$4&"",$M$4:INDIRECT(ADDRESS($AK$3,$AK$4)))))),""),"") ->  | G64: =IF($Z$1=33,IFERROR(IF(ISTEXT($B64)=TRUE,DSUM(#REF!,""&LEFT($C64,LEN($C64)-$A64)&"",$L$4:INDIRECT(ADDRESS($AK$3,$AK$4)))/DSUM(#REF!,""&$B64&"",$L$4:INDIRECT(ADDRESS($AK$3,$AK$4))),IF($B64=0,DAVERAGE(#REF!,""&LEFT($C64,LEN($C64)-$A64)&"",$L$4:INDIRECT(ADDRESS($AK$3,$AK$4))),IF($B64=1,DSUM(#REF!,""&LEFT($C64,LEN($C64)-$A64)&"",$L$4:INDIRECT(ADDRESS($AK$3,$AK$4)))/DSUM(#REF!,""&$I$4&"",$L$4:INDIRECT(ADDRESS($AK$3,$AK$4))),IF($B64=2,DSUM(#REF!,""&LEFT($C64,LEN($C64)-$A64)&"",$L$4:INDIRECT(ADDRESS($AK$3,$AK$4)))/DSUM(#REF!,""&$J$4&"",$L$4:INDIRECT(ADDRESS($AK$3,$AK$4))))))),""),"") -> 
B65: Antal årssøer | C65: Renteomk. af bundet kapital | D65: =IF($Z$1=33,IF(Choices!$G$1=2,Landsgennemsnit!X65,IF(Choices!$G$1=3,Landsgennemsnit!Z65,"")),"") ->  | E65: =IF($Z$1=33,IF(Choices!$G$1=2,Landsgennemsnit!Y65,IF(Choices!$G$1=3,Landsgennemsnit!AA65,"")),"") ->  | F65: =IF($Z$1=33,IFERROR(IF(ISTEXT($B65)=TRUE,DSUM(#REF!,""&LEFT($C65,LEN($C65)-$A65)&"",$M$4:INDIRECT(ADDRESS($AK$3,$AK$4)))/DSUM(#REF!,""&$B65&"",$M$4:INDIRECT(ADDRESS($AK$3,$AK$4))),IF($B65=0,DAVERAGE(#REF!,""&LEFT($C65,LEN($C65)-$A65)&"",$M$4:INDIRECT(ADDRESS($AK$3,$AK$4))),IF($B65=1,DSUM(#REF!,""&LEFT($C65,LEN($C65)-$A65)&"",$M$4:INDIRECT(ADDRESS($AK$3,$AK$4)))/DSUM(#REF!,""&$I$4&"",$M$4:INDIRECT(ADDRESS($AK$3,$AK$4))),DSUM(#REF!,""&LEFT($C65,LEN($C65)-$A65)&"",$M$4:INDIRECT(ADDRESS($AK$3,$AK$4)))/DSUM(#REF!,""&$J$4&"",$M$4:INDIRECT(ADDRESS($AK$3,$AK$4)))))),""),"") ->  | G65: =IF($Z$1=33,IFERROR(IF(ISTEXT($B65)=TRUE,DSUM(#REF!,""&LEFT($C65,LEN($C65)-$A65)&"",$L$4:INDIRECT(ADDRESS($AK$3,$AK$4)))/DSUM(#REF!,""&$B65&"",$L$4:INDIRECT(ADDRESS($AK$3,$AK$4))),IF($B65=0,DAVERAGE(#REF!,""&LEFT($C65,LEN($C65)-$A65)&"",$L$4:INDIRECT(ADDRESS($AK$3,$AK$4))),IF($B65=1,DSUM(#REF!,""&LEFT($C65,LEN($C65)-$A65)&"",$L$4:INDIRECT(ADDRESS($AK$3,$AK$4)))/DSUM(#REF!,""&$I$4&"",$L$4:INDIRECT(ADDRESS($AK$3,$AK$4))),IF($B65=2,DSUM(#REF!,""&LEFT($C65,LEN($C65)-$A65)&"",$L$4:INDIRECT(ADDRESS($AK$3,$AK$4)))/DSUM(#REF!,""&$J$4&"",$L$4:INDIRECT(ADDRESS($AK$3,$AK$4))))))),""),"") -> 
B66: Antal årssøer | C66: Kapitalomkostninger i alt | D66: =IF($Z$1=33,IF(Choices!$G$1=2,Landsgennemsnit!X66,IF(Choices!$G$1=3,Landsgennemsnit!Z66,"")),"") ->  | E66: =IF($Z$1=33,IF(Choices!$G$1=2,Landsgennemsnit!Y66,IF(Choices!$G$1=3,Landsgennemsnit!AA66,"")),"") ->  | F66: =IF($Z$1=33,IFERROR(IF(ISTEXT($B66)=TRUE,DSUM(#REF!,""&LEFT($C66,LEN($C66)-$A66)&"",$M$4:INDIRECT(ADDRESS($AK$3,$AK$4)))/DSUM(#REF!,""&$B66&"",$M$4:INDIRECT(ADDRESS($AK$3,$AK$4))),IF($B66=0,DAVERAGE(#REF!,""&LEFT($C66,LEN($C66)-$A66)&"",$M$4:INDIRECT(ADDRESS($AK$3,$AK$4))),IF($B66=1,DSUM(#REF!,""&LEFT($C66,LEN($C66)-$A66)&"",$M$4:INDIRECT(ADDRESS($AK$3,$AK$4)))/DSUM(#REF!,""&$I$4&"",$M$4:INDIRECT(ADDRESS($AK$3,$AK$4))),DSUM(#REF!,""&LEFT($C66,LEN($C66)-$A66)&"",$M$4:INDIRECT(ADDRESS($AK$3,$AK$4)))/DSUM(#REF!,""&$J$4&"",$M$4:INDIRECT(ADDRESS($AK$3,$AK$4)))))),""),"") ->  | G66: =IF($Z$1=33,IFERROR(IF(ISTEXT($B66)=TRUE,DSUM(#REF!,""&LEFT($C66,LEN($C66)-$A66)&"",$L$4:INDIRECT(ADDRESS($AK$3,$AK$4)))/DSUM(#REF!,""&$B66&"",$L$4:INDIRECT(ADDRESS($AK$3,$AK$4))),IF($B66=0,DAVERAGE(#REF!,""&LEFT($C66,LEN($C66)-$A66)&"",$L$4:INDIRECT(ADDRESS($AK$3,$AK$4))),IF($B66=1,DSUM(#REF!,""&LEFT($C66,LEN($C66)-$A66)&"",$L$4:INDIRECT(ADDRESS($AK$3,$AK$4)))/DSUM(#REF!,""&$I$4&"",$L$4:INDIRECT(ADDRESS($AK$3,$AK$4))),IF($B66=2,DSUM(#REF!,""&LEFT($C66,LEN($C66)-$A66)&"",$L$4:INDIRECT(ADDRESS($AK$3,$AK$4)))/DSUM(#REF!,""&$J$4&"",$L$4:INDIRECT(ADDRESS($AK$3,$AK$4))))))),""),"") -> 
D67: =IF($Z$1=33,IF(Choices!$G$1=2,Landsgennemsnit!X67,IF(Choices!$G$1=3,Landsgennemsnit!Z67,"")),"") ->  | E67: =IF($Z$1=33,IF(Choices!$G$1=2,Landsgennemsnit!Y67,IF(Choices!$G$1=3,Landsgennemsnit!AA67,"")),"") ->  | F67: =IF($Z$1=33,IFERROR(IF(ISTEXT($B67)=TRUE,DSUM(#REF!,""&LEFT($C67,LEN($C67)-$A67)&"",$M$4:INDIRECT(ADDRESS($AK$3,$AK$4)))/DSUM(#REF!,""&$B67&"",$M$4:INDIRECT(ADDRESS($AK$3,$AK$4))),IF($B67=0,DAVERAGE(#REF!,""&LEFT($C67,LEN($C67)-$A67)&"",$M$4:INDIRECT(ADDRESS($AK$3,$AK$4))),IF($B67=1,DSUM(#REF!,""&LEFT($C67,LEN($C67)-$A67)&"",$M$4:INDIRECT(ADDRESS($AK$3,$AK$4)))/DSUM(#REF!,""&$I$4&"",$M$4:INDIRECT(ADDRESS($AK$3,$AK$4))),DSUM(#REF!,""&LEFT($C67,LEN($C67)-$A67)&"",$M$4:INDIRECT(ADDRESS($AK$3,$AK$4)))/DSUM(#REF!,""&$J$4&"",$M$4:INDIRECT(ADDRESS($AK$3,$AK$4)))))),""),"") ->  | G67: =IF($Z$1=33,IFERROR(IF(ISTEXT($B67)=TRUE,DSUM(#REF!,""&LEFT($C67,LEN($C67)-$A67)&"",$L$4:INDIRECT(ADDRESS($AK$3,$AK$4)))/DSUM(#REF!,""&$B67&"",$L$4:INDIRECT(ADDRESS($AK$3,$AK$4))),IF($B67=0,DAVERAGE(#REF!,""&LEFT($C67,LEN($C67)-$A67)&"",$L$4:INDIRECT(ADDRESS($AK$3,$AK$4))),IF($B67=1,DSUM(#REF!,""&LEFT($C67,LEN($C67)-$A67)&"",$L$4:INDIRECT(ADDRESS($AK$3,$AK$4)))/DSUM(#REF!,""&$I$4&"",$L$4:INDIRECT(ADDRESS($AK$3,$AK$4))),IF($B67=2,DSUM(#REF!,""&LEFT($C67,LEN($C67)-$A67)&"",$L$4:INDIRECT(ADDRESS($AK$3,$AK$4)))/DSUM(#REF!,""&$J$4&"",$L$4:INDIRECT(ADDRESS($AK$3,$AK$4))))))),""),"") -> 
B68: Antal årssøer | C68: Årets resultat | D68: =IF($Z$1=33,IF(Choices!$G$1=2,Landsgennemsnit!X68,IF(Choices!$G$1=3,Landsgennemsnit!Z68,"")),"") ->  | E68: =IF($Z$1=33,IF(Choices!$G$1=2,Landsgennemsnit!Y68,IF(Choices!$G$1=3,Landsgennemsnit!AA68,"")),"") ->  | F68: =IF($Z$1=33,IFERROR(IF(ISTEXT($B68)=TRUE,DSUM(#REF!,""&LEFT($C68,LEN($C68)-$A68)&"",$M$4:INDIRECT(ADDRESS($AK$3,$AK$4)))/DSUM(#REF!,""&$B68&"",$M$4:INDIRECT(ADDRESS($AK$3,$AK$4))),IF($B68=0,DAVERAGE(#REF!,""&LEFT($C68,LEN($C68)-$A68)&"",$M$4:INDIRECT(ADDRESS($AK$3,$AK$4))),IF($B68=1,DSUM(#REF!,""&LEFT($C68,LEN($C68)-$A68)&"",$M$4:INDIRECT(ADDRESS($AK$3,$AK$4)))/DSUM(#REF!,""&$I$4&"",$M$4:INDIRECT(ADDRESS($AK$3,$AK$4))),DSUM(#REF!,""&LEFT($C68,LEN($C68)-$A68)&"",$M$4:INDIRECT(ADDRESS($AK$3,$AK$4)))/DSUM(#REF!,""&$J$4&"",$M$4:INDIRECT(ADDRESS($AK$3,$AK$4)))))),""),"") ->  | G68: =IF($Z$1=33,IFERROR(IF(ISTEXT($B68)=TRUE,DSUM(#REF!,""&LEFT($C68,LEN($C68)-$A68)&"",$L$4:INDIRECT(ADDRESS($AK$3,$AK$4)))/DSUM(#REF!,""&$B68&"",$L$4:INDIRECT(ADDRESS($AK$3,$AK$4))),IF($B68=0,DAVERAGE(#REF!,""&LEFT($C68,LEN($C68)-$A68)&"",$L$4:INDIRECT(ADDRESS($AK$3,$AK$4))),IF($B68=1,DSUM(#REF!,""&LEFT($C68,LEN($C68)-$A68)&"",$L$4:INDIRECT(ADDRESS($AK$3,$AK$4)))/DSUM(#REF!,""&$I$4&"",$L$4:INDIRECT(ADDRESS($AK$3,$AK$4))),IF($B68=2,DSUM(#REF!,""&LEFT($C68,LEN($C68)-$A68)&"",$L$4:INDIRECT(ADDRESS($AK$3,$AK$4)))/DSUM(#REF!,""&$J$4&"",$L$4:INDIRECT(ADDRESS($AK$3,$AK$4))))))),""),"") -> 
D69: =IF($Z$1=33,IF(Choices!$G$1=2,Landsgennemsnit!X69,IF(Choices!$G$1=3,Landsgennemsnit!Z69,"")),"") ->  | E69: =IF($Z$1=33,IF(Choices!$G$1=2,Landsgennemsnit!Y69,IF(Choices!$G$1=3,Landsgennemsnit!AA69,"")),"") ->  | F69: =IF($Z$1=33,IFERROR(IF(ISTEXT($B69)=TRUE,DSUM(#REF!,""&LEFT($C69,LEN($C69)-$A69)&"",$M$4:INDIRECT(ADDRESS($AK$3,$AK$4)))/DSUM(#REF!,""&$B69&"",$M$4:INDIRECT(ADDRESS($AK$3,$AK$4))),IF($B69=0,DAVERAGE(#REF!,""&LEFT($C69,LEN($C69)-$A69)&"",$M$4:INDIRECT(ADDRESS($AK$3,$AK$4))),IF($B69=1,DSUM(#REF!,""&LEFT($C69,LEN($C69)-$A69)&"",$M$4:INDIRECT(ADDRESS($AK$3,$AK$4)))/DSUM(#REF!,""&$I$4&"",$M$4:INDIRECT(ADDRESS($AK$3,$AK$4))),DSUM(#REF!,""&LEFT($C69,LEN($C69)-$A69)&"",$M$4:INDIRECT(ADDRESS($AK$3,$AK$4)))/DSUM(#REF!,""&$J$4&"",$M$4:INDIRECT(ADDRESS($AK$3,$AK$4)))))),""),"") ->  | G69: =IF($Z$1=33,IFERROR(IF(ISTEXT($B69)=TRUE,DSUM(#REF!,""&LEFT($C69,LEN($C69)-$A69)&"",$L$4:INDIRECT(ADDRESS($AK$3,$AK$4)))/DSUM(#REF!,""&$B69&"",$L$4:INDIRECT(ADDRESS($AK$3,$AK$4))),IF($B69=0,DAVERAGE(#REF!,""&LEFT($C69,LEN($C69)-$A69)&"",$L$4:INDIRECT(ADDRESS($AK$3,$AK$4))),IF($B69=1,DSUM(#REF!,""&LEFT($C69,LEN($C69)-$A69)&"",$L$4:INDIRECT(ADDRESS($AK$3,$AK$4)))/DSUM(#REF!,""&$I$4&"",$L$4:INDIRECT(ADDRESS($AK$3,$AK$4))),IF($B69=2,DSUM(#REF!,""&LEFT($C69,LEN($C69)-$A69)&"",$L$4:INDIRECT(ADDRESS($AK$3,$AK$4)))/DSUM(#REF!,""&$J$4&"",$L$4:INDIRECT(ADDRESS($AK$3,$AK$4))))))),""),"") -> 
D70: =IF($Z$1=33,IF(Choices!$G$1=2,Landsgennemsnit!X70,IF(Choices!$G$1=3,Landsgennemsnit!Z70,"")),"") ->  | E70: =IF($Z$1=33,IF(Choices!$G$1=2,Landsgennemsnit!Y70,IF(Choices!$G$1=3,Landsgennemsnit!AA70,"")),"") ->  | F70: =IF($Z$1=33,IFERROR(IF(ISTEXT($B70)=TRUE,DSUM(#REF!,""&LEFT($C70,LEN($C70)-$A70)&"",$M$4:INDIRECT(ADDRESS($AK$3,$AK$4)))/DSUM(#REF!,""&$B70&"",$M$4:INDIRECT(ADDRESS($AK$3,$AK$4))),IF($B70=0,DAVERAGE(#REF!,""&LEFT($C70,LEN($C70)-$A70)&"",$M$4:INDIRECT(ADDRESS($AK$3,$AK$4))),IF($B70=1,DSUM(#REF!,""&LEFT($C70,LEN($C70)-$A70)&"",$M$4:INDIRECT(ADDRESS($AK$3,$AK$4)))/DSUM(#REF!,""&$I$4&"",$M$4:INDIRECT(ADDRESS($AK$3,$AK$4))),DSUM(#REF!,""&LEFT($C70,LEN($C70)-$A70)&"",$M$4:INDIRECT(ADDRESS($AK$3,$AK$4)))/DSUM(#REF!,""&$J$4&"",$M$4:INDIRECT(ADDRESS($AK$3,$AK$4)))))),""),"") ->  | G70: =IF($Z$1=33,IFERROR(IF(ISTEXT($B70)=TRUE,DSUM(#REF!,""&LEFT($C70,LEN($C70)-$A70)&"",$L$4:INDIRECT(ADDRESS($AK$3,$AK$4)))/DSUM(#REF!,""&$B70&"",$L$4:INDIRECT(ADDRESS($AK$3,$AK$4))),IF($B70=0,DAVERAGE(#REF!,""&LEFT($C70,LEN($C70)-$A70)&"",$L$4:INDIRECT(ADDRESS($AK$3,$AK$4))),IF($B70=1,DSUM(#REF!,""&LEFT($C70,LEN($C70)-$A70)&"",$L$4:INDIRECT(ADDRESS($AK$3,$AK$4)))/DSUM(#REF!,""&$I$4&"",$L$4:INDIRECT(ADDRESS($AK$3,$AK$4))),IF($B70=2,DSUM(#REF!,""&LEFT($C70,LEN($C70)-$A70)&"",$L$4:INDIRECT(ADDRESS($AK$3,$AK$4)))/DSUM(#REF!,""&$J$4&"",$L$4:INDIRECT(ADDRESS($AK$3,$AK$4))))))),""),"") -> 
D71: =IF($Z$1=33,IF(Choices!$G$1=2,Landsgennemsnit!X71,IF(Choices!$G$1=3,Landsgennemsnit!Z71,"")),"") ->  | E71: =IF($Z$1=33,IF(Choices!$G$1=2,Landsgennemsnit!Y71,IF(Choices!$G$1=3,Landsgennemsnit!AA71,"")),"") ->  | F71: =IF($Z$1=33,IFERROR(IF(ISTEXT($B71)=TRUE,DSUM(#REF!,""&LEFT($C71,LEN($C71)-$A71)&"",$M$4:INDIRECT(ADDRESS($AK$3,$AK$4)))/DSUM(#REF!,""&$B71&"",$M$4:INDIRECT(ADDRESS($AK$3,$AK$4))),IF($B71=0,DAVERAGE(#REF!,""&LEFT($C71,LEN($C71)-$A71)&"",$M$4:INDIRECT(ADDRESS($AK$3,$AK$4))),IF($B71=1,DSUM(#REF!,""&LEFT($C71,LEN($C71)-$A71)&"",$M$4:INDIRECT(ADDRESS($AK$3,$AK$4)))/DSUM(#REF!,""&$I$4&"",$M$4:INDIRECT(ADDRESS($AK$3,$AK$4))),DSUM(#REF!,""&LEFT($C71,LEN($C71)-$A71)&"",$M$4:INDIRECT(ADDRESS($AK$3,$AK$4)))/DSUM(#REF!,""&$J$4&"",$M$4:INDIRECT(ADDRESS($AK$3,$AK$4)))))),""),"") ->  | G71: =IF($Z$1=33,IFERROR(IF(ISTEXT($B71)=TRUE,DSUM(#REF!,""&LEFT($C71,LEN($C71)-$A71)&"",$L$4:INDIRECT(ADDRESS($AK$3,$AK$4)))/DSUM(#REF!,""&$B71&"",$L$4:INDIRECT(ADDRESS($AK$3,$AK$4))),IF($B71=0,DAVERAGE(#REF!,""&LEFT($C71,LEN($C71)-$A71)&"",$L$4:INDIRECT(ADDRESS($AK$3,$AK$4))),IF($B71=1,DSUM(#REF!,""&LEFT($C71,LEN($C71)-$A71)&"",$L$4:INDIRECT(ADDRESS($AK$3,$AK$4)))/DSUM(#REF!,""&$I$4&"",$L$4:INDIRECT(ADDRESS($AK$3,$AK$4))),IF($B71=2,DSUM(#REF!,""&LEFT($C71,LEN($C71)-$A71)&"",$L$4:INDIRECT(ADDRESS($AK$3,$AK$4)))/DSUM(#REF!,""&$J$4&"",$L$4:INDIRECT(ADDRESS($AK$3,$AK$4))))))),""),"") -> 
D72: =IF($Z$1=33,IF(Choices!$G$1=2,Landsgennemsnit!X72,IF(Choices!$G$1=3,Landsgennemsnit!Z72,"")),"") ->  | E72: =IF($Z$1=33,IF(Choices!$G$1=2,Landsgennemsnit!Y72,IF(Choices!$G$1=3,Landsgennemsnit!AA72,"")),"") ->  | F72: =IF($Z$1=33,IFERROR(IF(ISTEXT($B72)=TRUE,DSUM(#REF!,""&LEFT($C72,LEN($C72)-$A72)&"",$M$4:INDIRECT(ADDRESS($AK$3,$AK$4)))/DSUM(#REF!,""&$B72&"",$M$4:INDIRECT(ADDRESS($AK$3,$AK$4))),IF($B72=0,DAVERAGE(#REF!,""&LEFT($C72,LEN($C72)-$A72)&"",$M$4:INDIRECT(ADDRESS($AK$3,$AK$4))),IF($B72=1,DSUM(#REF!,""&LEFT($C72,LEN($C72)-$A72)&"",$M$4:INDIRECT(ADDRESS($AK$3,$AK$4)))/DSUM(#REF!,""&$I$4&"",$M$4:INDIRECT(ADDRESS($AK$3,$AK$4))),DSUM(#REF!,""&LEFT($C72,LEN($C72)-$A72)&"",$M$4:INDIRECT(ADDRESS($AK$3,$AK$4)))/DSUM(#REF!,""&$J$4&"",$M$4:INDIRECT(ADDRESS($AK$3,$AK$4)))))),""),"") ->  | G72: =IF($Z$1=33,IFERROR(IF(ISTEXT($B72)=TRUE,DSUM(#REF!,""&LEFT($C72,LEN($C72)-$A72)&"",$L$4:INDIRECT(ADDRESS($AK$3,$AK$4)))/DSUM(#REF!,""&$B72&"",$L$4:INDIRECT(ADDRESS($AK$3,$AK$4))),IF($B72=0,DAVERAGE(#REF!,""&LEFT($C72,LEN($C72)-$A72)&"",$L$4:INDIRECT(ADDRESS($AK$3,$AK$4))),IF($B72=1,DSUM(#REF!,""&LEFT($C72,LEN($C72)-$A72)&"",$L$4:INDIRECT(ADDRESS($AK$3,$AK$4)))/DSUM(#REF!,""&$I$4&"",$L$4:INDIRECT(ADDRESS($AK$3,$AK$4))),IF($B72=2,DSUM(#REF!,""&LEFT($C72,LEN($C72)-$A72)&"",$L$4:INDIRECT(ADDRESS($AK$3,$AK$4)))/DSUM(#REF!,""&$J$4&"",$L$4:INDIRECT(ADDRESS($AK$3,$AK$4))))))),""),"") -> 
D73: =IF($Z$1=33,IF(Choices!$G$1=2,Landsgennemsnit!X73,IF(Choices!$G$1=3,Landsgennemsnit!Z73,"")),"") ->  | E73: =IF($Z$1=33,IF(Choices!$G$1=2,Landsgennemsnit!Y73,IF(Choices!$G$1=3,Landsgennemsnit!AA73,"")),"") ->  | F73: =IF($Z$1=33,IFERROR(IF(ISTEXT($B73)=TRUE,DSUM(#REF!,""&LEFT($C73,LEN($C73)-$A73)&"",$M$4:INDIRECT(ADDRESS($AK$3,$AK$4)))/DSUM(#REF!,""&$B73&"",$M$4:INDIRECT(ADDRESS($AK$3,$AK$4))),IF($B73=0,DAVERAGE(#REF!,""&LEFT($C73,LEN($C73)-$A73)&"",$M$4:INDIRECT(ADDRESS($AK$3,$AK$4))),IF($B73=1,DSUM(#REF!,""&LEFT($C73,LEN($C73)-$A73)&"",$M$4:INDIRECT(ADDRESS($AK$3,$AK$4)))/DSUM(#REF!,""&$I$4&"",$M$4:INDIRECT(ADDRESS($AK$3,$AK$4))),DSUM(#REF!,""&LEFT($C73,LEN($C73)-$A73)&"",$M$4:INDIRECT(ADDRESS($AK$3,$AK$4)))/DSUM(#REF!,""&$J$4&"",$M$4:INDIRECT(ADDRESS($AK$3,$AK$4)))))),""),"") ->  | G73: =IF($Z$1=33,IFERROR(IF(ISTEXT($B73)=TRUE,DSUM(#REF!,""&LEFT($C73,LEN($C73)-$A73)&"",$L$4:INDIRECT(ADDRESS($AK$3,$AK$4)))/DSUM(#REF!,""&$B73&"",$L$4:INDIRECT(ADDRESS($AK$3,$AK$4))),IF($B73=0,DAVERAGE(#REF!,""&LEFT($C73,LEN($C73)-$A73)&"",$L$4:INDIRECT(ADDRESS($AK$3,$AK$4))),IF($B73=1,DSUM(#REF!,""&LEFT($C73,LEN($C73)-$A73)&"",$L$4:INDIRECT(ADDRESS($AK$3,$AK$4)))/DSUM(#REF!,""&$I$4&"",$L$4:INDIRECT(ADDRESS($AK$3,$AK$4))),IF($B73=2,DSUM(#REF!,""&LEFT($C73,LEN($C73)-$A73)&"",$L$4:INDIRECT(ADDRESS($AK$3,$AK$4)))/DSUM(#REF!,""&$J$4&"",$L$4:INDIRECT(ADDRESS($AK$3,$AK$4))))))),""),"") -> 
D74: =IF($Z$1=33,IF(Choices!$G$1=2,Landsgennemsnit!X74,IF(Choices!$G$1=3,Landsgennemsnit!Z74,"")),"") ->  | E74: =IF($Z$1=33,IF(Choices!$G$1=2,Landsgennemsnit!Y74,IF(Choices!$G$1=3,Landsgennemsnit!AA74,"")),"") ->  | F74: =IF($Z$1=33,IFERROR(IF(ISTEXT($B74)=TRUE,DSUM(#REF!,""&LEFT($C74,LEN($C74)-$A74)&"",$M$4:INDIRECT(ADDRESS($AK$3,$AK$4)))/DSUM(#REF!,""&$B74&"",$M$4:INDIRECT(ADDRESS($AK$3,$AK$4))),IF($B74=0,DAVERAGE(#REF!,""&LEFT($C74,LEN($C74)-$A74)&"",$M$4:INDIRECT(ADDRESS($AK$3,$AK$4))),IF($B74=1,DSUM(#REF!,""&LEFT($C74,LEN($C74)-$A74)&"",$M$4:INDIRECT(ADDRESS($AK$3,$AK$4)))/DSUM(#REF!,""&$I$4&"",$M$4:INDIRECT(ADDRESS($AK$3,$AK$4))),DSUM(#REF!,""&LEFT($C74,LEN($C74)-$A74)&"",$M$4:INDIRECT(ADDRESS($AK$3,$AK$4)))/DSUM(#REF!,""&$J$4&"",$M$4:INDIRECT(ADDRESS($AK$3,$AK$4)))))),""),"") ->  | G74: =IF($Z$1=33,IFERROR(IF(ISTEXT($B74)=TRUE,DSUM(#REF!,""&LEFT($C74,LEN($C74)-$A74)&"",$L$4:INDIRECT(ADDRESS($AK$3,$AK$4)))/DSUM(#REF!,""&$B74&"",$L$4:INDIRECT(ADDRESS($AK$3,$AK$4))),IF($B74=0,DAVERAGE(#REF!,""&LEFT($C74,LEN($C74)-$A74)&"",$L$4:INDIRECT(ADDRESS($AK$3,$AK$4))),IF($B74=1,DSUM(#REF!,""&LEFT($C74,LEN($C74)-$A74)&"",$L$4:INDIRECT(ADDRESS($AK$3,$AK$4)))/DSUM(#REF!,""&$I$4&"",$L$4:INDIRECT(ADDRESS($AK$3,$AK$4))),IF($B74=2,DSUM(#REF!,""&LEFT($C74,LEN($C74)-$A74)&"",$L$4:INDIRECT(ADDRESS($AK$3,$AK$4)))/DSUM(#REF!,""&$J$4&"",$L$4:INDIRECT(ADDRESS($AK$3,$AK$4))))))),""),"") -> 
D75: =IF($Z$1=33,IF(Choices!$G$1=2,Landsgennemsnit!X75,IF(Choices!$G$1=3,Landsgennemsnit!Z75,"")),"") ->  | E75: =IF($Z$1=33,IF(Choices!$G$1=2,Landsgennemsnit!Y75,IF(Choices!$G$1=3,Landsgennemsnit!AA75,"")),"") ->  | F75: =IF($Z$1=33,IFERROR(IF(ISTEXT($B75)=TRUE,DSUM(#REF!,""&LEFT($C75,LEN($C75)-$A75)&"",$M$4:INDIRECT(ADDRESS($AK$3,$AK$4)))/DSUM(#REF!,""&$B75&"",$M$4:INDIRECT(ADDRESS($AK$3,$AK$4))),IF($B75=0,DAVERAGE(#REF!,""&LEFT($C75,LEN($C75)-$A75)&"",$M$4:INDIRECT(ADDRESS($AK$3,$AK$4))),IF($B75=1,DSUM(#REF!,""&LEFT($C75,LEN($C75)-$A75)&"",$M$4:INDIRECT(ADDRESS($AK$3,$AK$4)))/DSUM(#REF!,""&$I$4&"",$M$4:INDIRECT(ADDRESS($AK$3,$AK$4))),DSUM(#REF!,""&LEFT($C75,LEN($C75)-$A75)&"",$M$4:INDIRECT(ADDRESS($AK$3,$AK$4)))/DSUM(#REF!,""&$J$4&"",$M$4:INDIRECT(ADDRESS($AK$3,$AK$4)))))),""),"") ->  | G75: =IF($Z$1=33,IFERROR(IF(ISTEXT($B75)=TRUE,DSUM(#REF!,""&LEFT($C75,LEN($C75)-$A75)&"",$L$4:INDIRECT(ADDRESS($AK$3,$AK$4)))/DSUM(#REF!,""&$B75&"",$L$4:INDIRECT(ADDRESS($AK$3,$AK$4))),IF($B75=0,DAVERAGE(#REF!,""&LEFT($C75,LEN($C75)-$A75)&"",$L$4:INDIRECT(ADDRESS($AK$3,$AK$4))),IF($B75=1,DSUM(#REF!,""&LEFT($C75,LEN($C75)-$A75)&"",$L$4:INDIRECT(ADDRESS($AK$3,$AK$4)))/DSUM(#REF!,""&$I$4&"",$L$4:INDIRECT(ADDRESS($AK$3,$AK$4))),IF($B75=2,DSUM(#REF!,""&LEFT($C75,LEN($C75)-$A75)&"",$L$4:INDIRECT(ADDRESS($AK$3,$AK$4)))/DSUM(#REF!,""&$J$4&"",$L$4:INDIRECT(ADDRESS($AK$3,$AK$4))))))),""),"") -> 
D76: =IF($Z$1=33,IF(Choices!$G$1=2,Landsgennemsnit!X76,IF(Choices!$G$1=3,Landsgennemsnit!Z76,"")),"") ->  | E76: =IF($Z$1=33,IF(Choices!$G$1=2,Landsgennemsnit!Y76,IF(Choices!$G$1=3,Landsgennemsnit!AA76,"")),"") ->  | F76: =IF($Z$1=33,IFERROR(IF(ISTEXT($B76)=TRUE,DSUM(#REF!,""&LEFT($C76,LEN($C76)-$A76)&"",$M$4:INDIRECT(ADDRESS($AK$3,$AK$4)))/DSUM(#REF!,""&$B76&"",$M$4:INDIRECT(ADDRESS($AK$3,$AK$4))),IF($B76=0,DAVERAGE(#REF!,""&LEFT($C76,LEN($C76)-$A76)&"",$M$4:INDIRECT(ADDRESS($AK$3,$AK$4))),IF($B76=1,DSUM(#REF!,""&LEFT($C76,LEN($C76)-$A76)&"",$M$4:INDIRECT(ADDRESS($AK$3,$AK$4)))/DSUM(#REF!,""&$I$4&"",$M$4:INDIRECT(ADDRESS($AK$3,$AK$4))),DSUM(#REF!,""&LEFT($C76,LEN($C76)-$A76)&"",$M$4:INDIRECT(ADDRESS($AK$3,$AK$4)))/DSUM(#REF!,""&$J$4&"",$M$4:INDIRECT(ADDRESS($AK$3,$AK$4)))))),""),"") ->  | G76: =IF($Z$1=33,IFERROR(IF(ISTEXT($B76)=TRUE,DSUM(#REF!,""&LEFT($C76,LEN($C76)-$A76)&"",$L$4:INDIRECT(ADDRESS($AK$3,$AK$4)))/DSUM(#REF!,""&$B76&"",$L$4:INDIRECT(ADDRESS($AK$3,$AK$4))),IF($B76=0,DAVERAGE(#REF!,""&LEFT($C76,LEN($C76)-$A76)&"",$L$4:INDIRECT(ADDRESS($AK$3,$AK$4))),IF($B76=1,DSUM(#REF!,""&LEFT($C76,LEN($C76)-$A76)&"",$L$4:INDIRECT(ADDRESS($AK$3,$AK$4)))/DSUM(#REF!,""&$I$4&"",$L$4:INDIRECT(ADDRESS($AK$3,$AK$4))),IF($B76=2,DSUM(#REF!,""&LEFT($C76,LEN($C76)-$A76)&"",$L$4:INDIRECT(ADDRESS($AK$3,$AK$4)))/DSUM(#REF!,""&$J$4&"",$L$4:INDIRECT(ADDRESS($AK$3,$AK$4))))))),""),"") -> 
D77: =IF($Z$1=33,IF(Choices!$G$1=2,Landsgennemsnit!X77,IF(Choices!$G$1=3,Landsgennemsnit!Z77,"")),"") ->  | E77: =IF($Z$1=33,IF(Choices!$G$1=2,Landsgennemsnit!Y77,IF(Choices!$G$1=3,Landsgennemsnit!AA77,"")),"") ->  | F77: =IF($Z$1=33,IFERROR(IF(ISTEXT($B77)=TRUE,DSUM(#REF!,""&LEFT($C77,LEN($C77)-$A77)&"",$M$4:INDIRECT(ADDRESS($AK$3,$AK$4)))/DSUM(#REF!,""&$B77&"",$M$4:INDIRECT(ADDRESS($AK$3,$AK$4))),IF($B77=0,DAVERAGE(#REF!,""&LEFT($C77,LEN($C77)-$A77)&"",$M$4:INDIRECT(ADDRESS($AK$3,$AK$4))),IF($B77=1,DSUM(#REF!,""&LEFT($C77,LEN($C77)-$A77)&"",$M$4:INDIRECT(ADDRESS($AK$3,$AK$4)))/DSUM(#REF!,""&$I$4&"",$M$4:INDIRECT(ADDRESS($AK$3,$AK$4))),DSUM(#REF!,""&LEFT($C77,LEN($C77)-$A77)&"",$M$4:INDIRECT(ADDRESS($AK$3,$AK$4)))/DSUM(#REF!,""&$J$4&"",$M$4:INDIRECT(ADDRESS($AK$3,$AK$4)))))),""),"") ->  | G77: =IF($Z$1=33,IFERROR(IF(ISTEXT($B77)=TRUE,DSUM(#REF!,""&LEFT($C77,LEN($C77)-$A77)&"",$L$4:INDIRECT(ADDRESS($AK$3,$AK$4)))/DSUM(#REF!,""&$B77&"",$L$4:INDIRECT(ADDRESS($AK$3,$AK$4))),IF($B77=0,DAVERAGE(#REF!,""&LEFT($C77,LEN($C77)-$A77)&"",$L$4:INDIRECT(ADDRESS($AK$3,$AK$4))),IF($B77=1,DSUM(#REF!,""&LEFT($C77,LEN($C77)-$A77)&"",$L$4:INDIRECT(ADDRESS($AK$3,$AK$4)))/DSUM(#REF!,""&$I$4&"",$L$4:INDIRECT(ADDRESS($AK$3,$AK$4))),IF($B77=2,DSUM(#REF!,""&LEFT($C77,LEN($C77)-$A77)&"",$L$4:INDIRECT(ADDRESS($AK$3,$AK$4)))/DSUM(#REF!,""&$J$4&"",$L$4:INDIRECT(ADDRESS($AK$3,$AK$4))))))),""),"") -> 
D83: Formattering
C84: =C4 -> Antal årssøer | D84: 1 | E84: 1
C85: =C5 -> Antal producerede smågrise | D85: 1 | E85: 1
C86: Producerede grise pr. årsso | D86: 1 | E86: 1
C87: Vægt solgte/overførte smågrise, kg. | D87: 1 | E87: 1
D88: 9 | E88: 1
C89: Nøgletal | D89: 111 | E89: 1
C90: Foderomkostninger pr. enhed | D90: 1 | E90: 1
C91: Værdiændring besætning | D91: 101 | E91: 1
C92: Arbejdsomkostninger pr. enhed | D92: 1 | E92: 1
C93: Bygningsomk. pr. enhed | D93: 1 | E93: 1
C94: Inventar inkl. energi pr. enhed | D94: 1 | E94: 1
C95: Forrentning driftskapital pr. enhed | D95: 1 | E95: 1
C96: Øvrige omkostninger pr. enhed | D96: 1 | E96: 1
C97: Krav til dækningsbidrag pr. enhed | D97: 110 | E97: 1
D98: 9 | E98: 1
C99: Bundet kapital pr. enhed | D99: 1 | E99: 1
C100: Anvendt rentesats, pct. | D100: 1 | E100: 1
C101: Resultatkorrektion ved 4 % rente | D101: 1 | E101: 1
C102: Afkastningsgrad | D102: 110 | E102: 1
D103: 9 | E103: 1
C104: Fremstillingspris pr. smågris | D104: 110 | E104: 1
C105: Kr. pr. solgt smågris | D105: 1 | E105: 1
D106: 9 | E106: 1
C107: Pris soyaskrå, kr. pr. kg | D107: 1 | E107: 1
C108: Pris tilskudsfoder, kr. pr. kg | D108: 1 | E108: 1
C109: Pris tilskudsfoder smågrise, kr. pr. kg | D109: 1 | E109: 1
C110: Pris proteinblanding, kr. pr. kg | D110: 1 | E110: 1
C111: Pris smågriseblanding, kr. pr. kg | D111: 1 | E111: 1
C112: Pris færdigblanding søer, kr. pr. kg | D112: 1 | E112: 1
C113: Pris færdigblanding smågrise, kr. pr. kg | D113: 1 | E113: 1
D114: 9 | E114: 1
C115: Specifikation af resultat | D115: 111 | E115: 1
C116: Salg/overførsel smågrise | D116: 1 | E116: 1
C117: Salg andre svin | D117: 1 | E117: 1
C118: Køb af grise | D118: 1 | E118: 1
C119: Besætningsforskydning | D119: 1 | E119: 1
C120: Andre Landbrugsindtægter svin | D120: 1 | E120: 1
C121: Bruttoudbytte i alt | D121: 113 | E121: 1
D122: 9 | E122: 1
C123: Korn | D123: 1 | E123: 1
C124: Tilskudsfoder og råvarer | D124: 1 | E124: 1
C125: Færdigblanding | D125: 1 | E125: 1
C126: Andet foder | D126: 1 | E126: 1
C127: Dyrlæge og medicin | D127: 1 | E127: 1
C128: Avl, rådgivning og kontrol | D128: 1 | E128: 1
C129: Diverse vedr. husdyr | D129: 1 | E129: 1
C130: Stykomkostninger i alt | D130: 113 | E130: 1
D131: 9 | E131: 1
C132: Dækningsbidrag | D132: 113 | E132: 1
D133: 9 | E133: 1
C134: Energi svin | D134: 1 | E134: 1
C135: Vedligehold | D135: 1 | E135: 1
C136: Lønomkostninger | D136: 1 | E136: 1
C137: Ejeraflønning | D137: 1 | E137: 1
C138: Forsikring | D138: 1 | E138: 1
C139: Diverse kapacitetsomkostninger svin | D139: 1 | E139: 1
C140: Kapacitetsomkostninger i alt | D140: 113 | E140: 1
D141: 9 | E141: 1
C142: Afskrivning bygninger | D142: 1 | E142: 1
C143: Afskrivning inventar og Øvrige omk. | D143: 1 | E143: 1
C144: Leje af driftsbygninger | D144: 1 | E144: 1
C145: Renteomk. af bundet kapital | D145: 1 | E145: 1
C146: Kapitalomkostninger i alt | D146: 113 | E146: 1
D147: 9 | E147: 1
C148: Årets resultat | D148: 201 | E148: 1
C149: =C69 -> 0
C150: 0
C151: 0
C152: 0

Sheet Søer med fravænnede (hidden)
A1: Søer med fravænnede (7000) | Y1: Ident | Z1: =Choices!$A$1*10+Choices!$D$1 -> 43 | AH1: Til adresseformel
D2: Landsplan | F2: ="Kreds "&Kredsudvælgelse!$A$2&"" -> Kreds | L2: Betingelser | AH2: =ISTEXT(N4) -> TRUE | AI2: TRUE | AJ2: FALSE | AK2: FALSE | AL2: FALSE | AM2: FALSE
A3: Tegn (fra højre der skal væk så navnet passer med navnet i forespørgslen) | B3: Divisor, til snit | C3: Søer med fravænnede - sohold 7 kg | D3: =IF($Z$1=34,Landsgennemsnit!AC3,"") ->  | E3: Top 5 | F3: Gennemsnit | G3: Top 5 | I3: Divisor 1 | J3: Divisor 2 | L3: =IF(L4="","",IF(ISERROR(HLOOKUP(L4,#REF!,1,FALSE))=TRUE,"Ikke fundet i forespørgslen","")) -> Ikke fundet i forespørgslen | M3: =IF(M4="","",IF(ISERROR(HLOOKUP(M4,#REF!,1,FALSE))=TRUE,"Ikke fundet i forespørgslen","")) -> Ikke fundet i forespørgslen | N3: =IF(N4="","",IF(ISERROR(HLOOKUP(N4,#REF!,1,FALSE))=TRUE,"Ikke fundet i forespørgslen","")) -> Ikke fundet i forespørgslen | O3: =IF(O4="","",IF(ISERROR(HLOOKUP(O4,#REF!,1,FALSE))=TRUE,"Ikke fundet i forespørgslen","")) -> Ikke fundet i forespørgslen | P3: =IF(P4="","",IF(ISERROR(HLOOKUP(P4,#REF!,1,FALSE))=TRUE,"Ikke fundet i forespørgslen","")) ->  | Q3: =IF(Q4="","",IF(ISERROR(HLOOKUP(Q4,#REF!,1,FALSE))=TRUE,"Ikke fundet i forespørgslen","")) ->  | R3: =IF(R4="","",IF(ISERROR(HLOOKUP(R4,#REF!,1,FALSE))=TRUE,"Ikke fundet i forespørgslen","")) ->  | S3: =IF(S4="","",IF(ISERROR(HLOOKUP(S4,#REF!,1,FALSE))=TRUE,"Ikke fundet i forespørgslen","")) ->  | AH3: Række | AI3: 7
A4: 0 | B4: 0 | C4: Antal årssøer | D4: =IF($Z$1=34,Landsgennemsnit!AC4,"") ->  | E4: =IF($Z$1=34,Landsgennemsnit!AD4,"") ->  | F4: =IF($Z$1=34,IFERROR(IF(ISTEXT($B4)=TRUE,DSUM(#REF!,""&LEFT($C4,LEN($C4)-$A4)&"",$M$4:INDIRECT(ADDRESS($AI$3,$AI$4)))/DSUM(#REF!,""&$B4&"",$M$4:INDIRECT(ADDRESS($AI$3,$AI$4))),IF($B4=0,DAVERAGE(#REF!,""&LEFT($C4,LEN($C4)-$A4)&"",$M$4:INDIRECT(ADDRESS($AI$3,$AI$4))),IF($B4=1,DSUM(#REF!,""&LEFT($C4,LEN($C4)-$A4)&"",$M$4:INDIRECT(ADDRESS($AI$3,$AI$4)))/DSUM(#REF!,""&$I$4&"",$M$4:INDIRECT(ADDRESS($AI$3,$AI$4))),DSUM(#REF!,""&LEFT($C4,LEN($C4)-$A4)&"",$M$4:INDIRECT(ADDRESS($AI$3,$AI$4)))/DSUM(#REF!,""&$J$4&"",$M$4:INDIRECT(ADDRESS($AI$3,$AI$4)))))),""),"") ->  | G4: =IF($Z$1=34,IFERROR(IF(ISTEXT($B4)=TRUE,DSUM(#REF!,""&LEFT($C4,LEN($C4)-$A4)&"",$L$4:INDIRECT(ADDRESS($AI$3,$AI$4)))/DSUM(#REF!,""&$B4&"",$L$4:INDIRECT(ADDRESS($AI$3,$AI$4))),IF($B4=0,DAVERAGE(#REF!,""&LEFT($C4,LEN($C4)-$A4)&"",$L$4:INDIRECT(ADDRESS($AI$3,$AI$4))),IF($B4=1,DSUM(#REF!,""&LEFT($C4,LEN($C4)-$A4)&"",$L$4:INDIRECT(ADDRESS($AI$3,$AI$4)))/DSUM(#REF!,""&$I$4&"",$L$4:INDIRECT(ADDRESS($AI$3,$AI$4))),IF($B4=2,DSUM(#REF!,""&LEFT($C4,LEN($C4)-$A4)&"",$L$4:INDIRECT(ADDRESS($AI$3,$AI$4)))/DSUM(#REF!,""&$J$4&"",$L$4:INDIRECT(ADDRESS($AI$3,$AI$4))))))),""),"") ->  | I4: Antal årssøer | J4: Antal producerede smågrise | L4: Årets resultat pr. årsso | M4: Prodgren | N4: Godkendt | O4: Økologisk_konventionel | AH4: Kolonne | AI4: =13+COUNTIF(AH2:AM2,"SAND") -> 15
A5: 0 | B5: 0 | C5: Antal producerede smågrise | D5: =IF($Z$1=34,Landsgennemsnit!AC5,"") ->  | E5: =IF($Z$1=34,Landsgennemsnit!AD5,"") ->  | F5: =IF($Z$1=34,IFERROR(IF(ISTEXT($B5)=TRUE,DSUM(#REF!,""&LEFT($C5,LEN($C5)-$A5)&"",$M$4:INDIRECT(ADDRESS($AI$3,$AI$4)))/DSUM(#REF!,""&$B5&"",$M$4:INDIRECT(ADDRESS($AI$3,$AI$4))),IF($B5=0,DAVERAGE(#REF!,""&LEFT($C5,LEN($C5)-$A5)&"",$M$4:INDIRECT(ADDRESS($AI$3,$AI$4))),IF($B5=1,DSUM(#REF!,""&LEFT($C5,LEN($C5)-$A5)&"",$M$4:INDIRECT(ADDRESS($AI$3,$AI$4)))/DSUM(#REF!,""&$I$4&"",$M$4:INDIRECT(ADDRESS($AI$3,$AI$4))),DSUM(#REF!,""&LEFT($C5,LEN($C5)-$A5)&"",$M$4:INDIRECT(ADDRESS($AI$3,$AI$4)))/DSUM(#REF!,""&$J$4&"",$M$4:INDIRECT(ADDRESS($AI$3,$AI$4)))))),""),"") ->  | G5: =IF($Z$1=34,IFERROR(IF(ISTEXT($B5)=TRUE,DSUM(#REF!,""&LEFT($C5,LEN($C5)-$A5)&"",$L$4:INDIRECT(ADDRESS($AI$3,$AI$4)))/DSUM(#REF!,""&$B5&"",$L$4:INDIRECT(ADDRESS($AI$3,$AI$4))),IF($B5=0,DAVERAGE(#REF!,""&LEFT($C5,LEN($C5)-$A5)&"",$L$4:INDIRECT(ADDRESS($AI$3,$AI$4))),IF($B5=1,DSUM(#REF!,""&LEFT($C5,LEN($C5)-$A5)&"",$L$4:INDIRECT(ADDRESS($AI$3,$AI$4)))/DSUM(#REF!,""&$I$4&"",$L$4:INDIRECT(ADDRESS($AI$3,$AI$4))),IF($B5=2,DSUM(#REF!,""&LEFT($C5,LEN($C5)-$A5)&"",$L$4:INDIRECT(ADDRESS($AI$3,$AI$4)))/DSUM(#REF!,""&$J$4&"",$L$4:INDIRECT(ADDRESS($AI$3,$AI$4))))))),""),"") ->  | L5: =IF($Z$1=34,">"&IF(I8<=5,"For få relevante observationer",DMAX(#REF!,""&$K$14&"",$L$30:INDIRECT(ADDRESS($AI$35,$AI$4))))&"","") ->  | M5: ="=7000" -> =7000 | N5: TRUE | O5: <2
A6: 0 | B6: 0 | C6: Fravænnede grise pr. årsso | D6: =IF($Z$1=34,Landsgennemsnit!AC6,"") ->  | E6: =IF($Z$1=34,Landsgennemsnit!AD6,"") ->  | F6: =IF($Z$1=34,IFERROR(IF(ISTEXT($B6)=TRUE,DSUM(#REF!,""&LEFT($C6,LEN($C6)-$A6)&"",$M$4:INDIRECT(ADDRESS($AI$3,$AI$4)))/DSUM(#REF!,""&$B6&"",$M$4:INDIRECT(ADDRESS($AI$3,$AI$4))),IF($B6=0,DAVERAGE(#REF!,""&LEFT($C6,LEN($C6)-$A6)&"",$M$4:INDIRECT(ADDRESS($AI$3,$AI$4))),IF($B6=1,DSUM(#REF!,""&LEFT($C6,LEN($C6)-$A6)&"",$M$4:INDIRECT(ADDRESS($AI$3,$AI$4)))/DSUM(#REF!,""&$I$4&"",$M$4:INDIRECT(ADDRESS($AI$3,$AI$4))),DSUM(#REF!,""&LEFT($C6,LEN($C6)-$A6)&"",$M$4:INDIRECT(ADDRESS($AI$3,$AI$4)))/DSUM(#REF!,""&$J$4&"",$M$4:INDIRECT(ADDRESS($AI$3,$AI$4)))))),""),"") ->  | G6: =IF($Z$1=34,IFERROR(IF(ISTEXT($B6)=TRUE,DSUM(#REF!,""&LEFT($C6,LEN($C6)-$A6)&"",$L$4:INDIRECT(ADDRESS($AI$3,$AI$4)))/DSUM(#REF!,""&$B6&"",$L$4:INDIRECT(ADDRESS($AI$3,$AI$4))),IF($B6=0,DAVERAGE(#REF!,""&LEFT($C6,LEN($C6)-$A6)&"",$L$4:INDIRECT(ADDRESS($AI$3,$AI$4))),IF($B6=1,DSUM(#REF!,""&LEFT($C6,LEN($C6)-$A6)&"",$L$4:INDIRECT(ADDRESS($AI$3,$AI$4)))/DSUM(#REF!,""&$I$4&"",$L$4:INDIRECT(ADDRESS($AI$3,$AI$4))),IF($B6=2,DSUM(#REF!,""&LEFT($C6,LEN($C6)-$A6)&"",$L$4:INDIRECT(ADDRESS($AI$3,$AI$4)))/DSUM(#REF!,""&$J$4&"",$L$4:INDIRECT(ADDRESS($AI$3,$AI$4))))))),""),"") ->  | L6: =$L$5 ->  | M6: =$M$5 -> =7000 | N6: TRUE | O6: <2
D7: =IF($Z$1=34,Landsgennemsnit!AC7,"") ->  | E7: =IF($Z$1=34,Landsgennemsnit!AD7,"") ->  | F7: =IF($Z$1=34,IFERROR(IF(ISTEXT($B7)=TRUE,DSUM(#REF!,""&LEFT($C7,LEN($C7)-$A7)&"",$M$4:INDIRECT(ADDRESS($AI$3,$AI$4)))/DSUM(#REF!,""&$B7&"",$M$4:INDIRECT(ADDRESS($AI$3,$AI$4))),IF($B7=0,DAVERAGE(#REF!,""&LEFT($C7,LEN($C7)-$A7)&"",$M$4:INDIRECT(ADDRESS($AI$3,$AI$4))),IF($B7=1,DSUM(#REF!,""&LEFT($C7,LEN($C7)-$A7)&"",$M$4:INDIRECT(ADDRESS($AI$3,$AI$4)))/DSUM(#REF!,""&$I$4&"",$M$4:INDIRECT(ADDRESS($AI$3,$AI$4))),DSUM(#REF!,""&LEFT($C7,LEN($C7)-$A7)&"",$M$4:INDIRECT(ADDRESS($AI$3,$AI$4)))/DSUM(#REF!,""&$J$4&"",$M$4:INDIRECT(ADDRESS($AI$3,$AI$4)))))),""),"") ->  | G7: =IF($Z$1=34,IFERROR(IF(ISTEXT($B7)=TRUE,DSUM(#REF!,""&LEFT($C7,LEN($C7)-$A7)&"",$L$4:INDIRECT(ADDRESS($AI$3,$AI$4)))/DSUM(#REF!,""&$B7&"",$L$4:INDIRECT(ADDRESS($AI$3,$AI$4))),IF($B7=0,DAVERAGE(#REF!,""&LEFT($C7,LEN($C7)-$A7)&"",$L$4:INDIRECT(ADDRESS($AI$3,$AI$4))),IF($B7=1,DSUM(#REF!,""&LEFT($C7,LEN($C7)-$A7)&"",$L$4:INDIRECT(ADDRESS($AI$3,$AI$4)))/DSUM(#REF!,""&$I$4&"",$L$4:INDIRECT(ADDRESS($AI$3,$AI$4))),IF($B7=2,DSUM(#REF!,""&LEFT($C7,LEN($C7)-$A7)&"",$L$4:INDIRECT(ADDRESS($AI$3,$AI$4)))/DSUM(#REF!,""&$J$4&"",$L$4:INDIRECT(ADDRESS($AI$3,$AI$4))))))),""),"") ->  | I7: Samlet antal inkluderet under betingelserne | L7: =$L$5 ->  | M7: =$M$5 -> =7000 | N7: TRUE | O7: <2
C8: Nøgletal | D8: =IF($Z$1=34,Landsgennemsnit!AC8,"") ->  | E8: =IF($Z$1=34,Landsgennemsnit!AD8,"") ->  | F8: =IF($Z$1=34,IFERROR(IF(ISTEXT($B8)=TRUE,DSUM(#REF!,""&LEFT($C8,LEN($C8)-$A8)&"",$M$4:INDIRECT(ADDRESS($AI$3,$AI$4)))/DSUM(#REF!,""&$B8&"",$M$4:INDIRECT(ADDRESS($AI$3,$AI$4))),IF($B8=0,DAVERAGE(#REF!,""&LEFT($C8,LEN($C8)-$A8)&"",$M$4:INDIRECT(ADDRESS($AI$3,$AI$4))),IF($B8=1,DSUM(#REF!,""&LEFT($C8,LEN($C8)-$A8)&"",$M$4:INDIRECT(ADDRESS($AI$3,$AI$4)))/DSUM(#REF!,""&$I$4&"",$M$4:INDIRECT(ADDRESS($AI$3,$AI$4))),DSUM(#REF!,""&LEFT($C8,LEN($C8)-$A8)&"",$M$4:INDIRECT(ADDRESS($AI$3,$AI$4)))/DSUM(#REF!,""&$J$4&"",$M$4:INDIRECT(ADDRESS($AI$3,$AI$4)))))),""),"") ->  | G8: =IF($Z$1=34,IFERROR(IF(ISTEXT($B8)=TRUE,DSUM(#REF!,""&LEFT($C8,LEN($C8)-$A8)&"",$L$4:INDIRECT(ADDRESS($AI$3,$AI$4)))/DSUM(#REF!,""&$B8&"",$L$4:INDIRECT(ADDRESS($AI$3,$AI$4))),IF($B8=0,DAVERAGE(#REF!,""&LEFT($C8,LEN($C8)-$A8)&"",$L$4:INDIRECT(ADDRESS($AI$3,$AI$4))),IF($B8=1,DSUM(#REF!,""&LEFT($C8,LEN($C8)-$A8)&"",$L$4:INDIRECT(ADDRESS($AI$3,$AI$4)))/DSUM(#REF!,""&$I$4&"",$L$4:INDIRECT(ADDRESS($AI$3,$AI$4))),IF($B8=2,DSUM(#REF!,""&LEFT($C8,LEN($C8)-$A8)&"",$L$4:INDIRECT(ADDRESS($AI$3,$AI$4)))/DSUM(#REF!,""&$J$4&"",$L$4:INDIRECT(ADDRESS($AI$3,$AI$4))))))),""),"") ->  | I8: =IF($Z$1=34,DCOUNT(#REF!,""&L4&"",IF(N4=0,M4:M7,IF(O4=0,M4:N7,IF(P4=0,M4:O7,IF(Q4=0,M4:P7,IF(R4=0,M4:Q7,IF(S4=0,M4:R7,""))))))),"") -> 
A9: 10 | B9: Antal årssøer | C9: Foderomkostninger pr. enhed | D9: =IF($Z$1=34,Landsgennemsnit!AC9,"") ->  | E9: =IF($Z$1=34,Landsgennemsnit!AD9,"") ->  | F9: =IF($Z$1=34,IFERROR(IF(ISTEXT($B9)=TRUE,DSUM(#REF!,""&LEFT($C9,LEN($C9)-$A9)&"",$M$4:INDIRECT(ADDRESS($AI$3,$AI$4)))/DSUM(#REF!,""&$B9&"",$M$4:INDIRECT(ADDRESS($AI$3,$AI$4))),IF($B9=0,DAVERAGE(#REF!,""&LEFT($C9,LEN($C9)-$A9)&"",$M$4:INDIRECT(ADDRESS($AI$3,$AI$4))),IF($B9=1,DSUM(#REF!,""&LEFT($C9,LEN($C9)-$A9)&"",$M$4:INDIRECT(ADDRESS($AI$3,$AI$4)))/DSUM(#REF!,""&$I$4&"",$M$4:INDIRECT(ADDRESS($AI$3,$AI$4))),DSUM(#REF!,""&LEFT($C9,LEN($C9)-$A9)&"",$M$4:INDIRECT(ADDRESS($AI$3,$AI$4)))/DSUM(#REF!,""&$J$4&"",$M$4:INDIRECT(ADDRESS($AI$3,$AI$4)))))),""),"") ->  | G9: =IF($Z$1=34,IFERROR(IF(ISTEXT($B9)=TRUE,DSUM(#REF!,""&LEFT($C9,LEN($C9)-$A9)&"",$L$4:INDIRECT(ADDRESS($AI$3,$AI$4)))/DSUM(#REF!,""&$B9&"",$L$4:INDIRECT(ADDRESS($AI$3,$AI$4))),IF($B9=0,DAVERAGE(#REF!,""&LEFT($C9,LEN($C9)-$A9)&"",$L$4:INDIRECT(ADDRESS($AI$3,$AI$4))),IF($B9=1,DSUM(#REF!,""&LEFT($C9,LEN($C9)-$A9)&"",$L$4:INDIRECT(ADDRESS($AI$3,$AI$4)))/DSUM(#REF!,""&$I$4&"",$L$4:INDIRECT(ADDRESS($AI$3,$AI$4))),IF($B9=2,DSUM(#REF!,""&LEFT($C9,LEN($C9)-$A9)&"",$L$4:INDIRECT(ADDRESS($AI$3,$AI$4)))/DSUM(#REF!,""&$J$4&"",$L$4:INDIRECT(ADDRESS($AI$3,$AI$4))))))),""),"") -> 
A10: 0 | B10: Antal årssøer | C10: Værdiændring besætning | D10: =IF($Z$1=34,Landsgennemsnit!AC10,"") ->  | E10: =IF($Z$1=34,Landsgennemsnit!AD10,"") ->  | F10: =IF($Z$1=34,IFERROR(IF(ISTEXT($B10)=TRUE,DSUM(#REF!,""&LEFT($C10,LEN($C10)-$A10)&"",$M$4:INDIRECT(ADDRESS($AI$3,$AI$4)))/DSUM(#REF!,""&$B10&"",$M$4:INDIRECT(ADDRESS($AI$3,$AI$4))),IF($B10=0,DAVERAGE(#REF!,""&LEFT($C10,LEN($C10)-$A10)&"",$M$4:INDIRECT(ADDRESS($AI$3,$AI$4))),IF($B10=1,DSUM(#REF!,""&LEFT($C10,LEN($C10)-$A10)&"",$M$4:INDIRECT(ADDRESS($AI$3,$AI$4)))/DSUM(#REF!,""&$I$4&"",$M$4:INDIRECT(ADDRESS($AI$3,$AI$4))),DSUM(#REF!,""&LEFT($C10,LEN($C10)-$A10)&"",$M$4:INDIRECT(ADDRESS($AI$3,$AI$4)))/DSUM(#REF!,""&$J$4&"",$M$4:INDIRECT(ADDRESS($AI$3,$AI$4)))))),""),"") ->  | G10: =IF($Z$1=34,IFERROR(IF(ISTEXT($B10)=TRUE,DSUM(#REF!,""&LEFT($C10,LEN($C10)-$A10)&"",$L$4:INDIRECT(ADDRESS($AI$3,$AI$4)))/DSUM(#REF!,""&$B10&"",$L$4:INDIRECT(ADDRESS($AI$3,$AI$4))),IF($B10=0,DAVERAGE(#REF!,""&LEFT($C10,LEN($C10)-$A10)&"",$L$4:INDIRECT(ADDRESS($AI$3,$AI$4))),IF($B10=1,DSUM(#REF!,""&LEFT($C10,LEN($C10)-$A10)&"",$L$4:INDIRECT(ADDRESS($AI$3,$AI$4)))/DSUM(#REF!,""&$I$4&"",$L$4:INDIRECT(ADDRESS($AI$3,$AI$4))),IF($B10=2,DSUM(#REF!,""&LEFT($C10,LEN($C10)-$A10)&"",$L$4:INDIRECT(ADDRESS($AI$3,$AI$4)))/DSUM(#REF!,""&$J$4&"",$L$4:INDIRECT(ADDRESS($AI$3,$AI$4))))))),""),"") -> 
A11: 10 | B11: Antal årssøer | C11: Arbejdsomkostninger pr. enhed | D11: =IF($Z$1=34,Landsgennemsnit!AC11,"") ->  | E11: =IF($Z$1=34,Landsgennemsnit!AD11,"") ->  | F11: =IF($Z$1=34,IFERROR(IF(ISTEXT($B11)=TRUE,DSUM(#REF!,""&LEFT($C11,LEN($C11)-$A11)&"",$M$4:INDIRECT(ADDRESS($AI$3,$AI$4)))/DSUM(#REF!,""&$B11&"",$M$4:INDIRECT(ADDRESS($AI$3,$AI$4))),IF($B11=0,DAVERAGE(#REF!,""&LEFT($C11,LEN($C11)-$A11)&"",$M$4:INDIRECT(ADDRESS($AI$3,$AI$4))),IF($B11=1,DSUM(#REF!,""&LEFT($C11,LEN($C11)-$A11)&"",$M$4:INDIRECT(ADDRESS($AI$3,$AI$4)))/DSUM(#REF!,""&$I$4&"",$M$4:INDIRECT(ADDRESS($AI$3,$AI$4))),DSUM(#REF!,""&LEFT($C11,LEN($C11)-$A11)&"",$M$4:INDIRECT(ADDRESS($AI$3,$AI$4)))/DSUM(#REF!,""&$J$4&"",$M$4:INDIRECT(ADDRESS($AI$3,$AI$4)))))),""),"") ->  | G11: =IF($Z$1=34,IFERROR(IF(ISTEXT($B11)=TRUE,DSUM(#REF!,""&LEFT($C11,LEN($C11)-$A11)&"",$L$4:INDIRECT(ADDRESS($AI$3,$AI$4)))/DSUM(#REF!,""&$B11&"",$L$4:INDIRECT(ADDRESS($AI$3,$AI$4))),IF($B11=0,DAVERAGE(#REF!,""&LEFT($C11,LEN($C11)-$A11)&"",$L$4:INDIRECT(ADDRESS($AI$3,$AI$4))),IF($B11=1,DSUM(#REF!,""&LEFT($C11,LEN($C11)-$A11)&"",$L$4:INDIRECT(ADDRESS($AI$3,$AI$4)))/DSUM(#REF!,""&$I$4&"",$L$4:INDIRECT(ADDRESS($AI$3,$AI$4))),IF($B11=2,DSUM(#REF!,""&LEFT($C11,LEN($C11)-$A11)&"",$L$4:INDIRECT(ADDRESS($AI$3,$AI$4)))/DSUM(#REF!,""&$J$4&"",$L$4:INDIRECT(ADDRESS($AI$3,$AI$4))))))),""),"") -> 
A12: 10 | B12: Antal årssøer | C12: Bygningsomk. pr. enhed | D12: =IF($Z$1=34,Landsgennemsnit!AC12,"") ->  | E12: =IF($Z$1=34,Landsgennemsnit!AD12,"") ->  | F12: =IF($Z$1=34,IFERROR(IF(ISTEXT($B12)=TRUE,DSUM(#REF!,""&LEFT($C12,LEN($C12)-$A12)&"",$M$4:INDIRECT(ADDRESS($AI$3,$AI$4)))/DSUM(#REF!,""&$B12&"",$M$4:INDIRECT(ADDRESS($AI$3,$AI$4))),IF($B12=0,DAVERAGE(#REF!,""&LEFT($C12,LEN($C12)-$A12)&"",$M$4:INDIRECT(ADDRESS($AI$3,$AI$4))),IF($B12=1,DSUM(#REF!,""&LEFT($C12,LEN($C12)-$A12)&"",$M$4:INDIRECT(ADDRESS($AI$3,$AI$4)))/DSUM(#REF!,""&$I$4&"",$M$4:INDIRECT(ADDRESS($AI$3,$AI$4))),DSUM(#REF!,""&LEFT($C12,LEN($C12)-$A12)&"",$M$4:INDIRECT(ADDRESS($AI$3,$AI$4)))/DSUM(#REF!,""&$J$4&"",$M$4:INDIRECT(ADDRESS($AI$3,$AI$4)))))),""),"") ->  | G12: =IF($Z$1=34,IFERROR(IF(ISTEXT($B12)=TRUE,DSUM(#REF!,""&LEFT($C12,LEN($C12)-$A12)&"",$L$4:INDIRECT(ADDRESS($AI$3,$AI$4)))/DSUM(#REF!,""&$B12&"",$L$4:INDIRECT(ADDRESS($AI$3,$AI$4))),IF($B12=0,DAVERAGE(#REF!,""&LEFT($C12,LEN($C12)-$A12)&"",$L$4:INDIRECT(ADDRESS($AI$3,$AI$4))),IF($B12=1,DSUM(#REF!,""&LEFT($C12,LEN($C12)-$A12)&"",$L$4:INDIRECT(ADDRESS($AI$3,$AI$4)))/DSUM(#REF!,""&$I$4&"",$L$4:INDIRECT(ADDRESS($AI$3,$AI$4))),IF($B12=2,DSUM(#REF!,""&LEFT($C12,LEN($C12)-$A12)&"",$L$4:INDIRECT(ADDRESS($AI$3,$AI$4)))/DSUM(#REF!,""&$J$4&"",$L$4:INDIRECT(ADDRESS($AI$3,$AI$4))))))),""),"") ->  | L12: De største værdier
A13: 10 | B13: Antal årssøer | C13: Inventar inkl. energi pr. enhed | D13: =IF($Z$1=34,Landsgennemsnit!AC13,"") ->  | E13: =IF($Z$1=34,Landsgennemsnit!AD13,"") ->  | F13: =IF($Z$1=34,IFERROR(IF(ISTEXT($B13)=TRUE,DSUM(#REF!,""&LEFT($C13,LEN($C13)-$A13)&"",$M$4:INDIRECT(ADDRESS($AI$3,$AI$4)))/DSUM(#REF!,""&$B13&"",$M$4:INDIRECT(ADDRESS($AI$3,$AI$4))),IF($B13=0,DAVERAGE(#REF!,""&LEFT($C13,LEN($C13)-$A13)&"",$M$4:INDIRECT(ADDRESS($AI$3,$AI$4))),IF($B13=1,DSUM(#REF!,""&LEFT($C13,LEN($C13)-$A13)&"",$M$4:INDIRECT(ADDRESS($AI$3,$AI$4)))/DSUM(#REF!,""&$I$4&"",$M$4:INDIRECT(ADDRESS($AI$3,$AI$4))),DSUM(#REF!,""&LEFT($C13,LEN($C13)-$A13)&"",$M$4:INDIRECT(ADDRESS($AI$3,$AI$4)))/DSUM(#REF!,""&$J$4&"",$M$4:INDIRECT(ADDRESS($AI$3,$AI$4)))))),""),"") ->  | G13: =IF($Z$1=34,IFERROR(IF(ISTEXT($B13)=TRUE,DSUM(#REF!,""&LEFT($C13,LEN($C13)-$A13)&"",$L$4:INDIRECT(ADDRESS($AI$3,$AI$4)))/DSUM(#REF!,""&$B13&"",$L$4:INDIRECT(ADDRESS($AI$3,$AI$4))),IF($B13=0,DAVERAGE(#REF!,""&LEFT($C13,LEN($C13)-$A13)&"",$L$4:INDIRECT(ADDRESS($AI$3,$AI$4))),IF($B13=1,DSUM(#REF!,""&LEFT($C13,LEN($C13)-$A13)&"",$L$4:INDIRECT(ADDRESS($AI$3,$AI$4)))/DSUM(#REF!,""&$I$4&"",$L$4:INDIRECT(ADDRESS($AI$3,$AI$4))),IF($B13=2,DSUM(#REF!,""&LEFT($C13,LEN($C13)-$A13)&"",$L$4:INDIRECT(ADDRESS($AI$3,$AI$4)))/DSUM(#REF!,""&$J$4&"",$L$4:INDIRECT(ADDRESS($AI$3,$AI$4))))))),""),"") ->  | K13: De 5 største værdier:
A14: 10 | B14: Antal årssøer | C14: Forrentning driftskapital pr. enhed | D14: =IF($Z$1=34,Landsgennemsnit!AC14,"") ->  | E14: =IF($Z$1=34,Landsgennemsnit!AD14,"") ->  | F14: =IF($Z$1=34,IFERROR(IF(ISTEXT($B14)=TRUE,DSUM(#REF!,""&LEFT($C14,LEN($C14)-$A14)&"",$M$4:INDIRECT(ADDRESS($AI$3,$AI$4)))/DSUM(#REF!,""&$B14&"",$M$4:INDIRECT(ADDRESS($AI$3,$AI$4))),IF($B14=0,DAVERAGE(#REF!,""&LEFT($C14,LEN($C14)-$A14)&"",$M$4:INDIRECT(ADDRESS($AI$3,$AI$4))),IF($B14=1,DSUM(#REF!,""&LEFT($C14,LEN($C14)-$A14)&"",$M$4:INDIRECT(ADDRESS($AI$3,$AI$4)))/DSUM(#REF!,""&$I$4&"",$M$4:INDIRECT(ADDRESS($AI$3,$AI$4))),DSUM(#REF!,""&LEFT($C14,LEN($C14)-$A14)&"",$M$4:INDIRECT(ADDRESS($AI$3,$AI$4)))/DSUM(#REF!,""&$J$4&"",$M$4:INDIRECT(ADDRESS($AI$3,$AI$4)))))),""),"") ->  | G14: =IF($Z$1=34,IFERROR(IF(ISTEXT($B14)=TRUE,DSUM(#REF!,""&LEFT($C14,LEN($C14)-$A14)&"",$L$4:INDIRECT(ADDRESS($AI$3,$AI$4)))/DSUM(#REF!,""&$B14&"",$L$4:INDIRECT(ADDRESS($AI$3,$AI$4))),IF($B14=0,DAVERAGE(#REF!,""&LEFT($C14,LEN($C14)-$A14)&"",$L$4:INDIRECT(ADDRESS($AI$3,$AI$4))),IF($B14=1,DSUM(#REF!,""&LEFT($C14,LEN($C14)-$A14)&"",$L$4:INDIRECT(ADDRESS($AI$3,$AI$4)))/DSUM(#REF!,""&$I$4&"",$L$4:INDIRECT(ADDRESS($AI$3,$AI$4))),IF($B14=2,DSUM(#REF!,""&LEFT($C14,LEN($C14)-$A14)&"",$L$4:INDIRECT(ADDRESS($AI$3,$AI$4)))/DSUM(#REF!,""&$J$4&"",$L$4:INDIRECT(ADDRESS($AI$3,$AI$4))))))),""),"") ->  | J14: Ejd i top 5 | K14: =M14 -> Årets resultat pr. årsso | L14: Prodgren | M14: =$L$4 -> Årets resultat pr. årsso | N14: =IF(N$4="","",N$4) -> Godkendt | O14: Økologisk_konventionel
A15: 10 | B15: Antal årssøer | C15: Øvrige omkostninger pr. enhed | D15: =IF($Z$1=34,Landsgennemsnit!AC15,"") ->  | E15: =IF($Z$1=34,Landsgennemsnit!AD15,"") ->  | F15: =IF($Z$1=34,IFERROR(IF(ISTEXT($B15)=TRUE,DSUM(#REF!,""&LEFT($C15,LEN($C15)-$A15)&"",$M$4:INDIRECT(ADDRESS($AI$3,$AI$4)))/DSUM(#REF!,""&$B15&"",$M$4:INDIRECT(ADDRESS($AI$3,$AI$4))),IF($B15=0,DAVERAGE(#REF!,""&LEFT($C15,LEN($C15)-$A15)&"",$M$4:INDIRECT(ADDRESS($AI$3,$AI$4))),IF($B15=1,DSUM(#REF!,""&LEFT($C15,LEN($C15)-$A15)&"",$M$4:INDIRECT(ADDRESS($AI$3,$AI$4)))/DSUM(#REF!,""&$I$4&"",$M$4:INDIRECT(ADDRESS($AI$3,$AI$4))),DSUM(#REF!,""&LEFT($C15,LEN($C15)-$A15)&"",$M$4:INDIRECT(ADDRESS($AI$3,$AI$4)))/DSUM(#REF!,""&$J$4&"",$M$4:INDIRECT(ADDRESS($AI$3,$AI$4)))))),""),"") ->  | G15: =IF($Z$1=34,IFERROR(IF(ISTEXT($B15)=TRUE,DSUM(#REF!,""&LEFT($C15,LEN($C15)-$A15)&"",$L$4:INDIRECT(ADDRESS($AI$3,$AI$4)))/DSUM(#REF!,""&$B15&"",$L$4:INDIRECT(ADDRESS($AI$3,$AI$4))),IF($B15=0,DAVERAGE(#REF!,""&LEFT($C15,LEN($C15)-$A15)&"",$L$4:INDIRECT(ADDRESS($AI$3,$AI$4))),IF($B15=1,DSUM(#REF!,""&LEFT($C15,LEN($C15)-$A15)&"",$L$4:INDIRECT(ADDRESS($AI$3,$AI$4)))/DSUM(#REF!,""&$I$4&"",$L$4:INDIRECT(ADDRESS($AI$3,$AI$4))),IF($B15=2,DSUM(#REF!,""&LEFT($C15,LEN($C15)-$A15)&"",$L$4:INDIRECT(ADDRESS($AI$3,$AI$4)))/DSUM(#REF!,""&$J$4&"",$L$4:INDIRECT(ADDRESS($AI$3,$AI$4))))))),""),"") ->  | J15: =IF($Z$1=34,SUMIFS(#REF!,#REF!,K15),"") ->  | K15: =IF($Z$1=34,DMAX(#REF!,""&$K$14&"",$M$4:INDIRECT(ADDRESS($AI$3,$AI$4))),"") ->  | L15: =$M$5 -> =7000 | M15: ="<"&K15&"" -> < | N15: =IF(N$4>0,N5,"") -> TRUE | O15: <2
A16: 10 | B16: Antal årssøer | C16: Krav til dækningsbidrag pr. enhed | D16: =IF($Z$1=34,Landsgennemsnit!AC16,"") ->  | E16: =IF($Z$1=34,Landsgennemsnit!AD16,"") ->  | F16: =IF($Z$1=34,IFERROR(IF(ISTEXT($B16)=TRUE,DSUM(#REF!,""&LEFT($C16,LEN($C16)-$A16)&"",$M$4:INDIRECT(ADDRESS($AI$3,$AI$4)))/DSUM(#REF!,""&$B16&"",$M$4:INDIRECT(ADDRESS($AI$3,$AI$4))),IF($B16=0,DAVERAGE(#REF!,""&LEFT($C16,LEN($C16)-$A16)&"",$M$4:INDIRECT(ADDRESS($AI$3,$AI$4))),IF($B16=1,DSUM(#REF!,""&LEFT($C16,LEN($C16)-$A16)&"",$M$4:INDIRECT(ADDRESS($AI$3,$AI$4)))/DSUM(#REF!,""&$I$4&"",$M$4:INDIRECT(ADDRESS($AI$3,$AI$4))),DSUM(#REF!,""&LEFT($C16,LEN($C16)-$A16)&"",$M$4:INDIRECT(ADDRESS($AI$3,$AI$4)))/DSUM(#REF!,""&$J$4&"",$M$4:INDIRECT(ADDRESS($AI$3,$AI$4)))))),""),"") ->  | G16: =IF($Z$1=34,IFERROR(IF(ISTEXT($B16)=TRUE,DSUM(#REF!,""&LEFT($C16,LEN($C16)-$A16)&"",$L$4:INDIRECT(ADDRESS($AI$3,$AI$4)))/DSUM(#REF!,""&$B16&"",$L$4:INDIRECT(ADDRESS($AI$3,$AI$4))),IF($B16=0,DAVERAGE(#REF!,""&LEFT($C16,LEN($C16)-$A16)&"",$L$4:INDIRECT(ADDRESS($AI$3,$AI$4))),IF($B16=1,DSUM(#REF!,""&LEFT($C16,LEN($C16)-$A16)&"",$L$4:INDIRECT(ADDRESS($AI$3,$AI$4)))/DSUM(#REF!,""&$I$4&"",$L$4:INDIRECT(ADDRESS($AI$3,$AI$4))),IF($B16=2,DSUM(#REF!,""&LEFT($C16,LEN($C16)-$A16)&"",$L$4:INDIRECT(ADDRESS($AI$3,$AI$4)))/DSUM(#REF!,""&$J$4&"",$L$4:INDIRECT(ADDRESS($AI$3,$AI$4))))))),""),"") ->  | L16: =$M$5 -> =7000 | M16: =M15 -> < | N16: =IF(N$4>0,N6,"") -> TRUE | O16: =IF(O$4>0,O6,"") -> <2
D17: =IF($Z$1=34,Landsgennemsnit!AC17,"") ->  | E17: =IF($Z$1=34,Landsgennemsnit!AD17,"") ->  | F17: =IF($Z$1=34,IFERROR(IF(ISTEXT($B17)=TRUE,DSUM(#REF!,""&LEFT($C17,LEN($C17)-$A17)&"",$M$4:INDIRECT(ADDRESS($AI$3,$AI$4)))/DSUM(#REF!,""&$B17&"",$M$4:INDIRECT(ADDRESS($AI$3,$AI$4))),IF($B17=0,DAVERAGE(#REF!,""&LEFT($C17,LEN($C17)-$A17)&"",$M$4:INDIRECT(ADDRESS($AI$3,$AI$4))),IF($B17=1,DSUM(#REF!,""&LEFT($C17,LEN($C17)-$A17)&"",$M$4:INDIRECT(ADDRESS($AI$3,$AI$4)))/DSUM(#REF!,""&$I$4&"",$M$4:INDIRECT(ADDRESS($AI$3,$AI$4))),DSUM(#REF!,""&LEFT($C17,LEN($C17)-$A17)&"",$M$4:INDIRECT(ADDRESS($AI$3,$AI$4)))/DSUM(#REF!,""&$J$4&"",$M$4:INDIRECT(ADDRESS($AI$3,$AI$4)))))),""),"") ->  | G17: =IF($Z$1=34,IFERROR(IF(ISTEXT($B17)=TRUE,DSUM(#REF!,""&LEFT($C17,LEN($C17)-$A17)&"",$L$4:INDIRECT(ADDRESS($AI$3,$AI$4)))/DSUM(#REF!,""&$B17&"",$L$4:INDIRECT(ADDRESS($AI$3,$AI$4))),IF($B17=0,DAVERAGE(#REF!,""&LEFT($C17,LEN($C17)-$A17)&"",$L$4:INDIRECT(ADDRESS($AI$3,$AI$4))),IF($B17=1,DSUM(#REF!,""&LEFT($C17,LEN($C17)-$A17)&"",$L$4:INDIRECT(ADDRESS($AI$3,$AI$4)))/DSUM(#REF!,""&$I$4&"",$L$4:INDIRECT(ADDRESS($AI$3,$AI$4))),IF($B17=2,DSUM(#REF!,""&LEFT($C17,LEN($C17)-$A17)&"",$L$4:INDIRECT(ADDRESS($AI$3,$AI$4)))/DSUM(#REF!,""&$J$4&"",$L$4:INDIRECT(ADDRESS($AI$3,$AI$4))))))),""),"") ->  | L17: =$M$5 -> =7000 | M17: =M15 -> < | N17: =IF(N$4>0,N7,"") -> TRUE | O17: <2
D18: =IF($Z$1=34,Landsgennemsnit!AC18,"") ->  | E18: =IF($Z$1=34,Landsgennemsnit!AD18,"") ->  | F18: =IF($Z$1=34,IFERROR(IF(ISTEXT($B18)=TRUE,DSUM(#REF!,""&LEFT($C18,LEN($C18)-$A18)&"",$M$4:INDIRECT(ADDRESS($AI$3,$AI$4)))/DSUM(#REF!,""&$B18&"",$M$4:INDIRECT(ADDRESS($AI$3,$AI$4))),IF($B18=0,DAVERAGE(#REF!,""&LEFT($C18,LEN($C18)-$A18)&"",$M$4:INDIRECT(ADDRESS($AI$3,$AI$4))),IF($B18=1,DSUM(#REF!,""&LEFT($C18,LEN($C18)-$A18)&"",$M$4:INDIRECT(ADDRESS($AI$3,$AI$4)))/DSUM(#REF!,""&$I$4&"",$M$4:INDIRECT(ADDRESS($AI$3,$AI$4))),DSUM(#REF!,""&LEFT($C18,LEN($C18)-$A18)&"",$M$4:INDIRECT(ADDRESS($AI$3,$AI$4)))/DSUM(#REF!,""&$J$4&"",$M$4:INDIRECT(ADDRESS($AI$3,$AI$4)))))),""),"") ->  | G18: =IF($Z$1=34,IFERROR(IF(ISTEXT($B18)=TRUE,DSUM(#REF!,""&LEFT($C18,LEN($C18)-$A18)&"",$L$4:INDIRECT(ADDRESS($AI$3,$AI$4)))/DSUM(#REF!,""&$B18&"",$L$4:INDIRECT(ADDRESS($AI$3,$AI$4))),IF($B18=0,DAVERAGE(#REF!,""&LEFT($C18,LEN($C18)-$A18)&"",$L$4:INDIRECT(ADDRESS($AI$3,$AI$4))),IF($B18=1,DSUM(#REF!,""&LEFT($C18,LEN($C18)-$A18)&"",$L$4:INDIRECT(ADDRESS($AI$3,$AI$4)))/DSUM(#REF!,""&$I$4&"",$L$4:INDIRECT(ADDRESS($AI$3,$AI$4))),IF($B18=2,DSUM(#REF!,""&LEFT($C18,LEN($C18)-$A18)&"",$L$4:INDIRECT(ADDRESS($AI$3,$AI$4)))/DSUM(#REF!,""&$J$4&"",$L$4:INDIRECT(ADDRESS($AI$3,$AI$4))))))),""),"") ->  | L18: Prodgren | M18: =$L$4 -> Årets resultat pr. årsso | N18: =IF(N$4="","",N$4) -> Godkendt | O18: Økologisk_konventionel
A19: 10 | B19: Antal årssøer | C19: Bundet kapital pr. enhed | D19: =IF($Z$1=34,Landsgennemsnit!AC19,"") ->  | E19: =IF($Z$1=34,Landsgennemsnit!AD19,"") ->  | F19: =IF($Z$1=34,IFERROR(IF(ISTEXT($B19)=TRUE,DSUM(#REF!,""&LEFT($C19,LEN($C19)-$A19)&"",$M$4:INDIRECT(ADDRESS($AI$3,$AI$4)))/DSUM(#REF!,""&$B19&"",$M$4:INDIRECT(ADDRESS($AI$3,$AI$4))),IF($B19=0,DAVERAGE(#REF!,""&LEFT($C19,LEN($C19)-$A19)&"",$M$4:INDIRECT(ADDRESS($AI$3,$AI$4))),IF($B19=1,DSUM(#REF!,""&LEFT($C19,LEN($C19)-$A19)&"",$M$4:INDIRECT(ADDRESS($AI$3,$AI$4)))/DSUM(#REF!,""&$I$4&"",$M$4:INDIRECT(ADDRESS($AI$3,$AI$4))),DSUM(#REF!,""&LEFT($C19,LEN($C19)-$A19)&"",$M$4:INDIRECT(ADDRESS($AI$3,$AI$4)))/DSUM(#REF!,""&$J$4&"",$M$4:INDIRECT(ADDRESS($AI$3,$AI$4)))))),""),"") ->  | G19: =IF($Z$1=34,IFERROR(IF(ISTEXT($B19)=TRUE,DSUM(#REF!,""&LEFT($C19,LEN($C19)-$A19)&"",$L$4:INDIRECT(ADDRESS($AI$3,$AI$4)))/DSUM(#REF!,""&$B19&"",$L$4:INDIRECT(ADDRESS($AI$3,$AI$4))),IF($B19=0,DAVERAGE(#REF!,""&LEFT($C19,LEN($C19)-$A19)&"",$L$4:INDIRECT(ADDRESS($AI$3,$AI$4))),IF($B19=1,DSUM(#REF!,""&LEFT($C19,LEN($C19)-$A19)&"",$L$4:INDIRECT(ADDRESS($AI$3,$AI$4)))/DSUM(#REF!,""&$I$4&"",$L$4:INDIRECT(ADDRESS($AI$3,$AI$4))),IF($B19=2,DSUM(#REF!,""&LEFT($C19,LEN($C19)-$A19)&"",$L$4:INDIRECT(ADDRESS($AI$3,$AI$4)))/DSUM(#REF!,""&$J$4&"",$L$4:INDIRECT(ADDRESS($AI$3,$AI$4))))))),""),"") ->  | J19: =IF($Z$1=34,SUMIFS(#REF!,#REF!,K19),"") ->  | K19: =IF($Z$1=34,DMAX(#REF!,""&$K$14&"",$L14:INDIRECT(ADDRESS($AI19,$AI$4))),"") ->  | L19: =$M$5 -> =7000 | M19: ="<"&K19&"" -> < | N19: =IF(N$4>0,N5,"") -> TRUE | O19: =IF(O$4>0,O5,"") -> <2 | AH19: Række | AI19: =ROW(AH19)-2 -> 17
B20: 0 | C20: Anvendt rentesats, pct. | D20: =IF($Z$1=34,Landsgennemsnit!AC20,"") ->  | E20: =IF($Z$1=34,Landsgennemsnit!AD20,"") ->  | F20: =IF($Z$1=34,IFERROR(IF(ISTEXT($B20)=TRUE,DSUM(#REF!,""&LEFT($C20,LEN($C20)-$A20)&"",$M$4:INDIRECT(ADDRESS($AI$3,$AI$4)))/DSUM(#REF!,""&$B20&"",$M$4:INDIRECT(ADDRESS($AI$3,$AI$4))),IF($B20=0,DAVERAGE(#REF!,""&LEFT($C20,LEN($C20)-$A20)&"",$M$4:INDIRECT(ADDRESS($AI$3,$AI$4))),IF($B20=1,DSUM(#REF!,""&LEFT($C20,LEN($C20)-$A20)&"",$M$4:INDIRECT(ADDRESS($AI$3,$AI$4)))/DSUM(#REF!,""&$I$4&"",$M$4:INDIRECT(ADDRESS($AI$3,$AI$4))),DSUM(#REF!,""&LEFT($C20,LEN($C20)-$A20)&"",$M$4:INDIRECT(ADDRESS($AI$3,$AI$4)))/DSUM(#REF!,""&$J$4&"",$M$4:INDIRECT(ADDRESS($AI$3,$AI$4)))))),""),"") ->  | G20: =IF($Z$1=34,IFERROR(IF(ISTEXT($B20)=TRUE,DSUM(#REF!,""&LEFT($C20,LEN($C20)-$A20)&"",$L$4:INDIRECT(ADDRESS($AI$3,$AI$4)))/DSUM(#REF!,""&$B20&"",$L$4:INDIRECT(ADDRESS($AI$3,$AI$4))),IF($B20=0,DAVERAGE(#REF!,""&LEFT($C20,LEN($C20)-$A20)&"",$L$4:INDIRECT(ADDRESS($AI$3,$AI$4))),IF($B20=1,DSUM(#REF!,""&LEFT($C20,LEN($C20)-$A20)&"",$L$4:INDIRECT(ADDRESS($AI$3,$AI$4)))/DSUM(#REF!,""&$I$4&"",$L$4:INDIRECT(ADDRESS($AI$3,$AI$4))),IF($B20=2,DSUM(#REF!,""&LEFT($C20,LEN($C20)-$A20)&"",$L$4:INDIRECT(ADDRESS($AI$3,$AI$4)))/DSUM(#REF!,""&$J$4&"",$L$4:INDIRECT(ADDRESS($AI$3,$AI$4))))))),""),"") ->  | L20: =$L$17 -> =7000 | M20: =M19 -> < | N20: =IF(N$4>0,N6,"") -> TRUE | O20: =IF(O$4>0,O6,"") -> <2
B21: Antal årssøer | C21: Resultatkorrektion ved 4 % rente | D21: =IF($Z$1=34,Landsgennemsnit!AC21,"") ->  | E21: =IF($Z$1=34,Landsgennemsnit!AD21,"") ->  | F21: =IF($Z$1=34,IFERROR(IF(ISTEXT($B21)=TRUE,DSUM(#REF!,""&LEFT($C21,LEN($C21)-$A21)&"",$M$4:INDIRECT(ADDRESS($AI$3,$AI$4)))/DSUM(#REF!,""&$B21&"",$M$4:INDIRECT(ADDRESS($AI$3,$AI$4))),IF($B21=0,DAVERAGE(#REF!,""&LEFT($C21,LEN($C21)-$A21)&"",$M$4:INDIRECT(ADDRESS($AI$3,$AI$4))),IF($B21=1,DSUM(#REF!,""&LEFT($C21,LEN($C21)-$A21)&"",$M$4:INDIRECT(ADDRESS($AI$3,$AI$4)))/DSUM(#REF!,""&$I$4&"",$M$4:INDIRECT(ADDRESS($AI$3,$AI$4))),DSUM(#REF!,""&LEFT($C21,LEN($C21)-$A21)&"",$M$4:INDIRECT(ADDRESS($AI$3,$AI$4)))/DSUM(#REF!,""&$J$4&"",$M$4:INDIRECT(ADDRESS($AI$3,$AI$4)))))),""),"") ->  | G21: =IF($Z$1=34,IFERROR(IF(ISTEXT($B21)=TRUE,DSUM(#REF!,""&LEFT($C21,LEN($C21)-$A21)&"",$L$4:INDIRECT(ADDRESS($AI$3,$AI$4)))/DSUM(#REF!,""&$B21&"",$L$4:INDIRECT(ADDRESS($AI$3,$AI$4))),IF($B21=0,DAVERAGE(#REF!,""&LEFT($C21,LEN($C21)-$A21)&"",$L$4:INDIRECT(ADDRESS($AI$3,$AI$4))),IF($B21=1,DSUM(#REF!,""&LEFT($C21,LEN($C21)-$A21)&"",$L$4:INDIRECT(ADDRESS($AI$3,$AI$4)))/DSUM(#REF!,""&$I$4&"",$L$4:INDIRECT(ADDRESS($AI$3,$AI$4))),IF($B21=2,DSUM(#REF!,""&LEFT($C21,LEN($C21)-$A21)&"",$L$4:INDIRECT(ADDRESS($AI$3,$AI$4)))/DSUM(#REF!,""&$J$4&"",$L$4:INDIRECT(ADDRESS($AI$3,$AI$4))))))),""),"") ->  | L21: =$L$17 -> =7000 | M21: =M19 -> < | N21: TRUE | O21: <2
B22: 0 | C22: Afkastningsgrad | D22: =IF($Z$1=34,Landsgennemsnit!AC22,"") ->  | E22: =IF($Z$1=34,Landsgennemsnit!AD22,"") ->  | F22: =IF($Z$1=34,IFERROR(IF(ISTEXT($B22)=TRUE,DSUM(#REF!,""&LEFT($C22,LEN($C22)-$A22)&"",$M$4:INDIRECT(ADDRESS($AI$3,$AI$4)))/DSUM(#REF!,""&$B22&"",$M$4:INDIRECT(ADDRESS($AI$3,$AI$4))),IF($B22=0,DAVERAGE(#REF!,""&LEFT($C22,LEN($C22)-$A22)&"",$M$4:INDIRECT(ADDRESS($AI$3,$AI$4))),IF($B22=1,DSUM(#REF!,""&LEFT($C22,LEN($C22)-$A22)&"",$M$4:INDIRECT(ADDRESS($AI$3,$AI$4)))/DSUM(#REF!,""&$I$4&"",$M$4:INDIRECT(ADDRESS($AI$3,$AI$4))),DSUM(#REF!,""&LEFT($C22,LEN($C22)-$A22)&"",$M$4:INDIRECT(ADDRESS($AI$3,$AI$4)))/DSUM(#REF!,""&$J$4&"",$M$4:INDIRECT(ADDRESS($AI$3,$AI$4)))))),""),"") ->  | G22: =IF($Z$1=34,IFERROR(IF(ISTEXT($B22)=TRUE,DSUM(#REF!,""&LEFT($C22,LEN($C22)-$A22)&"",$L$4:INDIRECT(ADDRESS($AI$3,$AI$4)))/DSUM(#REF!,""&$B22&"",$L$4:INDIRECT(ADDRESS($AI$3,$AI$4))),IF($B22=0,DAVERAGE(#REF!,""&LEFT($C22,LEN($C22)-$A22)&"",$L$4:INDIRECT(ADDRESS($AI$3,$AI$4))),IF($B22=1,DSUM(#REF!,""&LEFT($C22,LEN($C22)-$A22)&"",$L$4:INDIRECT(ADDRESS($AI$3,$AI$4)))/DSUM(#REF!,""&$I$4&"",$L$4:INDIRECT(ADDRESS($AI$3,$AI$4))),IF($B22=2,DSUM(#REF!,""&LEFT($C22,LEN($C22)-$A22)&"",$L$4:INDIRECT(ADDRESS($AI$3,$AI$4)))/DSUM(#REF!,""&$J$4&"",$L$4:INDIRECT(ADDRESS($AI$3,$AI$4))))))),""),"") ->  | L22: Prodgren | M22: =$L$4 -> Årets resultat pr. årsso | N22: =IF(N$4="","",N$4) -> Godkendt | O22: Økologisk_konventionel
D23: =IF($Z$1=34,Landsgennemsnit!AC23,"") ->  | E23: =IF($Z$1=34,Landsgennemsnit!AD23,"") ->  | F23: =IF($Z$1=34,IFERROR(IF(ISTEXT($B23)=TRUE,DSUM(#REF!,""&LEFT($C23,LEN($C23)-$A23)&"",$M$4:INDIRECT(ADDRESS($AI$3,$AI$4)))/DSUM(#REF!,""&$B23&"",$M$4:INDIRECT(ADDRESS($AI$3,$AI$4))),IF($B23=0,DAVERAGE(#REF!,""&LEFT($C23,LEN($C23)-$A23)&"",$M$4:INDIRECT(ADDRESS($AI$3,$AI$4))),IF($B23=1,DSUM(#REF!,""&LEFT($C23,LEN($C23)-$A23)&"",$M$4:INDIRECT(ADDRESS($AI$3,$AI$4)))/DSUM(#REF!,""&$I$4&"",$M$4:INDIRECT(ADDRESS($AI$3,$AI$4))),DSUM(#REF!,""&LEFT($C23,LEN($C23)-$A23)&"",$M$4:INDIRECT(ADDRESS($AI$3,$AI$4)))/DSUM(#REF!,""&$J$4&"",$M$4:INDIRECT(ADDRESS($AI$3,$AI$4)))))),""),"") ->  | G23: =IF($Z$1=34,IFERROR(IF(ISTEXT($B23)=TRUE,DSUM(#REF!,""&LEFT($C23,LEN($C23)-$A23)&"",$L$4:INDIRECT(ADDRESS($AI$3,$AI$4)))/DSUM(#REF!,""&$B23&"",$L$4:INDIRECT(ADDRESS($AI$3,$AI$4))),IF($B23=0,DAVERAGE(#REF!,""&LEFT($C23,LEN($C23)-$A23)&"",$L$4:INDIRECT(ADDRESS($AI$3,$AI$4))),IF($B23=1,DSUM(#REF!,""&LEFT($C23,LEN($C23)-$A23)&"",$L$4:INDIRECT(ADDRESS($AI$3,$AI$4)))/DSUM(#REF!,""&$I$4&"",$L$4:INDIRECT(ADDRESS($AI$3,$AI$4))),IF($B23=2,DSUM(#REF!,""&LEFT($C23,LEN($C23)-$A23)&"",$L$4:INDIRECT(ADDRESS($AI$3,$AI$4)))/DSUM(#REF!,""&$J$4&"",$L$4:INDIRECT(ADDRESS($AI$3,$AI$4))))))),""),"") ->  | J23: =IF($Z$1=34,SUMIFS(#REF!,#REF!,K23),"") ->  | K23: =IF($Z$1=34,DMAX(#REF!,""&$K$14&"",$L18:INDIRECT(ADDRESS($AI23,$AI$4))),"") ->  | L23: =$M$5 -> =7000 | M23: ="<"&K23&"" -> < | N23: =IF(N$4>0,N5,"") -> TRUE | O23: =IF(O$4>0,O5,"") -> <2 | AH23: Række | AI23: =ROW(AH23)-2 -> 21
B24: 0 | C24: Fremstillingspris pr. frav. smågris | D24: =IF($Z$1=34,Landsgennemsnit!AC24,"") ->  | E24: =IF($Z$1=34,Landsgennemsnit!AD24,"") ->  | F24: =IF($Z$1=34,IFERROR(IF(ISTEXT($B24)=TRUE,DSUM(#REF!,""&LEFT($C24,LEN($C24)-$A24)&"",$M$4:INDIRECT(ADDRESS($AI$3,$AI$4)))/DSUM(#REF!,""&$B24&"",$M$4:INDIRECT(ADDRESS($AI$3,$AI$4))),IF($B24=0,DAVERAGE(#REF!,""&LEFT($C24,LEN($C24)-$A24)&"",$M$4:INDIRECT(ADDRESS($AI$3,$AI$4))),IF($B24=1,DSUM(#REF!,""&LEFT($C24,LEN($C24)-$A24)&"",$M$4:INDIRECT(ADDRESS($AI$3,$AI$4)))/DSUM(#REF!,""&$I$4&"",$M$4:INDIRECT(ADDRESS($AI$3,$AI$4))),DSUM(#REF!,""&LEFT($C24,LEN($C24)-$A24)&"",$M$4:INDIRECT(ADDRESS($AI$3,$AI$4)))/DSUM(#REF!,""&$J$4&"",$M$4:INDIRECT(ADDRESS($AI$3,$AI$4)))))),""),"") ->  | G24: =IF($Z$1=34,IFERROR(IF(ISTEXT($B24)=TRUE,DSUM(#REF!,""&LEFT($C24,LEN($C24)-$A24)&"",$L$4:INDIRECT(ADDRESS($AI$3,$AI$4)))/DSUM(#REF!,""&$B24&"",$L$4:INDIRECT(ADDRESS($AI$3,$AI$4))),IF($B24=0,DAVERAGE(#REF!,""&LEFT($C24,LEN($C24)-$A24)&"",$L$4:INDIRECT(ADDRESS($AI$3,$AI$4))),IF($B24=1,DSUM(#REF!,""&LEFT($C24,LEN($C24)-$A24)&"",$L$4:INDIRECT(ADDRESS($AI$3,$AI$4)))/DSUM(#REF!,""&$I$4&"",$L$4:INDIRECT(ADDRESS($AI$3,$AI$4))),IF($B24=2,DSUM(#REF!,""&LEFT($C24,LEN($C24)-$A24)&"",$L$4:INDIRECT(ADDRESS($AI$3,$AI$4)))/DSUM(#REF!,""&$J$4&"",$L$4:INDIRECT(ADDRESS($AI$3,$AI$4))))))),""),"") ->  | L24: =$L$17 -> =7000 | M24: =M23 -> < | N24: =IF(N$4>0,N6,"") -> TRUE | O24: =IF(O$4>0,O6,"") -> <2
B25: 0 | C25: Kr. pr. solgt fravænnet gris | D25: =IF($Z$1=34,Landsgennemsnit!AC25,"") ->  | E25: =IF($Z$1=34,Landsgennemsnit!AD25,"") ->  | F25: =IF($Z$1=34,IFERROR(IF(ISTEXT($B25)=TRUE,DSUM(#REF!,""&LEFT($C25,LEN($C25)-$A25)&"",$M$4:INDIRECT(ADDRESS($AI$3,$AI$4)))/DSUM(#REF!,""&$B25&"",$M$4:INDIRECT(ADDRESS($AI$3,$AI$4))),IF($B25=0,DAVERAGE(#REF!,""&LEFT($C25,LEN($C25)-$A25)&"",$M$4:INDIRECT(ADDRESS($AI$3,$AI$4))),IF($B25=1,DSUM(#REF!,""&LEFT($C25,LEN($C25)-$A25)&"",$M$4:INDIRECT(ADDRESS($AI$3,$AI$4)))/DSUM(#REF!,""&$I$4&"",$M$4:INDIRECT(ADDRESS($AI$3,$AI$4))),DSUM(#REF!,""&LEFT($C25,LEN($C25)-$A25)&"",$M$4:INDIRECT(ADDRESS($AI$3,$AI$4)))/DSUM(#REF!,""&$J$4&"",$M$4:INDIRECT(ADDRESS($AI$3,$AI$4)))))),""),"") ->  | G25: =IF($Z$1=34,IFERROR(IF(ISTEXT($B25)=TRUE,DSUM(#REF!,""&LEFT($C25,LEN($C25)-$A25)&"",$L$4:INDIRECT(ADDRESS($AI$3,$AI$4)))/DSUM(#REF!,""&$B25&"",$L$4:INDIRECT(ADDRESS($AI$3,$AI$4))),IF($B25=0,DAVERAGE(#REF!,""&LEFT($C25,LEN($C25)-$A25)&"",$L$4:INDIRECT(ADDRESS($AI$3,$AI$4))),IF($B25=1,DSUM(#REF!,""&LEFT($C25,LEN($C25)-$A25)&"",$L$4:INDIRECT(ADDRESS($AI$3,$AI$4)))/DSUM(#REF!,""&$I$4&"",$L$4:INDIRECT(ADDRESS($AI$3,$AI$4))),IF($B25=2,DSUM(#REF!,""&LEFT($C25,LEN($C25)-$A25)&"",$L$4:INDIRECT(ADDRESS($AI$3,$AI$4)))/DSUM(#REF!,""&$J$4&"",$L$4:INDIRECT(ADDRESS($AI$3,$AI$4))))))),""),"") ->  | L25: =$L$17 -> =7000 | M25: =M23 -> < | N25: TRUE | O25: <2
D26: =IF($Z$1=34,Landsgennemsnit!AC26,"") ->  | E26: =IF($Z$1=34,Landsgennemsnit!AD26,"") ->  | F26: =IF($Z$1=34,IFERROR(IF(ISTEXT($B26)=TRUE,DSUM(#REF!,""&LEFT($C26,LEN($C26)-$A26)&"",$M$4:INDIRECT(ADDRESS($AI$3,$AI$4)))/DSUM(#REF!,""&$B26&"",$M$4:INDIRECT(ADDRESS($AI$3,$AI$4))),IF($B26=0,DAVERAGE(#REF!,""&LEFT($C26,LEN($C26)-$A26)&"",$M$4:INDIRECT(ADDRESS($AI$3,$AI$4))),IF($B26=1,DSUM(#REF!,""&LEFT($C26,LEN($C26)-$A26)&"",$M$4:INDIRECT(ADDRESS($AI$3,$AI$4)))/DSUM(#REF!,""&$I$4&"",$M$4:INDIRECT(ADDRESS($AI$3,$AI$4))),DSUM(#REF!,""&LEFT($C26,LEN($C26)-$A26)&"",$M$4:INDIRECT(ADDRESS($AI$3,$AI$4)))/DSUM(#REF!,""&$J$4&"",$M$4:INDIRECT(ADDRESS($AI$3,$AI$4)))))),""),"") ->  | G26: =IF($Z$1=34,IFERROR(IF(ISTEXT($B26)=TRUE,DSUM(#REF!,""&LEFT($C26,LEN($C26)-$A26)&"",$L$4:INDIRECT(ADDRESS($AI$3,$AI$4)))/DSUM(#REF!,""&$B26&"",$L$4:INDIRECT(ADDRESS($AI$3,$AI$4))),IF($B26=0,DAVERAGE(#REF!,""&LEFT($C26,LEN($C26)-$A26)&"",$L$4:INDIRECT(ADDRESS($AI$3,$AI$4))),IF($B26=1,DSUM(#REF!,""&LEFT($C26,LEN($C26)-$A26)&"",$L$4:INDIRECT(ADDRESS($AI$3,$AI$4)))/DSUM(#REF!,""&$I$4&"",$L$4:INDIRECT(ADDRESS($AI$3,$AI$4))),IF($B26=2,DSUM(#REF!,""&LEFT($C26,LEN($C26)-$A26)&"",$L$4:INDIRECT(ADDRESS($AI$3,$AI$4)))/DSUM(#REF!,""&$J$4&"",$L$4:INDIRECT(ADDRESS($AI$3,$AI$4))))))),""),"") ->  | L26: Prodgren | M26: =$L$4 -> Årets resultat pr. årsso | N26: =IF(N$4="","",N$4) -> Godkendt | O26: Økologisk_konventionel
A27: 7 | B27: Vægt soyaskrå, kg | C27: Pris soyaskrå, kr. pr. kg | D27: =IF($Z$1=34,Landsgennemsnit!AC27,"") ->  | E27: =IF($Z$1=34,Landsgennemsnit!AD27,"") ->  | F27: =IF($Z$1=34,IFERROR(IF(ISTEXT($B27)=TRUE,DSUM(#REF!,""&LEFT($C27,LEN($C27)-$A27)&"",$M$4:INDIRECT(ADDRESS($AI$3,$AI$4)))/DSUM(#REF!,""&$B27&"",$M$4:INDIRECT(ADDRESS($AI$3,$AI$4))),IF($B27=0,DAVERAGE(#REF!,""&LEFT($C27,LEN($C27)-$A27)&"",$M$4:INDIRECT(ADDRESS($AI$3,$AI$4))),IF($B27=1,DSUM(#REF!,""&LEFT($C27,LEN($C27)-$A27)&"",$M$4:INDIRECT(ADDRESS($AI$3,$AI$4)))/DSUM(#REF!,""&$I$4&"",$M$4:INDIRECT(ADDRESS($AI$3,$AI$4))),DSUM(#REF!,""&LEFT($C27,LEN($C27)-$A27)&"",$M$4:INDIRECT(ADDRESS($AI$3,$AI$4)))/DSUM(#REF!,""&$J$4&"",$M$4:INDIRECT(ADDRESS($AI$3,$AI$4)))))),""),"") ->  | G27: =IF($Z$1=34,IFERROR(IF(ISTEXT($B27)=TRUE,DSUM(#REF!,""&LEFT($C27,LEN($C27)-$A27)&"",$L$4:INDIRECT(ADDRESS($AI$3,$AI$4)))/DSUM(#REF!,""&$B27&"",$L$4:INDIRECT(ADDRESS($AI$3,$AI$4))),IF($B27=0,DAVERAGE(#REF!,""&LEFT($C27,LEN($C27)-$A27)&"",$L$4:INDIRECT(ADDRESS($AI$3,$AI$4))),IF($B27=1,DSUM(#REF!,""&LEFT($C27,LEN($C27)-$A27)&"",$L$4:INDIRECT(ADDRESS($AI$3,$AI$4)))/DSUM(#REF!,""&$I$4&"",$L$4:INDIRECT(ADDRESS($AI$3,$AI$4))),IF($B27=2,DSUM(#REF!,""&LEFT($C27,LEN($C27)-$A27)&"",$L$4:INDIRECT(ADDRESS($AI$3,$AI$4)))/DSUM(#REF!,""&$J$4&"",$L$4:INDIRECT(ADDRESS($AI$3,$AI$4))))))),""),"") ->  | J27: =IF($Z$1=34,SUMIFS(#REF!,#REF!,K27),"") ->  | K27: =IF($Z$1=34,DMAX(#REF!,""&$K$14&"",$L22:INDIRECT(ADDRESS($AI27,$AI$4))),"") ->  | L27: =$M$5 -> =7000 | M27: ="<"&K27&"" -> < | N27: =IF(N$4>0,N5,"") -> TRUE | O27: =IF(O$4>0,O5,"") -> <2 | AH27: Række | AI27: =ROW(AH27)-2 -> 25
A28: 7 | B28: vægt tilskudsfoder, kg | C28: Pris tilskudsfoder, kr. pr. kg | D28: =IF($Z$1=34,Landsgennemsnit!AC28,"") ->  | E28: =IF($Z$1=34,Landsgennemsnit!AD28,"") ->  | F28: =IF($Z$1=34,IFERROR(IF(ISTEXT($B28)=TRUE,DSUM(#REF!,""&LEFT($C28,LEN($C28)-$A28)&"",$M$4:INDIRECT(ADDRESS($AI$3,$AI$4)))/DSUM(#REF!,""&$B28&"",$M$4:INDIRECT(ADDRESS($AI$3,$AI$4))),IF($B28=0,DAVERAGE(#REF!,""&LEFT($C28,LEN($C28)-$A28)&"",$M$4:INDIRECT(ADDRESS($AI$3,$AI$4))),IF($B28=1,DSUM(#REF!,""&LEFT($C28,LEN($C28)-$A28)&"",$M$4:INDIRECT(ADDRESS($AI$3,$AI$4)))/DSUM(#REF!,""&$I$4&"",$M$4:INDIRECT(ADDRESS($AI$3,$AI$4))),DSUM(#REF!,""&LEFT($C28,LEN($C28)-$A28)&"",$M$4:INDIRECT(ADDRESS($AI$3,$AI$4)))/DSUM(#REF!,""&$J$4&"",$M$4:INDIRECT(ADDRESS($AI$3,$AI$4)))))),""),"") ->  | G28: =IF($Z$1=34,IFERROR(IF(ISTEXT($B28)=TRUE,DSUM(#REF!,""&LEFT($C28,LEN($C28)-$A28)&"",$L$4:INDIRECT(ADDRESS($AI$3,$AI$4)))/DSUM(#REF!,""&$B28&"",$L$4:INDIRECT(ADDRESS($AI$3,$AI$4))),IF($B28=0,DAVERAGE(#REF!,""&LEFT($C28,LEN($C28)-$A28)&"",$L$4:INDIRECT(ADDRESS($AI$3,$AI$4))),IF($B28=1,DSUM(#REF!,""&LEFT($C28,LEN($C28)-$A28)&"",$L$4:INDIRECT(ADDRESS($AI$3,$AI$4)))/DSUM(#REF!,""&$I$4&"",$L$4:INDIRECT(ADDRESS($AI$3,$AI$4))),IF($B28=2,DSUM(#REF!,""&LEFT($C28,LEN($C28)-$A28)&"",$L$4:INDIRECT(ADDRESS($AI$3,$AI$4)))/DSUM(#REF!,""&$J$4&"",$L$4:INDIRECT(ADDRESS($AI$3,$AI$4))))))),""),"") ->  | L28: =$L$17 -> =7000 | M28: =M27 -> < | N28: =IF(N$4>0,N6,"") -> TRUE | O28: =IF(O$4>0,O6,"") -> <2
A29: 7 | B29: Vægt tilskudsfoder smågrise, kg | C29: Pris tilskudsfoder smågrise, kr. pr. kg | D29: =IF($Z$1=34,Landsgennemsnit!AC29,"") ->  | E29: =IF($Z$1=34,Landsgennemsnit!AD29,"") ->  | F29: =IF($Z$1=34,IFERROR(IF(ISTEXT($B29)=TRUE,DSUM(#REF!,""&LEFT($C29,LEN($C29)-$A29)&"",$M$4:INDIRECT(ADDRESS($AI$3,$AI$4)))/DSUM(#REF!,""&$B29&"",$M$4:INDIRECT(ADDRESS($AI$3,$AI$4))),IF($B29=0,DAVERAGE(#REF!,""&LEFT($C29,LEN($C29)-$A29)&"",$M$4:INDIRECT(ADDRESS($AI$3,$AI$4))),IF($B29=1,DSUM(#REF!,""&LEFT($C29,LEN($C29)-$A29)&"",$M$4:INDIRECT(ADDRESS($AI$3,$AI$4)))/DSUM(#REF!,""&$I$4&"",$M$4:INDIRECT(ADDRESS($AI$3,$AI$4))),DSUM(#REF!,""&LEFT($C29,LEN($C29)-$A29)&"",$M$4:INDIRECT(ADDRESS($AI$3,$AI$4)))/DSUM(#REF!,""&$J$4&"",$M$4:INDIRECT(ADDRESS($AI$3,$AI$4)))))),""),"") ->  | G29: =IF($Z$1=34,IFERROR(IF(ISTEXT($B29)=TRUE,DSUM(#REF!,""&LEFT($C29,LEN($C29)-$A29)&"",$L$4:INDIRECT(ADDRESS($AI$3,$AI$4)))/DSUM(#REF!,""&$B29&"",$L$4:INDIRECT(ADDRESS($AI$3,$AI$4))),IF($B29=0,DAVERAGE(#REF!,""&LEFT($C29,LEN($C29)-$A29)&"",$L$4:INDIRECT(ADDRESS($AI$3,$AI$4))),IF($B29=1,DSUM(#REF!,""&LEFT($C29,LEN($C29)-$A29)&"",$L$4:INDIRECT(ADDRESS($AI$3,$AI$4)))/DSUM(#REF!,""&$I$4&"",$L$4:INDIRECT(ADDRESS($AI$3,$AI$4))),IF($B29=2,DSUM(#REF!,""&LEFT($C29,LEN($C29)-$A29)&"",$L$4:INDIRECT(ADDRESS($AI$3,$AI$4)))/DSUM(#REF!,""&$J$4&"",$L$4:INDIRECT(ADDRESS($AI$3,$AI$4))))))),""),"") ->  | L29: =$L$17 -> =7000 | M29: =M27 -> < | N29: TRUE | O29: <2
A30: 7 | B30: Vægt proteinblanding, kg | C30: Pris proteinblanding, kr. pr. kg | D30: =IF($Z$1=34,Landsgennemsnit!AC30,"") ->  | E30: =IF($Z$1=34,Landsgennemsnit!AD30,"") ->  | F30: =IF($Z$1=34,IFERROR(IF(ISTEXT($B30)=TRUE,DSUM(#REF!,""&LEFT($C30,LEN($C30)-$A30)&"",$M$4:INDIRECT(ADDRESS($AI$3,$AI$4)))/DSUM(#REF!,""&$B30&"",$M$4:INDIRECT(ADDRESS($AI$3,$AI$4))),IF($B30=0,DAVERAGE(#REF!,""&LEFT($C30,LEN($C30)-$A30)&"",$M$4:INDIRECT(ADDRESS($AI$3,$AI$4))),IF($B30=1,DSUM(#REF!,""&LEFT($C30,LEN($C30)-$A30)&"",$M$4:INDIRECT(ADDRESS($AI$3,$AI$4)))/DSUM(#REF!,""&$I$4&"",$M$4:INDIRECT(ADDRESS($AI$3,$AI$4))),DSUM(#REF!,""&LEFT($C30,LEN($C30)-$A30)&"",$M$4:INDIRECT(ADDRESS($AI$3,$AI$4)))/DSUM(#REF!,""&$J$4&"",$M$4:INDIRECT(ADDRESS($AI$3,$AI$4)))))),""),"") ->  | G30: =IF($Z$1=34,IFERROR(IF(ISTEXT($B30)=TRUE,DSUM(#REF!,""&LEFT($C30,LEN($C30)-$A30)&"",$L$4:INDIRECT(ADDRESS($AI$3,$AI$4)))/DSUM(#REF!,""&$B30&"",$L$4:INDIRECT(ADDRESS($AI$3,$AI$4))),IF($B30=0,DAVERAGE(#REF!,""&LEFT($C30,LEN($C30)-$A30)&"",$L$4:INDIRECT(ADDRESS($AI$3,$AI$4))),IF($B30=1,DSUM(#REF!,""&LEFT($C30,LEN($C30)-$A30)&"",$L$4:INDIRECT(ADDRESS($AI$3,$AI$4)))/DSUM(#REF!,""&$I$4&"",$L$4:INDIRECT(ADDRESS($AI$3,$AI$4))),IF($B30=2,DSUM(#REF!,""&LEFT($C30,LEN($C30)-$A30)&"",$L$4:INDIRECT(ADDRESS($AI$3,$AI$4)))/DSUM(#REF!,""&$J$4&"",$L$4:INDIRECT(ADDRESS($AI$3,$AI$4))))))),""),"") ->  | L30: Prodgren | M30: =$L$4 -> Årets resultat pr. årsso | N30: =IF(N$4="","",N$4) -> Godkendt | O30: Økologisk_konventionel
A31: 7 | B31: Vægt smågriseblanding, kg | C31: Pris smågriseblanding, kr. pr. kg | D31: =IF($Z$1=34,Landsgennemsnit!AC31,"") ->  | E31: =IF($Z$1=34,Landsgennemsnit!AD31,"") ->  | F31: =IF($Z$1=34,IFERROR(IF(ISTEXT($B31)=TRUE,DSUM(#REF!,""&LEFT($C31,LEN($C31)-$A31)&"",$M$4:INDIRECT(ADDRESS($AI$3,$AI$4)))/DSUM(#REF!,""&$B31&"",$M$4:INDIRECT(ADDRESS($AI$3,$AI$4))),IF($B31=0,DAVERAGE(#REF!,""&LEFT($C31,LEN($C31)-$A31)&"",$M$4:INDIRECT(ADDRESS($AI$3,$AI$4))),IF($B31=1,DSUM(#REF!,""&LEFT($C31,LEN($C31)-$A31)&"",$M$4:INDIRECT(ADDRESS($AI$3,$AI$4)))/DSUM(#REF!,""&$I$4&"",$M$4:INDIRECT(ADDRESS($AI$3,$AI$4))),DSUM(#REF!,""&LEFT($C31,LEN($C31)-$A31)&"",$M$4:INDIRECT(ADDRESS($AI$3,$AI$4)))/DSUM(#REF!,""&$J$4&"",$M$4:INDIRECT(ADDRESS($AI$3,$AI$4)))))),""),"") ->  | G31: =IF($Z$1=34,IFERROR(IF(ISTEXT($B31)=TRUE,DSUM(#REF!,""&LEFT($C31,LEN($C31)-$A31)&"",$L$4:INDIRECT(ADDRESS($AI$3,$AI$4)))/DSUM(#REF!,""&$B31&"",$L$4:INDIRECT(ADDRESS($AI$3,$AI$4))),IF($B31=0,DAVERAGE(#REF!,""&LEFT($C31,LEN($C31)-$A31)&"",$L$4:INDIRECT(ADDRESS($AI$3,$AI$4))),IF($B31=1,DSUM(#REF!,""&LEFT($C31,LEN($C31)-$A31)&"",$L$4:INDIRECT(ADDRESS($AI$3,$AI$4)))/DSUM(#REF!,""&$I$4&"",$L$4:INDIRECT(ADDRESS($AI$3,$AI$4))),IF($B31=2,DSUM(#REF!,""&LEFT($C31,LEN($C31)-$A31)&"",$L$4:INDIRECT(ADDRESS($AI$3,$AI$4)))/DSUM(#REF!,""&$J$4&"",$L$4:INDIRECT(ADDRESS($AI$3,$AI$4))))))),""),"") ->  | J31: =IF($Z$1=34,SUMIFS(#REF!,#REF!,K31),"") ->  | K31: =IF($Z$1=34,DMAX(#REF!,""&$K$14&"",$L26:INDIRECT(ADDRESS($AI31,$AI$4))),"") ->  | L31: =$M$5 -> =7000 | M31: ="<"&K31&"" -> < | N31: =IF(N$4>0,N5,"") -> TRUE | O31: =IF(O$4>0,O5,"") -> <2 | AH31: Række | AI31: =ROW(AH31)-2 -> 29
A32: 7 | B32: Vægt færdigblanding søer, kg | C32: Pris færdigblanding søer, kr. pr. kg | D32: =IF($Z$1=34,Landsgennemsnit!AC32,"") ->  | E32: =IF($Z$1=34,Landsgennemsnit!AD32,"") ->  | F32: =IF($Z$1=34,IFERROR(IF(ISTEXT($B32)=TRUE,DSUM(#REF!,""&LEFT($C32,LEN($C32)-$A32)&"",$M$4:INDIRECT(ADDRESS($AI$3,$AI$4)))/DSUM(#REF!,""&$B32&"",$M$4:INDIRECT(ADDRESS($AI$3,$AI$4))),IF($B32=0,DAVERAGE(#REF!,""&LEFT($C32,LEN($C32)-$A32)&"",$M$4:INDIRECT(ADDRESS($AI$3,$AI$4))),IF($B32=1,DSUM(#REF!,""&LEFT($C32,LEN($C32)-$A32)&"",$M$4:INDIRECT(ADDRESS($AI$3,$AI$4)))/DSUM(#REF!,""&$I$4&"",$M$4:INDIRECT(ADDRESS($AI$3,$AI$4))),DSUM(#REF!,""&LEFT($C32,LEN($C32)-$A32)&"",$M$4:INDIRECT(ADDRESS($AI$3,$AI$4)))/DSUM(#REF!,""&$J$4&"",$M$4:INDIRECT(ADDRESS($AI$3,$AI$4)))))),""),"") ->  | G32: =IF($Z$1=34,IFERROR(IF(ISTEXT($B32)=TRUE,DSUM(#REF!,""&LEFT($C32,LEN($C32)-$A32)&"",$L$4:INDIRECT(ADDRESS($AI$3,$AI$4)))/DSUM(#REF!,""&$B32&"",$L$4:INDIRECT(ADDRESS($AI$3,$AI$4))),IF($B32=0,DAVERAGE(#REF!,""&LEFT($C32,LEN($C32)-$A32)&"",$L$4:INDIRECT(ADDRESS($AI$3,$AI$4))),IF($B32=1,DSUM(#REF!,""&LEFT($C32,LEN($C32)-$A32)&"",$L$4:INDIRECT(ADDRESS($AI$3,$AI$4)))/DSUM(#REF!,""&$I$4&"",$L$4:INDIRECT(ADDRESS($AI$3,$AI$4))),IF($B32=2,DSUM(#REF!,""&LEFT($C32,LEN($C32)-$A32)&"",$L$4:INDIRECT(ADDRESS($AI$3,$AI$4)))/DSUM(#REF!,""&$J$4&"",$L$4:INDIRECT(ADDRESS($AI$3,$AI$4))))))),""),"") ->  | L32: =$L$17 -> =7000 | M32: =M31 -> < | N32: =IF(N$4>0,N6,"") -> TRUE | O32: =IF(O$4>0,O6,"") -> <2
A33: 7 | B33: Vægt færdigblanding smågrise, kg | C33: Pris færdigblanding smågrise, kr. pr. kg | D33: =IF($Z$1=34,Landsgennemsnit!AC33,"") ->  | E33: =IF($Z$1=34,Landsgennemsnit!AD33,"") ->  | F33: =IF($Z$1=34,IFERROR(IF(ISTEXT($B33)=TRUE,DSUM(#REF!,""&LEFT($C33,LEN($C33)-$A33)&"",$M$4:INDIRECT(ADDRESS($AI$3,$AI$4)))/DSUM(#REF!,""&$B33&"",$M$4:INDIRECT(ADDRESS($AI$3,$AI$4))),IF($B33=0,DAVERAGE(#REF!,""&LEFT($C33,LEN($C33)-$A33)&"",$M$4:INDIRECT(ADDRESS($AI$3,$AI$4))),IF($B33=1,DSUM(#REF!,""&LEFT($C33,LEN($C33)-$A33)&"",$M$4:INDIRECT(ADDRESS($AI$3,$AI$4)))/DSUM(#REF!,""&$I$4&"",$M$4:INDIRECT(ADDRESS($AI$3,$AI$4))),DSUM(#REF!,""&LEFT($C33,LEN($C33)-$A33)&"",$M$4:INDIRECT(ADDRESS($AI$3,$AI$4)))/DSUM(#REF!,""&$J$4&"",$M$4:INDIRECT(ADDRESS($AI$3,$AI$4)))))),""),"") ->  | G33: =IF($Z$1=34,IFERROR(IF(ISTEXT($B33)=TRUE,DSUM(#REF!,""&LEFT($C33,LEN($C33)-$A33)&"",$L$4:INDIRECT(ADDRESS($AI$3,$AI$4)))/DSUM(#REF!,""&$B33&"",$L$4:INDIRECT(ADDRESS($AI$3,$AI$4))),IF($B33=0,DAVERAGE(#REF!,""&LEFT($C33,LEN($C33)-$A33)&"",$L$4:INDIRECT(ADDRESS($AI$3,$AI$4))),IF($B33=1,DSUM(#REF!,""&LEFT($C33,LEN($C33)-$A33)&"",$L$4:INDIRECT(ADDRESS($AI$3,$AI$4)))/DSUM(#REF!,""&$I$4&"",$L$4:INDIRECT(ADDRESS($AI$3,$AI$4))),IF($B33=2,DSUM(#REF!,""&LEFT($C33,LEN($C33)-$A33)&"",$L$4:INDIRECT(ADDRESS($AI$3,$AI$4)))/DSUM(#REF!,""&$J$4&"",$L$4:INDIRECT(ADDRESS($AI$3,$AI$4))))))),""),"") ->  | L33: =$L$17 -> =7000 | M33: =M31 -> < | N33: TRUE | O33: <2
D34: =IF($Z$1=34,Landsgennemsnit!AC34,"") ->  | E34: =IF($Z$1=34,Landsgennemsnit!AD34,"") ->  | F34: =IF($Z$1=34,IFERROR(IF(ISTEXT($B34)=TRUE,DSUM(#REF!,""&LEFT($C34,LEN($C34)-$A34)&"",$M$4:INDIRECT(ADDRESS($AI$3,$AI$4)))/DSUM(#REF!,""&$B34&"",$M$4:INDIRECT(ADDRESS($AI$3,$AI$4))),IF($B34=0,DAVERAGE(#REF!,""&LEFT($C34,LEN($C34)-$A34)&"",$M$4:INDIRECT(ADDRESS($AI$3,$AI$4))),IF($B34=1,DSUM(#REF!,""&LEFT($C34,LEN($C34)-$A34)&"",$M$4:INDIRECT(ADDRESS($AI$3,$AI$4)))/DSUM(#REF!,""&$I$4&"",$M$4:INDIRECT(ADDRESS($AI$3,$AI$4))),DSUM(#REF!,""&LEFT($C34,LEN($C34)-$A34)&"",$M$4:INDIRECT(ADDRESS($AI$3,$AI$4)))/DSUM(#REF!,""&$J$4&"",$M$4:INDIRECT(ADDRESS($AI$3,$AI$4)))))),""),"") ->  | G34: =IF($Z$1=34,IFERROR(IF(ISTEXT($B34)=TRUE,DSUM(#REF!,""&LEFT($C34,LEN($C34)-$A34)&"",$L$4:INDIRECT(ADDRESS($AI$3,$AI$4)))/DSUM(#REF!,""&$B34&"",$L$4:INDIRECT(ADDRESS($AI$3,$AI$4))),IF($B34=0,DAVERAGE(#REF!,""&LEFT($C34,LEN($C34)-$A34)&"",$L$4:INDIRECT(ADDRESS($AI$3,$AI$4))),IF($B34=1,DSUM(#REF!,""&LEFT($C34,LEN($C34)-$A34)&"",$L$4:INDIRECT(ADDRESS($AI$3,$AI$4)))/DSUM(#REF!,""&$I$4&"",$L$4:INDIRECT(ADDRESS($AI$3,$AI$4))),IF($B34=2,DSUM(#REF!,""&LEFT($C34,LEN($C34)-$A34)&"",$L$4:INDIRECT(ADDRESS($AI$3,$AI$4)))/DSUM(#REF!,""&$J$4&"",$L$4:INDIRECT(ADDRESS($AI$3,$AI$4))))))),""),"") -> 
B35: Antal årssøer | C35: Specifikation af resultat | D35: =IF($Z$1=34,Landsgennemsnit!AC35,"") ->  | E35: =IF($Z$1=34,Landsgennemsnit!AD35,"") ->  | F35: =IF($Z$1=34,IFERROR(IF(ISTEXT($B35)=TRUE,DSUM(#REF!,""&LEFT($C35,LEN($C35)-$A35)&"",$M$4:INDIRECT(ADDRESS($AI$3,$AI$4)))/DSUM(#REF!,""&$B35&"",$M$4:INDIRECT(ADDRESS($AI$3,$AI$4))),IF($B35=0,DAVERAGE(#REF!,""&LEFT($C35,LEN($C35)-$A35)&"",$M$4:INDIRECT(ADDRESS($AI$3,$AI$4))),IF($B35=1,DSUM(#REF!,""&LEFT($C35,LEN($C35)-$A35)&"",$M$4:INDIRECT(ADDRESS($AI$3,$AI$4)))/DSUM(#REF!,""&$I$4&"",$M$4:INDIRECT(ADDRESS($AI$3,$AI$4))),DSUM(#REF!,""&LEFT($C35,LEN($C35)-$A35)&"",$M$4:INDIRECT(ADDRESS($AI$3,$AI$4)))/DSUM(#REF!,""&$J$4&"",$M$4:INDIRECT(ADDRESS($AI$3,$AI$4)))))),""),"") ->  | G35: =IF($Z$1=34,IFERROR(IF(ISTEXT($B35)=TRUE,DSUM(#REF!,""&LEFT($C35,LEN($C35)-$A35)&"",$L$4:INDIRECT(ADDRESS($AI$3,$AI$4)))/DSUM(#REF!,""&$B35&"",$L$4:INDIRECT(ADDRESS($AI$3,$AI$4))),IF($B35=0,DAVERAGE(#REF!,""&LEFT($C35,LEN($C35)-$A35)&"",$L$4:INDIRECT(ADDRESS($AI$3,$AI$4))),IF($B35=1,DSUM(#REF!,""&LEFT($C35,LEN($C35)-$A35)&"",$L$4:INDIRECT(ADDRESS($AI$3,$AI$4)))/DSUM(#REF!,""&$I$4&"",$L$4:INDIRECT(ADDRESS($AI$3,$AI$4))),IF($B35=2,DSUM(#REF!,""&LEFT($C35,LEN($C35)-$A35)&"",$L$4:INDIRECT(ADDRESS($AI$3,$AI$4)))/DSUM(#REF!,""&$J$4&"",$L$4:INDIRECT(ADDRESS($AI$3,$AI$4))))))),""),"") ->  | AH35: Række | AI35: =ROW(AH35)-2 -> 33
B36: Antal årssøer | C36: Salg/overførsel smågrise | D36: =IF($Z$1=34,Landsgennemsnit!AC36,"") ->  | E36: =IF($Z$1=34,Landsgennemsnit!AD36,"") ->  | F36: =IF($Z$1=34,IFERROR(IF(ISTEXT($B36)=TRUE,DSUM(#REF!,""&LEFT($C36,LEN($C36)-$A36)&"",$M$4:INDIRECT(ADDRESS($AI$3,$AI$4)))/DSUM(#REF!,""&$B36&"",$M$4:INDIRECT(ADDRESS($AI$3,$AI$4))),IF($B36=0,DAVERAGE(#REF!,""&LEFT($C36,LEN($C36)-$A36)&"",$M$4:INDIRECT(ADDRESS($AI$3,$AI$4))),IF($B36=1,DSUM(#REF!,""&LEFT($C36,LEN($C36)-$A36)&"",$M$4:INDIRECT(ADDRESS($AI$3,$AI$4)))/DSUM(#REF!,""&$I$4&"",$M$4:INDIRECT(ADDRESS($AI$3,$AI$4))),DSUM(#REF!,""&LEFT($C36,LEN($C36)-$A36)&"",$M$4:INDIRECT(ADDRESS($AI$3,$AI$4)))/DSUM(#REF!,""&$J$4&"",$M$4:INDIRECT(ADDRESS($AI$3,$AI$4)))))),""),"") ->  | G36: =IF($Z$1=34,IFERROR(IF(ISTEXT($B36)=TRUE,DSUM(#REF!,""&LEFT($C36,LEN($C36)-$A36)&"",$L$4:INDIRECT(ADDRESS($AI$3,$AI$4)))/DSUM(#REF!,""&$B36&"",$L$4:INDIRECT(ADDRESS($AI$3,$AI$4))),IF($B36=0,DAVERAGE(#REF!,""&LEFT($C36,LEN($C36)-$A36)&"",$L$4:INDIRECT(ADDRESS($AI$3,$AI$4))),IF($B36=1,DSUM(#REF!,""&LEFT($C36,LEN($C36)-$A36)&"",$L$4:INDIRECT(ADDRESS($AI$3,$AI$4)))/DSUM(#REF!,""&$I$4&"",$L$4:INDIRECT(ADDRESS($AI$3,$AI$4))),IF($B36=2,DSUM(#REF!,""&LEFT($C36,LEN($C36)-$A36)&"",$L$4:INDIRECT(ADDRESS($AI$3,$AI$4)))/DSUM(#REF!,""&$J$4&"",$L$4:INDIRECT(ADDRESS($AI$3,$AI$4))))))),""),"") -> 
B37: Antal årssøer | C37: Salg andre svin | D37: =IF($Z$1=34,Landsgennemsnit!AC37,"") ->  | E37: =IF($Z$1=34,Landsgennemsnit!AD37,"") ->  | F37: =IF($Z$1=34,IFERROR(IF(ISTEXT($B37)=TRUE,DSUM(#REF!,""&LEFT($C37,LEN($C37)-$A37)&"",$M$4:INDIRECT(ADDRESS($AI$3,$AI$4)))/DSUM(#REF!,""&$B37&"",$M$4:INDIRECT(ADDRESS($AI$3,$AI$4))),IF($B37=0,DAVERAGE(#REF!,""&LEFT($C37,LEN($C37)-$A37)&"",$M$4:INDIRECT(ADDRESS($AI$3,$AI$4))),IF($B37=1,DSUM(#REF!,""&LEFT($C37,LEN($C37)-$A37)&"",$M$4:INDIRECT(ADDRESS($AI$3,$AI$4)))/DSUM(#REF!,""&$I$4&"",$M$4:INDIRECT(ADDRESS($AI$3,$AI$4))),DSUM(#REF!,""&LEFT($C37,LEN($C37)-$A37)&"",$M$4:INDIRECT(ADDRESS($AI$3,$AI$4)))/DSUM(#REF!,""&$J$4&"",$M$4:INDIRECT(ADDRESS($AI$3,$AI$4)))))),""),"") ->  | G37: =IF($Z$1=34,IFERROR(IF(ISTEXT($B37)=TRUE,DSUM(#REF!,""&LEFT($C37,LEN($C37)-$A37)&"",$L$4:INDIRECT(ADDRESS($AI$3,$AI$4)))/DSUM(#REF!,""&$B37&"",$L$4:INDIRECT(ADDRESS($AI$3,$AI$4))),IF($B37=0,DAVERAGE(#REF!,""&LEFT($C37,LEN($C37)-$A37)&"",$L$4:INDIRECT(ADDRESS($AI$3,$AI$4))),IF($B37=1,DSUM(#REF!,""&LEFT($C37,LEN($C37)-$A37)&"",$L$4:INDIRECT(ADDRESS($AI$3,$AI$4)))/DSUM(#REF!,""&$I$4&"",$L$4:INDIRECT(ADDRESS($AI$3,$AI$4))),IF($B37=2,DSUM(#REF!,""&LEFT($C37,LEN($C37)-$A37)&"",$L$4:INDIRECT(ADDRESS($AI$3,$AI$4)))/DSUM(#REF!,""&$J$4&"",$L$4:INDIRECT(ADDRESS($AI$3,$AI$4))))))),""),"") -> 
B38: Antal årssøer | C38: Køb af grise | D38: =IF($Z$1=34,Landsgennemsnit!AC38,"") ->  | E38: =IF($Z$1=34,Landsgennemsnit!AD38,"") ->  | F38: =IF($Z$1=34,IFERROR(IF(ISTEXT($B38)=TRUE,DSUM(#REF!,""&LEFT($C38,LEN($C38)-$A38)&"",$M$4:INDIRECT(ADDRESS($AI$3,$AI$4)))/DSUM(#REF!,""&$B38&"",$M$4:INDIRECT(ADDRESS($AI$3,$AI$4))),IF($B38=0,DAVERAGE(#REF!,""&LEFT($C38,LEN($C38)-$A38)&"",$M$4:INDIRECT(ADDRESS($AI$3,$AI$4))),IF($B38=1,DSUM(#REF!,""&LEFT($C38,LEN($C38)-$A38)&"",$M$4:INDIRECT(ADDRESS($AI$3,$AI$4)))/DSUM(#REF!,""&$I$4&"",$M$4:INDIRECT(ADDRESS($AI$3,$AI$4))),DSUM(#REF!,""&LEFT($C38,LEN($C38)-$A38)&"",$M$4:INDIRECT(ADDRESS($AI$3,$AI$4)))/DSUM(#REF!,""&$J$4&"",$M$4:INDIRECT(ADDRESS($AI$3,$AI$4)))))),""),"") ->  | G38: =IF($Z$1=34,IFERROR(IF(ISTEXT($B38)=TRUE,DSUM(#REF!,""&LEFT($C38,LEN($C38)-$A38)&"",$L$4:INDIRECT(ADDRESS($AI$3,$AI$4)))/DSUM(#REF!,""&$B38&"",$L$4:INDIRECT(ADDRESS($AI$3,$AI$4))),IF($B38=0,DAVERAGE(#REF!,""&LEFT($C38,LEN($C38)-$A38)&"",$L$4:INDIRECT(ADDRESS($AI$3,$AI$4))),IF($B38=1,DSUM(#REF!,""&LEFT($C38,LEN($C38)-$A38)&"",$L$4:INDIRECT(ADDRESS($AI$3,$AI$4)))/DSUM(#REF!,""&$I$4&"",$L$4:INDIRECT(ADDRESS($AI$3,$AI$4))),IF($B38=2,DSUM(#REF!,""&LEFT($C38,LEN($C38)-$A38)&"",$L$4:INDIRECT(ADDRESS($AI$3,$AI$4)))/DSUM(#REF!,""&$J$4&"",$L$4:INDIRECT(ADDRESS($AI$3,$AI$4))))))),""),"") -> 
B39: Antal årssøer | C39: Besætningsforskydning | D39: =IF($Z$1=34,Landsgennemsnit!AC39,"") ->  | E39: =IF($Z$1=34,Landsgennemsnit!AD39,"") ->  | F39: =IF($Z$1=34,IFERROR(IF(ISTEXT($B39)=TRUE,DSUM(#REF!,""&LEFT($C39,LEN($C39)-$A39)&"",$M$4:INDIRECT(ADDRESS($AI$3,$AI$4)))/DSUM(#REF!,""&$B39&"",$M$4:INDIRECT(ADDRESS($AI$3,$AI$4))),IF($B39=0,DAVERAGE(#REF!,""&LEFT($C39,LEN($C39)-$A39)&"",$M$4:INDIRECT(ADDRESS($AI$3,$AI$4))),IF($B39=1,DSUM(#REF!,""&LEFT($C39,LEN($C39)-$A39)&"",$M$4:INDIRECT(ADDRESS($AI$3,$AI$4)))/DSUM(#REF!,""&$I$4&"",$M$4:INDIRECT(ADDRESS($AI$3,$AI$4))),DSUM(#REF!,""&LEFT($C39,LEN($C39)-$A39)&"",$M$4:INDIRECT(ADDRESS($AI$3,$AI$4)))/DSUM(#REF!,""&$J$4&"",$M$4:INDIRECT(ADDRESS($AI$3,$AI$4)))))),""),"") ->  | G39: =IF($Z$1=34,IFERROR(IF(ISTEXT($B39)=TRUE,DSUM(#REF!,""&LEFT($C39,LEN($C39)-$A39)&"",$L$4:INDIRECT(ADDRESS($AI$3,$AI$4)))/DSUM(#REF!,""&$B39&"",$L$4:INDIRECT(ADDRESS($AI$3,$AI$4))),IF($B39=0,DAVERAGE(#REF!,""&LEFT($C39,LEN($C39)-$A39)&"",$L$4:INDIRECT(ADDRESS($AI$3,$AI$4))),IF($B39=1,DSUM(#REF!,""&LEFT($C39,LEN($C39)-$A39)&"",$L$4:INDIRECT(ADDRESS($AI$3,$AI$4)))/DSUM(#REF!,""&$I$4&"",$L$4:INDIRECT(ADDRESS($AI$3,$AI$4))),IF($B39=2,DSUM(#REF!,""&LEFT($C39,LEN($C39)-$A39)&"",$L$4:INDIRECT(ADDRESS($AI$3,$AI$4)))/DSUM(#REF!,""&$J$4&"",$L$4:INDIRECT(ADDRESS($AI$3,$AI$4))))))),""),"") -> 
B40: Antal årssøer | C40: Andre Landbrugsindtægter svin | D40: =IF($Z$1=34,Landsgennemsnit!AC40,"") ->  | E40: =IF($Z$1=34,Landsgennemsnit!AD40,"") ->  | F40: =IF($Z$1=34,IFERROR(IF(ISTEXT($B40)=TRUE,DSUM(#REF!,""&LEFT($C40,LEN($C40)-$A40)&"",$M$4:INDIRECT(ADDRESS($AI$3,$AI$4)))/DSUM(#REF!,""&$B40&"",$M$4:INDIRECT(ADDRESS($AI$3,$AI$4))),IF($B40=0,DAVERAGE(#REF!,""&LEFT($C40,LEN($C40)-$A40)&"",$M$4:INDIRECT(ADDRESS($AI$3,$AI$4))),IF($B40=1,DSUM(#REF!,""&LEFT($C40,LEN($C40)-$A40)&"",$M$4:INDIRECT(ADDRESS($AI$3,$AI$4)))/DSUM(#REF!,""&$I$4&"",$M$4:INDIRECT(ADDRESS($AI$3,$AI$4))),DSUM(#REF!,""&LEFT($C40,LEN($C40)-$A40)&"",$M$4:INDIRECT(ADDRESS($AI$3,$AI$4)))/DSUM(#REF!,""&$J$4&"",$M$4:INDIRECT(ADDRESS($AI$3,$AI$4)))))),""),"") ->  | G40: =IF($Z$1=34,IFERROR(IF(ISTEXT($B40)=TRUE,DSUM(#REF!,""&LEFT($C40,LEN($C40)-$A40)&"",$L$4:INDIRECT(ADDRESS($AI$3,$AI$4)))/DSUM(#REF!,""&$B40&"",$L$4:INDIRECT(ADDRESS($AI$3,$AI$4))),IF($B40=0,DAVERAGE(#REF!,""&LEFT($C40,LEN($C40)-$A40)&"",$L$4:INDIRECT(ADDRESS($AI$3,$AI$4))),IF($B40=1,DSUM(#REF!,""&LEFT($C40,LEN($C40)-$A40)&"",$L$4:INDIRECT(ADDRESS($AI$3,$AI$4)))/DSUM(#REF!,""&$I$4&"",$L$4:INDIRECT(ADDRESS($AI$3,$AI$4))),IF($B40=2,DSUM(#REF!,""&LEFT($C40,LEN($C40)-$A40)&"",$L$4:INDIRECT(ADDRESS($AI$3,$AI$4)))/DSUM(#REF!,""&$J$4&"",$L$4:INDIRECT(ADDRESS($AI$3,$AI$4))))))),""),"") -> 
B41: Antal årssøer | C41: Bruttoudbytte i alt | D41: =IF($Z$1=34,Landsgennemsnit!AC41,"") ->  | E41: =IF($Z$1=34,Landsgennemsnit!AD41,"") ->  | F41: =IF($Z$1=34,IFERROR(IF(ISTEXT($B41)=TRUE,DSUM(#REF!,""&LEFT($C41,LEN($C41)-$A41)&"",$M$4:INDIRECT(ADDRESS($AI$3,$AI$4)))/DSUM(#REF!,""&$B41&"",$M$4:INDIRECT(ADDRESS($AI$3,$AI$4))),IF($B41=0,DAVERAGE(#REF!,""&LEFT($C41,LEN($C41)-$A41)&"",$M$4:INDIRECT(ADDRESS($AI$3,$AI$4))),IF($B41=1,DSUM(#REF!,""&LEFT($C41,LEN($C41)-$A41)&"",$M$4:INDIRECT(ADDRESS($AI$3,$AI$4)))/DSUM(#REF!,""&$I$4&"",$M$4:INDIRECT(ADDRESS($AI$3,$AI$4))),DSUM(#REF!,""&LEFT($C41,LEN($C41)-$A41)&"",$M$4:INDIRECT(ADDRESS($AI$3,$AI$4)))/DSUM(#REF!,""&$J$4&"",$M$4:INDIRECT(ADDRESS($AI$3,$AI$4)))))),""),"") ->  | G41: =IF($Z$1=34,IFERROR(IF(ISTEXT($B41)=TRUE,DSUM(#REF!,""&LEFT($C41,LEN($C41)-$A41)&"",$L$4:INDIRECT(ADDRESS($AI$3,$AI$4)))/DSUM(#REF!,""&$B41&"",$L$4:INDIRECT(ADDRESS($AI$3,$AI$4))),IF($B41=0,DAVERAGE(#REF!,""&LEFT($C41,LEN($C41)-$A41)&"",$L$4:INDIRECT(ADDRESS($AI$3,$AI$4))),IF($B41=1,DSUM(#REF!,""&LEFT($C41,LEN($C41)-$A41)&"",$L$4:INDIRECT(ADDRESS($AI$3,$AI$4)))/DSUM(#REF!,""&$I$4&"",$L$4:INDIRECT(ADDRESS($AI$3,$AI$4))),IF($B41=2,DSUM(#REF!,""&LEFT($C41,LEN($C41)-$A41)&"",$L$4:INDIRECT(ADDRESS($AI$3,$AI$4)))/DSUM(#REF!,""&$J$4&"",$L$4:INDIRECT(ADDRESS($AI$3,$AI$4))))))),""),"") -> 
D42: =IF($Z$1=34,Landsgennemsnit!AC42,"") ->  | E42: =IF($Z$1=34,Landsgennemsnit!AD42,"") ->  | F42: =IF($Z$1=34,IFERROR(IF(ISTEXT($B42)=TRUE,DSUM(#REF!,""&LEFT($C42,LEN($C42)-$A42)&"",$M$4:INDIRECT(ADDRESS($AI$3,$AI$4)))/DSUM(#REF!,""&$B42&"",$M$4:INDIRECT(ADDRESS($AI$3,$AI$4))),IF($B42=0,DAVERAGE(#REF!,""&LEFT($C42,LEN($C42)-$A42)&"",$M$4:INDIRECT(ADDRESS($AI$3,$AI$4))),IF($B42=1,DSUM(#REF!,""&LEFT($C42,LEN($C42)-$A42)&"",$M$4:INDIRECT(ADDRESS($AI$3,$AI$4)))/DSUM(#REF!,""&$I$4&"",$M$4:INDIRECT(ADDRESS($AI$3,$AI$4))),DSUM(#REF!,""&LEFT($C42,LEN($C42)-$A42)&"",$M$4:INDIRECT(ADDRESS($AI$3,$AI$4)))/DSUM(#REF!,""&$J$4&"",$M$4:INDIRECT(ADDRESS($AI$3,$AI$4)))))),""),"") ->  | G42: =IF($Z$1=34,IFERROR(IF(ISTEXT($B42)=TRUE,DSUM(#REF!,""&LEFT($C42,LEN($C42)-$A42)&"",$L$4:INDIRECT(ADDRESS($AI$3,$AI$4)))/DSUM(#REF!,""&$B42&"",$L$4:INDIRECT(ADDRESS($AI$3,$AI$4))),IF($B42=0,DAVERAGE(#REF!,""&LEFT($C42,LEN($C42)-$A42)&"",$L$4:INDIRECT(ADDRESS($AI$3,$AI$4))),IF($B42=1,DSUM(#REF!,""&LEFT($C42,LEN($C42)-$A42)&"",$L$4:INDIRECT(ADDRESS($AI$3,$AI$4)))/DSUM(#REF!,""&$I$4&"",$L$4:INDIRECT(ADDRESS($AI$3,$AI$4))),IF($B42=2,DSUM(#REF!,""&LEFT($C42,LEN($C42)-$A42)&"",$L$4:INDIRECT(ADDRESS($AI$3,$AI$4)))/DSUM(#REF!,""&$J$4&"",$L$4:INDIRECT(ADDRESS($AI$3,$AI$4))))))),""),"") -> 
